Workbook

Sheet START

Sheet Instructions
D2: 2020
X4: Yes
X5: No
W7: Type of Entities Range:
X8: Parent Municipality
X9: Consolidated Information
W17: MTREF Range: | X17: 2008
X18: 2009
X19: 2010
X20: 2011
X21: 2012
X22: 2013
X23: 2014
X24: 2015
X25: 2016
X26: 2017
X27: 2018
X28: 2019
X29: 2020
X30: 2021
X31: 2022
W33: MTREF Linked: | X33: 12
W34: MTREF: | X34: =INDEX(X17:X31,X33,1) -> 2019
W36: Fin Year: | X36: =MTREF&"/"&RIGHT(MTREF,2)+1 -> 2019/20

Sheet Template names (hidden)
A1: Common sheet headings
A2: Head1 | B2: =HLOOKUP(MTREF,Headings,2) -> 2017/18 | C2: Prior year -1
A3: Head1A | B3: =HLOOKUP(MTREF,Headings,3) -> 2016/17 | C3: Prior year -2
A4: Head1B | B4: =HLOOKUP(MTREF,Headings,4) -> 2015/16 | C4: Prior year -3
A5: Head2 | B5: =HLOOKUP(MTREF,Headings,5) -> Current Year 2018/19 | C5: Year in which budget is being prepared
A6: Head2A | B6: =HLOOKUP(MTREF,Headings,6) -> 2018/19 | C6: Year in which budget is being prepared
A7: Head3 | B7: =HLOOKUP(MTREF,Headings,7) -> 2019/20 Medium Term Revenue & Expenditure Framework | C7: MTREF name
A8: Head4 | B8: LTFS | C8: Long term financial strategy
A9: Head5 | B9: Audited Outcome
A10: Head5A | B10: Outcome
A11: Head5B | B11: Pre-audit outcome
A12: Head6 | B12: Original Budget
A13: Head7 | B13: Adjusted Budget
A14: Head8 | B14: Full Year Forecast
A15: Head9 | B15: =HLOOKUP(MTREF,Headings,8) -> Budget Year 2019/20 | C15: 1st year of MTREF | D15: Year1
A16: Head10 | B16: =HLOOKUP(MTREF,Headings,9) -> Budget Year +1 2020/21 | C16: 2nd year of MTREF | D16: Year2
A17: Head11 | B17: =HLOOKUP(MTREF,Headings,10) -> Budget Year +2 2021/22 | C17: 3rd year of MTREF | D17: Year3
A18: Head12 | B18: =HLOOKUP(MTREF,Headings,11) -> Forecast 2022/23 | C18: 1st yr of long term forecast | D18: Year4
A19: Head13 | B19: =HLOOKUP(MTREF,Headings,12) -> Forecast 2023/24 | C19: Next yr of long term forecast | D19: Year5
A20: Head14 | B20: =HLOOKUP(MTREF,Headings,13) -> Forecast 2024/25 | C20: Next yr of long term forecast | D20: Year6
A21: Head15 | B21: =HLOOKUP(MTREF,Headings,14) -> Forecast 2025/26 | C21: Next yr of long term forecast | D21: Year7
A22: Head16 | B22: =HLOOKUP(MTREF,Headings,15) -> Forecast 2026/27 | C22: Next yr of long term forecast | D22: Year8
A23: Head17 | B23: =HLOOKUP(MTREF,Headings,16) -> Forecast 2027/28 | C23: Next yr of long term forecast | D23: Year9
A24: Head18 | B24: =HLOOKUP(MTREF,Headings,17) -> Forecast 2028/29 | C24: Next yr of long term forecast | D24: Year10
A25: Head19 | B25: =HLOOKUP(MTREF,Headings,18) -> Forecast 2029/30 | C25: Next yr of long term forecast | D25: Year11
A26: Head20 | B26: =HLOOKUP(MTREF,Headings,19) -> Forecast 2030/31 | C26: Next yr of long term forecast | D26: Year12
A27: Head21 | B27: =HLOOKUP(MTREF,Headings,20) -> Forecast 2031/32 | C27: Next yr of long term forecast | D27: Year13
A28: Head22 | B28: =HLOOKUP(MTREF,Headings,21) -> Forecast 2032/33 | C28: Next yr of long term forecast | D28: Year14
A29: Head23 | B29: =HLOOKUP(MTREF,Headings,22) -> Forecast 2033/34 | C29: Next yr of long term forecast | D29: Year15
A30: Head24 | B30: Description
A31: Head25
A32: Head26 | B32: Vote Description
A33: Head27 | B33: Ref
A34: Head27a | B34: References
A35: Head28 | B35: Surplus/(Deficit) for the year | D35: Result
A36: Head29 | B36: =HLOOKUP(MTREF,Headings,23) -> Annual target 2019/20
A37: Head30 | B37: =HLOOKUP(MTREF,Headings,24) -> Revised target 2019/20
A38: Head31 | B38: Quarter ended 30 September
A39: Head32 | B39: Quarter ended 31 December
A40: Head33 | B40: Quarter ended 31 March
A41: Head34 | B41: Quarter ended 30 June
A42: Head35 | B42: Variance explanation
A43: Head36 | B43: YTD Actual 31 Dec
A44: Head37 | B44: YTD Budget 31 Dec
A45: Head38 | B45: Monthly actual
A46: Head39 | B46: YTD actual
A47: Head40 | B47: YTD budget
A48: Head41 | B48: YTD variance
A49: Head42 | B49: Surplus/ (Deficit) for the yr/period
A50: Head43 | B50: =Head3&" Summary" -> 2019/20 Medium Term Revenue & Expenditure Framework Summary
A51: Head44 | B51: 2001 Census
A52: Head45 | B52: 2011 Census
A53: Head46 | B53: - Adjustments Budget - January 2007
A54: Head47 | B54: Previous target year to complete
A55: Head48 | B55: Present value
A56: Head49
A57: Head50 | B57: Other Adjusts.
A58: Head51 | B58: Accum. Funds
A59: Head52 | B59: Multi-year capital
A60: Head53 | B60: Unfore. Unavoid.
A61: Head54 | B61: Prior Adjusted
A62: Head55 | B62: Nat. or Prov. Govt
A63: Head56 | B63: Total Adjusts.
A64: SFPerf1 | B64: Budgeted Financial Performance
A65: SFPerf2 | B65: Forecast Financial Performance
A66: SFPos1 | B66: Budgeted Financial Position
A67: SFPos2 | B67: Forecast Financial Position
A68: Cash1 | B68: Budget Cash Flow
A69: Cash2 | B69: Forecast Cash Flow
A70: RandM | B70: Expenditure includes repairs & maintenance of R'000
A71: Depart1 | B71: Department 1 - | D71: DEP1
A72: Depart2 | B72: Department 2 - | D72: DEP2
A73: Depart3 | B73: Department 3 - | D73: DEP3
A74: Depart4 | B74: Department 4 - | D74: DEP4
A75: Depart5 | B75: Department 5 - | D75: DEP5
A76: Depart6 | B76: Department 6 - | D76: DEP6
A77: Depart7 | B77: Department 7 - | D77: DEP7
A78: Depart8 | B78: Department 8 - | D78: DEP8
A79: Depart9 | B79: Department 9 - | D79: DEP9
A80: Depart10 | B80: Department 10 - | D80: DEP10
A81: Depart11 | B81: Department 11 - | D81: DEP11
A82: Depart12 | B82: Department 12 - | D82: DEP12
A83: Depart13 | B83: Department 13 - | D83: DEP13
A84: Depart14 | B84: Department 14 - | D84: DEP14
A87: Base year of forecast column selection names
A88: Choose | B88: ACT
B89: APP
B90: ADJ
A92: Standard nomenclature
A93: Muni | B93: ='Lookup and lists'!B28 -> NW375 Moses Kotane
A94: Municipal Entities | B94: 2 | C94: Type of report: | D94: 1
A95: =IF((MuniEntities=1)*(MuniType=2),"YES","NO") -> NO | B95: Does this municipality have entities (consolidated budget and entity budgets required)? YES/NO
A96: Entity 1 | B96: (Pty) Ltd Example 1 - Municipal entity - | D96: Ent1
A97: Entity 2 | B97: (Pty) Ltd Example 2 - Municipal entity - | D97: Ent2
A98: Entity 3 | B98: Municipal Entity Example 3 | D98: Ent3
A99: Budget approval tables | C99: Chart x-ref | D99: Sch/Tab/Ch | E99: Alternative for municipalities without entities | F99: Alternative for municipalities without entities
B100: =IF(Consolques="YES",E100,F100) -> Table A1 Budget Summary | D100: Table A1 | E100: =D100&"Consolidated Budget Summary" -> Table A1 Consolidated Budget Summary | F100: =D100&"Budget Summary" -> Table A1 Budget Summary
B101: Table A2 Budgeted Financial Performance (revenue and expenditure by functional classification) | C101: Charts 5, 6 | D101: Table A2 | E101: =D101&"Consolidated Budgeted Financial Performance (revenue and expenditure by functional classification)" -> Table A2 Consolidated Budgeted Financial Performance (revenue and expenditure by functional classification) | F101: =D101&"Budgeted Financial Performance (revenue and expenditure by functional classification)" -> Table A2 Budgeted Financial Performance (revenue and expenditure by functional classification)
B102: Table A3 Budgeted Financial Performance (revenue and expenditure by municipal vote) | D102: Table A3 | E102: =D102&"Consolidated Budgeted Financial Performance (revenue and expenditure by municipal vote)" -> Table A3 Consolidated Budgeted Financial Performance (revenue and expenditure by municipal vote) | F102: =D102&"Budgeted Financial Performance (revenue and expenditure by municipal vote)" -> Table A3 Budgeted Financial Performance (revenue and expenditure by municipal vote)
B103: Table A4 Budgeted Financial Performance (revenue and expenditure) | C103: Charts 1, 2, 3, 4 | D103: Table A4 | E103: =D103&"Consolidated Budgeted Financial Performance (revenue and expenditure)" -> Table A4 Consolidated Budgeted Financial Performance (revenue and expenditure) | F103: =D103&"Budgeted Financial Performance (revenue and expenditure)" -> Table A4 Budgeted Financial Performance (revenue and expenditure)
B104: Table A5 Budgeted Capital Expenditure by vote, functional classification and funding | C104: Charts 7, 8, 9, 10, 20 | D104: Table A5 | E104: =D104&"Consolidated Budgeted Capital Expenditure by vote, functional classification and funding" -> Table A5 Consolidated Budgeted Capital Expenditure by vote, functional classification and funding | F104: =D104&"Budgeted Capital Expenditure by vote, functional classification and funding" -> Table A5 Budgeted Capital Expenditure by vote, functional classification and funding
B105: Table A6 Budgeted Financial Position | D105: Table A6 | E105: =D105&"Consolidated Budgeted Financial Position" -> Table A6 Consolidated Budgeted Financial Position | F105: =D105&"Budgeted Financial Position" -> Table A6 Budgeted Financial Position
B106: Table A7 Budgeted Cash Flows | D106: Table A7 | E106: =D106&"Consolidated Budgeted Cash Flows" -> Table A7 Consolidated Budgeted Cash Flows | F106: =D106&"Budgeted Cash Flows" -> Table A7 Budgeted Cash Flows
B107: Table A8 Cash backed reserves/accumulated surplus reconciliation | D107: Table A8 | E107: =D107&"Consolidated Cash backed reserves/accumulated surplus reconciliation" -> Table A8 Consolidated Cash backed reserves/accumulated surplus reconciliation | F107: =D107&"Cash backed reserves/accumulated surplus reconciliation" -> Table A8 Cash backed reserves/accumulated surplus reconciliation
B108: Table A9 Asset Management | D108: Table A9 | E108: =D108&"Consolidated Asset Management" -> Table A9 Consolidated Asset Management | F108: =D108&"Asset Management" -> Table A9 Asset Management
B109: Table A10 Basic service delivery measurement | D109: Table A10 | E109: =D109&"Consolidated basic service delivery measurement" -> Table A10 Consolidated basic service delivery measurement | F109: =D109&"Basic service delivery measurement" -> Table A10 Basic service delivery measurement
A110: Supportinging Tables to the Budget Approval Tables | C110: =$C$99 -> Chart x-ref | D110: =$D$99 -> Sch/Tab/Ch
A111: Supporting Table SA1 | B111: =A111&" Supportinging detail to 'Budgeted Financial Performance'" -> Supporting Table SA1 Supportinging detail to 'Budgeted Financial Performance'
A112: Supporting Table SA2 | B112: =IF(Consolques="YES",E112,F112) -> Supporting Table SA2 Matrix Financial Performance Budget (revenue source/expenditure type and dept.) | E112: =A112&"Consolidated Matrix Financial Performance Budget (revenue source/expenditure type & dept.)" -> Supporting Table SA2 Consolidated Matrix Financial Performance Budget (revenue source/expenditure type & dept.) | F112: =A112&"Matrix Financial Performance Budget (revenue source/expenditure type and dept.)" -> Supporting Table SA2 Matrix Financial Performance Budget (revenue source/expenditure type and dept.)
A113: Supporting Table SA3 | B113: =A113&"Supportinging detail to 'Budgeted Financial Position'" -> Supporting Table SA3 Supportinging detail to 'Budgeted Financial Position'
A114: Supporting Table SA4 | B114: =A114&"Reconciliation of IDP strategic objectives and budget (revenue)" -> Supporting Table SA4 Reconciliation of IDP strategic objectives and budget (revenue) | C114: Chart 11
A115: Supporting Table SA5 | B115: =A115&"Reconciliation of IDP strategic objectives and budget (operating expenditure)" -> Supporting Table SA5 Reconciliation of IDP strategic objectives and budget (operating expenditure) | C115: Chart 12
A116: Supporting Table SA6 | B116: =A116&"Reconciliation of IDP strategic objectives and budget (capital expenditure)" -> Supporting Table SA6 Reconciliation of IDP strategic objectives and budget (capital expenditure) | C116: Chart 13
A117: Supporting Table SA7 | B117: =A117&" Measureable performance objectives" -> Supporting Table SA7 Measureable performance objectives
A118: Supporting Table SA8 | B118: =A118&" Performance indicators and benchmarks" -> Supporting Table SA8 Performance indicators and benchmarks | C118: Chts 15-19
A119: Supporting Table SA9 | B119: =A119&" Social, economic and demographic statistics and assumptions" -> Supporting Table SA9 Social, economic and demographic statistics and assumptions
A120: Supporting Table SA10 | B120: =A120&" Funding measurement" -> Supporting Table SA10 Funding measurement | C120: Chart 14
A121: Supporting Table SA11 | B121: =A121&" Property rates summary" -> Supporting Table SA11 Property rates summary
A122: Supporting Table SA12a | B122: =A122&" Property rates by category (current year)" -> Supporting Table SA12a Property rates by category (current year)
A123: Supporting Table SA12b | B123: =A123&" Property rates by category (budget year)" -> Supporting Table SA12b Property rates by category (budget year)
A124: Supporting Table SA13a | B124: =A124&" Service Tariffs by category" -> Supporting Table SA13a Service Tariffs by category
A125: Supporting Table SA13b | B125: =A125&" Service Tariffs by category - explanatory" -> Supporting Table SA13b Service Tariffs by category - explanatory
A126: Supporting Table SA14 | B126: =A126&" Household bills" -> Supporting Table SA14 Household bills
A127: Supporting Table SA15 | B127: =A127&" Investment particulars by type" -> Supporting Table SA15 Investment particulars by type
A128: Supporting Table SA16 | B128: =A128&" Investment particulars by maturity" -> Supporting Table SA16 Investment particulars by maturity
A129: Supporting Table SA17 | B129: =A129&" Borrowing" -> Supporting Table SA17 Borrowing
A130: Supporting Table SA18 | B130: =A130&" Transfers and grant receipts" -> Supporting Table SA18 Transfers and grant receipts
A131: Supporting Table SA19 | B131: =A131&" Expenditure on transfers and grant programme" -> Supporting Table SA19 Expenditure on transfers and grant programme
A132: Supporting Table SA20 | B132: =A132&" Reconciliation of transfers, grant receipts and unspent funds" -> Supporting Table SA20 Reconciliation of transfers, grant receipts and unspent funds
A133: Supporting Table SA21 | B133: =A133&" Transfers and grants made by the municipality" -> Supporting Table SA21 Transfers and grants made by the municipality
A134: Supporting Table SA22 | B134: =A134&" Summary councillor and staff benefits" -> Supporting Table SA22 Summary councillor and staff benefits
A135: Supporting Table SA23 | B135: =A135&" Salaries, allowances & benefits (political office bearers/councillors/senior managers)" -> Supporting Table SA23 Salaries, allowances & benefits (political office bearers/councillors/senior managers)
A136: Supporting Table SA24 | B136: =A136&" Summary of personnel numbers" -> Supporting Table SA24 Summary of personnel numbers
A137: Supporting Table SA25 | B137: =IF(Consolques="YES",E137,F137) -> Supporting Table SA25 Budgeted monthly revenue and expenditure | E137: =A137&" Consolidated budgeted monthly revenue and expenditure" -> Supporting Table SA25 Consolidated budgeted monthly revenue and expenditure | F137: =A137&" Budgeted monthly revenue and expenditure" -> Supporting Table SA25 Budgeted monthly revenue and expenditure
A138: Supporting Table SA26 | B138: Supporting Table SA26 Budgeted monthly revenue and expenditure (municipal vote) | E138: =A138&" Consolidated budgeted monthly revenue and expenditure (municipal vote)" -> Supporting Table SA26 Consolidated budgeted monthly revenue and expenditure (municipal vote) | F138: =A138&" Budgeted monthly revenue and expenditure (municipal vote)" -> Supporting Table SA26 Budgeted monthly revenue and expenditure (municipal vote)
A139: Supporting Table SA27 | B139: Supporting Table SA27 Budgeted monthly revenue and expenditure (functional classification) | E139: =A139&" Consolidated budgeted monthly revenue and expenditure (functional classification)" -> Supporting Table SA27 Consolidated budgeted monthly revenue and expenditure (functional classification) | F139: =A139&" Budgeted monthly revenue and expenditure (functional classification)" -> Supporting Table SA27 Budgeted monthly revenue and expenditure (functional classification)
A140: Supporting Table SA28 | B140: Supporting Table SA28 Budgeted monthly capital expenditure (municipal vote) | E140: =A140&" Consolidated budgeted monthly capital expenditure (municipal vote)" -> Supporting Table SA28 Consolidated budgeted monthly capital expenditure (municipal vote) | F140: =A140&" Budgeted monthly capital expenditure (municipal vote)" -> Supporting Table SA28 Budgeted monthly capital expenditure (municipal vote)
A141: Supporting Table SA29 | B141: Supporting Table SA29 Budgeted monthly capital expenditure (functional classification) | E141: =A141&" Consolidated budgeted monthly capital expenditure (functional classification)" -> Supporting Table SA29 Consolidated budgeted monthly capital expenditure (functional classification) | F141: =A141&" Budgeted monthly capital expenditure (functional classification)" -> Supporting Table SA29 Budgeted monthly capital expenditure (functional classification)
A142: Supporting Table SA30 | B142: Supporting Table SA30 Budgeted monthly cash flow | E142: =A142&" Consolidated budgeted monthly cash flow" -> Supporting Table SA30 Consolidated budgeted monthly cash flow | F142: =A142&" Budgeted monthly cash flow" -> Supporting Table SA30 Budgeted monthly cash flow
A143: Supporting Table SA31 | B143: NOT REQUIRED - municipality does not have entities | E143: =A143&" Aggregated entity budget" -> Supporting Table SA31 Aggregated entity budget | F143: NOT REQUIRED - municipality does not have entities
A144: Supporting Table SA32 | B144: =A144&" List of external mechanisms" -> Supporting Table SA32 List of external mechanisms
A145: Supporting Table SA33 | B145: =A145&" Contracts having future budgetary implications" -> Supporting Table SA33 Contracts having future budgetary implications
A146: Supporting Table SA34a | B146: =IF(Consolques="YES",E146,F146) -> Supporting Table SA34a Capital expenditure on new assets by asset class | E146: =A146&" Consolidated capital expenditure on new assets by asset class" -> Supporting Table SA34a Consolidated capital expenditure on new assets by asset class | F146: =A146&" Capital expenditure on new assets by asset class" -> Supporting Table SA34a Capital expenditure on new assets by asset class
A147: Supporting Table SA34b | B147: Supporting Table SA34b Capital expenditure on the renewal of existing assets by asset class | E147: =A147&" Consolidated capital expenditure on the renewal of existing assets by asset class" -> Supporting Table SA34b Consolidated capital expenditure on the renewal of existing assets by asset class | F147: =A147&" Capital expenditure on the renewal of existing assets by asset class" -> Supporting Table SA34b Capital expenditure on the renewal of existing assets by asset class
A148: Supporting Table SA34c | B148: Supporting Table SA34c Repairs and maintenance expenditure by asset class | E148: =A148&" Consolidated repairs and maintenance by asset class" -> Supporting Table SA34c Consolidated repairs and maintenance by asset class | F148: =A148&" Repairs and maintenance expenditure by asset class" -> Supporting Table SA34c Repairs and maintenance expenditure by asset class
A149: Supporting Table SA34d | B149: =IF(Consolques="YES",E149,F149) -> Supporting Table SA34d Depreciation by asset class | E149: =A149&" Consolidated Depreciation by asset class" -> Supporting Table SA34d Consolidated Depreciation by asset class | F149: =A149&" Depreciation by asset class" -> Supporting Table SA34d Depreciation by asset class
A150: Supporting Table SA34e | B150: =IF(Consolques="YES",E150,F150) -> Supporting Table SA34e Capital expenditure on the upgrading of existing assets by asset class | E150: =A150&" Consolidated capital expenditure on the upgrading of existing assets by asset class" -> Supporting Table SA34e Consolidated capital expenditure on the upgrading of existing assets by asset class | F150: =A150&" Capital expenditure on the upgrading of existing assets by asset class" -> Supporting Table SA34e Capital expenditure on the upgrading of existing assets by asset class
A151: Supporting Table SA35 | B151: Supporting Table SA35 Future financial implications of the capital budget | E151: =A151&" Consolidated future financial implications of the capital budget" -> Supporting Table SA35 Consolidated future financial implications of the capital budget | F151: =A151& " Future financial implications of the capital budget" -> Supporting Table SA35 Future financial implications of the capital budget
A152: Supporting Table SA36 | B152: Supporting Table SA36 Detailed capital budget | E152: =A152&" Consolidated detailed capital budget" -> Supporting Table SA36 Consolidated detailed capital budget | F152: =A152& " Detailed capital budget" -> Supporting Table SA36 Detailed capital budget
A153: Supporting Table SA37 | B153: Supporting Table SA37 Projects delayed from previous financial year/s | E153: =A153&" Consolidated projects delayed from previous financial year/s" -> Supporting Table SA37 Consolidated projects delayed from previous financial year/s | F153: =A153& " Projects delayed from previous financial year/s" -> Supporting Table SA37 Projects delayed from previous financial year/s
A154: Supporting Table SA38 | B154: =IF(Consolques="YES",E154,F154) -> Supporting Table SA38 Detailed operational projects | E154: =A154&" Consolidated detailed operational projects" -> Supporting Table SA38 Consolidated detailed operational projects | F154: =A154& " Detailed operational projects" -> Supporting Table SA38 Detailed operational projects
A156: Budget Charts | B156: Charts | C156: Cross reference
A157: Chart A1 | B157: =A157&"Revenue by Municipal Vote" -> Chart A1 Revenue by Municipal Vote
A158: Chart A2 | B158: =A158&"Expenditure by Municipal Vote" -> Chart A2 Expenditure by Municipal Vote
A159: Chart A3 | B159: =A159&"Revenue by Standard Classification" -> Chart A3 Revenue by Standard Classification | C159: A2
A160: Chart A4 | B160: =A160&"Expenditure by Standard Classification" -> Chart A4 Expenditure by Standard Classification | C160: A2
A161: Chart A5 | B161: =A161&"Revenue by Major Source (refer 'Minor' source for 'Other Revenue' allocation" -> Chart A5 Revenue by Major Source (refer 'Minor' source for 'Other Revenue' allocation | C161: A3
A162: Chart A6 | B162: =A162&"Revenue by Minor Source (Other)" -> Chart A6 Revenue by Minor Source (Other) | C162: A3
A163: Chart A7 | B163: =A163&"Expenditure by Major Type" -> Chart A7 Expenditure by Major Type | C163: A3
A164: Chart A8 | B164: =A164&"Expenditure by Minor Type (Other)" -> Chart A8 Expenditure by Minor Type (Other) | C164: A3
A165: Chart A9 | B165: =A165&"Capital Expenditure by Municipal Vote/Appropriation (Major)" -> Chart A9 Capital Expenditure by Municipal Vote/Appropriation (Major) | C165: A5
A166: Chart A10 | B166: =A166&"Capital Expenditure by Municipal Vote/Appropriation (Minor)" -> Chart A10 Capital Expenditure by Municipal Vote/Appropriation (Minor) | C166: A5
A167: Chart A11 | B167: =A166&"Capital Expenditure by Standard Classification" -> Chart A10 Capital Expenditure by Standard Classification | C167: A5
A168: Chart A12 | B168: =A168&"Capital expenditure performance trend" -> Chart A12 Capital expenditure performance trend | C168: A5
A169: Chart A13 | B169: =A169&"Capital funding by Source" -> Chart A13 Capital funding by Source | C169: A5
A170: Chart A14 | B170: =A170&"Cash flow trend" -> Chart A14 Cash flow trend | C170: A7
A171: Chart A15 | B171: =A171&"IDP Strategic Objective - Revenue" -> Chart A15 IDP Strategic Objective - Revenue | C171: Table A4
A172: Chart A16 | B172: =A172&"IDP Strategic Objective - Expenditure" -> Chart A16 IDP Strategic Objective - Expenditure | C172: Table A5
A173: Chart A17 | B173: =A173&"IDP Strategic Objective - Capital Expenditure" -> Chart A17 IDP Strategic Objective - Capital Expenditure | C173: Table A6
A174: Chart A18 | B174: =A174&"Debt (borrowing to Total Revenue)" -> Chart A18 Debt (borrowing to Total Revenue) | C174: Table A8
A175: Chart A19 | B175: =A175&"Debtors' trend analysis" -> Chart A19 Debtors' trend analysis | C175: Table A8
A176: Chart A20 | B176: =A176&"Distribution losses" -> Chart A20 Distribution losses | C176: Table A8
A177: Chart A21 | B177: =A177&"Borrowed funding of capital expenditure" -> Chart A21 Borrowed funding of capital expenditure | C177: Table A8
A178: Chart A22 | B178: =A178&"Expenditure analysis (% of Revenue)" -> Chart A22 Expenditure analysis (% of Revenue) | C178: Table A8
A179: Chart A23 | B179: =A179&"Increases in service charges" -> Chart A23 Increases in service charges | C179: Table A10

Sheet Lookup and lists (hidden)
A1: Description | B1: 2007 | C1: 2008 | D1: 2009 | E1: 2010 | F1: 2011 | G1: 2012 | H1: 2013 | I1: 2014 | J1: 2015 | K1: 2016 | L1: 2017 | M1: 2018 | N1: 2019 | O1: 2020 | Q1: Lists | Y1: Grants: | Z1: National - opex | AA1: Provincial - opex | AB1: National - capex | AC1: Provincial - capex
A2: ='Template names'!C2 -> Prior year -1 | B2: 2005/06 | C2: 2006/07 | D2: 2007/08 | E2: =E1-2&"/"&RIGHT(E1,2)-1 -> 2008/9 | F2: 2009/10 | G2: 2010/11 | H2: 2011/12 | I2: 2012/13 | J2: 2013/14 | K2: 2014/15 | L2: 2015/16 | M2: 2016/17 | N2: 2017/18 | O2: 2018/19 | Q2: Yes | R2: <1 | S2: <4 | T2: Market | U2: Land & impr. | V2: Yes | W2: Uniform | X2: Yrs | Z2: Local Government Equitable Share | AA2: Health subsidy | AB2: Municipal Infrastructure Grant (MIG) | AC2: Agriculture
A3: ='Template names'!C3 -> Prior year -2 | B3: 2004/05 | C3: 2005/06 | D3: 2006/07 | E3: =E1-3&"/"&RIGHT(E1,2)-2 -> 2007/8 | F3: 2008/9 | G3: 2009/10 | H3: 2010/11 | I3: 2011/12 | J3: 2012/13 | K3: 2013/14 | L3: 2014/15 | M3: 2015/16 | N3: 2016/17 | O3: 2017/18 | Q3: No | R3: 1 | S3: 4 | T3: Dep.Replace | U3: Land only | V3: No | W3: Variable | X3: Mths | Z3: RSC Levy Replacement | AA3: Ambulance subsidy | AB3: Public Transport and Systems | AC3: Education
A4: ='Template names'!C4 -> Prior year -3 | B4: 2003/04 | C4: 2004/05 | D4: 2005/06 | E4: =E1-4&"/"&RIGHT(E1,2)-3 -> 2006/7 | F4: 2007/8 | G4: 2008/9 | H4: 2009/10 | I4: 2010/11 | J4: 2011/12 | K4: 2012/13 | L4: 2013/14 | M4: 2014/15 | N4: 2015/16 | O4: 2016/17 | R4: 2 | S4: 5 | T4: Other | U4: Other | Z4: Finance Management | AA4: Housing | AB4: Rural Transport Services and Infrastructure | AC4: Health
A5: ='Template names'!C5 -> Year in which budget is being prepared | B5: Current Year 2006/07 | C5: Current Year 2007/08 | D5: Current Year 2008/09 | E5: ="Current Year "& E1-1&"/"&RIGHT(E1,2) -> Current Year 2009/10 | F5: Current Year 2010/11 | G5: Current Year 2011/12 | H5: Current Year 2012/13 | I5: Current Year 2013/14 | J5: Current Year 2014/15 | K5: Current Year 2015/16 | L5: Current Year 2016/17 | M5: Current Year 2017/18 | N5: Current Year 2018/19 | O5: Current Year 2019/20 | R5: 3 | S5: 6 | Z5: Municipal Systems Improvement | AA5: Sport and Recreation | AB5: Regional Bulk Infrastructure | AC5: Housing and Local Government
A6: ='Template names'!C6 -> Year in which budget is being prepared | B6: 2006/07 | C6: 2007/08 | D6: 2008/09 | E6: =E1-1&"/"&RIGHT(E1,2) -> 2009/10 | F6: 2010/11 | G6: 2011/12 | H6: 2012/13 | I6: 2013/14 | J6: 2014/15 | K6: 2015/16 | L6: 2016/17 | M6: 2017/18 | N6: 2018/19 | O6: 2019/20 | R6: 4 | S6: 6-10 | Z6: Water Services Operating Subsidy | AB6: Rural Households Infrastructure | AC6: Other Departments
A7: ='Template names'!C7 -> MTREF name | B7: 2007/08 Medium Term Revenue & Expenditure Framework | C7: 2008/09 Medium Term Revenue & Expenditure Framework | D7: 2009/10 Medium Term Revenue & Expenditure Framework | E7: =E1&"/"&RIGHT(E1,2)+1&" Medium Term Revenue & Expenditure Framework" -> 2010/11 Medium Term Revenue & Expenditure Framework | F7: 2011/12 Medium Term Revenue & Expenditure Framework | G7: 2012/13 Medium Term Revenue & Expenditure Framework | H7: 2013/14 Medium Term Revenue & Expenditure Framework | I7: 2014/15 Medium Term Revenue & Expenditure Framework | J7: 2015/16 Medium Term Revenue & Expenditure Framework | K7: 2016/17 Medium Term Revenue & Expenditure Framework | L7: 2017/18 Medium Term Revenue & Expenditure Framework | M7: 2018/19 Medium Term Revenue & Expenditure Framework | N7: 2019/20 Medium Term Revenue & Expenditure Framework | O7: 2020/21 Medium Term Revenue & Expenditure Framework | R7: 5 | S7: >10 | Z7: Energy Efficiency and Demand Management | AB7: Neighbourhood Development Partnership | AC7: Public Works, Roads, Transport
A8: ='Template names'!C15 -> 1st year of MTREF | B8: Budget Year 2007/08 | C8: Budget Year 2008/09 | D8: Budget Year 2009/10 | E8: ="Budget Year "&E1&"/"&RIGHT(E1,2)+1 -> Budget Year 2010/11 | F8: Budget Year 2011/12 | G8: Budget Year 2012/13 | H8: Budget Year 2013/14 | I8: Budget Year 2014/15 | J8: Budget Year 2015/16 | K8: Budget Year 2016/17 | L8: Budget Year 2017/18 | M8: Budget Year 2018/19 | N8: Budget Year 2019/20 | O8: Budget Year 2020/21 | R8: >5 | Z8: Integrated National Electrification Programme | AB8: 2010 FIFA World Cup Stadiums Development | AC8: Sport and Recreation
A9: ='Template names'!C16 -> 2nd year of MTREF | B9: Budget Year +1 2008/09 | C9: Budget Year +1 2009/10 | D9: Budget Year +1 2010/11 | E9: ="Budget Year +1 "&E1+1&"/"&RIGHT(E1,2)+2 -> Budget Year +1 2011/12 | F9: Budget Year +1 2012/13 | G9: Budget Year +1 2013/14 | H9: Budget Year +1 2014/15 | I9: Budget Year +1 2015/16 | J9: Budget Year +1 2016/17 | K9: Budget Year +1 2017/18 | L9: Budget Year +1 2018/19 | M9: Budget Year +1 2019/20 | N9: Budget Year +1 2020/21 | O9: Budget Year +1 2021/22 | Z9: Municipal Drought Relief
A10: ='Template names'!C17 -> 3rd year of MTREF | B10: Budget Year +2 2009/10 | C10: Budget Year +2 2010/11 | D10: Budget Year +2 2011/12 | E10: ="Budget Year +2 "&E1+2&"/"&RIGHT(E1,2)+3 -> Budget Year +2 2012/13 | F10: Budget Year +2 2013/14 | G10: Budget Year +2 2014/15 | H10: Budget Year +2 2015/16 | I10: Budget Year +2 2016/17 | J10: Budget Year +2 2017/18 | K10: Budget Year +2 2018/19 | L10: Budget Year +2 2019/20 | M10: Budget Year +2 2020/21 | N10: Budget Year +2 2021/22 | O10: Budget Year +2 2022/23 | Z10: 2010 FIFA World Cup Operating
A11: ='Template names'!C18 -> 1st yr of long term forecast | B11: Forecast 2010/11 | C11: Forecast 2011/12 | D11: Forecast 2012/13 | E11: ="Forecast "&E1+3&"/"&RIGHT(E1,2)+4 -> Forecast 2013/14 | F11: Forecast 2014/15 | G11: Forecast 2015/16 | H11: Forecast 2016/17 | I11: Forecast 2017/18 | J11: Forecast 2018/19 | K11: Forecast 2019/20 | L11: Forecast 2020/21 | M11: Forecast 2021/22 | N11: Forecast 2022/23 | O11: Forecast 2023/24 | Z11: Electricity Demand Side Management
A12: ='Template names'!C19 -> Next yr of long term forecast | B12: Forecast 2011/12 | C12: Forecast 2012/13 | D12: Forecast 2013/14 | E12: ="Forecast "&E1+4&"/"&RIGHT(E1,2)+5 -> Forecast 2014/15 | F12: Forecast 2015/16 | G12: Forecast 2016/17 | H12: Forecast 2017/18 | I12: Forecast 2018/19 | J12: Forecast 2019/20 | K12: Forecast 2020/21 | L12: Forecast 2021/22 | M12: Forecast 2022/23 | N12: Forecast 2023/24 | O12: Forecast 2024/25 | Z12: EPWP Incentive
A13: ='Template names'!C20 -> Next yr of long term forecast | B13: Forecast 2012/13 | C13: Forecast 2013/14 | D13: Forecast 2014/15 | E13: ="Forecast "&E1+5&"/"&RIGHT(E1,2)+6 -> Forecast 2015/16 | F13: Forecast 2016/17 | G13: Forecast 2017/18 | H13: Forecast 2018/19 | I13: Forecast 2019/20 | J13: Forecast 2020/21 | K13: Forecast 2021/22 | L13: Forecast 2022/23 | M13: Forecast 2023/24 | N13: Forecast 2024/25 | O13: Forecast 2025/26
A14: ='Template names'!C21 -> Next yr of long term forecast | B14: Forecast 2013/14 | C14: Forecast 2014/15 | D14: Forecast 2015/16 | E14: ="Forecast "&E1+6&"/"&RIGHT(E1,2)+7 -> Forecast 2016/17 | F14: Forecast 2017/18 | G14: Forecast 2018/19 | H14: Forecast 2019/20 | I14: Forecast 2020/21 | J14: Forecast 2021/22 | K14: Forecast 2022/23 | L14: Forecast 2023/24 | M14: Forecast 2024/25 | N14: Forecast 2025/26 | O14: Forecast 2026/27 | Z14: Asset Class | AA14: Asset sub-class old | AB14: Asset sub-class | AC14: IUDF | AD14: MTSF
A15: ='Template names'!C22 -> Next yr of long term forecast | B15: Forecast 2014/15 | C15: Forecast 2015/16 | D15: Forecast 2016/17 | E15: ="Forecast "&E1+7&"/"&RIGHT(E1,2)+8 -> Forecast 2017/18 | F15: Forecast 2018/19 | G15: Forecast 2019/20 | H15: Forecast 2020/21 | I15: Forecast 2021/22 | J15: Forecast 2022/23 | K15: Forecast 2023/24 | L15: Forecast 2024/25 | M15: Forecast 2025/26 | N15: Forecast 2026/27 | O15: Forecast 2027/28
A16: ='Template names'!C23 -> Next yr of long term forecast | B16: Forecast 2015/16 | C16: Forecast 2016/17 | D16: Forecast 2017/18 | E16: ="Forecast "&E1+8&"/"&RIGHT(E1,2)+9 -> Forecast 2018/19 | F16: Forecast 2019/20 | G16: Forecast 2020/21 | H16: Forecast 2021/22 | I16: Forecast 2022/23 | J16: Forecast 2023/24 | K16: Forecast 2024/25 | L16: Forecast 2025/26 | M16: Forecast 2026/27 | N16: Forecast 2027/28 | O16: Forecast 2028/29 | Z16: Roads Infrastructure | AA16: Roads, Pavements & Bridges | AB16: Roads | AC16: Spatial integration | AD16: Quality basic education
A17: ='Template names'!C24 -> Next yr of long term forecast | B17: Forecast 2016/17 | C17: Forecast 2017/18 | D17: Forecast 2018/19 | E17: ="Forecast "&E1+9&"/"&RIGHT(E1,2)+10 -> Forecast 2019/20 | F17: Forecast 2020/21 | G17: Forecast 2021/22 | H17: Forecast 2022/23 | I17: Forecast 2023/24 | J17: Forecast 2024/25 | K17: Forecast 2025/26 | L17: Forecast 2026/27 | M17: Forecast 2027/28 | N17: Forecast 2028/29 | O17: Forecast 2029/30 | Z17: Storm water Infrastructure | AA17: Storm water | AB17: Road Structures | AC17: Inclusion and access | AD17: A long and healthy life for all South Africans
A18: ='Template names'!C25 -> Next yr of long term forecast | B18: Forecast 2017/18 | C18: Forecast 2018/19 | D18: Forecast 2019/20 | E18: ="Forecast "&E1+10&"/"&RIGHT(E1,2)+11 -> Forecast 2020/21 | F18: Forecast 2021/22 | G18: Forecast 2022/23 | H18: Forecast 2023/24 | I18: Forecast 2024/25 | J18: Forecast 2025/26 | K18: Forecast 2026/27 | L18: Forecast 2027/28 | M18: Forecast 2028/29 | N18: Forecast 2029/30 | O18: Forecast 2030/31 | Z18: Electrical Infrastructure | AA18: Generation | AB18: Road Furniture | AC18: Growth | AD18: All people in South Africa are and feel safe
A19: ='Template names'!C26 -> Next yr of long term forecast | B19: Forecast 2018/19 | C19: Forecast 2019/20 | D19: Forecast 2020/21 | E19: ="Forecast "&E1+11&"/"&RIGHT(E1,2)+12 -> Forecast 2021/22 | F19: Forecast 2022/23 | G19: Forecast 2023/24 | H19: Forecast 2024/25 | I19: Forecast 2025/26 | J19: Forecast 2026/27 | K19: Forecast 2027/28 | L19: Forecast 2028/29 | M19: Forecast 2029/30 | N19: Forecast 2030/31 | O19: Forecast 2031/32 | Z19: Water Supply Infrastructure | AA19: Transmission & Reticulation | AB19: Capital Spares | AC19: Governance | AD19: Decent employment through inclusive growth
A20: ='Template names'!C27 -> Next yr of long term forecast | B20: Forecast 2019/20 | C20: Forecast 2020/21 | D20: Forecast 2021/22 | E20: ="Forecast "&E1+12&"/"&RIGHT(E1,2)+13 -> Forecast 2022/23 | F20: Forecast 2023/24 | G20: Forecast 2024/25 | H20: Forecast 2025/26 | I20: Forecast 2026/27 | J20: Forecast 2027/28 | K20: Forecast 2028/29 | L20: Forecast 2029/30 | M20: Forecast 2030/31 | N20: Forecast 2031/32 | O20: Forecast 2032/33 | Z20: Sanitation Infrastructure | AA20: Street Lighting | AB20: Drainage Collection | AD20: A skilled and capable workforce to support an inclusive growth path
A21: ='Template names'!C28 -> Next yr of long term forecast | B21: Forecast 2020/21 | C21: Forecast 2021/22 | D21: Forecast 2022/23 | E21: ="Forecast "&E1+13&"/"&RIGHT(E1,2)+14 -> Forecast 2023/24 | F21: Forecast 2024/25 | G21: Forecast 2025/26 | H21: Forecast 2026/27 | I21: Forecast 2027/28 | J21: Forecast 2028/29 | K21: Forecast 2029/30 | L21: Forecast 2030/31 | M21: Forecast 2031/32 | N21: Forecast 2032/33 | O21: Forecast 2033/34 | Z21: Solid Waste Infrastructure | AA21: Dams & Reservoirs | AB21: Storm water Conveyance | AD21: An efficient, competitive and responsive economic infrastructure network
A22: ='Template names'!C29 -> Next yr of long term forecast | B22: Forecast 2021/22 | C22: Forecast 2022/23 | D22: Forecast 2023/24 | E22: ="Forecast "&E1+14&"/"&RIGHT(E1,2)+15 -> Forecast 2024/25 | F22: Forecast 2025/26 | G22: Forecast 2026/27 | H22: Forecast 2027/28 | I22: Forecast 2028/29 | J22: Forecast 2029/30 | K22: Forecast 2030/31 | L22: Forecast 2031/32 | M22: Forecast 2032/33 | N22: Forecast 2033/34 | O22: Forecast 2034/35 | Z22: Rail Infrastructure | AA22: Water purification | AB22: Attenuation | AD22: Vibrant, equitable, sustainable rural communities contributing towards food security for all
A23: Adjustments Budget | B23: Annual target 2007/08 | C23: Annual target 2008/09 | D23: Annual target 2009/10 | E23: ="Annual target " & E1&"/"&RIGHT(E1,2)+1 -> Annual target 2010/11 | F23: Annual target 2011/12 | G23: Annual target 2012/13 | H23: Annual target 2013/14 | I23: Annual target 2014/15 | J23: Annual target 2015/16 | K23: Annual target 2016/17 | L23: Annual target 2017/18 | M23: Annual target 2018/19 | N23: Annual target 2019/20 | O23: Annual target 2020/21 | Z23: Coastal Infrastructure | AA23: Reticulation | AB23: Power Plants | AD23: Sustainable human settlements and improved quality of household life
A24: =A23 -> Adjustments Budget | B24: Revised target 2007/08 | C24: Revised target 2008/09 | D24: Revised target 2009/10 | E24: ="Revised target "& E1&"/"&RIGHT(E1,2)+1 -> Revised target 2010/11 | F24: Revised target 2011/12 | G24: Revised target 2012/13 | H24: Revised target 2013/14 | I24: Revised target 2014/15 | J24: Revised target 2015/16 | K24: Revised target 2016/17 | L24: Revised target 2017/18 | M24: Revised target 2018/19 | N24: Revised target 2019/20 | O24: Revised target 2020/21 | Z24: Information and Communication Infrastructure | AA24: Sewerage purification | AB24: HV Substations | AD24: Responsive, accountable, effective and efficient local government
A25: NOTE: This sheet should not be directly amended - select headings from sheet 'S' | Z25: Community Facilities | AA25: Waste Management | AB25: HV Switching Station | AD25: Protect and enhance our environmental assets and natural resources
Z26: Sport and Recreation Facilities | AA26: Transportation | AB26: HV Transmission Conductors | AD26: Create a better South Africa and contribute to a better Africa and a better world
A27: Name link | B27: 211 | Z27: Heritage assets | AA27: Gas | AB27: MV Substations | AD27: An efficient, effective and development-oriented public service
A28: Name of Muni | B28: =INDEX(B29:B307,B27,1) -> NW375 Moses Kotane | Z28: Revenue Generating | AA28: Parks & gardens | AB28: MV Switching Stations | AD28: A comprehensive, responsive and sustainable social protection system
B29: Choose name from list | C29: Set name on 'Instructions' sheet | Z29: Non-revenue Generating | AA29: Sportsfields & stadia | AB29: MV Networks | AD29: A diverse, socially cohesive society with a common national identity
B30: BUF Buffalo City | C30: EC EASTERN CAPE | Z30: Operational Buildings | AA30: Swimming pools | AB30: LV Networks
B31: NMA Nelson Mandela Bay | C31: EC EASTERN CAPE | Z31: Housing | AA31: Community halls | AB31: Capital Spares
B32: EC101 Dr Beyers Naude | C32: EC EASTERN CAPE | Z32: Biological or Cultivated Assets | AA32: Libraries | AB32: Dams and Weirs
B33: EC102 Blue Crane Route | C33: EC EASTERN CAPE | Z33: Servitudes | AA33: Recreational facilities | AB33: Boreholes
B34: EC104 Makana | C34: EC EASTERN CAPE | Z34: Licences and Rights | AA34: Fire, safety & emergency | AB34: Reservoirs
B35: EC105 Ndlambe | C35: EC EASTERN CAPE | Z35: Computer Equipment | AA35: Security and policing | AB35: Pump Stations
B36: EC106 Sundays River Valley | C36: EC EASTERN CAPE | Z36: Furniture and Office Equipment | AA36: Buses | AB36: Water Treatment Works
B37: EC108 Kouga | C37: EC EASTERN CAPE | Z37: Machinery and Equipment | AA37: Clinics | AB37: Bulk Mains
B38: EC109 Kou-Kamma | C38: EC EASTERN CAPE | Z38: Transport Assets | AA38: Museums & Art Galleries | AB38: Distribution
B39: DC10 Sarah Baartman | C39: EC EASTERN CAPE | Z39: Land | AA39: Cemeteries | AB39: Distribution Points
B40: EC121 Mbhashe | C40: EC EASTERN CAPE | Z40: Zoo's, Marine and Non-biological Animals | AA40: Social rental housing | AB40: PRV Stations
B41: EC122 Mnquma | C41: EC EASTERN CAPE | AA41: Buildings | AB41: Capital Spares
B42: EC123 Great Kei | C42: EC EASTERN CAPE | AA42: Housing development | AB42: Pump Station
B43: EC124 Amahlathi | C43: EC EASTERN CAPE | AA43: General vehicles | AB43: Reticulation
B44: EC126 Ngqushwa | C44: EC EASTERN CAPE | AA44: Specialised vehicles - Refuse | AB44: Waste Water Treatment Works
B45: EC129 Raymond Mhlaba | C45: EC EASTERN CAPE | AA45: Specialised vehicles - Fire | AB45: Outfall Sewers
B46: DC12 Amathole | C46: EC EASTERN CAPE | AA46: Specialised vehicles - Conservancy | AB46: Toilet Facilities
B47: EC131 Inxuba Yethemba | C47: EC EASTERN CAPE | AA47: Specialised vehicles - Ambulances | AB47: Capital Spares
B48: EC135 Intsika Yethu | C48: EC EASTERN CAPE | AA48: Plant & equipment | AB48: Landfill Sites
B49: EC136 Emalahleni (Ec) | C49: EC EASTERN CAPE | AA49: Computers - hardware/equipment | AB49: Waste Transfer Stations
B50: EC137 Engcobo | C50: EC EASTERN CAPE | AA50: Furniture and other office equipment | AB50: Waste Processing Facilities
B51: EC138 Sakhisizwe | C51: EC EASTERN CAPE | AA51: Abattoirs | AB51: Waste Drop-off Points
B52: EC139 Enoch Mgijima | C52: EC EASTERN CAPE | AA52: Markets | AB52: Waste Separation Facilities
B53: DC13 Chris Hani | C53: EC EASTERN CAPE | AA53: Civic Land and Buildings | AB53: Electricity Generation Facilities
B54: EC141 Elundini | C54: EC EASTERN CAPE | AA54: Other Buildings | AB54: Capital Spares
B55: EC142 Senqu | C55: EC EASTERN CAPE | AA55: Other Land | AB55: Rail Lines
B56: EC145 Walter Sisulu | C56: EC EASTERN CAPE | AA56: Surplus Assets - (Investment or Inventory) | AB56: Rail Structures
B57: DC14 Joe Gqabi | C57: EC EASTERN CAPE | AA57: Computers - software & programming | AB57: Rail Furniture
B58: EC153 Ngquza Hills | C58: EC EASTERN CAPE | AA58: Other | AB58: Drainage Collection
B59: EC154 Port St Johns | C59: EC EASTERN CAPE | AB59: Storm water Conveyance
B60: EC155 Nyandeni | C60: EC EASTERN CAPE | Z60: SA16 - Investments | AB60: Attenuation
B61: EC156 Mhlontlo | C61: EC EASTERN CAPE | Z61: Security | AA61: Interest rate | AB61: MV Substations
B62: EC157 King Sabata Dalindyebo | C62: EC EASTERN CAPE | Z62: Yes | AA62: Fixed | AB62: LV Networks
B63: DC15 O .R. Tambo | C63: EC EASTERN CAPE | Z63: No | AA63: Variable | AB63: Capital Spares
B64: EC441 Matatiele | C64: EC EASTERN CAPE | AB64: Sand Pumps
B65: EC442 Umzimvubu | C65: EC EASTERN CAPE | AB65: Piers
B66: EC443 Mbizana | C66: EC EASTERN CAPE | Z66: SA36, SA37 - Capital projects | AB66: Revetments
B67: EC444 Ntabankulu | C67: EC EASTERN CAPE | Z67: Yes | AB67: Promenades
B68: DC44 Alfred Nzo | C68: EC EASTERN CAPE | Z68: No | AB68: Capital Spares
B69: MAN Mangaung | C69: FS FREE STATE | AB69: Data Centres
B70: FS161 Letsemeng | C70: FS FREE STATE | AB70: Core Layers
B71: FS162 Kopanong | C71: FS FREE STATE | AB71: Distribution Layers
B72: FS163 Mohokare | C72: FS FREE STATE | AB72: Capital Spares
B73: DC16 Xhariep | C73: FS FREE STATE | AB73: Halls
B74: FS181 Masilonyana | C74: FS FREE STATE | AB74: Centres
B75: FS182 Tokologo | C75: FS FREE STATE | AB75: Crèches
B76: FS183 Tswelopele | C76: FS FREE STATE | AB76: Clinics/Care Centres
B77: FS184 Matjhabeng | C77: FS FREE STATE | AB77: Fire/Ambulance Stations
B78: FS185 Nala | C78: FS FREE STATE | AB78: Testing Stations
B79: DC18 Lejweleputswa | C79: FS FREE STATE | AB79: Museums
B80: FS191 Setsoto | C80: FS FREE STATE | AB80: Galleries
B81: FS192 Dihlabeng | C81: FS FREE STATE | AB81: Theatres
B82: FS193 Nketoana | C82: FS FREE STATE | AB82: Libraries
B83: FS194 Maluti-a-Phofung | C83: FS FREE STATE | AB83: Cemeteries/Crematoria
B84: FS195 Phumelela | C84: FS FREE STATE | AB84: Police
B85: FS196 Mantsopa | C85: FS FREE STATE | AB85: Purls
B86: DC19 Thabo Mofutsanyana | C86: FS FREE STATE | AB86: Public Open Space
B87: FS201 Moqhaka | C87: FS FREE STATE | AB87: Nature Reserves
B88: FS203 Ngwathe | C88: FS FREE STATE | AB88: Public Ablution Facilities
B89: FS204 Metsimaholo | C89: FS FREE STATE | AB89: Markets
B90: FS205 Mafube | C90: FS FREE STATE | AB90: Stalls
B91: DC20 Fezile Dabi | C91: FS FREE STATE | AB91: Abattoirs
B92: EKU City of Ekurhuleni | C92: GT GAUTENG | AB92: Airports
B93: JHB City Of Johannesburg | C93: GT GAUTENG | AB93: Taxi Ranks/Bus Terminals
B94: TSH City Of Tshwane | C94: GT GAUTENG | AB94: Capital Spares
B95: GT421 Emfuleni | C95: GT GAUTENG | AB95: Indoor Facilities
B96: GT422 Midvaal | C96: GT GAUTENG | AB96: Outdoor Facilities
B97: GT423 Lesedi | C97: GT GAUTENG | AB97: Capital Spares
B98: DC42 Sedibeng | C98: GT GAUTENG | AB98: Monuments
B99: GT481 Mogale City | C99: GT GAUTENG | AB99: Historic Buildings
B100: GT484 Merafong City | C100: GT GAUTENG | AB100: Works of Art
B101: GT485 Rand West City | C101: GT GAUTENG | AB101: Conservation Areas
B102: DC48 West Rand | C102: GT GAUTENG | AB102: Other Heritage
B103: ETH eThekwini | C103: KZN KWAZULU-NATAL | AB103: Improved Property
B104: KZN212 Umdoni | C104: KZN KWAZULU-NATAL | AB104: Unimproved Property
B105: KZN213 Umzumbe | C105: KZN KWAZULU-NATAL | AB105: Municipal Offices
B106: KZN214 uMuziwabantu | C106: KZN KWAZULU-NATAL | AB106: Pay/Enquiry Points
B107: KZN216 Ray Nkonyeni | C107: KZN KWAZULU-NATAL | AB107: Building Plan Offices
B108: DC21 Ugu | C108: KZN KWAZULU-NATAL | AB108: Workshops
B109: KZN221 uMshwathi | C109: KZN KWAZULU-NATAL | AB109: Yards
B110: KZN222 uMngeni | C110: KZN KWAZULU-NATAL | AB110: Stores
B111: KZN223 Mpofana | C111: KZN KWAZULU-NATAL | AB111: Laboratories
B112: KZN224 Impendle | C112: KZN KWAZULU-NATAL | AB112: Training Centres
B113: KZN225 Msunduzi | C113: KZN KWAZULU-NATAL | AB113: Manufacturing Plant
B114: KZN226 Mkhambathini | C114: KZN KWAZULU-NATAL | AB114: Depots
B115: KZN227 Richmond | C115: KZN KWAZULU-NATAL | AB115: Capital Spares
B116: DC22 uMgungundlovu | C116: KZN KWAZULU-NATAL | AB116: Staff Housing
B117: KZN235 Okhahlamba | C117: KZN KWAZULU-NATAL | AB117: Social Housing
B118: KZN237 Inkosi Langalibalele | C118: KZN KWAZULU-NATAL | AB118: Capital Spares
B119: KZN238 Alfred Duma | C119: KZN KWAZULU-NATAL | AB119: Water Rights
B120: DC23 Uthukela | C120: KZN KWAZULU-NATAL | AB120: Effluent Licenses
B121: KZN241 Endumeni | C121: KZN KWAZULU-NATAL | AB121: Solid Waste Licenses
B122: KZN242 Nquthu | C122: KZN KWAZULU-NATAL | AB122: Computer Software and Applications
B123: KZN244 Msinga | C123: KZN KWAZULU-NATAL | AB123: Load Settlement Software Applications
B124: KZN245 Umvoti | C124: KZN KWAZULU-NATAL | AB124: Unspecified
B125: DC24 Umzinyathi | C125: KZN KWAZULU-NATAL
B126: KZN252 Newcastle | C126: KZN KWAZULU-NATAL
B127: KZN253 Emadlangeni | C127: KZN KWAZULU-NATAL
B128: KZN254 Dannhauser | C128: KZN KWAZULU-NATAL
B129: DC25 Amajuba | C129: KZN KWAZULU-NATAL
B130: KZN261 eDumbe | C130: KZN KWAZULU-NATAL
B131: KZN262 uPhongolo | C131: KZN KWAZULU-NATAL
B132: KZN263 Abaqulusi | C132: KZN KWAZULU-NATAL
B133: KZN265 Nongoma | C133: KZN KWAZULU-NATAL
B134: KZN266 Ulundi | C134: KZN KWAZULU-NATAL
B135: DC26 Zululand | C135: KZN KWAZULU-NATAL
B136: KZN271 Umhlabuyalingana | C136: KZN KWAZULU-NATAL
B137: KZN272 Jozini | C137: KZN KWAZULU-NATAL
B138: KZN275 Mtubatuba | C138: KZN KWAZULU-NATAL
B139: KZN276 Hlabisa Big Five | C139: KZN KWAZULU-NATAL
B140: DC27 Umkhanyakude | C140: KZN KWAZULU-NATAL
B141: KZN281 Mfolozi | C141: KZN KWAZULU-NATAL
B142: KZN282 uMhlathuze | C142: KZN KWAZULU-NATAL
B143: KZN284 uMlalazi | C143: KZN KWAZULU-NATAL
B144: KZN285 Mthonjaneni | C144: KZN KWAZULU-NATAL
B145: KZN286 Nkandla | C145: KZN KWAZULU-NATAL
B146: DC28 King Cetshwayo | C146: KZN KWAZULU-NATAL
B147: KZN291 Mandeni | C147: KZN KWAZULU-NATAL
B148: KZN292 KwaDukuza | C148: KZN KWAZULU-NATAL
B149: KZN293 Ndwedwe | C149: KZN KWAZULU-NATAL
B150: KZN294 Maphumulo | C150: KZN KWAZULU-NATAL
B151: DC29 iLembe | C151: KZN KWAZULU-NATAL
B152: KZN433 Greater Kokstad | C152: KZN KWAZULU-NATAL
B153: KZN434 Ubuhlebezwe | C153: KZN KWAZULU-NATAL
B154: KZN435 Umzimkhulu | C154: KZN KWAZULU-NATAL
B155: KZN436 Dr Nkosazana Dlamini Zuma | C155: KZN KWAZULU-NATAL
B156: DC43 Harry Gwala | C156: KZN KWAZULU-NATAL
B157: LIM331 Greater Giyani | C157: LIM LIMPOPO
B158: LIM332 Greater Letaba | C158: LIM LIMPOPO
B159: LIM333 Greater Tzaneen | C159: LIM LIMPOPO
B160: LIM334 Ba-Phalaborwa | C160: LIM LIMPOPO
B161: LIM335 Maruleng | C161: LIM LIMPOPO
B162: DC33 Mopani | C162: LIM LIMPOPO
B163: LIM341 Musina | C163: LIM LIMPOPO
B164: LIM343 Thulamela | C164: LIM LIMPOPO
B165: LIM344 Makhado | C165: LIM LIMPOPO
B166: LIM345 Collins Chabane | C166: LIM LIMPOPO
B167: DC34 Vhembe | C167: LIM LIMPOPO
B168: LIM351 Blouberg | C168: LIM LIMPOPO
B169: LIM353 Molemole | C169: LIM LIMPOPO
B170: LIM354 Polokwane | C170: LIM LIMPOPO
B171: LIM355 Lepelle-Nkumpi | C171: LIM LIMPOPO
B172: DC35 Capricorn | C172: LIM LIMPOPO
B173: LIM361 Thabazimbi | C173: LIM LIMPOPO
B174: LIM362 Lephalale | C174: LIM LIMPOPO
B175: LIM366 Bela Bela | C175: LIM LIMPOPO
B176: LIM367 Mogalakwena | C176: LIM LIMPOPO
B177: LIM368 Modimolle-Mookgopong | C177: LIM LIMPOPO
B178: DC36 Waterberg | C178: LIM LIMPOPO
B179: LIM471 Ephraim Mogale | C179: LIM LIMPOPO
B180: LIM472 Elias Motsoaledi | C180: LIM LIMPOPO
B181: LIM473 Makhuduthamaga | C181: LIM LIMPOPO
B182: LIM476 Tubatse Fetakgomo | C182: LIM LIMPOPO
B183: DC47 Sekhukhune | C183: LIM LIMPOPO
B184: MP301 Albert Luthuli | C184: MP MPUMALANGA
B185: MP302 Msukaligwa | C185: MP MPUMALANGA
B186: MP303 Mkhondo | C186: MP MPUMALANGA
B187: MP304 Pixley Ka Seme (MP) | C187: MP MPUMALANGA
B188: MP305 Lekwa | C188: MP MPUMALANGA
B189: MP306 Dipaleseng | C189: MP MPUMALANGA
B190: MP307 Govan Mbeki | C190: MP MPUMALANGA
B191: DC30 Gert Sibande | C191: MP MPUMALANGA
B192: MP311 Victor Khanye | C192: MP MPUMALANGA
B193: MP312 Emalahleni (Mp) | C193: MP MPUMALANGA
B194: MP313 Steve Tshwete | C194: MP MPUMALANGA
B195: MP314 Emakhazeni | C195: MP MPUMALANGA
B196: MP315 Thembisile Hani | C196: MP MPUMALANGA
B197: MP316 Dr J.S. Moroka | C197: MP MPUMALANGA
B198: DC31 Nkangala | C198: MP MPUMALANGA
B199: MP321 Thaba Chweu | C199: MP MPUMALANGA
B200: MP324 Nkomazi | C200: MP MPUMALANGA
... 87 more rows

Sheet Org structure
A1: Organisational Structure Votes | C1: Organisational Structure Sub-Votes | E1: Display Sub-Votes
A2: =B2&" - "&C2 -> Vote 01 - Municipal Council | B2: Vote 01 | C2: Municipal Council
A3: =B8&" - "&C8 -> Vote 02 - Office Of The Accounting Officer | B3: 01.1 | C3: Office Of The Mayor | D3: =CONCATENATE(B3, " - ", C3) -> 01.1 - Office Of The Mayor | E3: 01.1 - Office Of The Mayor
A4: =B15&" - "&C15 -> Vote 03 - Budget And Treasury Office | B4: 01.2 | C4: Office Of The Speaker | D4: =CONCATENATE(B4, " - ", C4) -> 01.2 - Office Of The Speaker | E4: 01.2 - Office Of The Speaker
A5: =B23&" - "&C23 -> Vote 04 - Corporate Services | B5: 01.3 | C5: Office Of The Chief Whip | D5: =CONCATENATE(B5, " - ", C5) -> 01.3 - Office Of The Chief Whip | E5: 01.3 - Office Of The Chief Whip
A6: =B32&" - "&C32 -> Vote 05 - Community Services | B6: 01.4 | C6: Mpac | D6: =CONCATENATE(B6, " - ", C6) -> 01.4 - Mpac | E6: 01.4 - Mpac
A7: =B47&" - "&C47 -> Vote 06 - Planning & Development | B7: 01.5 | C7: Council General Administration | D7: =CONCATENATE(B7, " - ", C7) -> 01.5 - Council General Administration | E7: 01.5 - Council General Administration
A8: =B58&" - "&C58 -> Vote 07 - Infrastructure & Technical Services | B8: Vote 02 | C8: Office Of The Accounting Officer
A9: =B78&" - "&C78 -> Vote 08 - | B9: 02.1 | C9: Office Of The Ao Admin | D9: =CONCATENATE(B9, " - ", C9) -> 02.1 - Office Of The Ao Admin | E9: 02.1 - Office Of The Ao Admin
A10: Vote 09 - | B10: 02.2 | C10: Strategic Planning Monitoring & Evaluat | D10: 02.2 - Strategic Planning Monitoring & Evaluat | E10: 02.2 - Strategic Planning Monitoring & Evaluat
A11: Vote 10 - | B11: 02.3 | C11: Perfomance Management System | D11: 02.3 - Perfomance Management System | E11: 02.3 - Perfomance Management System
A12: Vote 11 - | B12: 02.4 | C12: Internal Audit | D12: 02.4 - Internal Audit | E12: 02.4 - Internal Audit
A13: Vote 12 - | B13: 02.5 | C13: Municipal Planning Idp | D13: 02.5 - Municipal Planning Idp | E13: 02.5 - Municipal Planning Idp
A14: Vote 13 - | B14: 02.6 | C14: Risk | D14: 02.6 - Risk | E14: 02.6 - Risk
A15: Vote 14 - | B15: Vote 03 | C15: Budget And Treasury Office
A16: Vote 15 - Other | B16: 03.1 | C16: Chief Financial Officer Admin | D16: =CONCATENATE(B16, " - ", C16) -> 03.1 - Chief Financial Officer Admin | E16: 03.1 - Chief Financial Officer Admin
B17: 03.2 | C17: Budget Expenditure & Reporting | D17: 03.2 - Budget Expenditure & Reporting | E17: 03.2 - Budget Expenditure & Reporting
B18: 03.3 | C18: Budget Expenditure & Reporting | D18: 03.3 - Budget Expenditure & Reporting | E18: 03.3 - Budget Expenditure & Reporting
B19: 03.4 | C19: Revenue Management | D19: 03.4 - Revenue Management | E19: 03.4 - Revenue Management
B20: 03.5 | C20: Supply Chain Management | D20: 03.5 - Supply Chain Management | E20: 03.5 - Supply Chain Management
B21: 03.6 | C21: Assets Management | D21: 03.6 - Assets Management | E21: 03.6 - Assets Management
B22: 03.7 | C22: Expenditure | D22: 03.7 - Expenditure | E22: 03.7 - Expenditure
B23: Vote 04 | C23: Corporate Services
B24: 04.1 | C24: Legal Services | D24: =CONCATENATE(B24, " - ", C24) -> 04.1 - Legal Services | E24: 04.1 - Legal Services
B25: 04.2 | C25: Corporate Service Administration | D25: 04.2 - Corporate Service Administration | E25: 04.2 - Corporate Service Administration
B26: 04.3 | C26: Human Resources | D26: 04.3 - Human Resources | E26: 04.3 - Human Resources
B27: 04.4 | C27: Media & Communication | D27: 04.4 - Media & Communication | E27: 04.4 - Media & Communication
B28: 04.5 | C28: Organisational Development | D28: 04.5 - Organisational Development | E28: 04.5 - Organisational Development
B29: 04.6 | C29: Labour Relations | D29: 04.6 - Labour Relations | E29: 04.6 - Labour Relations
B30: 04.7 | C30: Legal Services | D30: 04.7 - Legal Services | E30: 04.7 - Legal Services
B31: 04.8 | C31: Information Technology Services | D31: 04.8 - Information Technology Services | E31: 04.8 - Information Technology Services
B32: Vote 05 | C32: Community Services
B33: 05.1 | C33: Municipal Buildings | D33: =CONCATENATE(B33, " - ", C33) -> 05.1 - Municipal Buildings | E33: 05.1 - Municipal Buildings
B34: 05.2 | C34: Fleet Management | D34: 05.2 - Fleet Management | E34: 05.2 - Fleet Management
B35: 05.3 | C35: Community Services Administration | D35: 05.3 - Community Services Administration | E35: 05.3 - Community Services Administration
B36: 05.4 | C36: Cemeteries | D36: 05.4 - Cemeteries | E36: 05.4 - Cemeteries
B37: 05.5 | C37: Disaster Management | D37: 05.5 - Disaster Management | E37: 05.5 - Disaster Management
B38: 05.6 | C38: Fires Service | D38: 05.6 - Fires Service | E38: 05.6 - Fires Service
B39: 05.7 | C39: Libraries | D39: 05.7 - Libraries | E39: 05.7 - Libraries
B40: 05.8 | C40: Municipal Buildings | D40: 05.8 - Municipal Buildings | E40: 05.8 - Municipal Buildings
B41: 05.9 | C41: Sports Recreation & Social Amenitie | D41: 05.9 - Sports Recreation & Social Amenitie | E41: 05.9 - Sports Recreation & Social Amenitie
B42: 05.10 | C42: Waste Management Solid Waste | D42: 05.10 - Waste Management Solid Waste | E42: 05.10 - Waste Management Solid Waste
B43: 05.11 | C43: Safety And Security | D43: 05.11 - Safety And Security | E43: 05.11 - Safety And Security
B44: 05.12 | C44: Traffic Service | D44: 05.12 - Traffic Service | E44: 05.12 - Traffic Service
B45: 05.13 | C45: Traffic Service | D45: 05.13 - Traffic Service | E45: 05.13 - Traffic Service
B46: 05.14 | C46: Fleet Management | D46: 05.14 - Fleet Management | E46: 05.14 - Fleet Management
B47: Vote 06 | C47: Planning & Development
B48: 06.1 | C48: Planning And Development Admin | D48: =CONCATENATE(B48, " - ", C48) -> 06.1 - Planning And Development Admin | E48: 06.1 - Planning And Development Admin
B49: 06.2 | C49: Municipal Planning Idp | D49: 06.2 - Municipal Planning Idp | E49: 06.2 - Municipal Planning Idp
B50: 06.3 | C50: Pms | D50: 06.3 - Pms | E50: 06.3 - Pms
B51: 06.4 | C51: Town Planning | D51: 06.4 - Town Planning | E51: 06.4 - Town Planning
B52: 06.5 | C52: Land Use And Housing Admin | D52: 06.5 - Land Use And Housing Admin | E52: 06.5 - Land Use And Housing Admin
B53: 06.6 | C53: Local Economic Development | D53: 06.6 - Local Economic Development | E53: 06.6 - Local Economic Development
B54: 06.7 | C54: Led | D54: 06.7 - Led | E54: 06.7 - Led
B55: 06.8 | C55: Agriculture & Rural Development | D55: 06.8 - Agriculture & Rural Development | E55: 06.8 - Agriculture & Rural Development
B56: 06.9 | C56: Tourism & Business Development | D56: 06.9 - Tourism & Business Development | E56: 06.9 - Tourism & Business Development
B57: 06.10 | C57: Arts & Culture | D57: 06.10 - Arts & Culture | E57: 06.10 - Arts & Culture
B58: Vote 07 | C58: Infrastructure & Technical Services
B59: 07.1 | C59: Infrastructure Admin & Tech Admin | D59: =CONCATENATE(B59, " - ", C59) -> 07.1 - Infrastructure Admin & Tech Admin | E59: 07.1 - Infrastructure Admin & Tech Admin
B60: 07.2 | C60: Fleet Management | D60: 07.2 - Fleet Management | E60: 07.2 - Fleet Management
B61: 07.3 | C61: Roads | D61: 07.3 - Roads | E61: 07.3 - Roads
B62: 07.4 | C62: Storm Water | D62: 07.4 - Storm Water | E62: 07.4 - Storm Water
B63: 07.5 | C63: Street Lighting | D63: 07.5 - Street Lighting | E63: 07.5 - Street Lighting
B64: 07.6 | C64: Project Management Unit | D64: 07.6 - Project Management Unit | E64: 07.6 - Project Management Unit
B65: 07.7 | C65: Sanitation Treatment Plant: Mogwase | D65: 07.7 - Sanitation Treatment Plant: Mogwase | E65: 07.7 - Sanitation Treatment Plant: Mogwase
B66: 07.8 | C66: Sanitation Treatment Plant: Madikwe | D66: 07.8 - Sanitation Treatment Plant: Madikwe | E66: 07.8 - Sanitation Treatment Plant: Madikwe
B67: 07.9 | C67: Sanitation Reticulation | D67: 07.9 - Sanitation Reticulation | E67: 07.9 - Sanitation Reticulation
B68: 07.10 | C68: Water Administration | D68: 07.10 - Water Administration | E68: 07.10 - Water Administration
B69: 07.11 | C69: Water Madikwe: Water Treatment Work | D69: 07.11 - Water Madikwe: Water Treatment Work | E69: 07.11 - Water Madikwe: Water Treatment Work
B70: 07.12 | C70: Water: Pella Water Treatment Works | D70: 07.12 - Water: Pella Water Treatment Works | E70: 07.12 - Water: Pella Water Treatment Works
B71: 07.13 | C71: Water: Madikwe Retail & Bulk Lines | D71: 07.13 - Water: Madikwe Retail & Bulk Lines | E71: 07.13 - Water: Madikwe Retail & Bulk Lines
B72: 07.14 | C72: Water: Madikwe Rural | D72: 07.14 - Water: Madikwe Rural | E72: 07.14 - Water: Madikwe Rural
B73: 07.15 | C73: Water: Molatedi | D73: 07.15 - Water: Molatedi | E73: 07.15 - Water: Molatedi
B74: 07.16 | C74: Water Eastern: Retail Mankwe | D74: 07.16 - Water Eastern: Retail Mankwe | E74: 07.16 - Water Eastern: Retail Mankwe
B75: 07.17 | C75: Water Vaalkopdam: Mankwe | D75: 07.17 - Water Vaalkopdam: Mankwe | E75: 07.17 - Water Vaalkopdam: Mankwe
B76: 07.18 | C76: Water Eastern: Retail Mankwe | D76: 07.18 - Water Eastern: Retail Mankwe | E76: 07.18 - Water Eastern: Retail Mankwe
B77: 07.19 | C77: Reporting Function Electricity | D77: 07.19 - Reporting Function Electricity | E77: 07.19 - Reporting Function Electricity
B78: Vote 08
B79: Vote 09
B80: Vote 10
B81: Vote 11
B82: Vote 12
B83: Vote 13
B84: Vote 14
B85: Vote 15 | C85: Other

Sheet Contacts
A1: =muni&" - "&" Contact Information" -> NW375 Moses Kotane - Contact Information
A3: A. GENERAL INFORMATION
A4: Municipality | B4: =muni -> NW375 Moses Kotane | C4: =IF(B4="Choose name from List","Set name on 'Instructions' sheet", "") -> 
A6: Grade | B6: 2 | C6: 1 Grade in terms of the Remuneration of Public Office Bearers Act.
A8: Province | B8: =IF(B4>" ",VLOOKUP(B4,'Lookup and lists'!B29:C307,2, FALSE)," ") -> NW NORTH WEST
A10: Web Address | B10: www.moseskotane.gov.za
A12: e-mail Address | B12: municipalmanager@moseskotane.gov.za
A14: B. CONTACT INFORMATION
A15: Postal address:
A16: P.O. Box | B16: 1011
A17: City / Town | B17: Mogwase
A18: Postal Code | B18: 0314
A20: Street address
A21: Building | B21: Mogwase Shopping Complex
A22: Street No. & Name | B22: 935 Station Road
A23: City / Town | B23: Mogwase
A24: Postal Code | B24: 0314
A26: General Contacts
A27: Telephone number | B27: 014 555 1300
A28: Fax number | B28: 014 555 6368
A30: C. POLITICAL LEADERSHIP
A31: Speaker: | C31: Secretary/PA to the Speaker:
A32: ID Number | B32: 720613 5791 081 | C32: ID Number | D32: 730608 0957 084
A33: Title | B33: Cllr | C33: Title | D33: Ms
A34: Name | B34: Sipho Vava | C34: Name | D34: D Maname
A35: Telephone number | B35: 014 555 1309 | C35: Telephone number | D35: 014 555 1309
A36: Cell number | B36: 082 307 9727 | C36: Cell number | D36: 073 973 7862
A37: Fax number | B37: 014 555 7635 | C37: Fax number | D37: 014 555 7635
A38: E-mail address | B38: speakersecretary@moseskotane.gov.za | C38: E-mail address | D38: speakersecretary@moseskotane.gov.za
A40: Mayor/Executive Mayor: | C40: Secretary/PA to the Mayor/Executive Mayor:
A41: ID Number | B41: 491218 5704 089 | C41: ID Number
A42: Title | B42: Cllr | C42: Title | D42: Ms
A43: Name | B43: Ralesole Diale | C43: Name | D43: Marcia Morupi
A44: Telephone number | B44: 014 555 1305 | C44: Telephone number | D44: 014 555 1305
A45: Cell number | B45: 082 467 2895 | C45: Cell number | D45: 079 342 0861
A46: Fax number | B46: 014 555 7064 | C46: Fax number | D46: 014 555 7064
A47: E-mail address | B47: mayorsecretary@moseskotane.gov.za | C47: E-mail address | D47: mayorsecretary@moseskotane.gov.za
A49: Deputy Mayor/Executive Mayor: | C49: Secretary/PA to the Deputy Mayor/Executive Mayor:
A50: ID Number | C50: ID Number
A51: Title | C51: Title
A52: Name | C52: Name
A53: Telephone number | C53: Telephone number
A54: Cell number | C54: Cell number
A55: Fax number | C55: Fax number
A56: E-mail address | C56: E-mail address
A58: D. MANAGEMENT LEADERSHIP
A59: Municipal Manager: | C59: Secretary/PA to the Municipal Manager:
A60: ID Number | B60: 721003 5481 082 | C60: ID Number | D60: 780220 0663 088
A61: Title | B61: Mr | C61: Title | D61: Ms
A62: Name | B62: Mokopane Vaaltyn Letsoalo | C62: Name | D62: Winnie Mabalani
A63: Telephone number | B63: 014 555 1307 | C63: Telephone number | D63: 014 555 1307
A64: Cell number | B64: 066 300 6349 | C64: Cell number | D64: 082 848 5585
A65: Fax number | B65: 086 654 5962 | C65: Fax number | D65: 086 654 5962
A66: E-mail address | B66: municipalmanager@moseskotane.gov.za | C66: E-mail address | D66: municipalmanager@moseskotane.gov.za
A68: Chief Financial Officer | C68: Secretary/PA to the Chief Financial Officer
A69: ID Number | B69: 840926 5857 081 | C69: ID Number | D69: 850218 0454 081
A70: Title | B70: Mr | C70: Title | D70: Ms
A71: Name | B71: M R Mkhize | C71: Name | D71: Ms B.P Dipholo
A72: Telephone number | B72: 014 555 1332 | C72: Telephone number | D72: 014 555 1332
A73: Cell number | B73: 060 978 2021 | C73: Cell number | D73: 083 744 8688
A74: Fax number | B74: 014 555 6288 | C74: Fax number | D74: 014 555 6288
A75: E-mail address | B75: cfo@moseskotane.gov.za | C75: E-mail address | D75: bdipholo@moseskotane.gov.za
A77: Official responsible for submitting financial information | C77: Official responsible for submitting financial information
A78: ID Number | B78: 510408 5040 082 | C78: ID Number | D78: 830506 0502 080
A79: Title | B79: Mr | C79: Title | D79: Ms
A80: Name | B80: H L Fourie | C80: Name | D80: J T Lebusa
A81: Telephone number | B81: 014 555 1350 | C81: Telephone number | D81: 014 555 1333
A82: Cell number | B82: 082 931 1765 | C82: Cell number | D82: 082 051 2347
A83: Fax number | B83: 014 555 6288 | C83: Fax number | D83: 086 232 1786
A84: E-mail address | B84: hfourie@moseskotane.gov.za | C84: E-mail address | D84: thembil@moseskotane.gov.za
A85: Official responsible for submitting financial information | C85: Official responsible for submitting financial information
A86: ID Number | B86: 710902 0349 082 | C86: ID Number | D86: 680910 5443 087
A87: Title | B87: Ms | C87: Title | D87: Mr
A88: Name | B88: Ms SB Moselane | C88: Name | D88: Mr J Sefatsa
A89: Telephone number | B89: 014 555 1407 | C89: Telephone number | D89: 014 555 1396
A90: Cell number | B90: 082 467 6740 | C90: Cell number | D90: 082 070 8069
A91: Fax number | B91: 086 508 1879 | C91: Fax number | D91: 086 230 0205
A92: E-mail address | B92: bmoselane@moseskotane.gov.za | C92: E-mail address | D92: jsefatsa@moseskotane.gov.za
A93: Official responsible for submitting financial information | C93: Official responsible for submitting financial information
A94: ID Number | B94: 650707 5774 081 | C94: ID Number | D94: 890309 0688 083
A95: Title | B95: Mr | C95: Title | D95: Ms
A96: Name | B96: Hendrik Somandla Shonga | C96: Name | D96: T Mogorosi
A97: Telephone number | B97: 014 555 1336 | C97: Telephone number | D97: 014 555 1411
A98: Cell number | B98: 082 050 8773 | C98: Cell number | D98: 066 478 9020
A99: Fax number | B99: 014 555 6368 | C99: Fax number | D99: 014 555 6368
A100: E-mail address | B100: hshonga@moseskotane.gov.za | C100: E-mail address | D100: tmogorosi@moseskotane.gov.za
A101: Official responsible for submitting financial information | C101: Official responsible for submitting financial information
A102: ID Number | C102: ID Number
A103: Title | C103: Title
A104: Name | C104: Name
A105: Telephone number | C105: Telephone number
A106: Cell number | C106: Cell number
A107: Fax number | C107: Fax number
A108: E-mail address | C108: E-mail address
A109: Official responsible for submitting financial information | C109: Official responsible for submitting financial information
A110: ID Number | C110: ID Number
A111: Title | C111: Title
A112: Name | C112: Name
A113: Telephone number | C113: Telephone number
A114: Cell number | C114: Cell number
A115: Fax number | C115: Fax number
A116: E-mail address | C116: E-mail address
A117: Official responsible for submitting financial information | C117: Official responsible for submitting financial information
A118: ID Number | C118: ID Number
A119: Title | C119: Title
A120: Name | C120: Name
A121: Telephone number | C121: Telephone number
A122: Cell number | C122: Cell number
A123: Fax number | C123: Fax number
A124: E-mail address | C124: E-mail address
A125: Official responsible for submitting financial information | C125: Official responsible for submitting financial information
A126: ID Number | C126: ID Number
A127: Title | C127: Title
A128: Name | C128: Name
A129: Telephone number | C129: Telephone number
A130: Cell number | C130: Cell number
A131: Fax number | C131: Fax number
A132: E-mail address | C132: E-mail address
A133: Official responsible for submitting financial information
A134: ID Number
A135: Title
A136: Name
A137: Telephone number
A138: Cell number
A139: Fax number
A140: E-mail address

Sheet A1-Sum
A1: =muni&" - "&Approve1 -> NW375 Moses Kotane - Table A1 Budget Summary
A2: =desc -> Description | B2: =head1b -> 2015/16 | C2: =head1A -> 2016/17 | D2: =Head1 -> 2017/18 | E2: =Head2 -> Current Year 2018/19 | I2: =Head3 -> 2019/20 Medium Term Revenue & Expenditure Framework
A3: R thousands | B3: =Head5 -> Audited Outcome | C3: =Head5 -> Audited Outcome | D3: =Head5 -> Audited Outcome | E3: =Head6 -> Original Budget | F3: =Head7 -> Adjusted Budget | G3: =Head8 -> Full Year Forecast | H3: =Head5b -> Pre-audit outcome | I3: =Head9 -> Budget Year 2019/20 | J3: =Head10 -> Budget Year +1 2020/21 | K3: =Head11 -> Budget Year +2 2021/22
A4: Financial Performance
A5: Property rates | B5: ='A4-FinPerf RE'!C5 -> 97112317 | C5: ='A4-FinPerf RE'!D5 -> 107986000 | D5: ='A4-FinPerf RE'!E5 -> 122557000 | E5: ='A4-FinPerf RE'!F5 -> 124692062 | F5: ='A4-FinPerf RE'!G5 -> 133314476 | G5: ='A4-FinPerf RE'!H5 -> 133314476 | H5: ='A4-FinPerf RE'!I5 -> 133314476 | I5: ='A4-FinPerf RE'!J5 -> 142163600 | J5: ='A4-FinPerf RE'!K5 -> 150083525 | K5: ='A4-FinPerf RE'!L5 -> 158755283
A6: Service charges | B6: =SUM('A4-FinPerf RE'!C6:C9) -> 127220267 | C6: =SUM('A4-FinPerf RE'!D6:D9) -> 122349786 | D6: =SUM('A4-FinPerf RE'!E6:E9) -> 136000077 | E6: =SUM('A4-FinPerf RE'!F6:F9) -> 145025956 | F6: =SUM('A4-FinPerf RE'!G6:G9) -> 181119111 | G6: =SUM('A4-FinPerf RE'!H6:H9) -> 181119111 | H6: =SUM('A4-FinPerf RE'!I6:I9) -> 181119111 | I6: =SUM('A4-FinPerf RE'!J6:J9) -> 184251427 | J6: =SUM('A4-FinPerf RE'!K6:K9) -> 202686500 | K6: =SUM('A4-FinPerf RE'!L6:L9) -> 222964385
A7: Investment revenue | B7: ='A4-FinPerf RE'!C12 -> 10497271 | C7: ='A4-FinPerf RE'!D12 -> 9600476 | D7: ='A4-FinPerf RE'!E12 -> 3558000 | E7: ='A4-FinPerf RE'!F12 -> 6900000 | F7: ='A4-FinPerf RE'!G12 -> 5400000 | G7: ='A4-FinPerf RE'!H12 -> 5400000 | H7: ='A4-FinPerf RE'!I12 -> 5400000 | I7: ='A4-FinPerf RE'!J12 -> 5400000 | J7: ='A4-FinPerf RE'!K12 -> 5400000 | K7: ='A4-FinPerf RE'!L12 -> 5400000
A8: Transfers recognised - operational | B8: ='A4-FinPerf RE'!C18 -> 340224994 | C8: ='A4-FinPerf RE'!D18 -> 341835000 | D8: ='A4-FinPerf RE'!E18 -> 414974000 | E8: ='A4-FinPerf RE'!F18 -> 393081713 | F8: ='A4-FinPerf RE'!G18 -> 383912000 | G8: ='A4-FinPerf RE'!H18 -> 383912000 | H8: ='A4-FinPerf RE'!I18 -> 383912000 | I8: ='A4-FinPerf RE'!J18 -> 437829637 | J8: ='A4-FinPerf RE'!K18 -> 467331372 | K8: ='A4-FinPerf RE'!L18 -> 502264428
A9: Other own revenue | B9: ='A4-FinPerf RE'!C11+'A4-FinPerf RE'!C13+'A4-FinPerf RE'!C14+'A4-FinPerf RE'!C15+'A4-FinPerf RE'!C16+'A4-FinPerf RE'!C17+'A4-FinPerf RE'!C19+'A4-FinPerf RE'!C20 -> 47891760.61 | C9: ='A4-FinPerf RE'!D11+'A4-FinPerf RE'!D13+'A4-FinPerf RE'!D14+'A4-FinPerf RE'!D15+'A4-FinPerf RE'!D16+'A4-FinPerf RE'!D17+'A4-FinPerf RE'!D19+'A4-FinPerf RE'!D20 -> 58018869 | D9: ='A4-FinPerf RE'!E11+'A4-FinPerf RE'!E13+'A4-FinPerf RE'!E14+'A4-FinPerf RE'!E15+'A4-FinPerf RE'!E16+'A4-FinPerf RE'!E17+'A4-FinPerf RE'!E19+'A4-FinPerf RE'!E20 -> 69434129.29 | E9: ='A4-FinPerf RE'!F11+'A4-FinPerf RE'!F13+'A4-FinPerf RE'!F14+'A4-FinPerf RE'!F15+'A4-FinPerf RE'!F16+'A4-FinPerf RE'!F17+'A4-FinPerf RE'!F19+'A4-FinPerf RE'!F20 -> 72299400 | F9: ='A4-FinPerf RE'!G11+'A4-FinPerf RE'!G13+'A4-FinPerf RE'!G14+'A4-FinPerf RE'!G15+'A4-FinPerf RE'!G16+'A4-FinPerf RE'!G17+'A4-FinPerf RE'!G19+'A4-FinPerf RE'!G20 -> 65577906 | G9: ='A4-FinPerf RE'!H11+'A4-FinPerf RE'!H13+'A4-FinPerf RE'!H14+'A4-FinPerf RE'!H15+'A4-FinPerf RE'!H16+'A4-FinPerf RE'!H17+'A4-FinPerf RE'!H19+'A4-FinPerf RE'!H20 -> 65577906 | H9: ='A4-FinPerf RE'!I11+'A4-FinPerf RE'!I13+'A4-FinPerf RE'!I14+'A4-FinPerf RE'!I15+'A4-FinPerf RE'!I16+'A4-FinPerf RE'!I17+'A4-FinPerf RE'!I19+'A4-FinPerf RE'!I20 -> 65577906 | I9: ='A4-FinPerf RE'!J11+'A4-FinPerf RE'!J13+'A4-FinPerf RE'!J14+'A4-FinPerf RE'!J15+'A4-FinPerf RE'!J16+'A4-FinPerf RE'!J17+'A4-FinPerf RE'!J19+'A4-FinPerf RE'!J20 -> 66921500 | J9: ='A4-FinPerf RE'!K11+'A4-FinPerf RE'!K13+'A4-FinPerf RE'!K14+'A4-FinPerf RE'!K15+'A4-FinPerf RE'!K16+'A4-FinPerf RE'!K17+'A4-FinPerf RE'!K19+'A4-FinPerf RE'!K20 -> 70181500 | K9: ='A4-FinPerf RE'!L11+'A4-FinPerf RE'!L13+'A4-FinPerf RE'!L14+'A4-FinPerf RE'!L15+'A4-FinPerf RE'!L16+'A4-FinPerf RE'!L17+'A4-FinPerf RE'!L19+'A4-FinPerf RE'!L20 -> 72431500
A10: ='A4-FinPerf RE'!A21 -> Total Revenue (excluding capital transfers and contributions) | B10: =SUM(B5:B9) -> 622946609.6 | C10: 639790131 | D10: 746523206.3 | E10: 741999131 | F10: 769323493 | G10: 769323493 | H10: 769323493 | I10: 836566164 | J10: 895682897 | K10: 961815596
A11: Employee costs | B11: ='A4-FinPerf RE'!C24 -> 155129379.1 | C11: ='A4-FinPerf RE'!D24 -> 166406000 | D11: ='A4-FinPerf RE'!E24 -> 180634855.5 | E11: ='A4-FinPerf RE'!F24 -> 233217580 | F11: ='A4-FinPerf RE'!G24 -> 217222093 | G11: ='A4-FinPerf RE'!H24 -> 217222093 | H11: ='A4-FinPerf RE'!I24 -> 217222093 | I11: ='A4-FinPerf RE'!J24 -> 270274659 | J11: ='A4-FinPerf RE'!K24 -> 287380230 | K11: ='A4-FinPerf RE'!L24 -> 307496864
A12: Remuneration of councillors | B12: ='A4-FinPerf RE'!C25 -> 20793948 | C12: ='A4-FinPerf RE'!D25 -> 21735812 | D12: ='A4-FinPerf RE'!E25 -> 24202000 | E12: ='A4-FinPerf RE'!F25 -> 28852000 | F12: ='A4-FinPerf RE'!G25 -> 27319786 | G12: ='A4-FinPerf RE'!H25 -> 27319786 | H12: ='A4-FinPerf RE'!I25 -> 27319786 | I12: ='A4-FinPerf RE'!J25 -> 25371420 | J12: ='A4-FinPerf RE'!K25 -> 27147419 | K12: ='A4-FinPerf RE'!L25 -> 29047740
A13: Depreciation & asset impairment | B13: ='A4-FinPerf RE'!C27 -> 46184542 | C13: ='A4-FinPerf RE'!D27 -> 108713000 | D13: ='A4-FinPerf RE'!E27 -> 169328000 | E13: ='A4-FinPerf RE'!F27 -> 130138300 | F13: ='A4-FinPerf RE'!G27 -> 140091413 | G13: ='A4-FinPerf RE'!H27 -> 140091413 | H13: ='A4-FinPerf RE'!I27 -> 140091413 | I13: ='A4-FinPerf RE'!J27 -> 154536733 | J13: ='A4-FinPerf RE'!K27 -> 180901311 | K13: ='A4-FinPerf RE'!L27 -> 209826482
A14: Finance charges | B14: ='A4-FinPerf RE'!C28 -> 8590181 | C14: ='A4-FinPerf RE'!D28 -> 9763783 | D14: ='A4-FinPerf RE'!E28 -> 7323039.75 | E14: ='A4-FinPerf RE'!F28 -> 7000000 | F14: ='A4-FinPerf RE'!G28 -> 7300000 | G14: ='A4-FinPerf RE'!H28 -> 7300000 | H14: ='A4-FinPerf RE'!I28 -> 7300000 | I14: ='A4-FinPerf RE'!J28 -> 3688959 | J14: ='A4-FinPerf RE'!K28 -> 3043808 | K14: ='A4-FinPerf RE'!L28 -> 2729218
A15: Materials and bulk purchases | B15: ='A4-FinPerf RE'!C29+'A4-FinPerf RE'!C30 -> 108750000 | C15: ='A4-FinPerf RE'!D29+'A4-FinPerf RE'!D30 -> 74354000 | D15: ='A4-FinPerf RE'!E29+'A4-FinPerf RE'!E30 -> 87863925.04 | E15: ='A4-FinPerf RE'!F29+'A4-FinPerf RE'!F30 -> 86057500 | F15: ='A4-FinPerf RE'!G29+'A4-FinPerf RE'!G30 -> 86056710 | G15: ='A4-FinPerf RE'!H29+'A4-FinPerf RE'!H30 -> 86056710 | H15: ='A4-FinPerf RE'!I29+'A4-FinPerf RE'!I30 -> 86056710 | I15: ='A4-FinPerf RE'!J29+'A4-FinPerf RE'!J30 -> 109277250 | J15: ='A4-FinPerf RE'!K29+'A4-FinPerf RE'!K30 -> 116926658 | K15: ='A4-FinPerf RE'!L29+'A4-FinPerf RE'!L30 -> 125111524
A16: Transfers and grants | B16: ='A4-FinPerf RE'!C32 -> 0 | C16: ='A4-FinPerf RE'!D32 -> 0 | D16: ='A4-FinPerf RE'!E32 -> 0 | E16: ='A4-FinPerf RE'!F32 -> 0 | F16: ='A4-FinPerf RE'!G32 -> 0 | G16: ='A4-FinPerf RE'!H32 -> 0 | H16: ='A4-FinPerf RE'!I32 -> 0 | I16: ='A4-FinPerf RE'!J32 -> 0 | J16: ='A4-FinPerf RE'!K32 -> 0 | K16: ='A4-FinPerf RE'!L32 -> 0
A17: Other expenditure | B17: ='A4-FinPerf RE'!C26+'A4-FinPerf RE'!C31+'A4-FinPerf RE'!C33+'A4-FinPerf RE'!C34 -> 283207022 | C17: ='A4-FinPerf RE'!D26+'A4-FinPerf RE'!D31+'A4-FinPerf RE'!D33+'A4-FinPerf RE'!D34 -> 402461083 | D17: ='A4-FinPerf RE'!E26+'A4-FinPerf RE'!E31+'A4-FinPerf RE'!E33+'A4-FinPerf RE'!E34 -> 444406805.7 | E17: ='A4-FinPerf RE'!F26+'A4-FinPerf RE'!F31+'A4-FinPerf RE'!F33+'A4-FinPerf RE'!F34 -> 373248510 | F17: ='A4-FinPerf RE'!G26+'A4-FinPerf RE'!G31+'A4-FinPerf RE'!G33+'A4-FinPerf RE'!G34 -> 412611844 | G17: ='A4-FinPerf RE'!H26+'A4-FinPerf RE'!H31+'A4-FinPerf RE'!H33+'A4-FinPerf RE'!H34 -> 412611844 | H17: ='A4-FinPerf RE'!I26+'A4-FinPerf RE'!I31+'A4-FinPerf RE'!I33+'A4-FinPerf RE'!I34 -> 412611844 | I17: ='A4-FinPerf RE'!J26+'A4-FinPerf RE'!J31+'A4-FinPerf RE'!J33+'A4-FinPerf RE'!J34 -> 404091500 | J17: ='A4-FinPerf RE'!K26+'A4-FinPerf RE'!K31+'A4-FinPerf RE'!K33+'A4-FinPerf RE'!K34 -> 379644555 | K17: ='A4-FinPerf RE'!L26+'A4-FinPerf RE'!L31+'A4-FinPerf RE'!L33+'A4-FinPerf RE'!L34 -> 408010224
A18: ='A4-FinPerf RE'!A35 -> Total Expenditure | B18: =SUM(B11:B17) -> 622655072.1 | C18: =SUM(C11:C17) -> 783433678 | D18: 913758626 | E18: 858513890 | F18: 890601846 | G18: 890601846 | H18: 890601846 | I18: 967240521 | J18: 995043981 | K18: 1082222052
A19: ='A4-FinPerf RE'!A37 -> Surplus/(Deficit) | B19: =B10-B18 -> 291537.51 | C19: -143643547 | D19: -167235419.7 | E19: -116514759 | F19: -121278353 | G19: -121278353 | H19: -121278353 | I19: -130674357 | J19: -99361084 | K19: -120406456
A20: ='A4-FinPerf RE'!A38 -> Transfers and subsidies - capital (monetary allocations) (National / Provincial and District) | B20: ='A4-FinPerf RE'!C38 -> 123008000 | C20: ='A4-FinPerf RE'!D38 -> 150880000 | D20: ='A4-FinPerf RE'!E38 -> 140109000 | E20: ='A4-FinPerf RE'!F38 -> 204883000 | F20: ='A4-FinPerf RE'!G38 -> 229633000 | G20: ='A4-FinPerf RE'!H38 -> 229633000 | H20: ='A4-FinPerf RE'!I38 -> 229633000 | I20: ='A4-FinPerf RE'!J38 -> 199524363 | J20: ='A4-FinPerf RE'!K38 -> 210920628 | K20: ='A4-FinPerf RE'!L38 -> 226288572
A21: Contributions recognised - capital & contributed assets | B21: ='A4-FinPerf RE'!C39+'A4-FinPerf RE'!C40 -> 0 | C21: ='A4-FinPerf RE'!D39+'A4-FinPerf RE'!D40 -> 0 | D21: ='A4-FinPerf RE'!E39+'A4-FinPerf RE'!E40 -> 0 | E21: ='A4-FinPerf RE'!F39+'A4-FinPerf RE'!F40 -> 0 | F21: ='A4-FinPerf RE'!G39+'A4-FinPerf RE'!G40 -> 0 | G21: ='A4-FinPerf RE'!H39+'A4-FinPerf RE'!H40 -> 0 | H21: ='A4-FinPerf RE'!I39+'A4-FinPerf RE'!I40 -> 0 | I21: ='A4-FinPerf RE'!J39+'A4-FinPerf RE'!J40 -> 0 | J21: ='A4-FinPerf RE'!K39+'A4-FinPerf RE'!K40 -> 0 | K21: ='A4-FinPerf RE'!L39+'A4-FinPerf RE'!L40 -> 0
A22: ='A4-FinPerf RE'!A41 -> Surplus/(Deficit) after capital transfers & contributions | B22: =B19+SUM(B20:B21) -> 123299537.5 | C22: =C19+SUM(C20:C21) -> 7236453 | D22: -27126419.68 | E22: 88368241 | F22: 108354647 | G22: 108354647 | H22: 108354647 | I22: 68850006 | J22: 111559544 | K22: 105882116
A23: ='A4-FinPerf RE'!A46 -> Share of surplus/ (deficit) of associate | B23: ='A4-FinPerf RE'!C46 -> 0 | C23: ='A4-FinPerf RE'!D46 -> 0 | D23: ='A4-FinPerf RE'!E46 -> 0 | E23: ='A4-FinPerf RE'!F46 -> 0 | F23: ='A4-FinPerf RE'!G46 -> 0 | G23: ='A4-FinPerf RE'!H46 -> 0 | H23: ='A4-FinPerf RE'!I46 -> 0 | I23: ='A4-FinPerf RE'!J46 -> 0 | J23: ='A4-FinPerf RE'!K46 -> 0 | K23: ='A4-FinPerf RE'!L46 -> 0
A24: ='A4-FinPerf RE'!A47 -> Surplus/(Deficit) for the year | B24: =B22+B23 -> 123299537.5 | C24: =C22+C23 -> 7236453 | D24: -27126419.68 | E24: 88368241 | F24: 108354647 | G24: 108354647 | H24: 108354647 | I24: 68850006 | J24: 111559544 | K24: 105882116
A26: Capital expenditure & funds sources
A27: Capital expenditure | B27: ='A5-Capex'!C63 -> 287010975 | C27: ='A5-Capex'!D63 -> 55090000 | D27: ='A5-Capex'!E63 -> 330358000.4 | E27: ='A5-Capex'!F63 -> 241734293 | F27: ='A5-Capex'!G63 -> 252083455 | G27: ='A5-Capex'!H63 -> 252083455 | H27: ='A5-Capex'!I63 -> 252083455 | I27: ='A5-Capex'!J63 -> 200374360 | J27: ='A5-Capex'!K63 -> 211771000 | K27: ='A5-Capex'!L63 -> 227138000
A28: Transfers recognised - capital | B28: ='A5-Capex'!C70 -> 119743975 | C28: ='A5-Capex'!D70 -> 1810000 | D28: ='A5-Capex'!E70 -> 230067000.4 | E28: ='A5-Capex'!F70 -> 204884000 | F28: ='A5-Capex'!G70 -> 229634000 | G28: ='A5-Capex'!H70 -> 229634000 | H28: ='A5-Capex'!I70 -> 229634000 | I28: ='A5-Capex'!J70 -> 199524000 | J28: ='A5-Capex'!K70 -> 210921000 | K28: ='A5-Capex'!L70 -> 226288000
A30: ='A5-Capex'!A72 -> Borrowing | B30: ='A5-Capex'!C72 -> 0 | C30: ='A5-Capex'!D72 -> 0 | D30: ='A5-Capex'!E72 -> 0 | E30: ='A5-Capex'!F72 -> 14000000 | F30: ='A5-Capex'!G72 -> 0 | G30: ='A5-Capex'!H72 -> 0 | H30: ='A5-Capex'!I72 -> 0 | I30: ='A5-Capex'!J72 -> 0 | J30: ='A5-Capex'!K72 -> 0 | K30: ='A5-Capex'!L72 -> 0
A31: ='A5-Capex'!A73 -> Internally generated funds | B31: ='A5-Capex'!C73 -> 167267000 | C31: ='A5-Capex'!D73 -> 53280000 | D31: ='A5-Capex'!E73 -> 100291000 | E31: ='A5-Capex'!F73 -> 22850000 | F31: ='A5-Capex'!G73 -> 22449000 | G31: ='A5-Capex'!H73 -> 22449000 | H31: ='A5-Capex'!I73 -> 22449000 | I31: ='A5-Capex'!J73 -> 850000 | J31: ='A5-Capex'!K73 -> 850000 | K31: ='A5-Capex'!L73 -> 850000
A32: Total sources of capital funds | B32: =+B28+B30+B31 -> 287010975 | C32: =+C28+C30+C31 -> 55090000 | D32: 330358000.4 | E32: 241734000 | F32: 252083000 | G32: 252083000 | H32: 252083000 | I32: 200374000 | J32: 211771000 | K32: 227138000
A34: Financial position
A35: ='A6-FinPos'!A12 -> Total current assets | B35: ='A6-FinPos'!C12 -> 368114228 | C35: ='A6-FinPos'!D12 -> 353593823 | D35: ='A6-FinPos'!E12 -> 354004397 | E35: ='A6-FinPos'!F12 -> 304173000 | F35: ='A6-FinPos'!G12 -> 249073000 | G35: ='A6-FinPos'!H12 -> 249073000 | H35: ='A6-FinPos'!I12 -> 249073000 | I35: ='A6-FinPos'!J12 -> 518998000 | J35: ='A6-FinPos'!K12 -> 823706000 | K35: ='A6-FinPos'!L12 -> 1137648000
A36: ='A6-FinPos'!A24 -> Total non current assets | B36: ='A6-FinPos'!C24 -> 1218679470 | C36: ='A6-FinPos'!D24 -> 3382450637 | D36: ='A6-FinPos'!E24 -> 3399395113 | E36: ='A6-FinPos'!F24 -> 1524137000 | F36: ='A6-FinPos'!G24 -> 1513788000 | G36: ='A6-FinPos'!H24 -> 1513788000 | H36: ='A6-FinPos'!I24 -> 1513788000 | I36: ='A6-FinPos'!J24 -> 1580625000 | J36: ='A6-FinPos'!K24 -> 1611495000 | K36: ='A6-FinPos'!L24 -> 1628807000
A37: ='A6-FinPos'!A34 -> Total current liabilities | B37: ='A6-FinPos'!C34 -> 109847165 | C37: ='A6-FinPos'!D34 -> 148053162 | D37: ='A6-FinPos'!E34 -> 195744004 | E37: ='A6-FinPos'!F34 -> 48815000 | F37: ='A6-FinPos'!G34 -> 48815000 | G37: ='A6-FinPos'!H34 -> 48815000 | H37: ='A6-FinPos'!I34 -> 48815000 | I37: ='A6-FinPos'!J34 -> 48425000 | J37: ='A6-FinPos'!K34 -> 48722000 | K37: ='A6-FinPos'!L34 -> 48022000
A38: ='A6-FinPos'!A39 -> Total non current liabilities | B38: ='A6-FinPos'!C39 -> 93098384 | C38: ='A6-FinPos'!D39 -> 79947222 | D38: ='A6-FinPos'!E39 -> 69463310 | E38: ='A6-FinPos'!F39 -> 79053000 | F38: ='A6-FinPos'!G39 -> 65053000 | G38: ='A6-FinPos'!H39 -> 65053000 | H38: ='A6-FinPos'!I39 -> 65053000 | I38: ='A6-FinPos'!J39 -> 48678000 | J38: ='A6-FinPos'!K39 -> 40598000 | K38: ='A6-FinPos'!L39 -> 33263000
A39: Community wealth/Equity | B39: ='A6-FinPos'!C48 -> 1383848149 | C39: ='A6-FinPos'!D48 -> 3508044076 | D39: ='A6-FinPos'!E48 -> 3488192196 | E39: ='A6-FinPos'!F48 -> 1700442000 | F39: ='A6-FinPos'!G48 -> 1648993000 | G39: ='A6-FinPos'!H48 -> 1648993000 | H39: ='A6-FinPos'!I48 -> 1648993000 | I39: ='A6-FinPos'!J48 -> 2002520000 | J39: ='A6-FinPos'!K48 -> 2345881000 | K39: ='A6-FinPos'!L48 -> 2685170000
A41: Cash flows
A42: Net cash from (used) operating | B42: ='A7-CFlow'!C17 -> 312303330 | C42: ='A7-CFlow'!D17 -> 186802469 | D42: ='A7-CFlow'!E17 -> 305838774 | E42: ='A7-CFlow'!F17 -> 217956000 | F42: ='A7-CFlow'!G17 -> 219893000 | G42: ='A7-CFlow'!H17 -> 219893000 | H42: ='A7-CFlow'!I17 -> 219893000 | I42: ='A7-CFlow'!J17 -> 211352000 | J42: ='A7-CFlow'!K17 -> 265201500 | K42: ='A7-CFlow'!L17 -> 283797865
A43: Net cash from (used) investing | B43: ='A7-CFlow'!C27 -> -250300000 | C43: ='A7-CFlow'!D27 -> -199642000 | D43: ='A7-CFlow'!E27 -> -330357578 | E43: ='A7-CFlow'!F27 -> -241733000 | F43: ='A7-CFlow'!G27 -> -252083000 | G43: ='A7-CFlow'!H27 -> -252083000 | H43: ='A7-CFlow'!I27 -> -252083000 | I43: ='A7-CFlow'!J27 -> -200374363 | J43: ='A7-CFlow'!K27 -> -211771000 | K43: ='A7-CFlow'!L27 -> -227138000
A44: Net cash from (used) financing | B44: ='A7-CFlow'!C36 -> -12209634 | C44: ='A7-CFlow'!D36 -> -91456000 | D44: ='A7-CFlow'!E36 -> -239781000 | E44: ='A7-CFlow'!F36 -> 4500000 | F44: ='A7-CFlow'!G36 -> -9500000 | G44: ='A7-CFlow'!H36 -> -9500000 | H44: ='A7-CFlow'!I36 -> -9500000 | I44: ='A7-CFlow'!J36 -> -7960000 | J44: ='A7-CFlow'!K36 -> -8425000 | K44: ='A7-CFlow'!L36 -> -8722000
A45: =LEFT('A7-CFlow'!A40,37) -> Cash/cash equivalents at the year end | B45: ='A7-CFlow'!C40 -> 135526961 | C45: ='A7-CFlow'!D40 -> 30981112 | D45: ='A7-CFlow'!E40 -> -233317797 | E45: ='A7-CFlow'!F40 -> 11705000 | F45: ='A7-CFlow'!G40 -> 13316000 | G45: ='A7-CFlow'!H40 -> 13316000 | H45: ='A7-CFlow'!I40 -> 13316000 | I45: ='A7-CFlow'!J40 -> 50416637 | J45: ='A7-CFlow'!K40 -> 95422137 | K45: ='A7-CFlow'!L40 -> 143360002
A47: Cash backing/surplus reconciliation
A48: ='A8-ResRecon'!A4 -> Cash and investments available | B48: ='A8-ResRecon'!C8 -> 135276303 | C48: ='A8-ResRecon'!D8 -> 30982000 | D48: ='A8-ResRecon'!E8 -> 1358000 | E48: ='A8-ResRecon'!F8 -> 40000000 | F48: ='A8-ResRecon'!G8 -> 24107000 | G48: ='A8-ResRecon'!H8 -> 24107000 | H48: ='A8-ResRecon'!I8 -> 24107000 | I48: ='A8-ResRecon'!J8 -> 24377000 | J48: ='A8-ResRecon'!K8 -> 50000000 | K48: ='A8-ResRecon'!L8 -> 65000000
A49: ='A8-ResRecon'!A10 -> Application of cash and investments | B49: ='A8-ResRecon'!C18 -> -97180408 | C49: ='A8-ResRecon'!D18 -> -120129784 | D49: ='A8-ResRecon'!E18 -> -102469709 | E49: ='A8-ResRecon'!F18 -> -120547000 | F49: ='A8-ResRecon'!G18 -> -81929000 | G49: ='A8-ResRecon'!H18 -> -81929000 | H49: ='A8-ResRecon'!I18 -> -81929000 | I49: ='A8-ResRecon'!J18 -> -243658000 | J49: ='A8-ResRecon'!K18 -> -382709000 | K49: ='A8-ResRecon'!L18 -> -548909000
A50: Balance - surplus (shortfall) | B50: =B48-B49 -> 232456711 | C50: =C48-C49 -> 151111784 | D50: 103827709 | E50: 160547000 | F50: 106036000 | G50: 106036000 | H50: 106036000 | I50: 268035000 | J50: 432709000 | K50: 613909000
A52: Asset management
A53: Asset register summary (WDV) | B53: ='A9-Asset'!C165 -> 1218675000 | C53: ='A9-Asset'!D165 -> 3382450000 | D53: ='A9-Asset'!E165 -> 3399394000 | E53: ='A9-Asset'!F165 -> 2678900000 | F53: ='A9-Asset'!G165 -> 2689249000 | G53: ='A9-Asset'!H165 -> 2689249000 | H53: ='A9-Asset'!H165 -> 2689249000 | I53: ='A9-Asset'!I165 -> 2889623000 | J53: ='A9-Asset'!J165 -> 3122395000 | K53: ='A9-Asset'!K165 -> 3349533000
A54: ='A9-Asset'!A168 -> Depreciation | B54: ='A9-Asset'!C168 -> 46184156 | C54: ='A9-Asset'!D168 -> 108713732 | D54: ='A9-Asset'!E168 -> 169327953.6 | E54: ='A9-Asset'!F168 -> 130138300 | F54: ='A9-Asset'!G168 -> 140091413 | G54: ='A9-Asset'!H168 -> 140091413 | H54: ='A9-Asset'!H168 -> 140091413 | I54: ='A9-Asset'!I168 -> 154536733 | J54: ='A9-Asset'!J168 -> 180901311 | K54: ='A9-Asset'!K168 -> 209826482
A55: Renewal and Upgrading of Existing Assets | B55: ='A9-Asset'!C37+'A9-Asset'!C69 -> 0 | C55: ='A9-Asset'!D37+'A9-Asset'!D69 -> 0 | D55: ='A9-Asset'!E37+'A9-Asset'!E69 -> 0 | E55: ='A9-Asset'!F37+'A9-Asset'!F69 -> 22423000 | F55: ='A9-Asset'!G37+'A9-Asset'!G69 -> 19449000 | G55: ='A9-Asset'!H37+'A9-Asset'!H69 -> 19449000 | H55: ='A9-Asset'!H37+'A9-Asset'!H69 -> 19449000 | I55: ='A9-Asset'!I37+'A9-Asset'!I69 -> 20111512 | J55: ='A9-Asset'!J37+'A9-Asset'!J69 -> 29864475 | K55: ='A9-Asset'!K37+'A9-Asset'!K69 -> 19515202
A56: Repairs and Maintenance | B56: ='A9-Asset'!C169 -> 45543348 | C56: ='A9-Asset'!D169 -> 54374078 | D56: ='A9-Asset'!E169 -> 0 | E56: ='A9-Asset'!F169 -> 122850000 | F56: ='A9-Asset'!G169 -> 142400800 | G56: ='A9-Asset'!H169 -> 142400800 | H56: ='A9-Asset'!H169 -> 142400800 | I56: ='A9-Asset'!I169 -> 143480000 | J56: ='A9-Asset'!J169 -> 153523600 | K56: ='A9-Asset'!K169 -> 164270252
A58: Free services
A59: Cost of Free Basic Services provided | B59: ='A10-SerDel'!C60 -> 16578222 | C59: ='A10-SerDel'!D60 -> 33844153 | D59: ='A10-SerDel'!E60 -> 33844153 | E59: ='A10-SerDel'!F60 -> 65000000 | F59: ='A10-SerDel'!G60 -> 65605900 | G59: ='A10-SerDel'!H60 -> 65605900 | H59: ='A10-SerDel'!I60 -> 65760001 | I59: ='A10-SerDel'!I60 -> 65760001 | J59: ='A10-SerDel'!J60 -> 70115500 | K59: ='A10-SerDel'!K60 -> 74779715
A60: Revenue cost of free services provided | B60: ='A10-SerDel'!C79 -> 1593000 | C60: ='A10-SerDel'!D79 -> 1593000 | D60: ='A10-SerDel'!E79 -> 1593000 | E60: ='A10-SerDel'!F79 -> 2493000 | F60: ='A10-SerDel'!G79 -> 5049111 | G60: ='A10-SerDel'!H79 -> 5049111 | H60: ='A10-SerDel'!I79 -> 4261000 | I60: ='A10-SerDel'!I79 -> 4261000 | J60: ='A10-SerDel'!J79 -> 4367300 | K60: ='A10-SerDel'!K79 -> 4480720
A61: Households below minimum service level
A62: ='A10-SerDel'!A5 -> Water: | B62: ='A10-SerDel'!C14 -> 12000000 | C62: ='A10-SerDel'!D14 -> 12000000 | D62: ='A10-SerDel'!E14 -> 12000000 | E62: ='A10-SerDel'!F14 -> 12000 | F62: ='A10-SerDel'!G14 -> 12000 | G62: ='A10-SerDel'!H14 -> 12000 | H62: ='A10-SerDel'!I14 -> 12000 | I62: ='A10-SerDel'!I14 -> 12000 | J62: ='A10-SerDel'!J14 -> 12000 | K62: ='A10-SerDel'!K14 -> 12000
A63: ='A10-SerDel'!A16 -> Sanitation/sewerage: | B63: ='A10-SerDel'!C26 -> 39000000 | C63: ='A10-SerDel'!D26 -> 39000000 | D63: ='A10-SerDel'!E26 -> 39000000 | E63: ='A10-SerDel'!F26 -> 39000 | F63: ='A10-SerDel'!G26 -> 39000 | G63: ='A10-SerDel'!H26 -> 39000 | H63: ='A10-SerDel'!I26 -> 39000 | I63: ='A10-SerDel'!I26 -> 39000 | J63: ='A10-SerDel'!J26 -> 39000 | K63: ='A10-SerDel'!K26 -> 39000
A64: ='A10-SerDel'!A28 -> Energy: | B64: ='A10-SerDel'!C35 -> 0 | C64: ='A10-SerDel'!D35 -> 0 | D64: ='A10-SerDel'!E35 -> 0 | E64: ='A10-SerDel'!F35 -> 0 | F64: ='A10-SerDel'!G35 -> 0 | G64: ='A10-SerDel'!H35 -> 0 | H64: ='A10-SerDel'!I35 -> 0 | I64: ='A10-SerDel'!I35 -> 0 | J64: ='A10-SerDel'!J35 -> 0 | K64: ='A10-SerDel'!K35 -> 0
A65: ='A10-SerDel'!A37 -> Refuse: | B65: ='A10-SerDel'!C45 -> 0 | C65: ='A10-SerDel'!D45 -> 0 | D65: ='A10-SerDel'!E45 -> 0 | E65: ='A10-SerDel'!F45 -> 0 | F65: ='A10-SerDel'!G45 -> 0 | G65: ='A10-SerDel'!H45 -> 0 | H65: ='A10-SerDel'!I45 -> 0 | I65: ='A10-SerDel'!I45 -> 0 | J65: ='A10-SerDel'!J45 -> 0 | K65: ='A10-SerDel'!K45 -> 0

Sheet A2-FinPerf SC
A1: =muni&" - "&Approve3 -> NW375 Moses Kotane - Table A2 Budgeted Financial Performance (revenue and expenditure by functional classification)
A2: ="Functional Classification "&desc -> Functional Classification Description | B2: =head27 -> Ref | C2: =head1b -> 2015/16 | D2: =head1A -> 2016/17 | E2: =Head1 -> 2017/18 | F2: =Head2 -> Current Year 2018/19 | I2: =Head3 -> 2019/20 Medium Term Revenue & Expenditure Framework
A3: R thousand | B3: 1 | C3: =Head5 -> Audited Outcome | D3: =Head5 -> Audited Outcome | E3: =Head5 -> Audited Outcome | F3: =Head6 -> Original Budget | G3: =Head7 -> Adjusted Budget | H3: =Head8 -> Full Year Forecast | I3: =Head9 -> Budget Year 2019/20 | J3: =Head10 -> Budget Year +1 2020/21 | K3: =Head11 -> Budget Year +2 2021/22
A4: Revenue - Functional
A5: Governance and administration | C5: =SUM(C6:C8) -> 613724087 | D5: =SUM(D6:D8) -> 523856810 | E5: 509473999.6 | F5: 433658062 | G5: 467949982 | H5: 467949982 | I5: 495982353 | J5: 508812025 | K5: 547110283
A6: Executive and council | C6: =A2A!C6 -> 1446000 | D6: =A2A!D6 -> 1776810 | E6: =A2A!E6 -> 1000000 | F6: =A2A!F6 -> 1000000 | G6: =A2A!G6 -> 1000000 | H6: =A2A!H6 -> 1000000 | I6: =A2A!I6 -> 1695000 | J6: =A2A!J6 -> 0 | K6: =A2A!K6 -> 0
A7: Finance and administration | C7: =A2A!C9 -> 612278087 | D7: =A2A!D9 -> 522080000 | E7: =A2A!E9 -> 508473999.6 | F7: =A2A!F9 -> 432658062 | G7: =A2A!G9 -> 466949982 | H7: =A2A!H9 -> 466949982 | I7: =A2A!I9 -> 494287353 | J7: =A2A!J9 -> 508812025 | K7: =A2A!K9 -> 547110283
A8: Internal audit | C8: =A2A!C23 -> 0 | D8: =A2A!D23 -> 0 | E8: =A2A!E23 -> 0 | F8: =A2A!F23 -> 0 | G8: =A2A!G23 -> 0 | H8: =A2A!H23 -> 0 | I8: =A2A!I23 -> 0 | J8: =A2A!J23 -> 0 | K8: =A2A!K23 -> 0
A9: Community and public safety | C9: =SUM(C10:C14) -> 4686108.6 | D9: =SUM(D10:D14) -> 6095900 | E9: 23733584.04 | F9: 5671000 | G9: 5619000 | H9: 5619000 | I9: 4655000 | J9: 14569475 | K9: 4755000
A10: Community and social services | C10: =A2A!C26 -> 29000 | D10: =A2A!D26 -> 447000 | E10: =A2A!E26 -> 18408298.42 | F10: =A2A!F26 -> 51000 | G10: =A2A!G26 -> 1014000 | H10: =A2A!H26 -> 1014000 | I10: =A2A!I26 -> 50000 | J10: =A2A!J26 -> 50000 | K10: =A2A!K26 -> 50000
A11: Sport and recreation | C11: =A2A!C48 -> 14108.6 | D11: =A2A!D48 -> 0 | E11: =A2A!E48 -> 9395.62 | F11: =A2A!F48 -> 20000 | G11: =A2A!G48 -> 55000 | H11: =A2A!H48 -> 55000 | I11: =A2A!I48 -> 55000 | J11: =A2A!J48 -> 9919475 | K11: =A2A!K48 -> 55000
A12: Public safety | C12: =A2A!C54 -> 4643000 | D12: =A2A!D54 -> 5648900 | E12: =A2A!E54 -> 5315890 | F12: =A2A!F54 -> 5600000 | G12: =A2A!G54 -> 4550000 | H12: =A2A!H54 -> 4550000 | I12: =A2A!I54 -> 4550000 | J12: =A2A!J54 -> 4600000 | K12: =A2A!K54 -> 4650000
A13: Housing | C13: =A2A!C63 -> 0 | D13: =A2A!D63 -> 0 | E13: =A2A!E63 -> 0 | F13: =A2A!F63 -> 0 | G13: =A2A!G63 -> 0 | H13: =A2A!H63 -> 0 | I13: =A2A!I63 -> 0 | J13: =A2A!J63 -> 0 | K13: =A2A!K63 -> 0
A14: Health | C14: =A2A!C66 -> 0 | D14: =A2A!D66 -> 0 | E14: =A2A!E66 -> 0 | F14: =A2A!F66 -> 0 | G14: =A2A!G66 -> 0 | H14: =A2A!H66 -> 0 | I14: =A2A!I66 -> 0 | J14: =A2A!J66 -> 0 | K14: =A2A!K66 -> 0
A15: Economic and environmental services | C15: =SUM(C16:C18) -> 325255.27 | D15: =SUM(D16:D18) -> 3647000 | E15: 77483946.99 | F15: 3701713 | G15: 3751713 | H15: 3751713 | I15: 67460875 | J15: 60054372 | K15: 66016428
A16: Planning and development | C16: =A2A!C75 -> 325255.27 | D16: =A2A!D75 -> 0 | E16: =A2A!E75 -> 55946.99 | F16: =A2A!F75 -> 3701713 | G16: =A2A!G75 -> 3751713 | H16: =A2A!H75 -> 3751713 | I16: =A2A!I75 -> 5267637 | J16: =A2A!J75 -> 5629372 | K16: =A2A!K75 -> 6016428
A17: Road transport | C17: =A2A!C86 -> 0 | D17: =A2A!D86 -> 3647000 | E17: =A2A!E86 -> 77428000 | F17: =A2A!F86 -> 0 | G17: =A2A!G86 -> 0 | H17: =A2A!H86 -> 0 | I17: =A2A!I86 -> 62193238 | J17: =A2A!J86 -> 54425000 | K17: =A2A!K86 -> 60000000
A18: Environmental protection | C18: =A2A!C91 -> 0 | D18: =A2A!D91 -> 0 | E18: =A2A!E91 -> 0 | F18: =A2A!F91 -> 0 | G18: =A2A!G91 -> 0 | H18: =A2A!H91 -> 0 | I18: =A2A!I91 -> 0 | J18: =A2A!J91 -> 0 | K18: =A2A!K91 -> 0
A19: Trading services | C19: =SUM(C20:C23) -> 127220000 | D19: =SUM(D20:D23) -> 257070000 | E19: 275939789.1 | F19: 298968600 | G19: 292001904 | H19: 292001904 | I19: 467992300 | J19: =SUM(J20:J23) -> 523167353 | K19: 570222327
A20: Energy sources | C20: =A2A!C99 -> 0 | D20: =A2A!D99 -> 0 | E20: =A2A!E99 -> 0 | F20: =A2A!F99 -> 0 | G20: =A2A!G99 -> 0 | H20: =A2A!H99 -> 0 | I20: =A2A!I99 -> 19857810 | J20: =A2A!J99 -> 8638980 | K20: =A2A!K99 -> 12557370
A21: Water management | C21: =A2A!C103 -> 97070000 | D21: =A2A!D103 -> 196140000 | E21: =A2A!E103 -> 235179438.8 | F21: =A2A!F103 -> 218245493 | G21: =A2A!G103 -> 218876793 | H21: =A2A!H103 -> 218876793 | I21: =A2A!I103 -> 324371603 | J21: =A2A!J103 -> 393568348 | K21: =A2A!K103 -> 414797870
A22: Waste water management | C22: =A2A!C107 -> 2567000 | D22: =A2A!D107 -> 17011000 | E22: =A2A!E107 -> 12146134.48 | F22: =A2A!F107 -> 23090644 | G22: =A2A!G107 -> 21416548 | H22: =A2A!H107 -> 21416548 | I22: =A2A!I107 -> 43021550 | J22: =A2A!J107 -> 31171025 | K22: =A2A!K107 -> 48350285
A23: Waste management | C23: =A2A!C112 -> 27583000 | D23: =A2A!D112 -> 43919000 | E23: =A2A!E112 -> 28614215.79 | F23: =A2A!F112 -> 57632463 | G23: =A2A!G112 -> 51708563 | H23: =A2A!H112 -> 51708563 | I23: =A2A!I112 -> 80741337 | J23: =A2A!J112 -> 89789000 | K23: =A2A!K112 -> 94516802
A24: Other | B24: 4 | C24: =A2A!C117 -> 0 | D24: =A2A!D117 -> 0 | E24: =A2A!E117 -> 0 | F24: =A2A!F117 -> 0 | G24: =A2A!G117 -> 0 | H24: =A2A!H117 -> 0 | I24: =A2A!I117 -> 0 | J24: =A2A!J117 -> 0 | K24: =A2A!K117 -> 0
A25: ="Total "&A4 -> Total Revenue - Functional | B25: 2 | C25: =C5+C9+C15+C19+C24 -> 745955450.9 | D25: =D5+D9+D15+D19+D24 -> 790669710 | E25: =E5+E9+E15+E19+E24 -> 886631319.7 | F25: 741999375 | G25: 769322599 | H25: 769322599 | I25: =I5+I9+I15+I19+I24 -> 1036090528 | J25: 1106603225 | K25: 1188104038
A27: Expenditure - Functional
A28: Governance and administration | C28: =SUM(C29:C31) -> 260186552.8 | D28: =SUM(D29:D31) -> 318620452 | E28: 275429561.4 | F28: 336862681 | G28: 351974946 | H28: 351974946 | I28: 395399683 | J28: 362180888 | K28: 386836557
A29: Executive and council | C29: =A2A!C128 -> 87021418.05 | D29: =A2A!D128 -> 87541000 | E29: =A2A!E128 -> 84780835.47 | F29: =A2A!F128 -> 108878770 | G29: =A2A!G128 -> 103068557 | H29: =A2A!H128 -> 103068557 | I29: =A2A!I128 -> 107752328 | J29: =A2A!J128 -> 113319340 | K29: =A2A!K128 -> 121089698
A30: Finance and administration | C30: =A2A!C131 -> 173165134.7 | D30: =A2A!D131 -> 231079452 | E30: =A2A!E131 -> 190648726 | F30: =A2A!F131 -> 224009163 | G30: =A2A!G131 -> 245302641 | H30: =A2A!H131 -> 245302641 | I30: =A2A!I131 -> 283949994 | J30: =A2A!J131 -> 244905800 | K30: =A2A!K131 -> 261514633
A31: Internal audit | C31: =A2A!C145 -> 0 | D31: =A2A!D145 -> 0 | E31: =A2A!E145 -> 0 | F31: =A2A!F145 -> 3974748 | G31: =A2A!G145 -> 3603748 | H31: =A2A!H145 -> 3603748 | I31: =A2A!I145 -> 3697361 | J31: =A2A!J145 -> 3955748 | K31: =A2A!K145 -> 4232226
A32: Community and public safety | C32: =SUM(C33:C37) -> 45064347.25 | D32: =SUM(D33:D37) -> 44572000 | E32: 119519750.5 | F32: 91656368 | G32: 99805197 | H32: 99805197 | I32: 101814686 | J32: 108024954 | K32: 114967999
A33: Community and social services | C33: =A2A!C148 -> 10830382.04 | D33: =A2A!D148 -> 4969000 | E33: =A2A!E148 -> 72235710.65 | F33: =A2A!F148 -> 29033331 | G33: =A2A!G148 -> 30125026 | H33: =A2A!H148 -> 30125026 | I33: =A2A!I148 -> 30482848 | J33: =A2A!J148 -> 32233567 | K33: =A2A!K148 -> 34498293
A34: Sport and recreation | C34: =A2A!C170 -> 15865965.21 | D34: =A2A!D170 -> 17880000 | E34: =A2A!E170 -> 34572039.83 | F34: =A2A!F170 -> 24895916 | G34: =A2A!G170 -> 33141050 | H34: =A2A!H170 -> 33141050 | I34: =A2A!I170 -> 29288851 | J34: =A2A!J170 -> 31124451 | K34: =A2A!K170 -> 33095142
A35: Public safety | C35: =A2A!C176 -> 18368000 | D35: =A2A!D176 -> 21723000 | E35: =A2A!E176 -> 12712000 | F35: =A2A!F176 -> 37727121 | G35: =A2A!G176 -> 36539121 | H35: =A2A!H176 -> 36539121 | I35: =A2A!I176 -> 42042987 | J35: =A2A!J176 -> 44666936 | K35: =A2A!K176 -> 47374564
A36: Housing | C36: =A2A!C185 -> 0 | D36: =A2A!D185 -> 0 | E36: =A2A!E185 -> 0 | F36: =A2A!F185 -> 0 | G36: =A2A!G185 -> 0 | H36: =A2A!H185 -> 0 | I36: =A2A!I185 -> 0 | J36: =A2A!J185 -> 0 | K36: =A2A!K185 -> 0
A37: Health | C37: =A2A!C188 -> 0 | D37: =A2A!D188 -> 0 | E37: =A2A!E188 -> 0 | F37: =A2A!F188 -> 0 | G37: =A2A!G188 -> 0 | H37: =A2A!H188 -> 0 | I37: =A2A!I188 -> 0 | J37: =A2A!J188 -> 0 | K37: =A2A!K188 -> 0
A38: Economic and environmental services | C38: =SUM(C39:C41) -> 52618679.43 | D38: =SUM(D39:D41) -> 63974000 | E38: 131098000 | F38: 116741111 | G38: 102538583 | H38: 102538583 | I38: 115203608 | J38: 126657633 | K38: 139144036
A39: Planning and development | C39: =A2A!C197 -> 13414679.43 | D39: =A2A!D197 -> 15142000 | E39: =A2A!E197 -> 15587000 | F39: =A2A!F197 -> 30340128 | G39: =A2A!G197 -> 24442811 | H39: =A2A!H197 -> 24442811 | I39: =A2A!I197 -> 31369359 | J39: =A2A!J197 -> 33546004 | K39: =A2A!K197 -> 35875019
A40: Road transport | C40: =A2A!C208 -> 39204000 | D40: =A2A!D208 -> 48832000 | E40: =A2A!E208 -> 115511000 | F40: =A2A!F208 -> 86400983 | G40: =A2A!G208 -> 78095772 | H40: =A2A!H208 -> 78095772 | I40: =A2A!I208 -> 83834249 | J40: =A2A!J208 -> 93111629 | K40: =A2A!K208 -> 103269017
A41: Environmental protection | C41: =A2A!C213 -> 0 | D41: =A2A!D213 -> 0 | E41: =A2A!E213 -> 0 | F41: =A2A!F213 -> 0 | G41: =A2A!G213 -> 0 | H41: =A2A!H213 -> 0 | I41: =A2A!I213 -> 0 | J41: =A2A!J213 -> 0 | K41: =A2A!K213 -> 0
A42: Trading services | C42: =SUM(C43:C46) -> 264787943.4 | D42: =SUM(D43:D46) -> 356266000 | E42: 387711035 | F42: =SUM(F43:F46) -> 313255116 | G42: 336283120 | H42: 336283120 | I42: 354822344 | J42: 398180842 | K42: =SUM(K43:K46) -> 441273399
A43: Energy sources | C43: =A2A!C221 -> 0 | D43: =A2A!D221 -> 0 | E43: =A2A!E221 -> 0 | F43: =A2A!F221 -> 23361803 | G43: =A2A!G221 -> 27800503 | H43: =A2A!H221 -> 27800503 | I43: =A2A!I221 -> 31908720 | J43: =A2A!J221 -> 36234616 | K43: =A2A!K221 -> 40959475
A44: Water management | C44: =A2A!C225 -> 202275000 | D44: =A2A!D225 -> 253747000 | E44: =A2A!E225 -> 295987704 | F44: =A2A!F225 -> 210526411 | G44: =A2A!G225 -> 226299151 | H44: =A2A!H225 -> 226299151 | I44: =A2A!I225 -> 241659926 | J44: =A2A!J225 -> 270165523 | K44: =A2A!K225 -> 297512436
A45: Waste water management | C45: =A2A!C229 -> 5939810.37 | D45: =A2A!D229 -> 14023000 | E45: =A2A!E229 -> 34258331.02 | F45: =A2A!F229 -> 22280880 | G45: =A2A!G229 -> 24804880 | H45: =A2A!H229 -> 24804880 | I45: =A2A!I229 -> 18784460 | J45: =A2A!J229 -> 22853240 | K45: =A2A!K229 -> 27310297
A46: Waste management | C46: =A2A!C234 -> 56573133.08 | D46: =A2A!D234 -> 88496000 | E46: =A2A!E234 -> 57465000 | F46: =A2A!F234 -> 57086022 | G46: =A2A!G234 -> 57378586 | H46: =A2A!H234 -> 57378586 | I46: =A2A!I234 -> 62469238 | J46: =A2A!J234 -> 68927463 | K46: =A2A!K234 -> 75491191
A47: Other | B47: 4 | C47: =A2A!C239 -> 0 | D47: =A2A!D239 -> 0 | E47: =A2A!E239 -> 0 | F47: =A2A!F239 -> 0 | G47: =A2A!G239 -> 0 | H47: =A2A!H239 -> 0 | I47: =A2A!I239 -> 0 | J47: =A2A!J239 -> 0 | K47: =A2A!K239 -> 0
A48: ="Total "&A27 -> Total Expenditure - Functional | B48: 3 | C48: =C28+C32+C38+C42+C47 -> 622657522.9 | D48: =D28+D32+D38+D42+D47 -> 783432452 | E48: =E28+E32+E38+E42+E47 -> 913758346.9 | F48: =F28+F32+F38+F42+F47 -> 858515276 | G48: 890601846 | H48: 890601846 | I48: 967240321 | J48: 995044317 | K48: 1082221991
A49: =result -> Surplus/(Deficit) for the year | C49: =C25-C48 -> 123297928 | D49: =D25-D48 -> 7237258 | E49: -27127027.28 | F49: -116515901 | G49: -121279247 | H49: -121279247 | I49: 68850207 | J49: 111558908 | K49: 105882047
A50: =head27a -> References
A51: 1. Government Finance Statistics Functions and Sub-functions are standardised to assist the compilation of national and international accounts for comparison purposes
A52: 2. Total Revenue by functional classification must reconcile to Total Operating Revenue shown in Budgeted Financial Performance (revenue and expenditure)
A53: 3. Total Expenditure by Functional Classification must reconcile to Total Operating Expenditure shown in Budgeted Financial Performance (revenue and expenditure)
A54: 4. All amounts must be classified under a functional classification . The GFS function 'Other' is only for Abbatoirs, Air Transport, Forestry, Licensing and Regulation, Markets and Tourism - and if used must be supported by footnotes. Nothing else may be placed under 'Other'. Assign associate share to relevant classification.
A57: check oprev balance | C57: =C25-'A4-FinPerf RE'!C59 -> 123008841.3 | D57: =D25-'A4-FinPerf RE'!D59 -> 395182 | E57: =E25-'A4-FinPerf RE'!E59 -> -823.2199999 | F57: =F25-'A4-FinPerf RE'!F59 -> -204882756 | G57: =G25-'A4-FinPerf RE'!G59 -> -229633894 | H57: =H25-'A4-FinPerf RE'!H59 -> -229633894 | I57: =I25-'A4-FinPerf RE'!J59 -> 1 | J57: =J25-'A4-FinPerf RE'!K59 -> -300 | K57: =K25-'A4-FinPerf RE'!L59 -> -130
A58: check opexp balance | C58: =C48-'A4-FinPerf RE'!C35 -> 2450.79 | D58: =D48-'A4-FinPerf RE'!D35 -> -1226 | E58: =E48-'A4-FinPerf RE'!E35 -> -279.04 | F58: =F48-'A4-FinPerf RE'!F35 -> 1386 | G58: =G48-'A4-FinPerf RE'!G35 -> 0 | H58: =H48-'A4-FinPerf RE'!H35 -> 0 | I58: =I48-'A4-FinPerf RE'!J35 -> -200 | J58: =J48-'A4-FinPerf RE'!K35 -> 336 | K58: =K48-'A4-FinPerf RE'!L35 -> -61

Sheet A2A
A1: =muni&" - "&Approve3 -> NW375 Moses Kotane - Table A2 Budgeted Financial Performance (revenue and expenditure by functional classification)
A2: ="Functional Classification "&desc -> Functional Classification Description | B2: =head27 -> Ref | C2: =head1b -> 2015/16 | D2: =head1A -> 2016/17 | E2: =Head1 -> 2017/18 | F2: =Head2 -> Current Year 2018/19 | I2: =Head3 -> 2019/20 Medium Term Revenue & Expenditure Framework
A3: R thousand | B3: 1 | C3: =Head5 -> Audited Outcome | D3: =Head5 -> Audited Outcome | E3: =Head5 -> Audited Outcome | F3: =Head6 -> Original Budget | G3: =Head7 -> Adjusted Budget | H3: =Head8 -> Full Year Forecast | I3: =Head9 -> Budget Year 2019/20 | J3: =Head10 -> Budget Year +1 2020/21 | K3: =Head11 -> Budget Year +2 2021/22
A4: Revenue - Functional
A5: Municipal governance and administration | C5: =C6+C9+C23 -> 613724087 | D5: 523856810 | E5: 509473999.6 | F5: 433658062 | G5: 467949982 | H5: 467949982 | I5: 495982353 | J5: 508812025 | K5: 547110283
A6: Executive and council | C6: =SUM(C7:C8) -> 1446000 | D6: =SUM(D7:D8) -> 1776810 | E6: 1000000 | F6: 1000000 | G6: 1000000 | H6: 1000000 | I6: 1695000 | J6: 0 | K6: 0
A7: Mayor and Council | C7: 1446000 | D7: 1776810 | E7: 1000000 | F7: 1000000 | G7: 1000000 | H7: 1000000 | I7: 1695000 | J7: 0 | K7: 0
A8: Municipal Manager, Town Secretary and Chief Executive
A9: Finance and administration | C9: =SUM(C10:C22) -> 612278087 | D9: 522080000 | E9: 508473999.6 | F9: 432658062 | G9: 466949982 | H9: 466949982 | I9: 494287353 | J9: 508812025 | K9: 547110283
A10: Administrative and Corporate Support | C10: 0 | D10: 0 | E10: 0 | F10: 0 | G10: 0 | H10: 0
A11: Asset Management
A12: Finance | C12: 612121000 | D12: 521801000 | E12: 508474000 | F12: 432158062 | G12: 466449982 | H12: 466449982 | I12: =479197100 -> 479197100 | J12: =508312025 -> 508312025 | K12: =538610283 -> 538610283
A13: Fleet Management | C13: 0 | D13: 0 | E13: 0 | F13: 0 | G13: 0 | H13: 0 | I13: 0 | J13: 0 | K13: 0
A14: Human Resources | C14: 144000 | D14: 279000 | E14: -0.45 | F14: 500000 | G14: 500000 | H14: 500000 | I14: 500000 | J14: 500000 | K14: 500000
A15: Information Technology | C15: 0 | D15: 0 | E15: 0 | F15: 0 | G15: 0 | H15: 0
A16: Legal Services
A17: Marketing, Customer Relations, Publicity and Media Co-ordination
A18: Property Services | C18: 13087.04 | I18: 14590253 | J18: 0 | K18: 8000000
A19: Risk Management
A20: Security Services
A21: Supply Chain Management
A22: Valuation Service
A23: Internal audit | C23: =SUM(C24:C24) -> 0 | D23: 0 | E23: 0 | F23: 0 | G23: 0 | H23: 0 | I23: 0 | J23: 0 | K23: 0
A24: Governance Function
A25: Community and public safety | C25: =C26+C48+C54+C63+C66 -> 4686108.6 | D25: 6095900 | E25: 23733584.04 | F25: 5671000 | G25: 5619000 | H25: 5619000 | I25: 4655000 | J25: 14569475 | K25: 4755000
A26: Community and social services | C26: =SUM(C27:C47) -> 29000 | D26: =SUM(D27:D47) -> 447000 | E26: 18408298.42 | F26: 51000 | G26: 1014000 | H26: 1014000 | I26: 50000 | J26: 50000 | K26: 50000
A27: Aged Care
A28: Agricultural
A29: Animal Care and Diseases
A30: Cemeteries, Funeral Parlours and Crematoriums | C30: 29000 | D30: 447000 | E30: 15227.77 | F30: 20000 | G30: 14000 | H30: 14000 | I30: 10000 | J30: 10000 | K30: 10000
A31: Child Care Facilities
A32: Community Halls and Facilities | C32: 0 | D32: 0 | E32: 17291215.91 | F32: 0 | G32: 0 | H32: 0 | I32: 0 | J32: 0 | K32: 0
A33: Consumer Protection
A34: Cultural Matters
A35: Disaster Management
A36: Education
A37: Indigenous and Customary Law
A38: Industrial Promotion
A39: Language Policy
A40: Libraries and Archives | C40: 0 | D40: 0 | E40: 1101854.74 | F40: 31000 | G40: 1000000 | H40: 1000000 | I40: 40000 | J40: 40000 | K40: 40000
A41: Literacy Programmes
A42: Media Services
A43: Museums and Art Galleries
A44: Population Development
A45: Provincial Cultural Matters
A46: Theatres
A47: Zoo's
A48: Sport and recreation | C48: =SUM(C49:C53) -> 14108.6 | D48: =SUM(D49:D53) -> 0 | E48: 9395.62 | F48: 20000 | G48: 55000 | H48: 55000 | I48: 55000 | J48: 9919475 | K48: 55000
A49: Beaches and Jetties
A50: Casinos, Racing, Gambling, Wagering
A51: Community Parks (including Nurseries)
A52: Recreational Facilities | C52: 14108.6 | D52: 0 | E52: 9395.62 | F52: 20000 | G52: 55000 | H52: 55000 | I52: 55000 | J52: 9919475 | K52: 55000
A53: Sports Grounds and Stadiums
A54: Public safety | C54: =SUM(C55:C62) -> 4643000 | D54: 5648900 | E54: 5315890 | F54: 5600000 | G54: 4550000 | H54: 4550000 | I54: 4550000 | J54: 4600000 | K54: 4650000
A55: Civil Defence | C55: 0 | D55: 0 | E55: 0 | F55: 0 | G55: 0 | H55: 0 | I55: 0 | J55: 0 | K55: 0
A56: Cleansing
A57: Control of Public Nuisances
A58: Fencing and Fences
A59: Fire Fighting and Protection
A60: Licensing and Control of Animals
A61: Police Forces, Traffic and Street Parking Control | C61: 4643000 | D61: 5648900 | E61: 5315890 | F61: 5600000 | G61: 4550000 | H61: 4550000 | I61: 4550000 | J61: 4600000 | K61: 4650000
A62: Pounds
A63: Housing | C63: =SUM(C64:C65) -> 0 | D63: =SUM(D64:D65) -> 0 | E63: 0 | F63: 0 | G63: 0 | H63: 0 | I63: 0 | J63: 0 | K63: 0
A64: Housing
A65: Informal Settlements
A66: Health | C66: =SUM(C67:C73) -> 0 | D66: =SUM(D67:D73) -> 0 | E66: 0 | F66: 0 | G66: 0 | H66: 0 | I66: 0 | J66: 0 | K66: 0
A67: Ambulance
A68: Health Services
A69: Laboratory Services
A70: Food Control
A71: Health Surveillance and Prevention of Communicable Diseases including immunizations
A72: Vector Control
A73: Chemical Safety
A74: Economic and environmental services | C74: =C75+C86+C91 -> 325255.27 | D74: 3647000 | E74: 77483946.99 | F74: 3701713 | G74: 3751713 | H74: 3751713 | I74: 67460875 | J74: 60054372 | K74: 66016428
A75: Planning and development | C75: =SUM(C76:C85) -> 325255.27 | D75: =SUM(D76:D85) -> 0 | E75: 55946.99 | F75: 3701713 | G75: 3751713 | H75: 3751713 | I75: 5267637 | J75: 5629372 | K75: 6016428
A76: Billboards
A77: Corporate Wide Strategic Planning (IDPs, LEDs)
A78: Central City Improvement District
A79: Development Facilitation
A80: Economic Development/Planning | C80: 0 | D80: 0 | E80: 0 | F80: 0 | G80: 0 | H80: 0 | I80: 0 | J80: 0 | K80: 0
A81: Regional Planning and Development
A82: Town Planning, Building Regulations and Enforcement, and City Engineer | C82: 325255.27 | D82: 0 | E82: 55946.99 | F82: 50000 | G82: 100000 | H82: 100000 | I82: 100000 | J82: 100000 | K82: 100000
A83: Project Management Unit | C83: 0 | D83: 0 | E83: 0 | F83: 3651713 | G83: 3651713 | H83: 3651713 | I83: 5167637 | J83: 5529372 | K83: 5916428
A84: Provincial Planning
A85: Support to Local Municipalities
A86: Road transport | C86: =SUM(C87:C90) -> 0 | D86: 3647000 | E86: 77428000 | F86: 0 | G86: 0 | H86: 0 | I86: 62193238 | J86: 54425000 | K86: 60000000
A87: Public Transport
A88: Road and Traffic Regulation | D88: 3647000
A89: Roads | C89: 0 | D89: 0 | E89: 77428000 | F89: 0 | G89: 0 | H89: 0 | I89: 62193238 | J89: 54425000 | K89: 60000000
A90: Taxi Ranks
A91: Environmental protection | C91: =SUM(C92:C97) -> 0 | D91: =SUM(D92:D97) -> 0 | E91: 0 | F91: 0 | G91: 0 | H91: 0 | I91: 0 | J91: 0 | K91: 0
A92: Biodiversity and Landscape
A93: Coastal Protection
A94: Indigenous Forests
A95: Nature Conservation
A96: Pollution Control
A97: Soil Conservation
A98: Trading services | C98: =C99+C103+C107+C112 -> 127220000 | D98: =D99+D103+D107+D112 -> 257070000 | E98: 275939789.1 | F98: 298968600 | G98: 292001904 | H98: 292001904 | I98: 467992300 | J98: 523167353 | K98: =K99+K103+K107+K112 -> 570222327
A99: Energy sources | C99: =SUM(C100:C102) -> 0 | D99: =SUM(D100:D102) -> 0 | E99: 0 | F99: 0 | G99: 0 | H99: 0 | I99: 19857810 | J99: 8638980 | K99: 12557370
A100: Electricity
A101: Street Lighting and Signal Systems | C101: 0 | D101: 0 | E101: 0 | F101: 0 | G101: 0 | H101: 0 | I101: 19857810 | J101: 8638980 | K101: 12557370
A102: Nonelectric Energy
A103: Water management | C103: =SUM(C104:C106) -> 97070000 | D103: =SUM(D104:D106) -> 196140000 | E103: 235179438.8 | F103: 218245493 | G103: 218876793 | H103: 218876793 | I103: 324371603 | J103: 393568348 | K103: 414797870
A104: Water Treatment | C104: 97070000 | D104: 196140000 | E104: 235179438.8 | F104: 158245493 | G104: =169006793-10130000 -> 158876793 | H104: =169006793-10130000 -> 158876793 | I104: =171557000+64814603 -> 236371603 | J104: =188711700+108856648 -> 297568348 | K104: =207581870+101216000 -> 308797870
A105: Water Distribution | C105: 0 | D105: 0 | E105: 0 | F105: 60000000 | G105: 60000000 | H105: 60000000 | I105: 88000000 | J105: 96000000 | K105: 106000000
A106: Water Storage
A107: Waste water management | C107: =SUM(C108:C111) -> 2567000 | D107: =SUM(D108:D111) -> 17011000 | E107: 12146134.48 | F107: 23090644 | G107: 21416548 | H107: 21416548 | I107: 43021550 | J107: 31171025 | K107: 48350285
A108: Public Toilets
A109: Sewerage | C109: 2567000 | D109: 17011000 | E109: 12146134.48 | F109: 23090644 | G109: 21416548 | H109: 21416548 | I109: 43021550 | J109: 31171025 | K109: 48350285
A110: Storm Water Management
A111: Waste Water Treatment
A112: Waste management | C112: =SUM(C113:C116) -> 27583000 | D112: =SUM(D113:D116) -> 43919000 | E112: 28614215.79 | F112: 57632463 | G112: 51708563 | H112: 51708563 | I112: 80741337 | J112: 89789000 | K112: 94516802
A113: Recycling
A114: Solid Waste Disposal (Landfill Sites)
A115: Solid Waste Removal | C115: 27583000 | D115: 43919000 | E115: 28614215.79 | F115: 57632463 | G115: 51708563 | H115: 51708563 | I115: 80741337 | J115: 89789000 | K115: 94516802
A116: Street Cleaning
A117: Other | C117: =SUM(C118:C123) -> 0 | D117: =SUM(D118:D123) -> 0 | E117: 0 | F117: 0 | G117: 0 | H117: 0 | I117: 0 | J117: 0 | K117: 0
A118: Abattoirs
A119: Air Transport
A120: Forestry
A121: Licensing and Regulation
A122: Markets
A123: Tourism
A124: ="Total "&A4 -> Total Revenue - Functional | B124: 2 | C124: =C5+C25+C74+C98+C117 -> 745955450.9 | D124: 790669710 | E124: 886631319.7 | F124: 741999375 | G124: 769322599 | H124: 769322599 | I124: 1036090528 | J124: 1106603225 | K124: 1188104038
A126: Expenditure - Functional
A127: =A5 -> Municipal governance and administration | C127: =C128+C131+C145 -> 260186552.8 | D127: 318620452 | E127: 275429561.4 | F127: 336862681 | G127: 351974946 | H127: 351974946 | I127: 395399683 | J127: 362180888 | K127: 386836557
A128: Executive and council | C128: =SUM(C129:C130) -> 87021418.05 | D128: 87541000 | E128: 84780835.47 | F128: 108878770 | G128: 103068557 | H128: 103068557 | I128: 107752328 | J128: 113319340 | K128: 121089698
A129: Mayor and Council | C129: 71449966.53 | D129: 87541000 | E129: =65256657+3512000+410000 -> 69178657 | F129: 85514561 | G129: 80532217 | H129: 80532217 | I129: =84799260-2750000 -> 82049260 | J129: =88759859-2942500 -> 85817359 | K129: =94811349-3148475 -> 91662874
A130: Municipal Manager, Town Secretary and Chief Executive | C130: 15571451.52 | E130: 15602178.47 | F130: 23364209 | G130: 22536340 | H130: 22536340 | I130: =26203068-500000 -> 25703068 | J130: =28036981-535000 -> 27501981 | K130: =29999274-572450 -> 29426824
A131: Finance and administration | C131: =SUM(C132:C144) -> 173165134.7 | D131: 231079452 | E131: 190648726 | F131: 224009163 | G131: 245302641 | H131: 245302641 | I131: 283949994 | J131: 244905800 | K131: 261514633
A132: Administrative and Corporate Support | C132: 0 | D132: 0 | E132: 56949298.91 | F132: 47363365 | G132: 43496295 | H132: 43496295 | I132: =51026909-4100000 -> 46926909 | J132: =54591263-4387000 -> 50204263 | K132: =58406322-4694090 -> 53712232
A133: Asset Management | C133: 0 | D133: 0 | E133: 9365288.14 | F133: 9636248 | G133: 12047929 | H133: 12047929 | I133: 11318519 | J133: 12110815 | K133: 12958573
A134: Finance | C134: 56027736.91 | D134: 56636964 | E134: =41512813-19055000+61000 -> 22518813 | F134: 7749084 | G134: 6301744 | H134: 6301744 | I134: 14019292 | J134: 15000642 | K134: 16050686
A135: Fleet Management | E135: 14304021.2 | F135: 78845117 | G135: 78245115 | H135: 78245115 | I135: 94604920 | J135: 101090570 | K135: 108294816
A136: Human Resources | C136: 72626000 | D136: =173090488+1352000 -> 174442488 | E136: 16512770.4 | F136: 14160088 | G136: 16769318 | H136: 16769318 | I136: =17935850-3000000 -> 14935850 | J136: =18967360-3210000 -> 15757360 | K136: =20071076-3434700 -> 16636376
A137: Information Technology | C137: 34317721.4 | E137: 63937449.42 | F137: 22606112 | G137: 19807291 | H137: 19807291 | I137: 19861620 | J137: 21251934 | K137: 22739570
A138: Legal Services | E138: 1049831.3 | F138: 38022307 | G138: 62472498 | H138: 62472498 | I138: 74955189 | J138: 21652243 | K138: 22738408
A139: Marketing, Customer Relations, Publicity and Media Co-ordination | F139: 1096483 | G139: 1091483 | H139: 1091483 | I139: 1178495 | J139: 1260990 | K139: 1349258
A140: Property Services | C140: 10193676.4
A141: Risk Management | E141: 0
A142: Security Services
A143: Supply Chain Management | C143: 0 | D143: 0 | E143: 6011253.59 | F143: 4530359 | G143: 5070968 | H143: 5070968 | I143: 6149200 | J143: 6576983 | K143: 7034714
A144: Valuation Service
A145: Internal audit | C145: =SUM(C146:C146) -> 0 | D145: 0 | E145: 0 | F145: 3974748 | G145: 3603748 | H145: 3603748 | I145: 3697361 | J145: 3955748 | K145: 4232226
A146: Governance Function | C146: 0 | D146: 0 | F146: 3974748 | G146: 3603748 | H146: 3603748 | I146: 3697361 | J146: 3955748 | K146: 4232226
A147: Community and public safety | C147: =C148+C170+C176+C185+C188 -> 45064347.25 | D147: 44572000 | E147: 119519750.5 | F147: 91656368 | G147: 99805197 | H147: 99805197 | I147: 101814686 | J147: 108024954 | K147: 114967999
A148: Community and social services | C148: =SUM(C149:C169) -> 10830382.04 | D148: =SUM(D149:D169) -> 4969000 | E148: 72235710.65 | F148: 29033331 | G148: 30125026 | H148: 30125026 | I148: 30482848 | J148: 32233567 | K148: 34498293
A149: Aged Care
A150: Agricultural | C150: 0 | D150: 0 | E150: 0 | F150: 0 | G150: 0 | H150: 0 | I150: 0 | J150: 0 | K150: 0
A151: Animal Care and Diseases
A152: Cemeteries, Funeral Parlours and Crematoriums | C152: 785695.12 | E152: 797624.97 | F152: 1570503 | G152: 1588700 | H152: 1588700 | I152: 605000 | J152: 605000 | K152: 605000
A153: Child Care Facilities
A154: Community Halls and Facilities | C154: 8242759.65 | D154: 4969000 | E154: =22638363+17582000+22239000 -> 62459363 | F154: 22593219 | G154: 24510217 | H154: 24510217 | I154: =28561133-2000000 -> 26561133 | J154: =30271133-2140000 -> 28131133 | K154: =32492287-2289800 -> 30202487
A155: Consumer Protection
A156: Cultural Matters
A157: Disaster Management | C157: 0 | D157: 0 | E157: 1230832.29 | F157: 2690067 | G157: 2024977 | H157: 2024977 | I157: =760000-100000 -> 660000 | J157: =813200-107000 -> 706200 | K157: =870124-114490 -> 755634
A158: Education
A159: =A37 -> Indigenous and Customary Law
A160: Industrial Promotion
A161: Language Policy
A162: Libraries and Archives | C162: 1801927.27 | D162: 0 | E162: 7747890.39 | F162: 2179542 | G162: 2001132 | H162: 2001132 | I162: 2656715 | J162: 2791234 | K162: 2935172
A163: Literacy Programmes
A164: Media Services | C164: 0 | D164: 0 | E164: 0 | F164: 0 | G164: 0 | H164: 0 | I164: 0 | J164: 0 | K164: 0
A165: Museums and Art Galleries | C165: 0 | D165: 0 | E165: 0 | F165: 0 | G165: 0 | H165: 0 | I165: 0 | J165: 0 | K165: 0
A166: Population Development
A167: Provincial Cultural Matters
A168: Theatres
A169: Zoo's
A170: Sport and recreation | C170: =SUM(C171:C175) -> 15865965.21 | D170: 17880000 | E170: 34572039.83 | F170: 24895916 | G170: 33141050 | H170: 33141050 | I170: 29288851 | J170: 31124451 | K170: 33095142
A171: Beaches and Jetties
A172: Casinos, Racing, Gambling, Wagering
A173: Community Parks (including Nurseries)
A174: Recreational Facilities | C174: 15865965.21 | D174: 17880000 | E174: 34572039.83 | F174: 24895916 | G174: 33141050 | H174: 33141050 | I174: =29688851-400000 -> 29288851 | J174: =31552451-428000 -> 31124451 | K174: =33553102-457960 -> 33095142
A175: Sports Grounds and Stadiums
A176: Public safety | C176: =SUM(C177:C184) -> 18368000 | D176: 21723000 | E176: 12712000 | F176: 37727121 | G176: 36539121 | H176: 36539121 | I176: 42042987 | J176: 44666936 | K176: 47374564
A177: Civil Defence | C177: 0 | D177: 0 | E177: 0 | F177: 25484702 | G177: 24878702 | H177: 24878702 | I177: =29250069-100000 -> 29150069 | J177: =31297574-107000 -> 31190574 | K177: =33488405-114490 -> 33373915
A178: Cleansing
A179: =A57 -> Control of Public Nuisances
A180: Fencing and Fences
A181: Fire Fighting and Protection | C181: 0 | D181: 0 | E181: 0 | F181: 0 | G181: 0 | H181: 0 | I181: 0 | J181: 0 | K181: 0
A182: Licensing and Control of Animals
A183: Police Forces, Traffic and Street Parking Control | C183: 18368000 | D183: 21723000 | E183: 12712000 | F183: 12242419 | G183: 11660419 | H183: 11660419 | I183: 12892918 | J183: 13476362 | K183: 14000649
A184: Pounds
A185: =A63 -> Housing | C185: =SUM(C186:C187) -> 0 | D185: 0 | E185: 0 | F185: 0 | G185: 0 | H185: 0 | I185: 0 | J185: 0 | K185: 0
A186: Housing
A187: Informal Settlements
A188: Health | C188: =SUM(C189:C195) -> 0 | D188: =SUM(D189:D195) -> 0 | E188: 0 | F188: 0 | G188: 0 | H188: 0 | I188: 0 | J188: 0 | K188: 0
A189: Ambulance
A190: Health Services
A191: Laboratory Services
A192: Food Control
A193: Health Surveillance and Prevention of Communicable Diseases including immunizations
A194: Vector Control
A195: Chemical Safety
A196: Economic and environmental services | C196: =C197+C208+C213 -> 52618679.43 | D196: 63974000 | E196: 131098000 | F196: 116741111 | G196: 102538583 | H196: 102538583 | I196: 115203608 | J196: 126657633 | K196: 139144036
A197: Planning and development | C197: =SUM(C198:C207) -> 13414679.43 | D197: =SUM(D198:D207) -> 15142000 | E197: 15587000 | F197: 30340128 | G197: 24442811 | H197: 24442811 | I197: 31369359 | J197: 33546004 | K197: 35875019
A198: Billboards
A199: Corporate Wide Strategic Planning (IDPs, LEDs) | C199: 0 | D199: 0 | E199: 0 | F199: 0 | G199: 0 | H199: 0 | I199: 0 | J199: 0 | K199: 0
A200: Central City Improvement District
A201: Development Facilitation | C201: 0 | D201: 0 | E201: 0 | F201: 0 | G201: 0 | H201: 0 | I201: 0 | J201: 0 | K201: 0
... 53 more rows

Sheet A3-FinPerf V
A1: =muni&" - "&Approve2 -> NW375 Moses Kotane - Table A3 Budgeted Financial Performance (revenue and expenditure by municipal vote)
A2: =Vdesc -> Vote Description | B2: =head27 -> Ref | C2: =head1b -> 2015/16 | D2: =head1A -> 2016/17 | E2: =Head1 -> 2017/18 | F2: =Head2 -> Current Year 2018/19 | I2: =Head3 -> 2019/20 Medium Term Revenue & Expenditure Framework | L2: =Head4 -> LTFS
A3: R thousand | C3: =Head5 -> Audited Outcome | D3: =Head5 -> Audited Outcome | E3: =Head5 -> Audited Outcome | F3: =Head6 -> Original Budget | G3: =Head7 -> Adjusted Budget | H3: =Head8 -> Full Year Forecast | I3: =Head9 -> Budget Year 2019/20 | J3: =Head10 -> Budget Year +1 2020/21 | K3: =Head11 -> Budget Year +2 2021/22 | L3: =Head12 -> Forecast 2022/23 | M3: =Head13 -> Forecast 2023/24 | N3: =Head14 -> Forecast 2024/25 | O3: =Head15 -> Forecast 2025/26 | P3: =Head16 -> Forecast 2026/27 | Q3: =Head17 -> Forecast 2027/28 | R3: =Head18 -> Forecast 2028/29 | S3: =Head19 -> Forecast 2029/30 | T3: =Head20 -> Forecast 2030/31 | U3: =Head21 -> Forecast 2031/32 | V3: =Head22 -> Forecast 2032/33 | W3: =Head23 -> Forecast 2033/34
A4: Revenue by Vote | B4: 1
A5: =A3A!A5 -> Vote 01 - Municipal Council | C5: =A3A!C5 -> 1446000 | D5: =A3A!D5 -> 1776810.1 | E5: =A3A!E5 -> 1000000 | F5: =A3A!F5 -> 1000000 | G5: =A3A!G5 -> 1000000 | H5: =A3A!H5 -> 1000000 | I5: =A3A!I5 -> 1695000 | J5: =A3A!J5 -> 0 | K5: =A3A!K5 -> 0
A6: =A3A!A11 -> Vote 02 - Office Of The Accounting Officer | C6: =A3A!C11 -> 0 | D6: =A3A!D11 -> 0 | E6: =A3A!E11 -> 0 | F6: =A3A!F11 -> 0 | G6: =A3A!G11 -> 0 | H6: =A3A!H11 -> 0 | I6: =A3A!I11 -> 0 | J6: =A3A!J11 -> 0 | K6: =A3A!K11 -> 0
A7: =A3A!A18 -> Vote 03 - Budget And Treasury Office | C7: =A3A!C18 -> 612121000 | D7: =A3A!D18 -> 521801000 | E7: =A3A!E18 -> 508474000 | F7: =A3A!F18 -> 432158062 | G7: =A3A!G18 -> 466449982 | H7: =A3A!H18 -> 466449982 | I7: =A3A!I18 -> 479197100 | J7: =A3A!J18 -> 508312025 | K7: =A3A!K18 -> 538610283
A8: =A3A!A26 -> Vote 04 - Corporate Services | C8: =A3A!C26 -> 157000 | D8: =A3A!D26 -> 279000 | E8: =A3A!E26 -> -0.45 | F8: =A3A!F26 -> 500000 | G8: =A3A!G26 -> 500000 | H8: =A3A!H26 -> 500000 | I8: =A3A!I26 -> 500000 | J8: =A3A!J26 -> 500000 | K8: =A3A!K26 -> 500000
A9: =A3A!A35 -> Vote 05 - Community Services | C9: =A3A!C35 -> 32268759.6 | D9: =A3A!D35 -> 50015000 | E9: =A3A!E35 -> 52347584.04 | F9: =A3A!F35 -> 63303463 | G9: =A3A!G35 -> 57327563 | H9: =A3A!H35 -> 57327563 | I9: =A3A!I35 -> 99986590 | J9: =A3A!J35 -> 104358475 | K9: =A3A!K35 -> 107271802
A10: =A3A!A50 -> Vote 06 - Planning & Development | C10: =A3A!C50 -> 325255.27 | D10: =A3A!D50 -> 0 | E10: =A3A!E50 -> 56000 | F10: =A3A!F50 -> 50000 | G10: =A3A!G50 -> 100000 | H10: =A3A!H50 -> 100000 | I10: =A3A!I50 -> 100000 | J10: =A3A!J50 -> 100000 | K10: =A3A!K50 -> 100000
A11: =A3A!A61 -> Vote 07 - Infrastructure & Technical Services | C11: =A3A!C61 -> 99637000 | D11: =A3A!D61 -> 216798000 | E11: =A3A!E61 -> 324753134.5 | F11: =A3A!F61 -> 244987850 | G11: =A3A!G61 -> 243945054 | H11: =A3A!H61 -> 243945054 | I11: =A3A!I61 -> 454611838 | J11: =A3A!J61 -> 493332725 | K11: =A3A!K61 -> 541621953
A12: ='Org structure'!A9 -> Vote 08 - | C12: =A3A!C81 -> 0 | D12: =A3A!D81 -> 0 | E12: =A3A!E81 -> 0 | F12: =A3A!F81 -> 0 | G12: =A3A!G81 -> 0 | H12: =A3A!H81 -> 0 | I12: =A3A!I81 -> 0 | J12: =A3A!J81 -> 0 | K12: =A3A!K81 -> 0
A13: ='Org structure'!A10 -> Vote 09 - | C13: =A3A!C82 -> 0 | D13: =A3A!D82 -> 0 | E13: =A3A!E82 -> 0 | F13: =A3A!F82 -> 0 | G13: =A3A!G82 -> 0 | H13: =A3A!H82 -> 0 | I13: =A3A!I82 -> 0 | J13: =A3A!J82 -> 0 | K13: =A3A!K82 -> 0
A14: ='Org structure'!A11 -> Vote 10 - | C14: =A3A!C83 -> 0 | D14: =A3A!D83 -> 0 | E14: =A3A!E83 -> 0 | F14: =A3A!F83 -> 0 | G14: =A3A!G83 -> 0 | H14: =A3A!H83 -> 0 | I14: =A3A!I83 -> 0 | J14: =A3A!J83 -> 0 | K14: =A3A!K83 -> 0
A15: ='Org structure'!A12 -> Vote 11 - | C15: =A3A!C84 -> 0 | D15: =A3A!D84 -> 0 | E15: =A3A!E84 -> 0 | F15: =A3A!F84 -> 0 | G15: =A3A!G84 -> 0 | H15: =A3A!H84 -> 0 | I15: =A3A!I84 -> 0 | J15: =A3A!J84 -> 0 | K15: =A3A!K84 -> 0 | L15: =A5A!#REF! -> 
A16: ='Org structure'!A13 -> Vote 12 - | C16: =A3A!C85 -> 0 | D16: =A3A!D85 -> 0 | E16: =A3A!E85 -> 0 | F16: =A3A!F85 -> 0 | G16: =A3A!G85 -> 0 | H16: =A3A!H85 -> 0 | I16: =A3A!I85 -> 0 | J16: =A3A!J85 -> 0 | K16: =A3A!K85 -> 0 | L16: =A5A!#REF! -> 
A17: ='Org structure'!A14 -> Vote 13 - | C17: =A3A!C86 -> 0 | D17: =A3A!D86 -> 0 | E17: =A3A!E86 -> 0 | F17: =A3A!F86 -> 0 | G17: =A3A!G86 -> 0 | H17: =A3A!H86 -> 0 | I17: =A3A!I86 -> 0 | J17: =A3A!J86 -> 0 | K17: =A3A!K86 -> 0 | L17: =A5A!#REF! -> 
A18: ='Org structure'!A15 -> Vote 14 - | C18: =A3A!C87 -> 0 | D18: =A3A!D87 -> 0 | E18: =A3A!E87 -> 0 | F18: =A3A!F87 -> 0 | G18: =A3A!G87 -> 0 | H18: =A3A!H87 -> 0 | I18: =A3A!I87 -> 0 | J18: =A3A!J87 -> 0 | K18: =A3A!K87 -> 0 | L18: =A5A!#REF! -> 
A19: ='Org structure'!A16 -> Vote 15 - Other | C19: =A3A!C88 -> 0 | D19: =A3A!D88 -> 0 | E19: =A3A!E88 -> 0 | F19: =A3A!F88 -> 0 | G19: =A3A!G88 -> 0 | H19: =A3A!H88 -> 0 | I19: =A3A!I88 -> 0 | J19: =A3A!J88 -> 0 | K19: =A3A!K88 -> 0 | L19: =A5A!#REF! -> 
A20: Total Revenue by Vote | B20: 2 | C20: =SUM(C5:C19) -> 745955014.9 | D20: =SUM(D5:D19) -> 790669810.1 | E20: 886630718.1 | F20: 741999375 | G20: 769322599 | H20: 769322599 | I20: 1036090528 | J20: 1106603225 | K20: 1188104038
A22: Expenditure by Vote to be appropriated | B22: 1
A23: =A3A!A92 -> Vote 01 - Municipal Council | C23: =A3A!C92 -> 71449966.53 | D23: =A3A!D92 -> 76245978.68 | E23: =A3A!E92 -> 69179135.48 | F23: =A3A!F92 -> 85887561 | G23: =A3A!G92 -> 82085888 | H23: =A3A!H92 -> 82085888 | I23: =A3A!I92 -> 86146330 | J23: =A3A!J92 -> 90201222 | K23: =A3A!K92 -> 96353612
A24: =A3A!A98 -> Vote 02 - Office Of The Accounting Officer | C24: =A3A!C98 -> 15571451.52 | D24: =A3A!D98 -> 11294576.83 | E24: =A3A!E98 -> 15601839.83 | F24: =A3A!F98 -> 26965957 | G24: =A3A!G98 -> 24586417 | H24: =A3A!H98 -> 24586417 | I24: =A3A!I98 -> 25303359 | J24: =A3A!J98 -> 27073866 | K24: =A3A!K98 -> 28968312
A25: =A3A!A105 -> Vote 03 - Budget And Treasury Office | C25: =A3A!C105 -> 56027736.91 | D25: =A3A!D105 -> 56545962.39 | E25: =A3A!E105 -> 55927354.45 | F25: =A3A!F105 -> 100760808 | G25: =A3A!G105 -> 101665756 | H25: =A3A!H105 -> 101665756 | I25: =A3A!I105 -> 126091931 | J25: =A3A!J105 -> 134779010 | K25: =A3A!K105 -> 144338789
A26: =A3A!A113 -> Vote 04 - Corporate Services | C26: =A3A!C113 -> 117136504 | D26: =A3A!D113 -> 174533334.3 | E26: =A3A!E113 -> 134721590.1 | F26: =A3A!F113 -> 106673284 | G26: =A3A!G113 -> 124292204 | H26: =A3A!H113 -> 124292204 | I26: =A3A!I113 -> 137336122 | J26: =A3A!J113 -> 88401342 | K26: =A3A!K113 -> 94162644
A27: =A3A!A122 -> Vote 05 - Community Services | C27: =A3A!C122 -> 101636157 | D27: =A3A!D122 -> 133067658.8 | E27: =A3A!E122 -> 176985267 | F27: =A3A!F122 -> 162902478 | G27: =A3A!G122 -> 173953101 | H27: =A3A!H122 -> 173953101 | I27: =A3A!I122 -> 182219774 | J27: =A3A!J122 -> 195919777 | K27: =A3A!K122 -> 210530266
A28: =A3A!A137 -> Vote 06 - Planning & Development | C28: =A3A!C137 -> 13414980.7 | D28: =A3A!D137 -> 15142497.71 | E28: =A3A!E137 -> 15586511.59 | F28: =A3A!F137 -> 26688415 | G28: =A3A!G137 -> 20791098 | H28: =A3A!H137 -> 20791098 | I28: =A3A!I137 -> 26201722 | J28: =A3A!J137 -> 28016634 | K28: =A3A!K137 -> 29958591
A29: =A3A!A148 -> Vote 07 - Infrastructure & Technical Services | C29: =A3A!C148 -> 247418733 | D29: =A3A!D148 -> 316602355.5 | E29: =A3A!E148 -> 445756654.8 | F29: =A3A!F148 -> 348636773 | G29: =A3A!G148 -> 363227382 | H29: =A3A!H148 -> 363227382 | I29: =A3A!I148 -> 383941083 | J29: =A3A!J148 -> 430652466 | K29: =A3A!K148 -> 477909777
A30: ='Org structure'!A9 -> Vote 08 - | C30: =A3A!C168 -> 0 | D30: =A3A!D168 -> 0 | E30: =A3A!E168 -> 0 | F30: =A3A!F168 -> 0 | G30: =A3A!G168 -> 0 | H30: =A3A!H168 -> 0 | I30: =A3A!I168 -> 0 | J30: =A3A!J168 -> 0 | K30: =A3A!K168 -> 0
A31: ='Org structure'!A10 -> Vote 09 - | C31: =A3A!C169 -> 0 | D31: =A3A!D169 -> 0 | E31: =A3A!E169 -> 0 | F31: =A3A!F169 -> 0 | G31: =A3A!G169 -> 0 | H31: =A3A!H169 -> 0 | I31: =A3A!I169 -> 0 | J31: =A3A!J169 -> 0 | K31: =A3A!K169 -> 0
A32: ='Org structure'!A11 -> Vote 10 - | C32: =A3A!C170 -> 0 | D32: =A3A!D170 -> 0 | E32: =A3A!E170 -> 0 | F32: =A3A!F170 -> 0 | G32: =A3A!G170 -> 0 | H32: =A3A!H170 -> 0 | I32: =A3A!I170 -> 0 | J32: =A3A!J170 -> 0 | K32: =A3A!K170 -> 0
A33: ='Org structure'!A12 -> Vote 11 - | C33: =A3A!C171 -> 0 | D33: =A3A!D171 -> 0 | E33: =A3A!E171 -> 0 | F33: =A3A!F171 -> 0 | G33: =A3A!G171 -> 0 | H33: =A3A!H171 -> 0 | I33: =A3A!I171 -> 0 | J33: =A3A!J171 -> 0 | K33: =A3A!K171 -> 0 | L33: =A3A!#REF! -> 
A34: ='Org structure'!A13 -> Vote 12 - | C34: =A3A!C172 -> 0 | D34: =A3A!D172 -> 0 | E34: =A3A!E172 -> 0 | F34: =A3A!F172 -> 0 | G34: =A3A!G172 -> 0 | H34: =A3A!H172 -> 0 | I34: =A3A!I172 -> 0 | J34: =A3A!J172 -> 0 | K34: =A3A!K172 -> 0 | L34: =A3A!#REF! -> 
A35: ='Org structure'!A14 -> Vote 13 - | C35: =A3A!C173 -> 0 | D35: =A3A!D173 -> 0 | E35: =A3A!E173 -> 0 | F35: =A3A!F173 -> 0 | G35: =A3A!G173 -> 0 | H35: =A3A!H173 -> 0 | I35: =A3A!I173 -> 0 | J35: =A3A!J173 -> 0 | K35: =A3A!K173 -> 0 | L35: =A3A!#REF! -> 
A36: ='Org structure'!A15 -> Vote 14 - | C36: =A3A!C174 -> 0 | D36: =A3A!D174 -> 0 | E36: =A3A!E174 -> 0 | F36: =A3A!F174 -> 0 | G36: =A3A!G174 -> 0 | H36: =A3A!H174 -> 0 | I36: =A3A!I174 -> 0 | J36: =A3A!J174 -> 0 | K36: =A3A!K174 -> 0 | L36: =A3A!#REF! -> 
A37: ='Org structure'!A16 -> Vote 15 - Other | C37: =A3A!C175 -> 0 | D37: =A3A!D175 -> 0 | E37: =A3A!E175 -> 0 | F37: =A3A!F175 -> 0 | G37: =A3A!G175 -> 0 | H37: =A3A!H175 -> 0 | I37: =A3A!I175 -> 0 | J37: =A3A!J175 -> 0 | K37: =A3A!K175 -> 0 | L37: =A3A!#REF! -> 
A38: Total Expenditure by Vote | B38: 2 | C38: =SUM(C23:C37) -> 622655529.7 | D38: =SUM(D23:D37) -> 783432364.2 | E38: 913758353.2 | F38: 858515276 | G38: 890601846 | H38: 890601846 | I38: 967240321 | J38: 995044317 | K38: 1082221991 | L38: =SUM(L23:L29) -> 0 | M38: 0 | N38: 0 | O38: 0 | P38: 0 | Q38: 0 | R38: 0 | S38: 0 | T38: 0 | U38: 0 | V38: 0 | W38: 0
A39: =result -> Surplus/(Deficit) for the year | B39: 2 | C39: =C20-C38 -> 123299485.2 | D39: 7237445.91 | E39: -27127635.17 | F39: -116515901 | G39: -121279247 | H39: -121279247 | I39: 68850207 | J39: 111558908 | K39: 105882047 | L39: 0 | M39: 0 | N39: 0 | O39: 0 | P39: 0 | Q39: 0 | R39: 0 | S39: 0 | T39: 0 | U39: 0 | V39: 0 | W39: 0
A40: =head27a -> References
A41: 1. Insert 'Vote'; e.g. department, if different to functional classification structure
A42: 2. Must reconcile to Budgeted Financial Performance (revenue and expenditure)
A43: 3. Assign share in 'associate' to relevant Vote
A45: ="check "&A39 -> check Surplus/(Deficit) for the year | C45: =C39-A3A!C178 -> 0 | D45: =D39-A3A!D178 -> 0 | E45: =E39-A3A!E178 -> 0 | F45: =F39-A3A!F178 -> 0 | G45: =G39-A3A!G178 -> 0 | H45: =H39-A3A!H178 -> 0 | I45: =I39-A3A!I178 -> 0 | J45: =J39-A3A!J178 -> 0 | K45: =K39-A3A!K178 -> 0

Sheet A3A
A1: =muni&" - "&Approve2&"A" -> NW375 Moses Kotane - Table A3 Budgeted Financial Performance (revenue and expenditure by municipal vote)A
A2: =Vdesc -> Vote Description | B2: =head27 -> Ref | C2: =head1b -> 2015/16 | D2: =head1A -> 2016/17 | E2: =Head1 -> 2017/18 | F2: =Head2 -> Current Year 2018/19 | I2: =Head3 -> 2019/20 Medium Term Revenue & Expenditure Framework | L2: =Head4 -> LTFS
A3: R thousand | C3: =Head5 -> Audited Outcome | D3: =Head5 -> Audited Outcome | E3: =Head5 -> Audited Outcome | F3: =Head6 -> Original Budget | G3: =Head7 -> Adjusted Budget | H3: =Head8 -> Full Year Forecast | I3: =Head9 -> Budget Year 2019/20 | J3: =Head10 -> Budget Year +1 2020/21 | K3: =Head11 -> Budget Year +2 2021/22 | L3: =Head12 -> Forecast 2022/23 | M3: =Head13 -> Forecast 2023/24 | N3: =Head14 -> Forecast 2024/25 | O3: =Head15 -> Forecast 2025/26 | P3: =Head16 -> Forecast 2026/27 | Q3: =Head17 -> Forecast 2027/28 | R3: =Head18 -> Forecast 2028/29 | S3: =Head19 -> Forecast 2029/30 | T3: =Head20 -> Forecast 2030/31 | U3: =Head21 -> Forecast 2031/32 | V3: =Head22 -> Forecast 2032/33 | W3: =Head23 -> Forecast 2033/34
A4: Revenue by Vote | B4: 1
A5: ='Org structure'!A2 -> Vote 01 - Municipal Council | C5: =SUM(C6:C10) -> 1446000 | D5: 1776810.1 | E5: 1000000 | F5: 1000000 | G5: 1000000 | H5: 1000000 | I5: 1695000 | J5: 0 | K5: 0
A6: ='Org structure'!E3 -> 01.1 - Office Of The Mayor | C6: 1446000 | D6: 1776810.1 | E6: 1000000 | F6: 1000000 | G6: 1000000 | H6: 1000000 | I6: 1695000 | J6: 0 | K6: 0
A7: ='Org structure'!E4 -> 01.2 - Office Of The Speaker | C7: 0 | D7: 0 | E7: 0 | F7: 0 | G7: 0 | H7: 0 | I7: 0 | J7: 0 | K7: 0
A8: ='Org structure'!E5 -> 01.3 - Office Of The Chief Whip | C8: 0 | D8: 0 | E8: 0 | F8: 0 | G8: 0 | H8: 0 | I8: 0 | J8: 0 | K8: 0
A9: ='Org structure'!E6 -> 01.4 - Mpac | C9: 0 | D9: 0 | E9: 0 | F9: 0 | G9: 0 | H9: 0 | I9: 0 | J9: 0 | K9: 0
A10: ='Org structure'!E7 -> 01.5 - Council General Administration | C10: 0 | D10: 0 | E10: 0 | F10: 0 | G10: 0 | H10: 0 | I10: 0 | J10: 0 | K10: 0
A11: ='Org structure'!A3 -> Vote 02 - Office Of The Accounting Officer | C11: =SUM(C12:C17) -> 0 | D11: 0 | E11: 0 | F11: 0 | G11: 0 | H11: 0 | I11: 0 | J11: 0 | K11: 0
A12: ='Org structure'!E9 -> 02.1 - Office Of The Ao Admin | C12: 0 | D12: 0 | E12: 0 | F12: 0 | G12: 0 | H12: 0 | I12: 0 | J12: 0 | K12: 0
A13: ='Org structure'!E10 -> 02.2 - Strategic Planning Monitoring & Evaluat | C13: 0 | D13: 0 | E13: 0 | F13: 0 | G13: 0 | H13: 0 | I13: 0 | J13: 0 | K13: 0
A14: ='Org structure'!E11 -> 02.3 - Perfomance Management System | C14: 0 | D14: 0 | E14: 0 | F14: 0 | G14: 0 | H14: 0 | I14: 0 | J14: 0 | K14: 0
A15: ='Org structure'!E12 -> 02.4 - Internal Audit | C15: 0 | D15: 0 | E15: 0 | F15: 0 | G15: 0 | H15: 0 | I15: 0 | J15: 0 | K15: 0
A16: ='Org structure'!E13 -> 02.5 - Municipal Planning Idp | C16: 0 | D16: 0 | E16: 0 | F16: 0 | G16: 0 | H16: 0 | I16: 0 | J16: 0 | K16: 0
A17: ='Org structure'!E14 -> 02.6 - Risk | C17: 0 | D17: 0 | E17: 0 | F17: 0 | G17: 0 | H17: 0 | I17: 0 | J17: 0 | K17: 0
A18: ='Org structure'!A4 -> Vote 03 - Budget And Treasury Office | C18: =SUM(C19:C25) -> 612121000 | D18: 521801000 | E18: 508474000 | F18: 432158062 | G18: 466449982 | H18: 466449982 | I18: 479197100 | J18: 508312025 | K18: 538610283
A19: ='Org structure'!E16 -> 03.1 - Chief Financial Officer Admin | C19: 0 | D19: 0 | E19: 0 | F19: 124692062 | G19: 133314476 | H19: 133314476 | I19: 142163600 | J19: 150083525 | K19: 158755283
A20: ='Org structure'!E17 -> 03.2 - Budget Expenditure & Reporting | C20: 0 | D20: 0 | E20: 0 | F20: 0 | G20: 0 | H20: 0 | I20: 0 | J20: 0 | K20: 0
A21: ='Org structure'!E18 -> 03.3 - Budget Expenditure & Reporting | C21: 0 | D21: 0 | E21: 0 | F21: 0 | G21: 0 | H21: 0 | I21: 0 | J21: 0 | K21: 0
A22: ='Org structure'!E19 -> 03.4 - Revenue Management | C22: 612121000 | D22: 521801000 | E22: 508474000 | F22: 307466000 | G22: 333135506 | H22: 333135506 | I22: 337033500 | J22: 358228500 | K22: 379855000
A23: ='Org structure'!E20 -> 03.5 - Supply Chain Management | C23: 0 | D23: 0 | E23: 0 | F23: 0 | G23: 0 | H23: 0 | I23: 0 | J23: 0 | K23: 0
A24: ='Org structure'!E21 -> 03.6 - Assets Management | C24: 0 | D24: 0 | E24: 0 | F24: 0 | G24: 0 | H24: 0 | I24: 0 | J24: 0 | K24: 0
A25: ='Org structure'!E22 -> 03.7 - Expenditure | C25: 0 | D25: 0 | E25: 0 | F25: 0 | G25: 0 | H25: 0 | I25: 0 | J25: 0 | K25: 0
A26: ='Org structure'!A5 -> Vote 04 - Corporate Services | C26: =SUM(C27:C34) -> 157000 | D26: 279000 | E26: -0.45 | F26: 500000 | G26: 500000 | H26: 500000 | I26: 500000 | J26: 500000 | K26: 500000
A27: ='Org structure'!E24 -> 04.1 - Legal Services | C27: 0 | D27: 0 | E27: 0 | F27: 0 | G27: 0 | H27: 0 | I27: 0 | J27: 0 | K27: 0
A28: ='Org structure'!E25 -> 04.2 - Corporate Service Administration | C28: 0 | D28: 0 | E28: 0 | F28: 0 | G28: 0 | H28: 0
A29: ='Org structure'!E26 -> 04.3 - Human Resources | C29: 157000 | D29: 279000 | E29: -0.45 | F29: 500000 | G29: 500000 | H29: 500000 | I29: 500000 | J29: 500000 | K29: 500000
A30: ='Org structure'!E27 -> 04.4 - Media & Communication | C30: 0 | D30: 0 | E30: 0 | F30: 0 | G30: 0 | H30: 0 | I30: 0 | J30: 0 | K30: 0
A31: ='Org structure'!E28 -> 04.5 - Organisational Development | C31: 0 | D31: 0 | E31: 0 | F31: 0 | G31: 0 | H31: 0 | I31: 0 | J31: 0 | K31: 0
A32: ='Org structure'!E29 -> 04.6 - Labour Relations | C32: 0 | D32: 0 | E32: 0 | F32: 0 | G32: 0 | H32: 0 | I32: 0 | J32: 0 | K32: 0
A33: ='Org structure'!E30 -> 04.7 - Legal Services | C33: 0 | D33: 0 | E33: 0 | F33: 0 | G33: 0 | H33: 0 | I33: 0 | J33: 0 | K33: 0
A34: ='Org structure'!E31 -> 04.8 - Information Technology Services | C34: 0 | D34: 0 | E34: 0 | F34: 0 | G34: 0 | H34: 0
A35: ='Org structure'!A6 -> Vote 05 - Community Services | C35: =SUM(C36:C49) -> 32268759.6 | D35: 50015000 | E35: 52347584.04 | F35: 63303463 | G35: 57327563 | H35: 57327563 | I35: 99986590 | J35: 104358475 | K35: 107271802
A36: ='Org structure'!E33 -> 05.1 - Municipal Buildings | C36: 0 | D36: 0 | E36: 0 | F36: 0 | G36: 0 | H36: 0 | I36: 0 | J36: 0 | K36: 0
A37: ='Org structure'!E34 -> 05.2 - Fleet Management | C37: 0 | D37: 0 | E37: 0 | F37: 0 | G37: 0 | H37: 0 | I37: 0 | J37: 0 | K37: 0
A38: ='Org structure'!E35 -> 05.3 - Community Services Administration | C38: 0 | D38: 0 | E38: 0 | F38: 0 | G38: 0 | H38: 0 | I38: 0 | J38: 0 | K38: 0
A39: ='Org structure'!E36 -> 05.4 - Cemeteries | C39: 0 | D39: 0 | E39: 15227.77 | F39: 20000 | G39: 14000 | H39: 14000 | I39: 10000 | J39: 10000 | K39: 10000
A40: ='Org structure'!E37 -> 05.5 - Disaster Management | D40: 0 | E40: 0 | F40: 0 | G40: 0 | H40: 0 | I40: 0 | J40: 0 | K40: 0
A41: ='Org structure'!E38 -> 05.6 - Fires Service | C41: 0 | D41: 0 | E41: 0 | F41: 0 | G41: 0 | H41: 0 | I41: 0 | J41: 0 | K41: 0
A42: ='Org structure'!E39 -> 05.7 - Libraries | C42: 29000 | D42: 447000 | E42: 1101854.74 | F42: 31000 | G42: 1000000 | H42: 1000000 | I42: 40000 | J42: 40000 | K42: 40000
A43: ='Org structure'!E40 -> 05.8 - Municipal Buildings | C43: 0 | D43: 0 | E43: 17291215.91 | F43: 0 | G43: 0 | H43: 0 | I43: 14590253 | J43: 0 | K43: 8000000
A44: ='Org structure'!E41 -> 05.9 - Sports Recreation & Social Amenitie | C44: 14108.6 | E44: 9395.62 | F44: 20000 | G44: 55000 | H44: 55000 | I44: =55000 -> 55000 | J44: =55000+9864475 -> 9919475 | K44: =55000 -> 55000
A45: ='Org structure'!E42 -> 05.10 - Waste Management Solid Waste | C45: 27583000 | D45: 43919000 | E45: 28614000 | F45: 57632463 | G45: 51708563 | H45: 51708563 | I45: =64944428+15796909 -> 80741337 | J45: =69789000+20000000 -> 89789000 | K45: =75001600+19515202 -> 94516802
A46: ='Org structure'!E43 -> 05.11 - Safety And Security | C46: 0 | E46: 0 | F46: 0 | G46: 0 | H46: 0 | I46: 0 | J46: 0 | K46: 0
A47: ='Org structure'!E44 -> 05.12 - Traffic Service | C47: 4642651 | D47: 5649000 | E47: 5315890 | F47: 5600000 | G47: 4550000 | H47: 4550000 | I47: 4550000 | J47: 4600000 | K47: 4650000
A48: ='Org structure'!E45 -> 05.13 - Traffic Service | C48: 0 | D48: 0 | E48: 0 | F48: 0 | G48: 0 | H48: 0 | I48: 0 | J48: 0 | K48: 0
A49: ='Org structure'!E46 -> 05.14 - Fleet Management | C49: 0 | D49: 0 | E49: 0 | F49: 0 | G49: 0 | H49: 0 | I49: 0 | J49: 0 | K49: 0
A50: ='Org structure'!A7 -> Vote 06 - Planning & Development | C50: =SUM(C51:C60) -> 325255.27 | D50: 0 | E50: 56000 | F50: 50000 | G50: 100000 | H50: 100000 | I50: 100000 | J50: 100000 | K50: 100000
A51: ='Org structure'!E48 -> 06.1 - Planning And Development Admin | C51: 0 | D51: 0 | E51: 0 | F51: 0 | G51: 0 | H51: 0 | I51: 0 | J51: 0 | K51: 0
A52: ='Org structure'!E49 -> 06.2 - Municipal Planning Idp | C52: 0 | D52: 0 | E52: 0 | F52: 0 | G52: 0 | H52: 0 | I52: 0 | J52: 0 | K52: 0
A53: ='Org structure'!E50 -> 06.3 - Pms | C53: 0 | D53: 0 | E53: 0 | F53: 0 | G53: 0 | H53: 0 | I53: 0 | J53: 0 | K53: 0
A54: ='Org structure'!E51 -> 06.4 - Town Planning | C54: 325255.27 | D54: 0 | E54: 56000 | F54: 50000 | G54: 100000 | H54: 100000 | I54: 100000 | J54: 100000 | K54: 100000
A55: ='Org structure'!E52 -> 06.5 - Land Use And Housing Admin | C55: 0 | D55: 0 | E55: 0 | F55: 0 | G55: 0 | H55: 0 | I55: 0 | J55: 0 | K55: 0
A56: ='Org structure'!E53 -> 06.6 - Local Economic Development | C56: 0 | D56: 0 | E56: 0 | F56: 0 | G56: 0 | H56: 0 | I56: 0 | J56: 0 | K56: 0
A57: ='Org structure'!E54 -> 06.7 - Led | C57: 0 | D57: 0 | E57: 0 | F57: 0 | G57: 0 | H57: 0 | I57: 0 | J57: 0 | K57: 0
A58: ='Org structure'!E55 -> 06.8 - Agriculture & Rural Development | C58: 0 | D58: 0 | E58: 0 | F58: 0 | G58: 0 | H58: 0 | I58: 0 | J58: 0 | K58: 0
A59: ='Org structure'!E56 -> 06.9 - Tourism & Business Development | C59: 0 | D59: 0 | E59: 0 | F59: 0 | G59: 0 | H59: 0 | I59: 0 | J59: 0 | K59: 0
A60: ='Org structure'!E57 -> 06.10 - Arts & Culture | C60: 0 | D60: 0 | E60: 0 | F60: 0 | G60: 0 | H60: 0 | I60: 0 | J60: 0 | K60: 0
A61: ='Org structure'!A8 -> Vote 07 - Infrastructure & Technical Services | C61: =SUM(C62:C80) -> 99637000 | D61: 216798000 | E61: 324753134.5 | F61: 244987850 | G61: 243945054 | H61: 243945054 | I61: 454611838 | J61: 493332725 | K61: 541621953
A62: ='Org structure'!E59 -> 07.1 - Infrastructure Admin & Tech Admin | D62: 0 | E62: 0 | F62: 0 | G62: 0 | H62: 0 | I62: 0 | J62: 0 | K62: 0
A63: ='Org structure'!E60 -> 07.2 - Fleet Management | C63: 0 | D63: 0 | E63: 0 | F63: 0 | G63: 0 | H63: 0 | I63: 0 | J63: 0 | K63: 0
A64: ='Org structure'!E61 -> 07.3 - Roads | D64: 3647000 | E64: 77428000 | F64: 0 | G64: 0 | H64: 0 | I64: 62193238 | J64: 54425000 | K64: 60000000
A65: ='Org structure'!E62 -> 07.4 - Storm Water | C65: 0 | D65: 0 | E65: 0 | F65: 0 | G65: 0 | H65: 0 | I65: 0 | J65: 0 | K65: 0
A66: ='Org structure'!E63 -> 07.5 - Street Lighting | C66: 0 | D66: 0 | E66: 0 | F66: 0 | G66: 0 | H66: 0 | I66: 19857810 | J66: 8638980 | K66: 12557370
A67: ='Org structure'!E64 -> 07.6 - Project Management Unit | D67: 0 | E67: 0 | F67: 3651713 | G67: 3651713 | H67: 3651713 | I67: 5167637 | J67: 5529372 | K67: 5916428
A68: ='Org structure'!E65 -> 07.7 - Sanitation Treatment Plant: Mogwase | C68: 0 | D68: 0 | E68: 0 | F68: 0 | G68: 0 | H68: 0 | I68: 0 | J68: 0 | K68: 0
A69: ='Org structure'!E66 -> 07.8 - Sanitation Treatment Plant: Madikwe | C69: 0 | D69: 0 | E69: 0 | F69: 0 | G69: 0 | H69: 0 | I69: 0 | J69: 0 | K69: 0
A70: ='Org structure'!E67 -> 07.9 - Sanitation Reticulation | C70: 2567000 | D70: 17011000 | E70: 12146134.48 | F70: 23090644 | G70: 21416548 | H70: 21416548 | I70: =20750000+22271550 -> 43021550 | J70: =22035500+9135525 -> 31171025 | K70: =23350285+25000000 -> 48350285
A71: ='Org structure'!E68 -> 07.10 - Water Administration | C71: 97070000 | D71: 196140000 | E71: 235179000 | F71: 158245493 | G71: =169006793-10130000 -> 158876793 | H71: =169006793-10130000 -> 158876793 | I71: =171557000+64814603 -> 236371603 | J71: =188711700+108856648 -> 297568348 | K71: =207581870+101216000 -> 308797870
A72: ='Org structure'!E69 -> 07.11 - Water Madikwe: Water Treatment Work | C72: 0 | D72: 0 | E72: 0 | F72: 0 | G72: 0 | H72: 0 | I72: 0 | J72: 0 | K72: 0
A73: ='Org structure'!E70 -> 07.12 - Water: Pella Water Treatment Works | C73: 0 | D73: 0 | E73: 0 | F73: 0 | G73: 0 | H73: 0 | I73: 0 | J73: 0 | K73: 0
A74: ='Org structure'!E71 -> 07.13 - Water: Madikwe Retail & Bulk Lines | C74: 0 | D74: 0 | E74: 0 | F74: 0 | G74: 0 | H74: 0 | I74: 0 | J74: 0 | K74: 0
A75: ='Org structure'!E72 -> 07.14 - Water: Madikwe Rural | C75: 0 | D75: 0 | E75: 0 | F75: 0 | G75: 0 | H75: 0 | I75: 0 | J75: 0 | K75: 0
A76: ='Org structure'!E73 -> 07.15 - Water: Molatedi | C76: 0 | D76: 0 | E76: 0 | F76: 0 | G76: 0 | H76: 0 | I76: 0 | J76: 0 | K76: 0
A77: ='Org structure'!E74 -> 07.16 - Water Eastern: Retail Mankwe | C77: 0 | D77: 0 | E77: 0 | F77: 0 | G77: 0 | H77: 0 | I77: 0 | J77: 0 | K77: 0
A78: ='Org structure'!E75 -> 07.17 - Water Vaalkopdam: Mankwe | C78: 0 | D78: 0 | E78: 0 | F78: 0 | G78: 0 | H78: 0 | I78: 0 | J78: 0 | K78: 0
A79: ='Org structure'!E76 -> 07.18 - Water Eastern: Retail Mankwe | C79: 0 | D79: 0 | E79: 0 | F79: 60000000 | G79: 60000000 | H79: 60000000 | I79: 88000000 | J79: 96000000 | K79: 106000000
A80: ='Org structure'!E77 -> 07.19 - Reporting Function Electricity | C80: 0 | D80: 0 | E80: 0 | F80: 0 | G80: 0 | H80: 0 | I80: 0 | J80: 0 | K80: 0
A81: ='Org structure'!A9 -> Vote 08 - | C81: 0 | D81: 0 | E81: 0 | F81: 0 | G81: 0 | H81: 0 | I81: 0 | J81: 0 | K81: 0
A82: ='Org structure'!A10 -> Vote 09 - | C82: 0 | D82: 0 | E82: 0 | F82: 0 | G82: 0 | H82: 0 | I82: 0 | J82: 0 | K82: 0
A83: ='Org structure'!A11 -> Vote 10 - | C83: 0 | D83: 0 | E83: 0 | F83: 0 | G83: 0 | H83: 0 | I83: 0 | J83: 0 | K83: 0
A84: ='Org structure'!A12 -> Vote 11 - | C84: 0 | D84: 0 | E84: 0 | F84: 0 | G84: 0 | H84: 0 | I84: 0 | J84: 0 | K84: 0
A85: ='Org structure'!A13 -> Vote 12 - | C85: 0 | D85: 0 | E85: 0 | F85: 0 | G85: 0 | H85: 0 | I85: 0 | J85: 0 | K85: 0
A86: ='Org structure'!A14 -> Vote 13 - | C86: 0 | D86: 0 | E86: 0 | F86: 0 | G86: 0 | H86: 0 | I86: 0 | J86: 0 | K86: 0
A87: ='Org structure'!A15 -> Vote 14 - | C87: 0 | D87: 0 | E87: 0 | F87: 0 | G87: 0 | H87: 0 | I87: 0 | J87: 0 | K87: 0
A88: ='Org structure'!A16 -> Vote 15 - Other | C88: 0 | D88: 0 | E88: 0 | F88: 0 | G88: 0 | H88: 0 | I88: 0 | J88: 0 | K88: 0
A89: Total Revenue by Vote | B89: 2 | C89: =C5+C11+C18+C26+C35+C50+C61+C81+C82+C83+C84+C85+C86+C87+C88 -> 745955014.9 | D89: 790669810.1 | E89: 886630718.1 | F89: 741999375 | G89: 769322599 | H89: 769322599 | I89: 1036090528 | J89: 1106603225 | K89: 1188104038 | L89: =SUM(L68:L80) -> 0 | M89: 0 | N89: 0 | O89: 0 | P89: 0 | Q89: 0 | R89: 0 | S89: 0 | T89: 0 | U89: 0 | V89: 0 | W89: 0
A91: Expenditure by Vote | B91: 1
A92: ='Org structure'!A2 -> Vote 01 - Municipal Council | C92: =SUM(C93:C97) -> 71449966.53 | D92: 76245978.68 | E92: 69179135.48 | F92: 85887561 | G92: 82085888 | H92: 82085888 | I92: 86146330 | J92: 90201222 | K92: 96353612
A93: ='Org structure'!E3 -> 01.1 - Office Of The Mayor | C93: 5644632.47 | D93: 7830085.29 | E93: 6462431.96 | F93: 10559438 | G93: 8587043 | H93: 8587043 | I93: =11131407-50000 -> 11081407 | J93: =10066856-53500 -> 10013356 | K93: =10741435-57245 -> 10684190
A94: ='Org structure'!E4 -> 01.2 - Office Of The Speaker | C94: 4561435.11 | D94: 5225233.45 | E94: 5486002.47 | F94: 6545065 | G94: 6317770 | H94: 6317770 | I94: 10550463 | J94: 11269396 | K94: 12038653
A95: ='Org structure'!E5 -> 01.3 - Office Of The Chief Whip | C95: 1140565.14 | D95: 863052.79 | E95: 1396180.47 | F95: 1547677 | G95: 1547677 | H95: 1547677 | I95: 1641146 | J95: 1756026 | K95: 1878949
A96: ='Org structure'!E6 -> 01.4 - Mpac | C96: 50167.57 | D96: 35336.15 | E96: 238478.58 | F96: 373000 | G96: 1553671 | H96: 1553671 | I96: 4097070 | J96: 4383863 | K96: 4690738
A97: ='Org structure'!E7 -> 01.5 - Council General Administration | C97: 60053166.24 | D97: =63916271-1624000 -> 62292271 | E97: =51912042+3274000+410000 -> 55596042 | F97: 66862381 | G97: 64079727 | H97: 64079727 | I97: =61476244-2750000+50000 -> 58776244 | J97: =65667581-2942500+53500 -> 62778581 | K97: =70152312-3148475+57245 -> 67061082
A98: ='Org structure'!A3 -> Vote 02 - Office Of The Accounting Officer | C98: =SUM(C99:C104) -> 15571451.52 | D98: 11294576.83 | E98: 15601839.83 | F98: 26965957 | G98: 24586417 | H98: 24586417 | I98: 25303359 | J98: 27073866 | K98: 28968312
A99: ='Org structure'!E9 -> 02.1 - Office Of The Ao Admin | C99: 11244616.15 | D99: 6808956 | E99: =13827184-3274000 -> 10553184 | F99: 20097796 | G99: 18755498 | H99: 18755498 | I99: =19271203-500000 -> 18771203 | J99: =20619887-535000 -> 20084887 | K99: =22062979-572450 -> 21490529
A100: ='Org structure'!E10 -> 02.2 - Strategic Planning Monitoring & Evaluat | C100: 0 | D100: 0 | E100: 0 | F100: 0 | G100: 0 | H100: 0 | I100: 0 | J100: 0 | K100: 0
A101: ='Org structure'!E11 -> 02.3 - Perfomance Management System | C101: 1371590.07 | D101: 1446355.57 | E101: 1536516.3 | F101: 2893413 | G101: 2227171 | H101: 2227171 | I101: 2834795 | J101: 3033231 | K101: 3245557
A102: ='Org structure'!E12 -> 02.4 - Internal Audit | C102: 2955245.3 | D102: 3039265.26 | E102: 3512139.53 | F102: 3974748 | G102: 3603748 | H102: 3603748 | I102: 3697361 | J102: 3955748 | K102: 4232226
A103: ='Org structure'!E13 -> 02.5 - Municipal Planning Idp | C103: 0 | D103: 0 | E103: 0 | F103: 0 | G103: 0 | H103: 0 | I103: 0 | J103: 0 | K103: 0
A104: ='Org structure'!E14 -> 02.6 - Risk | C104: 0 | D104: 0 | E104: 0 | F104: 0 | G104: 0 | H104: 0 | I104: 0 | J104: 0 | K104: 0
A105: ='Org structure'!A4 -> Vote 03 - Budget And Treasury Office | C105: =SUM(C106:C112) -> 56027736.91 | D105: 56545962.39 | E105: 55927354.45 | F105: 100760808 | G105: 101665756 | H105: 101665756 | I105: 126091931 | J105: 134779010 | K105: 144338789
A106: ='Org structure'!E16 -> 03.1 - Chief Financial Officer Admin | C106: 15921079.49 | D106: =10279827-91000 -> 10188827 | E106: 5668213.72 | F106: 5437841 | G106: 7068198 | H106: 7068198 | I106: 7608358 | J106: 8140944 | K106: 8710810
A107: ='Org structure'!E17 -> 03.2 - Budget Expenditure & Reporting | C107: 8158951.07 | D107: 7577486.95 | E107: =5067758+616000 -> 5683758 | F107: 7749084 | G107: 6301744 | H107: 6301744 | I107: 14019292 | J107: 15000642 | K107: 16050686
A108: ='Org structure'!E18 -> 03.3 - Budget Expenditure & Reporting | C108: 0 | D108: 0 | E108: 0 | F108: 0 | G108: 0 | H108: 0 | I108: 0 | J108: 0 | K108: 0
A109: ='Org structure'!E19 -> 03.4 - Revenue Management | C109: 26804293.1 | D109: 29127660.86 | E109: =30776841-1578000 -> 29198841 | F109: 73407276 | G109: 71176917 | H109: 71176917 | I109: 86996562 | J109: 92949626 | K109: 99584006
A110: ='Org structure'!E20 -> 03.5 - Supply Chain Management | C110: 5143413.25 | D110: 8505869.36 | E110: 6011253.59 | F110: 4530359 | G110: 5070968 | H110: 5070968 | I110: 6149200 | J110: 6576983 | K110: 7034714
A111: ='Org structure'!E21 -> 03.6 - Assets Management | D111: 1146118.22 | E111: 9365288.14 | F111: 9636248 | G111: 12047929 | H111: 12047929 | I111: 11318519 | J111: 12110815 | K111: 12958573
A112: ='Org structure'!E22 -> 03.7 - Expenditure | C112: 0 | D112: 0 | E112: 0 | F112: 0 | G112: 0 | H112: 0 | I112: 0 | J112: 0 | K112: 0
A113: ='Org structure'!A5 -> Vote 04 - Corporate Services | C113: =SUM(C114:C121) -> 117136504 | D113: 174533334.3 | E113: 134721590.1 | F113: 106673284 | G113: 124292204 | H113: 124292204 | I113: 137336122 | J113: 88401342 | K113: 94162644
A114: ='Org structure'!E24 -> 04.1 - Legal Services | C114: 0 | D114: 0 | E114: 0 | F114: 1096483 | G114: 1091483 | H114: 1091483 | I114: 1178495 | J114: 1260990 | K114: 1349258
A115: ='Org structure'!E25 -> 04.2 - Corporate Service Administration | C115: =33159119+35083000 -> 68242119 | D115: =80469711+12493000 -> 92962711 | E115: =53776539-555000 -> 53221539 | F115: 44948382 | G115: 40920932 | H115: 40920932 | I115: =48440818-4100000 -> 44340818 | J115: =51833175-4387000 -> 47446175 | K115: =55464198-4694090 -> 50770108
A116: ='Org structure'!E26 -> 04.3 - Human Resources | C116: 13746834.07 | D116: 16070739.42 | E116: 16512770.4 | F116: 22606112 | G116: 19807291 | H116: 19807291 | I116: =19861620-3000000 -> 16861620 | J116: =21251934-3210000 -> 18041934 | K116: =22739570-3434700 -> 19304870
A117: ='Org structure'!E27 -> 04.4 - Media & Communication | E117: 0 | F117: 0 | G117: 0 | H117: 0 | I117: 0 | J117: 0 | K117: 0
A118: ='Org structure'!E28 -> 04.5 - Organisational Development | E118: 0 | F118: 0 | G118: 0 | H118: 0 | I118: 0 | J118: 0 | K118: 0
A119: ='Org structure'!E29 -> 04.6 - Labour Relations | E119: 0 | F119: 0 | G119: 0 | H119: 0 | I119: 0 | J119: 0 | K119: 0
A120: ='Org structure'!E30 -> 04.7 - Legal Services | C120: 829829.52 | D120: 903122.27 | E120: 1049831.3 | F120: 0 | G120: 0 | H120: 0 | I120: 0 | J120: 0 | K120: 0
A121: ='Org structure'!E31 -> 04.8 - Information Technology Services | C121: 34317721.4 | D121: 64596761.58 | E121: 63937449.42 | F121: 38022307 | G121: 62472498 | H121: 62472498 | I121: 74955189 | J121: 21652243 | K121: 22738408
A122: ='Org structure'!A6 -> Vote 05 - Community Services | C122: =SUM(C123:C136) -> 101636157 | D122: 133067658.8 | E122: 176985267 | F122: 162902478 | G122: 173953101 | H122: 173953101 | I122: 182219774 | J122: 195919777 | K122: 210530266
A123: ='Org structure'!E33 -> 05.1 - Municipal Buildings | C123: 6674763.9 | D123: 2546000 | E123: 62460000 | F123: 22593219 | G123: 24510217 | H123: 24510217 | I123: =28561133-2000000 -> 26561133 | J123: =30271133-2140000 -> 28131133 | K123: =32492287-2289800 -> 30202487
A124: ='Org structure'!E34 -> 05.2 - Fleet Management | E124: 0 | F124: 14160088 | G124: 16769318 | H124: 16769318 | I124: 17935850 | J124: 18967360 | K124: 20071076
A125: ='Org structure'!E35 -> 05.3 - Community Services Administration | F125: 1848814 | G125: 1482730 | H125: 1482730 | I125: 1829793 | J125: 1957878 | K125: 2094931
A126: ='Org structure'!E36 -> 05.4 - Cemeteries | C126: =785695+15000 -> 800695 | D126: 952567.82 | E126: 797624.97 | F126: 1570503 | G126: 1588700 | H126: 1588700 | I126: 605000 | J126: 605000 | K126: 605000
A127: ='Org structure'!E37 -> 05.5 - Disaster Management | C127: 1552160.03 | D127: 1275125 | E127: 1230832.29 | F127: 2690067 | G127: 2024977 | H127: 2024977 | I127: =760000-100000 -> 660000 | J127: =813200-107000 -> 706200 | K127: =870124-114490 -> 755634
A128: ='Org structure'!E38 -> 05.6 - Fires Service | C128: 0 | D128: 0 | E128: 0 | F128: 0 | G128: 0 | H128: 0 | I128: 0 | J128: 0 | K128: 0
A129: ='Org structure'!E39 -> 05.7 - Libraries | C129: 1801927.27 | D129: 195000 | E129: 7747890.39 | F129: 2179542 | G129: 2001132 | H129: 2001132 | I129: 2656715 | J129: 2791234 | K129: 2935172
A130: ='Org structure'!E40 -> 05.8 - Municipal Buildings | F130: 0 | G130: 0 | H130: 0 | I130: 0 | J130: 0 | K130: 0
A131: ='Org structure'!E41 -> 05.9 - Sports Recreation & Social Amenitie | C131: 15865965.21 | D131: 17880000 | E131: 34572039.83 | F131: 24895916 | G131: 33141050 | H131: 33141050 | I131: =29688851-400000 -> 29288851 | J131: =31552451-428000 -> 31124451 | K131: =33553102-457960 -> 33095142
A132: ='Org structure'!E42 -> 05.10 - Waste Management Solid Waste | C132: 56573133.08 | D132: 88496000 | E132: 57464879.51 | F132: 55237208 | G132: 55895856 | H132: 55895856 | I132: 60639445 | J132: 66969585 | K132: 73396260
A133: ='Org structure'!E43 -> 05.11 - Safety And Security | C133: =16663040-7149000 -> 9514040 | D133: =21543966-1447000 -> 20096966 | E133: =12712000-1564000 -> 11148000 | F133: 25484702 | G133: 24878702 | H133: 24878702 | I133: =29250069-100000 -> 29150069 | J133: =31297574-107000 -> 31190574 | K133: =33488405-114490 -> 33373915
A134: ='Org structure'!E44 -> 05.12 - Traffic Service | C134: 8853472.48 | D134: 1626000 | E134: 1564000 | F134: 12242419 | G134: 11660419 | H134: 11660419 | I134: 12892918 | J134: 13476362 | K134: 14000649
A135: ='Org structure'!E45 -> 05.13 - Traffic Service | C135: 0 | D135: 0 | E135: 0 | F135: 0 | G135: 0 | H135: 0 | I135: 0 | J135: 0 | K135: 0
A136: ='Org structure'!E46 -> 05.14 - Fleet Management | C136: 0 | D136: 0 | E136: 0 | F136: 0 | G136: 0 | H136: 0 | I136: 0 | J136: 0 | K136: 0
A137: ='Org structure'!A7 -> Vote 06 - Planning & Development | C137: =SUM(C138:C147) -> 13414980.7 | D137: 15142497.71 | E137: 15586511.59 | F137: 26688415 | G137: 20791098 | H137: 20791098 | I137: 26201722 | J137: 28016634 | K137: 29958591
A138: ='Org structure'!E48 -> 06.1 - Planning And Development Admin | C138: 380479.77 | D138: =1048199-77000 -> 971199 | E138: 431964.83 | F138: 2652419 | G138: 1732703 | H138: 1732703 | I138: 1909065 | J138: 2042041 | K138: 2184327
A139: ='Org structure'!E49 -> 06.2 - Municipal Planning Idp | C139: 1431085.56 | D139: 598342.94 | E139: 0 | F139: 0 | G139: 0 | H139: 0 | I139: 0 | J139: 0 | K139: 0
A140: ='Org structure'!E50 -> 06.3 - Pms | E140: 0 | F140: 0 | G140: 0 | H140: 0 | I140: 0 | J140: 0 | K140: 0
A141: ='Org structure'!E51 -> 06.4 - Town Planning | C141: 233679.43 | D141: 664917.79 | E141: 509187.23 | F141: 5231758 | G141: 2680253 | H141: 2680253 | I141: =4620858-200000 -> 4420858 | J141: =4944317-214000 -> 4730317 | K141: =5290420-228980 -> 5061440
A142: ='Org structure'!E52 -> 06.5 - Land Use And Housing Admin | C142: 4705539.35 | D142: 5141381.01 | E142: 6001214.06 | F142: 7020328 | G142: 5113622 | H142: 5113622 | I142: 5822286 | J142: 6211296 | K142: 6627537
A143: ='Org structure'!E53 -> 06.6 - Local Economic Development | C143: 6664196.59 | D143: 7766656.97 | E143: 8644145.47 | F143: 11783910 | G143: 11264520 | H143: 11264520 | I143: =14749513-700000 -> 14049513 | J143: =15781980-749000 -> 15032980 | K143: =16886717-801430 -> 16085287
A144: ='Org structure'!E54 -> 06.7 - Led | C144: 0 | D144: 0 | E144: 0 | F144: 0 | G144: 0 | H144: 0 | I144: 0 | J144: 0 | K144: 0
A145: ='Org structure'!E55 -> 06.8 - Agriculture & Rural Development | C145: 0 | D145: 0 | E145: 0 | F145: 0 | G145: 0 | H145: 0 | I145: 0 | J145: 0 | K145: 0
A146: ='Org structure'!E56 -> 06.9 - Tourism & Business Development | C146: 0 | D146: 0 | E146: 0 | F146: 0 | G146: 0 | H146: 0 | I146: 0 | J146: 0 | K146: 0
A147: ='Org structure'!E57 -> 06.10 - Arts & Culture | C147: 0 | D147: 0 | E147: 0 | F147: 0 | G147: 0 | H147: 0 | I147: 0 | J147: 0 | K147: 0
A148: ='Org structure'!A8 -> Vote 07 - Infrastructure & Technical Services | C148: =SUM(C149:C167) -> 247418733 | D148: 316602355.5 | E148: 445756654.8 | F148: 348636773 | G148: 363227382 | H148: 363227382 | I148: 383941083 | J148: 430652466 | K148: 477909777
A149: ='Org structure'!E59 -> 07.1 - Infrastructure Admin & Tech Admin | C149: 6647751.16 | D149: 5951077.53 | E149: 3172759.87 | F149: 2414983 | G149: 2575363 | H149: 2575363 | I149: 2586091 | J149: 2758088 | K149: 2942124
A150: ='Org structure'!E60 -> 07.2 - Fleet Management | C150: 0 | D150: 0 | E150: 0 | F150: 0 | G150: 0 | H150: 0 | I150: 0 | J150: 0 | K150: 0
A151: ='Org structure'!E61 -> 07.3 - Roads | C151: 29292068.15 | D151: =42681889-3347000 -> 39334889 | E151: =100915727+11830000-3173000 -> 109572727 | F151: 86400983 | G151: 78095772 | H151: 78095772 | I151: 83834249 | J151: 93111629 | K151: 103269017
A152: ='Org structure'!E62 -> 07.4 - Storm Water | D152: 0 | E152: 0 | F152: 0 | G152: 0 | H152: 0 | I152: 0 | J152: 0 | K152: 0
A153: ='Org structure'!E63 -> 07.5 - Street Lighting | F153: 15826803 | G153: 17100503 | H153: 17100503 | I153: 19208720 | J153: 22645616 | K153: 26419245
A154: ='Org structure'!E64 -> 07.6 - Project Management Unit | C154: 3264103.36 | D154: 3546388.96 | E154: 2765163.37 | F154: 3651713 | G154: 3651713 | H154: 3651713 | I154: 5167637 | J154: 5529370 | K154: 5916428
A155: ='Org structure'!E65 -> 07.7 - Sanitation Treatment Plant: Mogwase | C155: 5939810.37 | D155: 14023000 | E155: 14316245.79 | F155: 6033913 | G155: 6282913 | H155: 6282913 | I155: 2979877 | J155: 3188469 | K155: 3411662
A156: ='Org structure'!E66 -> 07.8 - Sanitation Treatment Plant: Madikwe | C156: 0 | D156: 0 | E156: 5701454.51 | F156: 8060967 | G156: 8160967 | H156: 8160967 | I156: 3878437 | J156: 4149927 | K156: 4440423
A157: ='Org structure'!E67 -> 07.9 - Sanitation Reticulation | E157: 14240630.72 | F157: 8186000 | G157: 10361000 | H157: 10361000 | I157: 11926146 | J157: 15514844 | K157: 19458212
A158: ='Org structure'!E68 -> 07.10 - Water Administration | C158: 202275000 | D158: 253747000 | E158: 42169044.11 | F158: 17290051 | G158: 33500151 | H158: 33500151 | I158: 17934502 | J158: 19189917 | K158: 20533213
A159: ='Org structure'!E69 -> 07.11 - Water Madikwe: Water Treatment Work | C159: 0 | D159: 0 | E159: 1333391.85 | F159: 1352000 | G159: 2001000 | H159: 2001000 | I159: 1552000 | J159: 1660640 | K159: 1776885
A160: ='Org structure'!E70 -> 07.12 - Water: Pella Water Treatment Works | C160: 0 | D160: 0 | E160: 896533.18 | F160: 474000 | G160: 471000 | H160: 471000 | I160: 504000 | J160: 539280 | K160: 577030
A161: ='Org structure'!E71 -> 07.13 - Water: Madikwe Retail & Bulk Lines | C161: 0 | D161: 0 | E161: 1402729.97 | F161: 2058000 | G161: 3004000 | H161: 3004000 | I161: 2004000 | J161: 2144280 | K161: 2294380
A162: ='Org structure'!E72 -> 07.14 - Water: Madikwe Rural | C162: 0 | D162: 0 | E162: 2798450.41 | F162: 2407000 | G162: 5903000 | H162: 5903000 | I162: 3403000 | J162: 3641210 | K162: 3896095
A163: ='Org structure'!E73 -> 07.15 - Water: Molatedi | C163: 0 | D163: 0 | E163: =85697+471000 -> 556697 | F163: 210000 | G163: 260000 | H163: 260000 | I163: 260000 | J163: 278200 | K163: 297674
A164: ='Org structure'!E74 -> 07.16 - Water Eastern: Retail Mankwe | C164: 0 | D164: 0 | E164: 13049000 | F164: 0 | G164: 0 | H164: 0 | I164: 10904131 | J164: 11667420 | K164: 12484140
A165: ='Org structure'!E75 -> 07.17 - Water Vaalkopdam: Mankwe | C165: 0 | D165: 0 | E165: 0 | F165: 0 | G165: 0 | H165: 0 | I165: 1366664 | J165: 1462331 | K165: 1564694
A166: ='Org structure'!E76 -> 07.18 - Water Eastern: Retail Mankwe | C166: 0 | D166: 0 | E166: =231080827+2701000 -> 233781827 | F166: 186735360 | G166: 181160000 | H166: 181160000 | I166: 203731629 | J166: 229582245 | K166: 254088325
A167: ='Org structure'!E77 -> 07.19 - Reporting Function Electricity | C167: 0 | D167: 0 | F167: 7535000 | G167: 10700000 | H167: 10700000 | I167: 12700000 | J167: 13589000 | K167: 14540230
A168: ='Org structure'!A9 -> Vote 08 - | C168: 0 | D168: 0 | E168: 0 | F168: 0 | G168: 0 | H168: 0 | I168: 0 | J168: 0 | K168: 0
A169: ='Org structure'!A10 -> Vote 09 - | C169: 0 | D169: 0 | E169: 0 | F169: 0 | G169: 0 | H169: 0 | I169: 0 | J169: 0 | K169: 0
A170: ='Org structure'!A11 -> Vote 10 - | C170: 0 | D170: 0 | E170: 0 | F170: 0 | G170: 0 | H170: 0 | I170: 0 | J170: 0 | K170: 0
A171: ='Org structure'!A12 -> Vote 11 - | C171: 0 | D171: 0 | E171: 0 | F171: 0 | G171: 0 | H171: 0 | I171: 0 | J171: 0 | K171: 0
A172: ='Org structure'!A13 -> Vote 12 - | C172: 0 | D172: 0 | E172: 0 | F172: 0 | G172: 0 | H172: 0 | I172: 0 | J172: 0 | K172: 0
A173: ='Org structure'!A14 -> Vote 13 - | C173: 0 | D173: 0 | E173: 0 | F173: 0 | G173: 0 | H173: 0 | I173: 0 | J173: 0 | K173: 0
A174: ='Org structure'!A15 -> Vote 14 - | C174: 0 | D174: 0 | E174: 0 | F174: 0 | G174: 0 | H174: 0 | I174: 0 | J174: 0 | K174: 0
A175: ='Org structure'!A16 -> Vote 15 - Other | C175: 0 | D175: 0 | E175: 0 | F175: 0 | G175: 0 | H175: 0 | I175: 0 | J175: 0 | K175: 0
A176: Total Expenditure by Vote | B176: 2 | C176: =C92+C98+C105+C113+C122+C137+C148+C168+C169+C170+C171+C172+C173+C174+C175 -> 622655529.7 | D176: 783432364.2 | E176: 913758353.2 | F176: 858515276 | G176: 890601846 | H176: 890601846 | I176: 967240321 | J176: 995044317 | K176: 1082221991 | L176: =SUM(L92:L167) -> 0 | M176: 0 | N176: 0 | O176: 0 | P176: 0 | Q176: 0 | R176: 0 | S176: 0 | T176: 0 | U176: 0 | V176: 0 | W176: 0
A178: =result -> Surplus/(Deficit) for the year | B178: 2 | C178: =C89-C176 -> 123299485.2 | D178: 7237445.91 | E178: -27127635.17 | F178: -116515901 | G178: -121279247 | H178: -121279247 | I178: 68850207 | J178: 111558908 | K178: 105882047 | L178: 0 | M178: 0 | N178: 0 | O178: 0 | P178: 0 | Q178: 0 | R178: 0 | S178: 0 | T178: 0 | U178: 0 | V178: 0 | W178: 0
A179: =head27a -> References
A180: 1. Insert 'Vote'; e.g. Department, if different to Functional structure
A181: 2. Must reconcile to Financial Performance ('Revenue and Expenditure by Functional Classification' and 'Revenue and Expenditure')
A182: 3. Assign share in 'associate' to relevant Vote
A184: check revenue | C184: =C89-'A4-FinPerf RE'!C59 -> 123008405.3 | D184: =D89-'A4-FinPerf RE'!D59 -> 395282.1 | E184: =E89-'A4-FinPerf RE'!E59 -> -1424.8 | F184: =F89-'A4-FinPerf RE'!F59 -> -204882756 | G184: =G89-'A4-FinPerf RE'!G59 -> -229633894 | H184: =H89-'A4-FinPerf RE'!H59 -> -229633894 | I184: =I89-'A4-FinPerf RE'!J59 -> 1 | J184: =J89-'A4-FinPerf RE'!K59 -> -300 | K184: =K89-'A4-FinPerf RE'!L59 -> -130
A185: check expenditure | C185: =C176-'A4-FinPerf RE'!C35 -> 457.5599999 | D185: =D176-'A4-FinPerf RE'!D35 -> -1313.81 | E185: =E176-'A4-FinPerf RE'!E35 -> -272.7299999 | F185: =F176-'A4-FinPerf RE'!F35 -> 1386 | G185: =G176-'A4-FinPerf RE'!G35 -> 0 | H185: =H176-'A4-FinPerf RE'!H35 -> 0 | I185: =I176-'A4-FinPerf RE'!J35 -> -200 | J185: =J176-'A4-FinPerf RE'!K35 -> 336 | K185: =K176-'A4-FinPerf RE'!L35 -> -61

Sheet A4-FinPerf RE
A1: =muni&" - "&Approve4 -> NW375 Moses Kotane - Table A4 Budgeted Financial Performance (revenue and expenditure)
A2: =desc -> Description | B2: =head27 -> Ref | C2: =head1b -> 2015/16 | D2: =head1A -> 2016/17 | E2: =Head1 -> 2017/18 | F2: =Head2 -> Current Year 2018/19 | J2: =Head3 -> 2019/20 Medium Term Revenue & Expenditure Framework | M2: =Head4 -> LTFS
A3: R thousand | B3: 1 | C3: =Head5 -> Audited Outcome | D3: =Head5 -> Audited Outcome | E3: =Head5 -> Audited Outcome | F3: =Head6 -> Original Budget | G3: =Head7 -> Adjusted Budget | H3: =Head8 -> Full Year Forecast | I3: =Head5b -> Pre-audit outcome | J3: =Head9 -> Budget Year 2019/20 | K3: =Head10 -> Budget Year +1 2020/21 | L3: =Head11 -> Budget Year +2 2021/22 | M3: =Head12 -> Forecast 2022/23 | N3: =Head13 -> Forecast 2023/24 | O3: =Head14 -> Forecast 2024/25 | P3: =Head15 -> Forecast 2025/26 | Q3: =Head16 -> Forecast 2026/27 | R3: =Head17 -> Forecast 2027/28 | S3: =Head18 -> Forecast 2028/29 | T3: =Head19 -> Forecast 2029/30 | U3: =Head20 -> Forecast 2030/31 | V3: =Head21 -> Forecast 2031/32 | W3: =Head22 -> Forecast 2032/33 | X3: =Head23 -> Forecast 2033/34
A4: Revenue By Source
A5: Property rates | B5: 2 | C5: ='SA1'!C9 -> 97112317 | D5: ='SA1'!D9 -> 107986000 | E5: ='SA1'!E9 -> 122557000 | F5: ='SA1'!F9 -> 124692062 | G5: ='SA1'!G9 -> 133314476 | H5: ='SA1'!H9 -> 133314476 | I5: ='SA1'!I9 -> 133314476 | J5: ='SA1'!J9 -> 142163600 | K5: ='SA1'!K9 -> 150083525 | L5: ='SA1'!L9 -> 158755283
A6: Service charges - electricity revenue | B6: 2 | C6: ='SA1'!C15 -> 0 | D6: ='SA1'!D15 -> 0 | E6: ='SA1'!E15 -> 0 | F6: ='SA1'!F15 -> 0 | G6: ='SA1'!G15 -> 0 | H6: ='SA1'!H15 -> 0 | I6: ='SA1'!I15 -> 0 | J6: ='SA1'!J15 -> 0 | K6: ='SA1'!K15 -> 0 | L6: ='SA1'!L15 -> 0
A7: Service charges - water revenue | B7: 2 | C7: ='SA1'!C21 -> 97070397 | D7: ='SA1'!D21 -> 109419339 | E7: ='SA1'!E21 -> 123283679 | F7: ='SA1'!F21 -> 130716493 | G7: ='SA1'!G21 -> 168994000 | H7: ='SA1'!H21 -> 168994000 | I7: ='SA1'!I21 -> 168994000 | J7: ='SA1'!J21 -> 171556999 | K7: ='SA1'!K21 -> 188712000 | L7: ='SA1'!L21 -> 207582000
A8: Service charges - sanitation revenue | B8: 2 | C8: ='SA1'!C27 -> 2566959 | D8: ='SA1'!D27 -> 3011000 | E8: ='SA1'!E27 -> 2254605 | F8: ='SA1'!F27 -> 3195000 | G8: ='SA1'!G27 -> 2416548 | H8: ='SA1'!H27 -> 2416548 | I8: ='SA1'!I27 -> 2416548 | J8: ='SA1'!J27 -> 2750000 | K8: ='SA1'!K27 -> 3035500 | L8: ='SA1'!L27 -> 3350285
A9: Service charges - refuse revenue | B9: 2 | C9: ='SA1'!C34 -> 27582911 | D9: ='SA1'!D34 -> 9919447 | E9: ='SA1'!E34 -> 10461793 | F9: ='SA1'!F34 -> 11114463 | G9: ='SA1'!G34 -> 9708563 | H9: ='SA1'!H34 -> 9708563 | I9: ='SA1'!I34 -> 9708563 | J9: ='SA1'!J34 -> 9944428 | K9: ='SA1'!K34 -> 10939000 | L9: ='SA1'!L34 -> 12032100
A11: Rental of facilities and equipment | C11: 26196 | D11: 11193 | E11: 85253 | J11: 51000 | K11: 51000 | L11: 51000
A12: Interest earned - external investments | C12: 10497271 | D12: 9600476 | E12: 3558000 | F12: 6900000 | G12: 5400000 | H12: 5400000 | I12: 5400000 | J12: 5400000 | K12: 5400000 | L12: 5400000
A13: Interest earned - outstanding debtors | C13: 41709966 | D13: 50349776 | E13: 62480000 | F13: 64000000 | G13: 58479006 | H13: 58479006 | I13: 58479006 | J13: 59790000 | K13: 63000000 | L13: 65150000
A14: Dividends received | D14: 0
A15: Fines, penalties and forfeits | C15: 4642650 | D15: 5648900 | E15: 5315890 | F15: 5000000 | G15: 4500000 | H15: 4500000 | I15: 4500000 | J15: 4500000 | K15: 4500000 | L15: 4500000
A16: Licences and permits | D16: 0 | E16: 0 | F16: 600000 | G16: 50000 | H16: 50000 | I16: 50000 | J16: 50000 | K16: 100000 | L16: 150000
A17: Agency services | D17: 151000 | E17: 152000
A18: Transfers and subsidies | C18: 340224994 | D18: 341835000 | E18: 414974000 | F18: 393081713 | G18: 383912000 | H18: 383912000 | I18: 383912000 | J18: 437829637 | K18: 467331372 | L18: 502264428
A19: Other revenue | B19: 2 | C19: ='SA1'!C41 -> 1512948.61 | D19: ='SA1'!D41 -> 1858000 | E19: ='SA1'!E41 -> 1400986.29 | F19: ='SA1'!F41 -> 2699400 | G19: ='SA1'!G41 -> 2548900 | H19: ='SA1'!H41 -> 2548900 | I19: ='SA1'!I41 -> 2548900 | J19: ='SA1'!J41 -> 2530500 | K19: ='SA1'!K41 -> 2530500 | L19: ='SA1'!L41 -> 2580500
A20: Gains on disposal of PPE | C20: 0 | D20: 0 | E20: 0 | F20: 0 | G20: 0 | H20: 0 | I20: 0 | J20: 0 | K20: 0 | L20: 0
A21: Total Revenue (excluding capital transfers and contributions) | C21: =SUM(C5:C9)+SUM(C11:C20) -> 622946609.6 | D21: =SUM(D5:D9)+SUM(D11:D20) -> 639790131 | E21: 746523206.3 | F21: 741999131 | G21: 769323493 | H21: 769323493 | I21: 769323493 | J21: 836566164 | K21: 895682897 | L21: 961815596 | M21: =SUM(M5:M20) -> 0 | N21: 0 | O21: 0 | P21: 0 | Q21: 0 | R21: 0 | S21: 0 | T21: 0 | U21: 0 | V21: 0 | W21: 0 | X21: 0
A23: Expenditure By Type
A24: Employee related costs | B24: 2 | C24: ='SA1'!C59 -> 155129379.1 | D24: ='SA1'!D59 -> 166406000 | E24: ='SA1'!E59 -> 180634855.5 | F24: ='SA1'!F59 -> 233217580 | G24: ='SA1'!G59 -> 217222093 | H24: ='SA1'!H59 -> 217222093 | I24: ='SA1'!I59 -> 217222093 | J24: ='SA1'!J59 -> 270274659 | K24: ='SA1'!K59 -> 287380230 | L24: ='SA1'!L59 -> 307496864
A25: Remuneration of councillors | C25: 20793948 | D25: 21735812 | E25: 24202000 | F25: 28852000 | G25: 27319786 | H25: 27319786 | I25: 27319786 | J25: 25371420 | K25: 27147419 | L25: 29047740
A26: Debt impairment | B26: 3 | C26: 81824437 | D26: 117802126 | E26: 123838875.3 | F26: 106186000 | G26: 106186000 | H26: 106186000 | I26: 106186000 | J26: 122540000 | K26: 136704000 | L26: 147918400
A27: Depreciation & asset impairment | B27: 2 | C27: ='SA1'!C70 -> 46184542 | D27: ='SA1'!D70 -> 108713000 | E27: ='SA1'!E70 -> 169328000 | F27: ='SA1'!F70 -> 130138300 | G27: ='SA1'!G70 -> 140091413 | H27: ='SA1'!H70 -> 140091413 | I27: ='SA1'!I70 -> 140091413 | J27: ='SA1'!J70 -> 154536733 | K27: ='SA1'!K70 -> 180901311 | L27: ='SA1'!L70 -> 209826482
A28: Finance charges | C28: 8590181 | D28: 9763783 | E28: 7323039.75 | F28: 7000000 | G28: 7300000 | H28: 7300000 | I28: 7300000 | J28: 3688959 | K28: 3043808 | L28: 2729218
A29: Bulk purchases | B29: 2 | C29: ='SA1'!C75 -> 63206000 | D29: ='SA1'!D75 -> 74354000 | E29: ='SA1'!E75 -> 87863925.04 | F29: ='SA1'!F75 -> 80000000 | G29: ='SA1'!G75 -> 80800000 | H29: ='SA1'!H75 -> 80800000 | I29: ='SA1'!I75 -> 80800000 | J29: ='SA1'!J75 -> 103700000 | K29: ='SA1'!K75 -> 110959000 | L29: ='SA1'!L75 -> 118726130
A30: Other materials | B30: 8 | C30: 45544000 | F30: 6057500 | G30: 5256710 | H30: 5256710 | I30: 5256710 | J30: =7677250-2100000 -> 5577250 | K30: =8214658-2247000 -> 5967658 | L30: =8789684-2404290 -> 6385394
A31: Contracted services | C31: ='SA1'!C92 -> 32623323 | D31: ='SA1'!D92 -> 92740940 | E31: ='SA1'!E92 -> 153478617.7 | F31: ='SA1'!F92 -> 154498000 | G31: ='SA1'!G92 -> 162107758 | H31: ='SA1'!H92 -> 162107758 | I31: ='SA1'!I92 -> 162107758 | J31: ='SA1'!J92 -> 151836500 | K31: ='SA1'!K92 -> 162346055 | L31: ='SA1'!L92 -> 173855279
A32: Transfers and subsidies | C32: ='SA1'!C80 -> 0 | D32: ='SA1'!D80 -> 0 | E32: ='SA1'!E80 -> 0 | F32: ='SA1'!F80 -> 0 | G32: ='SA1'!G80 -> 0 | H32: ='SA1'!H80 -> 0 | I32: ='SA1'!I80 -> 0 | J32: ='SA1'!J80 -> 0 | K32: ='SA1'!K80 -> 0 | L32: ='SA1'!L80 -> 0
A33: Other expenditure | B33: 4, 5 | C33: ='SA1'!C102 -> 168142370 | D33: ='SA1'!D102 -> 188883000 | E33: ='SA1'!E102 -> 167089312.6 | F33: ='SA1'!F102 -> 112564510 | G33: ='SA1'!G102 -> 144318086 | H33: ='SA1'!H102 -> 144318086 | I33: ='SA1'!I102 -> 144318086 | J33: ='SA1'!J102 -> 129715000 | K33: ='SA1'!K102 -> 80594500 | L33: ='SA1'!L102 -> 86236545
A34: Loss on disposal of PPE | C34: 616892 | D34: 3035017 | F34: 0 | G34: 0 | H34: 0 | I34: 0 | J34: 0 | K34: 0 | L34: 0
A35: Total Expenditure | C35: =SUM(C24:C34) -> 622655072.1 | D35: =SUM(D24:D34) -> 783433678 | E35: 913758626 | F35: 858513890 | G35: 890601846 | H35: 890601846 | I35: 890601846 | J35: 967240521 | K35: 995043981 | L35: 1082222052 | M35: =SUM(M24:M34) -> 0 | N35: 0 | O35: 0 | P35: 0 | Q35: 0 | R35: 0 | S35: 0 | T35: 0 | U35: 0 | V35: 0 | W35: 0 | X35: 0
A37: Surplus/(Deficit) | C37: =C21-C35 -> 291537.51 | D37: -143643547 | E37: -167235419.7 | F37: -116514759 | G37: -121278353 | H37: -121278353 | I37: -121278353 | J37: -130674357 | K37: -99361084 | L37: -120406456 | M37: =M21+M35 -> 0 | N37: 0 | O37: 0 | P37: 0 | Q37: 0 | R37: 0 | S37: 0 | T37: 0 | U37: 0 | V37: 0 | W37: 0 | X37: 0
A38: Transfers and subsidies - capital (monetary allocations) (National / Provincial and District) | C38: 123008000 | D38: 150880000 | E38: 140109000 | F38: 204883000 | G38: 229633000 | H38: 229633000 | I38: 229633000 | J38: 199524363 | K38: 210920628 | L38: 226288572
A39: Transfers and subsidies - capital (monetary allocations) (National / Provincial Departmental Agencies, Households, Non-profit Institutions, Private Enterprises, Public Corporatons, Higher Educational Institutions) | B39: 6 | C39: ='SA1'!C63 -> 0 | D39: ='SA1'!D63 -> 0 | F39: ='SA1'!F63 -> 0 | G39: ='SA1'!G63 -> 0 | H39: ='SA1'!H63 -> 0 | I39: ='SA1'!I63 -> 0 | J39: ='SA1'!J63 -> 0 | K39: ='SA1'!K63 -> 0 | L39: ='SA1'!L63 -> 0
A40: Transfers and subsidies - capital (in-kind - all) | C40: 0 | D40: 0 | E40: 0 | I40: 0 | J40: 0 | K40: 0 | L40: 0
A41: Surplus/(Deficit) after capital transfers & contributions | C41: =SUM(C37:C40) -> 123299537.5 | D41: 7236453 | E41: -27126419.68 | F41: 88368241 | G41: 108354647 | H41: 108354647 | I41: 108354647 | J41: 68850006 | K41: 111559544 | L41: 105882116
A42: Taxation
A43: Surplus/(Deficit) after taxation | C43: =C41-C42 -> 123299537.5 | D43: 7236453 | E43: -27126419.68 | F43: 88368241 | G43: 108354647 | H43: 108354647 | I43: 108354647 | J43: 68850006 | K43: 111559544 | L43: 105882116
A44: Attributable to minorities
A45: Surplus/(Deficit) attributable to municipality | C45: =SUM(C43:C44) -> 123299537.5 | D45: 7236453 | E45: -27126419.68 | F45: 88368241 | G45: 108354647 | H45: 108354647 | I45: 108354647 | J45: 68850006 | K45: 111559544 | L45: 105882116
A46: Share of surplus/ (deficit) of associate | B46: 7
A47: =result -> Surplus/(Deficit) for the year | C47: =SUM(C45:C46) -> 123299537.5 | D47: 7236453 | E47: -27126419.68 | F47: 88368241 | G47: 108354647 | H47: 108354647 | I47: 108354647 | J47: 68850006 | K47: 111559544 | L47: 105882116 | M47: =M25+M46 -> 0 | N47: 0 | O47: 0 | P47: 0 | Q47: 0 | R47: 0 | S47: 0 | T47: 0 | U47: 0 | V47: 0 | W47: 0 | X47: 0
A48: =head27a -> References
A49: 1. Classifications are revenue sources and expenditure type
A50: 2. Detail to be provided in Table SA1
A51: 3. Previously described as 'bad or doubtful debts' - amounts shown should reflect the change in the provision for debt impairment
A52: 4. Expenditure type components previously shown under repairs and maintenance should be allocated back to the originating expenditure group/item; e.g. employee costs
A53: 5. Repairs & maintenance detailed in Table A9 and Table SA34c
A54: 6. Contributions are funds provided by external organisations to assist with infrastructure development; e.g. developer contributions (detail to be provided in Table SA1)
A55: 7. Equity method ( Includes Joint Ventures)
A56: 8. All materials not part of 'bulk' e.g road making materials, pipe, cable etc.
A57: check balance | C57: =C45-'A3-FinPerf V'!C39 -> 52.29999995 | D57: =D45-'A3-FinPerf V'!D39 -> -992.9100001 | E57: =E45-'A3-FinPerf V'!E39 -> 1215.49 | F57: =F45-'A3-FinPerf V'!F39 -> 204884142 | G57: =G45-'A3-FinPerf V'!G39 -> 229633894 | H57: =H45-'A3-FinPerf V'!H39 -> 229633894 | J57: =J45-'A3-FinPerf V'!I39 -> -201 | K57: =K45-'A3-FinPerf V'!J39 -> 636 | L57: =L45-'A3-FinPerf V'!K39 -> 69
A59: Total revenue | C59: 622946609.6 | D59: 790274528 | E59: 886632142.9 | F59: =F21+SUM(F38:F40) -> 946882131 | G59: 998956493 | H59: 998956493 | I59: 998956493 | J59: 1036090527 | K59: 1106603525 | L59: 1188104168

Sheet A5-Capex
A2: =Vdesc -> Vote Description | B2: =head27 -> Ref | C2: =head1b -> 2015/16 | D2: =head1A -> 2016/17 | E2: =Head1 -> 2017/18 | F2: =Head2 -> Current Year 2018/19 | J2: =Head3 -> 2019/20 Medium Term Revenue & Expenditure Framework
A3: R thousand | B3: 1 | C3: =Head5 -> Audited Outcome | D3: =Head5 -> Audited Outcome | E3: =Head5 -> Audited Outcome | F3: =Head6 -> Original Budget | G3: =Head7 -> Adjusted Budget | H3: =Head8 -> Full Year Forecast | I3: =Head5b -> Pre-audit outcome | J3: =Head9 -> Budget Year 2019/20 | K3: =Head10 -> Budget Year +1 2020/21 | L3: =Head11 -> Budget Year +2 2021/22
A4: Capital expenditure - Vote
A5: Multi-year expenditure to be appropriated | B5: 2
A6: =A5A!A6 -> Vote 01 - Municipal Council | C6: =A5A!C6 -> 0 | D6: =A5A!D6 -> 0 | E6: =A5A!E6 -> 0 | F6: =A5A!F6 -> 0 | G6: =A5A!G6 -> 0 | H6: =A5A!H6 -> 0 | I6: =A5A!I6 -> 0 | J6: =A5A!J6 -> 0 | K6: =A5A!K6 -> 0 | L6: =A5A!L6 -> 0
A7: =A5A!A12 -> Vote 02 - Office Of The Accounting Officer | C7: =A5A!C12 -> 0 | D7: =A5A!D12 -> 0 | E7: =A5A!E12 -> 0 | F7: =A5A!F12 -> 0 | G7: =A5A!G12 -> 0 | H7: =A5A!H12 -> 0 | I7: =A5A!I12 -> 0 | J7: =A5A!J12 -> 0 | K7: =A5A!K12 -> 0 | L7: =A5A!L12 -> 0
A8: =A5A!A19 -> Vote 03 - Budget And Treasury Office | C8: =A5A!C19 -> 0 | D8: =A5A!D19 -> 0 | E8: =A5A!E19 -> 0 | F8: =A5A!F19 -> 300000 | G8: =A5A!G19 -> 300000 | H8: =A5A!H19 -> 300000 | I8: =A5A!I19 -> 300000 | J8: =A5A!J19 -> 100000 | K8: =A5A!K19 -> 100000 | L8: =A5A!L19 -> 100000
A9: =A5A!A27 -> Vote 04 - Corporate Services | C9: =A5A!C27 -> 119509474 | D9: =A5A!D27 -> 46269000 | E9: =A5A!E27 -> 85629000 | F9: =A5A!F27 -> 2200000 | G9: =A5A!G27 -> 1200000 | H9: =A5A!H27 -> 1200000 | I9: =A5A!I27 -> 1200000 | J9: =A5A!J27 -> 550000 | K9: =A5A!K27 -> 550000 | L9: =A5A!L27 -> 550000
A10: =A5A!A36 -> Vote 05 - Community Services | C10: =A5A!C36 -> 33935715 | D10: =A5A!D36 -> 7011000 | E10: =A5A!E36 -> 12773160.4 | F10: =A5A!F36 -> 46146000 | G10: =A5A!G36 -> 37375776 | H10: =A5A!H36 -> 37375876 | I10: =A5A!I36 -> 37375876 | J10: =A5A!J36 -> 30587000 | K10: =A5A!K36 -> 30064000 | L10: =A5A!L36 -> 27715000
A11: =A5A!A51 -> Vote 06 - Planning & Development | C11: =A5A!C51 -> 0 | D11: =A5A!D51 -> 0 | E11: =A5A!E51 -> 0 | F11: =A5A!F51 -> 0 | G11: =A5A!G51 -> 0 | H11: =A5A!H51 -> 0 | I11: =A5A!I51 -> 0 | J11: =A5A!J51 -> 0 | K11: =A5A!K51 -> 0 | L11: =A5A!L51 -> 0
A12: =A5A!A62 -> Vote 07 - Infrastructure & Technical Services | C12: =A5A!C62 -> 133565948 | D12: =A5A!D62 -> 1810000 | E12: =A5A!E62 -> 231956328 | F12: =A5A!F62 -> 193087571 | G12: =A5A!G62 -> 213208000 | H12: =A5A!H62 -> 213208000 | I12: =A5A!I62 -> 213208000 | J12: =A5A!J62 -> 169137360 | K12: =A5A!K62 -> 181057000 | L12: =A5A!L62 -> 198773000
A13: ='Org structure'!A9 -> Vote 08 - | C13: =A5A!C82 -> 0 | D13: =A5A!D82 -> 0 | E13: =A5A!E82 -> 0 | F13: =A5A!F82 -> 0 | G13: =A5A!G82 -> 0 | H13: =A5A!H82 -> 0 | I13: =A5A!I82 -> 0 | J13: =A5A!J82 -> 0 | K13: =A5A!K82 -> 0 | L13: =A5A!L82 -> 0
A14: ='Org structure'!A10 -> Vote 09 - | C14: =A5A!C83 -> 0 | D14: =A5A!D83 -> 0 | E14: =A5A!E83 -> 0 | F14: =A5A!F83 -> 0 | G14: =A5A!G83 -> 0 | H14: =A5A!H83 -> 0 | I14: =A5A!I83 -> 0 | J14: =A5A!J83 -> 0 | K14: =A5A!K83 -> 0 | L14: =A5A!L83 -> 0
A15: ='Org structure'!A11 -> Vote 10 - | C15: =A5A!C84 -> 0 | D15: =A5A!D84 -> 0 | E15: =A5A!E84 -> 0 | F15: =A5A!F84 -> 0 | G15: =A5A!G84 -> 0 | H15: =A5A!H84 -> 0 | I15: =A5A!I84 -> 0 | J15: =A5A!J84 -> 0 | K15: =A5A!K84 -> 0 | L15: =A5A!L84 -> 0
A16: ='Org structure'!A12 -> Vote 11 - | C16: =A5A!C85 -> 0 | D16: =A5A!D85 -> 0 | E16: =A5A!E85 -> 0 | F16: =A5A!F85 -> 0 | G16: =A5A!G85 -> 0 | H16: =A5A!H85 -> 0 | I16: =A5A!I85 -> 0 | J16: =A5A!J85 -> 0 | K16: =A5A!K85 -> 0 | L16: =A5A!L85 -> 0
A17: ='Org structure'!A13 -> Vote 12 - | C17: =A5A!C86 -> 0 | D17: =A5A!D86 -> 0 | E17: =A5A!E86 -> 0 | F17: =A5A!F86 -> 0 | G17: =A5A!G86 -> 0 | H17: =A5A!H86 -> 0 | I17: =A5A!I86 -> 0 | J17: =A5A!J86 -> 0 | K17: =A5A!K86 -> 0 | L17: =A5A!L86 -> 0
A18: ='Org structure'!A14 -> Vote 13 - | C18: =A5A!C87 -> 0 | D18: =A5A!D87 -> 0 | E18: =A5A!E87 -> 0 | F18: =A5A!F87 -> 0 | G18: =A5A!G87 -> 0 | H18: =A5A!H87 -> 0 | I18: =A5A!I87 -> 0 | J18: =A5A!J87 -> 0 | K18: =A5A!K87 -> 0 | L18: =A5A!L87 -> 0
A19: ='Org structure'!A15 -> Vote 14 - | C19: =A5A!C88 -> 0 | D19: =A5A!D88 -> 0 | E19: =A5A!E88 -> 0 | F19: =A5A!F88 -> 0 | G19: =A5A!G88 -> 0 | H19: =A5A!H88 -> 0 | I19: =A5A!I88 -> 0 | J19: =A5A!J88 -> 0 | K19: =A5A!K88 -> 0 | L19: =A5A!L88 -> 0
A20: ='Org structure'!A16 -> Vote 15 - Other | C20: =A5A!C89 -> 0 | D20: =A5A!D89 -> 0 | E20: =A5A!E89 -> 0 | F20: =A5A!F89 -> 0 | G20: =A5A!G89 -> 0 | H20: =A5A!H89 -> 0 | I20: =A5A!I89 -> 0 | J20: =A5A!J89 -> 0 | K20: =A5A!K89 -> 0 | L20: =A5A!L89 -> 0
A21: Capital multi-year expenditure sub-total | B21: 7 | C21: =SUM(C6:C20) -> 287011137 | D21: =SUM(D6:D20) -> 55090000 | E21: 330358488.4 | F21: 241733571 | G21: 252083776 | H21: =SUM(H6:H20) -> 252083876 | I21: 252083876 | J21: 200374360 | K21: 211771000 | L21: 227138000
A23: Single-year expenditure to be appropriated | B23: 2
A24: =A5A!A94 -> Vote 01 - Municipal Council | C24: =A5A!C94 -> 0 | D24: =A5A!D94 -> 0 | E24: =A5A!E94 -> 0 | F24: =A5A!F94 -> 0 | G24: =A5A!G94 -> 0 | H24: =A5A!H94 -> 0 | I24: =A5A!I94 -> 0 | J24: =A5A!J94 -> 0 | K24: =A5A!K94 -> 0 | L24: =A5A!L94 -> 0
A25: =A5A!A100 -> Vote 02 - Office Of The Accounting Officer | C25: =A5A!C100 -> 0 | D25: =A5A!D100 -> 0 | E25: =A5A!E100 -> 0 | F25: =A5A!F100 -> 0 | G25: =A5A!G100 -> 0 | H25: =A5A!H100 -> 0 | I25: =A5A!I100 -> 0 | J25: =A5A!J100 -> 0 | K25: =A5A!K100 -> 0 | L25: =A5A!L100 -> 0
A26: =A5A!A107 -> Vote 03 - Budget And Treasury Office | C26: =A5A!C107 -> 0 | D26: =A5A!D107 -> 0 | E26: =A5A!E107 -> 0 | F26: =A5A!F107 -> 0 | G26: =A5A!G107 -> 0 | H26: =A5A!H107 -> 0 | I26: =A5A!I107 -> 0 | J26: =A5A!J107 -> 0 | K26: =A5A!K107 -> 0 | L26: =A5A!L107 -> 0
A27: =A5A!A115 -> Vote 04 - Corporate Services | C27: =A5A!C115 -> 0 | D27: =A5A!D115 -> 0 | E27: =A5A!E115 -> 0 | F27: =A5A!F115 -> 0 | G27: =A5A!G115 -> 0 | H27: =A5A!H115 -> 0 | I27: =A5A!I115 -> 0 | J27: =A5A!J115 -> 0 | K27: =A5A!K115 -> 0 | L27: =A5A!L115 -> 0
A28: =A5A!A124 -> Vote 05 - Community Services | C28: =A5A!C124 -> 0 | D28: =A5A!D124 -> 0 | E28: =A5A!E124 -> 0 | F28: =A5A!F124 -> 0 | G28: =A5A!G124 -> 0 | H28: =A5A!H124 -> 0 | I28: =A5A!I124 -> 0 | J28: =A5A!J124 -> 0 | K28: =A5A!K124 -> 0 | L28: =A5A!L124 -> 0
A29: =A5A!A139 -> Vote 06 - Planning & Development | C29: =A5A!C139 -> 0 | D29: =A5A!D139 -> 0 | E29: =A5A!E139 -> 0 | F29: =A5A!F139 -> 0 | G29: =A5A!G139 -> 0 | H29: =A5A!H139 -> 0 | I29: =A5A!I139 -> 0 | J29: =A5A!J139 -> 0 | K29: =A5A!K139 -> 0 | L29: =A5A!L139 -> 0
A30: =A5A!A150 -> Vote 07 - Infrastructure & Technical Services | C30: =A5A!C150 -> 0 | D30: =A5A!D150 -> 0 | E30: =A5A!E150 -> 0 | F30: =A5A!F150 -> 0 | G30: =A5A!G150 -> 0 | H30: =A5A!H150 -> 0 | I30: =A5A!I150 -> 0 | J30: =A5A!J150 -> 0 | K30: =A5A!K150 -> 0 | L30: =A5A!L150 -> 0
A31: ='Org structure'!A9 -> Vote 08 - | C31: =A5A!C170 -> 0 | D31: =A5A!D170 -> 0 | E31: =A5A!E170 -> 0 | F31: =A5A!F170 -> 0 | G31: =A5A!G170 -> 0 | H31: =A5A!H170 -> 0 | I31: =A5A!I170 -> 0 | J31: =A5A!J170 -> 0 | K31: =A5A!K170 -> 0 | L31: =A5A!L170 -> 0
A32: ='Org structure'!A10 -> Vote 09 - | C32: =A5A!C171 -> 0 | D32: =A5A!D171 -> 0 | E32: =A5A!E171 -> 0 | F32: =A5A!F171 -> 0 | G32: =A5A!G171 -> 0 | H32: =A5A!H171 -> 0 | I32: =A5A!I171 -> 0 | J32: =A5A!J171 -> 0 | K32: =A5A!K171 -> 0 | L32: =A5A!L171 -> 0
A33: ='Org structure'!A11 -> Vote 10 - | C33: =A5A!C172 -> 0 | D33: =A5A!D172 -> 0 | E33: =A5A!E172 -> 0 | F33: =A5A!F172 -> 0 | G33: =A5A!G172 -> 0 | H33: =A5A!H172 -> 0 | I33: =A5A!I172 -> 0 | J33: =A5A!J172 -> 0 | K33: =A5A!K172 -> 0 | L33: =A5A!L172 -> 0
A34: ='Org structure'!A12 -> Vote 11 - | C34: =A5A!C173 -> 0 | D34: =A5A!D173 -> 0 | E34: =A5A!E173 -> 0 | F34: =A5A!F173 -> 0 | G34: =A5A!G173 -> 0 | H34: =A5A!H173 -> 0 | I34: =A5A!I173 -> 0 | J34: =A5A!J173 -> 0 | K34: =A5A!K173 -> 0 | L34: =A5A!L173 -> 0
A35: ='Org structure'!A13 -> Vote 12 - | C35: =A5A!C174 -> 0 | D35: =A5A!D174 -> 0 | E35: =A5A!E174 -> 0 | F35: =A5A!F174 -> 0 | G35: =A5A!G174 -> 0 | H35: =A5A!H174 -> 0 | I35: =A5A!I174 -> 0 | J35: =A5A!J174 -> 0 | K35: =A5A!K174 -> 0 | L35: =A5A!L174 -> 0
A36: ='Org structure'!A14 -> Vote 13 - | C36: =A5A!C175 -> 0 | D36: =A5A!D175 -> 0 | E36: =A5A!E175 -> 0 | F36: =A5A!F175 -> 0 | G36: =A5A!G175 -> 0 | H36: =A5A!H175 -> 0 | I36: =A5A!I175 -> 0 | J36: =A5A!J175 -> 0 | K36: =A5A!K175 -> 0 | L36: =A5A!L175 -> 0
A37: ='Org structure'!A15 -> Vote 14 - | C37: =A5A!C176 -> 0 | D37: =A5A!D176 -> 0 | E37: =A5A!E176 -> 0 | F37: =A5A!F176 -> 0 | G37: =A5A!G176 -> 0 | H37: =A5A!H176 -> 0 | I37: =A5A!I176 -> 0 | J37: =A5A!J176 -> 0 | K37: =A5A!K176 -> 0 | L37: =A5A!L176 -> 0
A38: ='Org structure'!A16 -> Vote 15 - Other | C38: =A5A!C177 -> 0 | D38: =A5A!D177 -> 0 | E38: =A5A!E177 -> 0 | F38: =A5A!F177 -> 0 | G38: =A5A!G177 -> 0 | H38: =A5A!H177 -> 0 | I38: =A5A!I177 -> 0 | J38: =A5A!J177 -> 0 | K38: =A5A!K177 -> 0 | L38: =A5A!L177 -> 0
A39: Capital single-year expenditure sub-total | C39: =SUM(C24:C38) -> 0 | D39: =SUM(D24:D38) -> 0 | E39: 0 | F39: 0 | G39: 0 | H39: 0 | I39: 0 | J39: 0 | K39: 0 | L39: 0
A40: Total Capital Expenditure - Vote | C40: =C39+C21 -> 287011137 | D40: =D39+D21 -> 55090000 | E40: 330358488.4 | F40: 241733571 | G40: 252083776 | H40: 252083876 | I40: 252083876 | J40: 200374360 | K40: 211771000 | L40: 227138000
A42: Capital Expenditure - Functional
A43: Governance and administration | C43: =SUM(C44:C46) -> 119509000 | D43: =SUM(D44:D46) -> 46269000 | E43: 85629000 | F43: 10500000 | G43: 9500000 | H43: 9500000 | I43: 9500000 | J43: 650000 | K43: 650000 | L43: 650000
A44: Executive and council
A45: Finance and administration | C45: 119509000 | D45: 46269000 | E45: 85629000 | F45: 10500000 | G45: 9500000 | H45: 9500000 | I45: 9500000 | J45: 650000 | K45: 650000 | L45: 650000
A46: Internal audit
A47: Community and public safety | C47: =SUM(C48:C52) -> 29304000 | D47: =SUM(D48:D52) -> 7011000 | E47: 1057000.4 | F47: 26723722 | G47: 24927000 | H47: 24927000 | I47: 24927000 | J47: 14790000 | K47: 10064000 | L47: 8200000
A48: Community and social services | C48: 0 | D48: 7011000 | E48: 794000 | F48: 21973722 | G48: 24177000 | H48: 24177000 | I48: 24177000 | J48: 14590000 | K48: 0 | L48: 8000000
A49: Sport and recreation | C49: 29304000 | D49: 0 | E49: 263000 | F49: 250000 | G49: 250000 | H49: 250000 | I49: 250000 | J49: 200000 | K49: 10064000 | L49: 200000
A50: Public safety | C50: 0 | D50: 0 | E50: 0.4 | F50: 4500000 | G50: 500000 | H50: 500000 | I50: 500000 | J50: 0 | K50: 0 | L50: 0
A51: Housing
A52: Health
A53: Economic and environmental services | C53: =SUM(C54:C56) -> 65901000 | D53: =SUM(D54:D56) -> 0 | E53: 91682000 | F53: 48597571 | G53: 47029000 | H53: 47029000 | I53: 47029000 | J53: 62193000 | K53: 54425000 | L53: 60000000
A54: Planning and development
A55: Road transport | C55: 65901000 | D55: 0 | E55: 91682000 | F55: 48597571 | G55: 47029000 | H55: 47029000 | I55: 47029000 | J55: 62193000 | K55: 54425000 | L55: 60000000
A56: Environmental protection
A57: Trading services | C57: =SUM(C58:C61) -> 72296975 | D57: =SUM(D58:D61) -> 1810000 | E57: 151990000 | F57: 155913000 | G57: 170627455 | H57: 170627455 | I57: 170627455 | J57: 122741360 | K57: 146632000 | L57: 158288000
A58: Energy sources | C58: 10706000 | D58: 0 | E58: 13666000 | F58: 9800000 | G58: 11350373 | H58: 11350373 | I58: 11350373 | J58: 18017904 | K58: 8639000 | L58: 12557000
A59: Water management | C59: 43815975 | D59: 1810000 | E59: 126017000 | F59: 107689000 | G59: 119270000 | H59: 119270000 | I59: 119270000 | J59: 64815000 | K59: 108857000 | L59: 101216000
A60: Waste water management | C60: 13143000 | D60: 0 | E60: 591000 | F60: 27000000 | G60: 27558406 | H60: 27558406 | I60: 27558406 | J60: 24111456 | K60: 9136000 | L60: 25000000
A61: Waste management | C61: 4632000 | E61: 11716000 | F61: 11424000 | G61: 12448676 | H61: 12448676 | I61: 12448676 | J61: 15797000 | K61: 20000000 | L61: 19515000
A62: Other | E62: 0
A63: Total Capital Expenditure - Functional | B63: 3 | C63: =C43+C47+C53+C57+C62 -> 287010975 | D63: =D43+D47+D53+D57+D62 -> 55090000 | E63: 330358000.4 | F63: 241734293 | G63: 252083455 | H63: 252083455 | I63: 252083455 | J63: 200374360 | K63: 211771000 | L63: =L43+L47+L53+L57+L62 -> 227138000
A65: Funded by:
A66: National Government | C66: 119743975 | D66: 1810000 | E66: 230067000 | F66: 142884000 | G66: 167634000 | H66: 167634000 | I66: 167634000 | J66: 199524000 | K66: 210921000 | L66: 226288000
A67: Provincial Government | F67: 62000000 | G67: 62000000 | H67: 62000000 | I67: 62000000 | K67: 0
A68: District Municipality
A69: Other transfers and grants | C69: 0 | D69: 0 | E69: 0.4 | J69: 0 | K69: 0 | L69: 0
A70: Transfers recognised - capital | B70: 4 | C70: =SUM(C66:C69) -> 119743975 | D70: 1810000 | E70: 230067000.4 | F70: 204884000 | G70: 229634000 | H70: 229634000 | I70: 229634000 | J70: 199524000 | K70: 210921000 | L70: 226288000
A72: Borrowing | B72: 6 | F72: 14000000
A73: Internally generated funds | C73: 167267000 | D73: 53280000 | E73: 100291000 | F73: 22850000 | G73: 22449000 | H73: 22449000 | I73: 22449000 | J73: 850000 | K73: 850000 | L73: 850000
A74: Total Capital Funding | B74: 7 | C74: =+C70+C72+C73 -> 287010975 | D74: =+D70+D72+D73 -> 55090000 | E74: 330358000.4 | F74: 241734000 | G74: 252083000 | H74: 252083000 | I74: 252083000 | J74: 200374000 | K74: 211771000 | L74: 227138000
A75: =head27a -> References
A76: 1. Municipalities may choose to appropriate for capital expenditure for three years or for one year (if one year appropriation projected expenditure required for yr2 and yr3).
A77: 2. Include capital component of PPP unitary payment. Note that capital transfers are only appropriated to municipalities for the budget year
A78: 3. Capital expenditure by functional classification must reconcile to the appropriations by vote
A79: 4. Must reconcile to supporting table SA20 and to Budgeted Financial Performance (revenue and expenditure)
A81: 6. Include finance leases and PPP capital funding component of unitary payment - total borrowing/repayments to reconcile to changes in Table SA17
A82: 7. Total Capital Funding must balance with Total Capital Expenditure
A83: 8. Include any capitalised interest (MFMA section 46) as part of relevant capital budget
A85: check balance | C85: =IF((C63-C74)=0,0,"Unbalanced") -> 0 | D85: =IF((D63-D74)=0,0,"Unbalanced") -> 0 | E85: 0 | K85: 0 | L85: 0

Sheet A5A
A1: =muni&" - "&Approve5 -> NW375 Moses Kotane - Table A5 Budgeted Capital Expenditure by vote, functional classification and funding
A2: =Vdesc -> Vote Description | B2: =head27 -> Ref | C2: =head1b -> 2015/16 | D2: =head1A -> 2016/17 | E2: =Head1 -> 2017/18 | F2: =Head2 -> Current Year 2018/19 | J2: =Head3 -> 2019/20 Medium Term Revenue & Expenditure Framework | N2: ="Multi-year appropriation for "&Head9& " in the "&Head2A&" Annual Budget" -> Multi-year appropriation for Budget Year 2019/20 in the 2018/19 Annual Budget | R2: ="Multi-year appropriation for "&RIGHT(Head10,7)& " in the "&Head2A&" Annual Budget" -> Multi-year appropriation for 2020/21 in the 2018/19 Annual Budget | V2: New multi-year appropriations (funds for new and existing projects)
A3: R thousand | B3: 1 | C3: =Head5 -> Audited Outcome | D3: =Head5 -> Audited Outcome | E3: =Head5 -> Audited Outcome | F3: =Head6 -> Original Budget | G3: =Head7 -> Adjusted Budget | H3: =Head8 -> Full Year Forecast | I3: =Head5b -> Pre-audit outcome | J3: =Head9 -> Budget Year 2019/20 | K3: =Head10 -> Budget Year +1 2020/21 | L3: =Head11 -> Budget Year +2 2021/22 | N3: ="Appropriation for "&RIGHT(Head9,7) -> Appropriation for 2019/20 | O3: ="Adjustments in "&Head2A -> Adjustments in 2018/19 | P3: ="Downward adjustments for "&RIGHT(Head9,7) -> Downward adjustments for 2019/20 | Q3: Appropriation carried forward | R3: ="Appropriation for "&RIGHT(Head9,7) -> Appropriation for 2019/20 | S3: ="Adjustments in "&Head2A -> Adjustments in 2018/19 | T3: ="Downward adjustments for "&RIGHT(Head9,7) -> Downward adjustments for 2019/20 | U3: Appropriation carried forward | V3: =Head9 -> Budget Year 2019/20 | W3: =Head10 -> Budget Year +1 2020/21 | X3: =Head11 -> Budget Year +2 2021/22
A4: Capital expenditure - Municipal Vote
A5: Multi-year expenditure appropriation | B5: 2
A6: ='Org structure'!A2 -> Vote 01 - Municipal Council | C6: =SUM(C7:C11) -> 0 | D6: 0 | E6: 0 | F6: 0 | G6: 0 | H6: 0 | I6: 0 | J6: 0 | K6: 0 | L6: 0 | N6: =SUM(N7:N11) -> 0 | O6: 0 | P6: 0 | Q6: 0 | R6: 0 | S6: 0 | T6: 0 | U6: 0 | V6: 0 | W6: 0 | X6: 0
A7: ='Org structure'!E3 -> 01.1 - Office Of The Mayor | C7: 0 | D7: 0 | E7: 0 | F7: 0 | G7: 0 | H7: 0 | I7: 0 | J7: =Q7+V7 -> 0 | K7: =U7+W7 -> 0 | L7: =X7 -> 0 | N7: 0 | O7: 0 | P7: 0 | Q7: =SUM(N7:P7) -> 0 | R7: 0 | S7: 0 | T7: 0 | U7: =SUM(R7:T7) -> 0 | V7: 0 | W7: 0 | X7: 0
A8: ='Org structure'!E4 -> 01.2 - Office Of The Speaker | C8: 0 | D8: 0 | E8: 0 | F8: 0 | G8: 0 | H8: 0 | I8: 0 | J8: =Q8+V8 -> 0 | K8: =U8+W8 -> 0 | L8: =X8 -> 0 | N8: 0 | O8: 0 | P8: 0 | Q8: =SUM(N8:P8) -> 0 | R8: 0 | S8: 0 | T8: 0 | U8: =SUM(R8:T8) -> 0 | V8: 0 | W8: 0 | X8: 0
A9: ='Org structure'!E5 -> 01.3 - Office Of The Chief Whip | C9: 0 | D9: 0 | E9: 0 | F9: 0 | G9: 0 | H9: 0 | I9: 0 | J9: =Q9+V9 -> 0 | K9: =U9+W9 -> 0 | L9: =X9 -> 0 | N9: 0 | O9: 0 | P9: 0 | Q9: =SUM(N9:P9) -> 0 | R9: 0 | S9: 0 | T9: 0 | U9: =SUM(R9:T9) -> 0 | V9: 0 | W9: 0 | X9: 0
A10: ='Org structure'!E6 -> 01.4 - Mpac | C10: 0 | D10: 0 | E10: 0 | F10: 0 | G10: 0 | H10: 0 | I10: 0 | J10: =Q10+V10 -> 0 | K10: =U10+W10 -> 0 | L10: =X10 -> 0 | N10: 0 | O10: 0 | P10: 0 | Q10: =SUM(N10:P10) -> 0 | R10: 0 | S10: 0 | T10: 0 | U10: =SUM(R10:T10) -> 0 | V10: 0 | W10: 0 | X10: 0
A11: ='Org structure'!E7 -> 01.5 - Council General Administration | C11: 0 | D11: 0 | E11: 0 | F11: 0 | G11: 0 | H11: 0 | I11: 0 | J11: =Q11+V11 -> 0 | K11: =U11+W11 -> 0 | L11: =X11 -> 0 | N11: 0 | O11: 0 | P11: 0 | Q11: =SUM(N11:P11) -> 0 | R11: 0 | S11: 0 | T11: 0 | U11: =SUM(R11:T11) -> 0 | V11: 0 | W11: 0 | X11: 0
A12: ='Org structure'!A3 -> Vote 02 - Office Of The Accounting Officer | C12: =SUM(C13:C18) -> 0 | D12: 0 | E12: 0 | F12: 0 | G12: 0 | H12: 0 | I12: 0 | J12: 0 | K12: 0 | L12: 0 | N12: =SUM(N13:N18) -> 0 | O12: 0 | P12: 0 | Q12: 0 | R12: 0 | S12: 0 | T12: 0 | U12: 0 | V12: 0 | W12: 0 | X12: 0
A13: ='Org structure'!E9 -> 02.1 - Office Of The Ao Admin | C13: 0 | D13: 0 | E13: 0 | F13: 0 | G13: 0 | H13: 0 | I13: 0 | J13: =Q13+V13 -> 0 | K13: =U13+W13 -> 0 | L13: =X13 -> 0 | N13: 0 | O13: 0 | P13: 0 | Q13: =SUM(N13:P13) -> 0 | R13: 0 | S13: 0 | T13: 0 | U13: =SUM(R13:T13) -> 0 | V13: 0 | W13: 0 | X13: 0
A14: ='Org structure'!E10 -> 02.2 - Strategic Planning Monitoring & Evaluat | C14: 0 | D14: 0 | E14: 0 | F14: 0 | G14: 0 | H14: 0 | I14: 0 | J14: 0 | K14: 0 | L14: 0 | N14: 0 | O14: 0 | P14: 0 | Q14: 0 | R14: 0 | S14: 0 | T14: 0 | U14: 0 | V14: 0 | W14: 0 | X14: 0
A15: ='Org structure'!E11 -> 02.3 - Perfomance Management System | C15: 0 | D15: 0 | E15: 0 | F15: 0 | G15: 0 | H15: 0 | I15: 0 | J15: 0 | K15: 0 | L15: 0 | N15: 0 | O15: 0 | P15: 0 | Q15: 0 | R15: 0 | S15: 0 | T15: 0 | U15: 0 | V15: 0 | W15: 0 | X15: 0
A16: ='Org structure'!E12 -> 02.4 - Internal Audit | C16: 0 | D16: 0 | E16: 0 | F16: 0 | G16: 0 | H16: 0 | I16: 0 | J16: 0 | K16: 0 | L16: 0 | N16: 0 | O16: 0 | P16: 0 | Q16: 0 | R16: 0 | S16: 0 | T16: 0 | U16: 0 | V16: 0 | W16: 0 | X16: 0
A17: ='Org structure'!E13 -> 02.5 - Municipal Planning Idp | C17: 0 | D17: 0 | E17: 0 | F17: 0 | G17: 0 | H17: 0 | I17: 0 | J17: 0 | K17: 0 | L17: 0 | N17: 0 | O17: 0 | P17: 0 | Q17: 0 | R17: 0 | S17: 0 | T17: 0 | U17: 0 | V17: 0 | W17: 0 | X17: 0
A18: ='Org structure'!E14 -> 02.6 - Risk | C18: 0 | D18: 0 | E18: 0 | F18: 0 | G18: 0 | H18: 0 | I18: 0 | J18: 0 | K18: 0 | L18: 0 | N18: 0 | O18: 0 | P18: 0 | Q18: 0 | R18: 0 | S18: 0 | T18: 0 | U18: 0 | V18: 0 | W18: 0 | X18: 0
A19: ='Org structure'!A4 -> Vote 03 - Budget And Treasury Office | C19: =SUM(C20:C26) -> 0 | D19: 0 | E19: 0 | F19: 300000 | G19: 300000 | H19: 300000 | I19: 300000 | J19: 100000 | K19: 100000 | L19: 100000 | N19: =SUM(N20:N26) -> 0 | O19: 0 | P19: 0 | Q19: 0 | R19: 0 | S19: 0 | T19: 0 | U19: 0 | V19: 100000 | W19: 100000 | X19: 100000
A20: ='Org structure'!E16 -> 03.1 - Chief Financial Officer Admin | C20: 0 | D20: 0 | E20: 0 | F20: 0 | G20: 0 | H20: 0 | I20: 0 | J20: =Q20+V20 -> 0 | K20: =U20+W20 -> 0 | L20: =X20 -> 0 | N20: 0 | O20: 0 | P20: 0 | Q20: =SUM(N20:P20) -> 0 | R20: 0 | S20: 0 | T20: 0 | U20: =SUM(R20:T20) -> 0 | V20: 0 | W20: 0 | X20: 0
A21: ='Org structure'!E17 -> 03.2 - Budget Expenditure & Reporting | C21: 0 | D21: 0 | E21: 0 | F21: 300000 | G21: 300000 | H21: 300000 | I21: 300000 | J21: 100000 | K21: 100000 | L21: 100000 | N21: 0 | O21: 0 | P21: 0 | Q21: 0 | R21: 0 | S21: 0 | T21: 0 | U21: 0 | V21: 100000 | W21: 100000 | X21: 100000
A22: ='Org structure'!E18 -> 03.3 - Budget Expenditure & Reporting | C22: 0 | D22: 0 | E22: 0 | F22: 0 | G22: 0 | H22: 0 | I22: 0 | J22: 0 | K22: 0 | L22: 0 | N22: 0 | O22: 0 | P22: 0 | Q22: 0 | R22: 0 | S22: 0 | T22: 0 | U22: 0 | V22: 0 | W22: 0 | X22: 0
A23: ='Org structure'!E19 -> 03.4 - Revenue Management | C23: 0 | D23: 0 | E23: 0 | F23: 0 | G23: 0 | H23: 0 | I23: 0 | J23: 0 | K23: 0 | L23: 0 | N23: 0 | O23: 0 | P23: 0 | Q23: 0 | R23: 0 | S23: 0 | T23: 0 | U23: 0 | V23: 0 | W23: 0 | X23: 0
A24: ='Org structure'!E20 -> 03.5 - Supply Chain Management | C24: 0 | D24: 0 | E24: 0 | F24: 0 | G24: 0 | H24: 0 | I24: 0 | J24: 0 | K24: 0 | L24: 0 | N24: 0 | O24: 0 | P24: 0 | Q24: 0 | R24: 0 | S24: 0 | T24: 0 | U24: 0 | V24: 0 | W24: 0 | X24: 0
A25: ='Org structure'!E21 -> 03.6 - Assets Management | C25: 0 | D25: 0 | E25: 0 | F25: 0 | G25: 0 | H25: 0 | I25: 0 | J25: 0 | K25: 0 | L25: 0 | N25: 0 | O25: 0 | P25: 0 | Q25: 0 | R25: 0 | S25: 0 | T25: 0 | U25: 0 | V25: 0 | W25: 0 | X25: 0
A26: ='Org structure'!E22 -> 03.7 - Expenditure | C26: 0 | D26: 0 | E26: 0 | F26: 0 | G26: 0 | H26: 0 | I26: 0 | J26: 0 | K26: 0 | L26: 0 | N26: 0 | O26: 0 | P26: 0 | Q26: 0 | R26: 0 | S26: 0 | T26: 0 | U26: 0 | V26: 0 | W26: 0 | X26: 0
A27: ='Org structure'!A5 -> Vote 04 - Corporate Services | C27: =SUM(C28:C35) -> 119509474 | D27: 46269000 | E27: 85629000 | F27: 2200000 | G27: 1200000 | H27: 1200000 | I27: 1200000 | J27: 550000 | K27: 550000 | L27: 550000 | N27: =SUM(N28:N35) -> 0 | O27: 0 | P27: 0 | Q27: 0 | R27: 0 | S27: 0 | T27: 0 | U27: 0 | V27: 550000 | W27: 550000 | X27: 550000
A28: ='Org structure'!E24 -> 04.1 - Legal Services | C28: 0 | D28: 0 | E28: 0 | F28: 0 | G28: 0 | H28: 0 | I28: 0 | J28: =Q28+V28 -> 0 | K28: =U28+W28 -> 0 | L28: =X28 -> 0 | N28: 0 | O28: 0 | P28: 0 | Q28: =SUM(N28:P28) -> 0 | R28: 0 | S28: 0 | T28: 0 | U28: =SUM(R28:T28) -> 0 | V28: 0 | W28: 0 | X28: 0
A29: ='Org structure'!E25 -> 04.2 - Corporate Service Administration | C29: 546000 | E29: =14105000+3017000 -> 17122000 | F29: 1200000 | G29: 700000 | H29: 700000 | I29: 700000 | J29: 300000 | K29: 300000 | L29: 300000 | N29: 0 | O29: 0 | P29: 0 | Q29: 0 | R29: 0 | S29: 0 | T29: 0 | U29: 0 | V29: 300000 | W29: 300000 | X29: 300000
A30: ='Org structure'!E26 -> 04.3 - Human Resources | C30: 12317474 | D30: 10000000 | E30: 0 | F30: 0 | G30: 0 | H30: 0 | I30: 0 | J30: 0 | K30: 0 | L30: 0 | N30: 0 | O30: 0 | P30: 0 | Q30: 0 | R30: 0 | S30: 0 | T30: 0 | U30: 0 | V30: 0 | W30: 0 | X30: 0
A31: ='Org structure'!E27 -> 04.4 - Media & Communication | D31: 0 | E31: 0 | F31: 0 | G31: 0 | H31: 0 | I31: 0 | J31: 0 | K31: 0 | L31: 0 | N31: 0 | O31: 0 | P31: 0 | Q31: 0 | R31: 0 | S31: 0 | T31: 0 | U31: 0 | V31: 0 | W31: 0 | X31: 0
A32: ='Org structure'!E28 -> 04.5 - Organisational Development | C32: 0 | D32: 0 | E32: 0 | F32: 0 | G32: 0 | H32: 0 | I32: 0 | J32: 0 | K32: 0 | L32: 0 | N32: 0 | O32: 0 | P32: 0 | Q32: 0 | R32: 0 | S32: 0 | T32: 0 | U32: 0 | V32: 0 | W32: 0 | X32: 0
A33: ='Org structure'!E29 -> 04.6 - Labour Relations | C33: 0 | D33: 0 | E33: 0 | F33: 0 | G33: 0 | H33: 0 | I33: 0 | J33: 0 | K33: 0 | L33: 0 | N33: 0 | O33: 0 | P33: 0 | Q33: 0 | R33: 0 | S33: 0 | T33: 0 | U33: 0 | V33: 0 | W33: 0 | X33: 0
A34: ='Org structure'!E30 -> 04.7 - Legal Services | C34: 0 | D34: 0 | E34: 0 | F34: 0 | G34: 0 | H34: 0 | I34: 0 | J34: 0 | K34: 0 | L34: 0 | N34: 0 | O34: 0 | P34: 0 | Q34: 0 | R34: 0 | S34: 0 | T34: 0 | U34: 0 | V34: 0 | W34: 0 | X34: 0
A35: ='Org structure'!E31 -> 04.8 - Information Technology Services | C35: 106646000 | D35: 36269000 | E35: 68507000 | F35: 1000000 | G35: 500000 | H35: 500000 | I35: 500000 | J35: 250000 | K35: 250000 | L35: 250000 | N35: 0 | O35: 0 | P35: 0 | Q35: 0 | R35: 0 | S35: 0 | T35: 0 | U35: 0 | V35: 250000 | W35: 250000 | X35: 250000
A36: ='Org structure'!A6 -> Vote 05 - Community Services | C36: =SUM(C37:C50) -> 33935715 | D36: 7011000 | E36: 12773160.4 | F36: 46146000 | G36: 37375776 | H36: 37375876 | I36: 37375876 | J36: 30587000 | K36: 30064000 | L36: 27715000 | N36: =SUM(N37:N50) -> 0 | O36: 0 | P36: 0 | Q36: 0 | R36: 0 | S36: 0 | T36: 0 | U36: 0 | V36: 30587000 | W36: 30064000 | X36: 27715000
A37: ='Org structure'!E33 -> 05.1 - Municipal Buildings | C37: 0 | D37: 0 | E37: 0 | F37: 21474000 | G37: 23677000 | H37: 23677000 | I37: 23677000 | J37: =Q37+V37 -> 14590000 | K37: =U37+W37 -> 0 | L37: =X37 -> 8000000 | N37: 0 | O37: 0 | P37: 0 | Q37: =SUM(N37:P37) -> 0 | R37: 0 | S37: 0 | T37: 0 | U37: =SUM(R37:T37) -> 0 | V37: 14590000 | X37: 8000000
A38: ='Org structure'!E34 -> 05.2 - Fleet Management | C38: 0 | D38: 0 | E38: 0 | F38: 8000000 | G38: 0 | H38: 0 | I38: 0 | J38: 0 | K38: 0 | L38: 0 | N38: 0 | O38: 0 | P38: 0 | Q38: 0 | R38: 0 | S38: 0 | T38: 0 | U38: 0 | V38: 0 | W38: 0 | X38: 0
A39: ='Org structure'!E35 -> 05.3 - Community Services Administration | E39: 0 | F39: 0 | G39: 0 | H39: 0 | I39: 0 | J39: 0 | K39: 0 | L39: 0 | N39: 0 | O39: 0 | P39: 0 | Q39: 0 | R39: 0 | S39: 0 | T39: 0 | U39: 0 | V39: 0 | W39: 0 | X39: 0
A40: ='Org structure'!E36 -> 05.4 - Cemeteries | D40: 0 | E40: 0 | F40: 500000 | G40: 500000 | H40: 500000 | I40: 500000 | J40: 0 | K40: 0 | L40: 0 | N40: 0 | O40: 0 | P40: 0 | Q40: 0 | R40: 0 | S40: 0 | T40: 0 | U40: 0 | V40: 0 | W40: 0 | X40: 0
A41: ='Org structure'!E37 -> 05.5 - Disaster Management | D41: 0 | E41: 0 | F41: 0 | G41: 0 | H41: 0 | I41: 0 | J41: 0 | K41: 0 | L41: 0 | N41: 0 | O41: 0 | P41: 0 | Q41: 0 | R41: 0 | S41: 0 | T41: 0 | U41: 0 | V41: 0 | W41: 0 | X41: 0
A42: ='Org structure'!E38 -> 05.6 - Fires Service | D42: 0 | E42: 0 | F42: 0 | G42: 0 | H42: 0 | I42: 0 | J42: 0 | K42: 0 | L42: 0 | N42: 0 | O42: 0 | P42: 0 | Q42: 0 | R42: 0 | S42: 0 | T42: 0 | U42: 0 | V42: 0 | W42: 0 | X42: 0
A43: ='Org structure'!E39 -> 05.7 - Libraries | C43: 0 | D43: 0 | E43: 0 | F43: 0 | G43: 0 | H43: 0 | I43: 0 | J43: 0 | K43: 0 | L43: 0 | N43: 0 | O43: 0 | P43: 0 | Q43: 0 | R43: 0 | S43: 0 | T43: 0 | U43: 0 | V43: 0 | W43: 0 | X43: 0
A44: ='Org structure'!E40 -> 05.8 - Municipal Buildings | C44: 0 | D44: 7011000 | E44: 794000 | F44: 0 | G44: 0 | H44: 0 | I44: 0 | J44: 0 | K44: 0 | L44: 0 | N44: 0 | O44: 0 | P44: 0 | Q44: 0 | R44: 0 | S44: 0 | T44: 0 | U44: 0 | V44: 0 | W44: 0 | X44: 0
A45: ='Org structure'!E41 -> 05.9 - Sports Recreation & Social Amenitie | C45: 29303715 | D45: 0 | E45: 263000 | F45: 250000 | G45: 250000 | H45: 250000 | I45: 250000 | J45: 200000 | K45: 10064000 | L45: 200000 | N45: 0 | O45: 0 | P45: 0 | Q45: 0 | R45: 0 | S45: 0 | T45: 0 | U45: 0 | V45: 200000 | W45: 10064000 | X45: 200000
A46: ='Org structure'!E42 -> 05.10 - Waste Management Solid Waste | C46: 4632000 | D46: 0 | E46: 11716160 | F46: 11422000 | G46: 12448776 | H46: 12448876 | I46: 12448876 | J46: 15797000 | K46: 20000000 | L46: 19515000 | N46: 0 | O46: 0 | P46: 0 | Q46: 0 | R46: 0 | S46: 0 | T46: 0 | U46: 0 | V46: 15797000 | W46: 20000000 | X46: 19515000
A47: ='Org structure'!E43 -> 05.11 - Safety And Security | C47: 0 | D47: 0 | E47: 0.4 | F47: 4500000 | G47: 500000 | H47: 500000 | I47: 500000 | J47: 0 | K47: 0 | L47: 0 | N47: 0 | O47: 0 | P47: 0 | Q47: 0 | R47: 0 | S47: 0 | T47: 0 | U47: 0 | V47: 0 | W47: 0 | X47: 0
A48: ='Org structure'!E44 -> 05.12 - Traffic Service | C48: 0 | D48: 0 | E48: 0 | F48: 0 | G48: 0 | H48: 0 | I48: 0 | J48: 0 | K48: 0 | L48: 0 | N48: 0 | O48: 0 | P48: 0 | Q48: 0 | R48: 0 | S48: 0 | T48: 0 | U48: 0 | V48: 0 | W48: 0 | X48: 0
A49: ='Org structure'!E45 -> 05.13 - Traffic Service | C49: 0 | D49: 0 | E49: 0 | F49: 0 | G49: 0 | H49: 0 | I49: 0 | J49: 0 | K49: 0 | L49: 0 | N49: 0 | O49: 0 | P49: 0 | Q49: 0 | R49: 0 | S49: 0 | T49: 0 | U49: 0 | V49: 0 | W49: 0 | X49: 0
A50: ='Org structure'!E46 -> 05.14 - Fleet Management | C50: 0 | D50: 0 | E50: 0 | F50: 0 | G50: 0 | H50: 0 | I50: 0 | J50: 0 | K50: 0 | L50: 0 | N50: 0 | O50: 0 | P50: 0 | Q50: 0 | R50: 0 | S50: 0 | T50: 0 | U50: 0 | V50: 0 | W50: 0 | X50: 0
A51: ='Org structure'!A7 -> Vote 06 - Planning & Development | C51: =SUM(C52:C61) -> 0 | D51: 0 | E51: 0 | F51: 0 | G51: 0 | H51: 0 | I51: 0 | J51: 0 | K51: 0 | L51: 0 | N51: =SUM(N52:N61) -> 0 | O51: 0 | P51: 0 | Q51: 0 | R51: 0 | S51: 0 | T51: 0 | U51: 0 | V51: 0 | W51: 0 | X51: 0
A52: ='Org structure'!E48 -> 06.1 - Planning And Development Admin | C52: 0 | D52: 0 | E52: 0 | F52: 0 | G52: 0 | H52: 0 | I52: 0 | J52: =Q52+V52 -> 0 | K52: =U52+W52 -> 0 | L52: =X52 -> 0 | N52: 0 | O52: 0 | P52: 0 | Q52: =SUM(N52:P52) -> 0 | R52: 0 | S52: 0 | T52: 0 | U52: =SUM(R52:T52) -> 0 | V52: 0 | W52: 0 | X52: 0
A53: ='Org structure'!E49 -> 06.2 - Municipal Planning Idp | C53: 0 | D53: 0 | E53: 0 | F53: 0 | G53: 0 | H53: 0 | I53: 0 | J53: 0 | K53: 0 | L53: 0 | N53: 0 | O53: 0 | P53: 0 | Q53: 0 | R53: 0 | S53: 0 | T53: 0 | U53: 0 | V53: 0 | W53: 0 | X53: 0
A54: ='Org structure'!E50 -> 06.3 - Pms | C54: 0 | D54: 0 | E54: 0 | F54: 0 | G54: 0 | H54: 0 | I54: 0 | J54: 0 | K54: 0 | L54: 0 | N54: 0 | O54: 0 | P54: 0 | Q54: 0 | R54: 0 | S54: 0 | T54: 0 | U54: 0 | V54: 0 | W54: 0 | X54: 0
A55: ='Org structure'!E51 -> 06.4 - Town Planning | C55: 0 | D55: 0 | E55: 0 | F55: 0 | G55: 0 | H55: 0 | I55: 0 | J55: 0 | K55: 0 | L55: 0 | N55: 0 | O55: 0 | P55: 0 | Q55: 0 | R55: 0 | S55: 0 | T55: 0 | U55: 0 | V55: 0 | W55: 0 | X55: 0
A56: ='Org structure'!E52 -> 06.5 - Land Use And Housing Admin | C56: 0 | D56: 0 | E56: 0 | F56: 0 | G56: 0 | H56: 0 | I56: 0 | J56: 0 | K56: 0 | L56: 0 | N56: 0 | O56: 0 | P56: 0 | Q56: 0 | R56: 0 | S56: 0 | T56: 0 | U56: 0 | V56: 0 | W56: 0 | X56: 0
A57: ='Org structure'!E53 -> 06.6 - Local Economic Development | C57: 0 | D57: 0 | E57: 0 | F57: 0 | G57: 0 | H57: 0 | I57: 0 | J57: 0 | K57: 0 | L57: 0 | N57: 0 | O57: 0 | P57: 0 | Q57: 0 | R57: 0 | S57: 0 | T57: 0 | U57: 0 | V57: 0 | W57: 0 | X57: 0
A58: ='Org structure'!E54 -> 06.7 - Led | C58: 0 | D58: 0 | E58: 0 | F58: 0 | G58: 0 | H58: 0 | I58: 0 | J58: 0 | K58: 0 | L58: 0 | N58: 0 | O58: 0 | P58: 0 | Q58: 0 | R58: 0 | S58: 0 | T58: 0 | U58: 0 | V58: 0 | W58: 0 | X58: 0
A59: ='Org structure'!E55 -> 06.8 - Agriculture & Rural Development | C59: 0 | D59: 0 | E59: 0 | F59: 0 | G59: 0 | H59: 0 | I59: 0 | J59: 0 | K59: 0 | L59: 0 | N59: 0 | O59: 0 | P59: 0 | Q59: 0 | R59: 0 | S59: 0 | T59: 0 | U59: 0 | V59: 0 | W59: 0 | X59: 0
A60: ='Org structure'!E56 -> 06.9 - Tourism & Business Development | C60: 0 | D60: 0 | E60: 0 | F60: 0 | G60: 0 | H60: 0 | I60: 0 | J60: 0 | K60: 0 | L60: 0 | N60: 0 | O60: 0 | P60: 0 | Q60: 0 | R60: 0 | S60: 0 | T60: 0 | U60: 0 | V60: 0 | W60: 0 | X60: 0
A61: ='Org structure'!E57 -> 06.10 - Arts & Culture | C61: 0 | D61: 0 | E61: 0 | F61: 0 | G61: 0 | H61: 0 | I61: 0 | J61: 0 | K61: 0 | L61: 0 | N61: 0 | O61: 0 | P61: 0 | Q61: 0 | R61: 0 | S61: 0 | T61: 0 | U61: 0 | V61: 0 | W61: 0 | X61: 0
A62: ='Org structure'!A8 -> Vote 07 - Infrastructure & Technical Services | C62: =SUM(C63:C81) -> 133565948 | D62: 1810000 | E62: 231956328 | F62: 193087571 | G62: 213208000 | H62: 213208000 | I62: 213208000 | J62: 169137360 | K62: 181057000 | L62: 198773000 | N62: =SUM(N63:N81) -> 0 | O62: 0 | P62: 0 | Q62: 0 | R62: 0 | S62: 0 | T62: 0 | U62: 0 | V62: 169137360 | W62: 181057000 | X62: 198773000
A63: ='Org structure'!E59 -> 07.1 - Infrastructure Admin & Tech Admin | C63: 0 | D63: 0 | E63: 0 | F63: 0 | G63: 0 | H63: 0 | I63: 0 | J63: =Q63+V63 -> 0 | K63: =U63+W63 -> 0 | L63: =X63 -> 0 | N63: 0 | O63: 0 | P63: 0 | Q63: =SUM(N63:P63) -> 0 | R63: 0 | S63: 0 | T63: 0 | U63: =SUM(R63:T63) -> 0 | V63: 0 | W63: 0 | X63: 0
A64: ='Org structure'!E60 -> 07.2 - Fleet Management | C64: 0 | D64: 0 | E64: 0 | F64: 0 | G64: 0 | H64: 0 | I64: 0 | J64: 0 | K64: 0 | L64: 0 | N64: 0 | O64: 0 | P64: 0 | Q64: 0 | R64: 0 | S64: 0 | T64: 0 | U64: 0 | V64: 0 | W64: 0 | X64: 0
A65: ='Org structure'!E61 -> 07.3 - Roads | C65: 65901000 | D65: 0 | E65: 91682000 | F65: 48597571 | G65: 55029000 | H65: 55029000 | I65: 55029000 | J65: 62193000 | K65: 54425000 | L65: 60000000 | N65: 0 | O65: 0 | P65: 0 | Q65: 0 | R65: 0 | S65: 0 | T65: 0 | U65: 0 | V65: 62193000 | W65: 54425000 | X65: 60000000
A66: ='Org structure'!E62 -> 07.4 - Storm Water | F66: 0 | G66: 0 | H66: 0 | I66: 0 | J66: 0 | K66: 0 | L66: 0 | N66: 0 | O66: 0 | P66: 0 | Q66: 0 | R66: 0 | S66: 0 | T66: 0 | U66: 0 | V66: 0 | W66: 0 | X66: 0
A67: ='Org structure'!E63 -> 07.5 - Street Lighting | C67: 10706000 | D67: 0 | E67: 13666000 | F67: 9800000 | G67: 11350000 | H67: 11350000 | I67: 11350000 | J67: 18017904 | K67: 8639000 | L67: 12557000 | N67: 0 | O67: 0 | P67: 0 | Q67: 0 | R67: 0 | S67: 0 | T67: 0 | U67: 0 | V67: 18017904 | W67: 8639000 | X67: 12557000
A68: ='Org structure'!E64 -> 07.6 - Project Management Unit | E68: 0 | F68: 0 | G68: 0 | H68: 0 | I68: 0 | J68: 0 | K68: 0 | L68: 0 | N68: 0 | O68: 0 | P68: 0 | Q68: 0 | R68: 0 | S68: 0 | T68: 0 | U68: 0 | V68: 0 | W68: 0 | X68: 0
A69: ='Org structure'!E65 -> 07.7 - Sanitation Treatment Plant: Mogwase | E69: 0 | F69: 0 | G69: 0 | H69: 0 | I69: 0 | J69: 0 | K69: 0 | L69: 0 | N69: 0 | O69: 0 | P69: 0 | Q69: 0 | R69: 0 | S69: 0 | T69: 0 | U69: 0 | V69: 0 | W69: 0 | X69: 0
A70: ='Org structure'!E66 -> 07.8 - Sanitation Treatment Plant: Madikwe | D70: 0 | E70: 0 | F70: 0 | G70: 0 | H70: 0 | I70: 0 | J70: 0 | K70: 0 | L70: 0 | N70: 0 | O70: 0 | P70: 0 | Q70: 0 | R70: 0 | S70: 0 | T70: 0 | U70: 0 | V70: 0 | W70: 0 | X70: 0
A71: ='Org structure'!E67 -> 07.9 - Sanitation Reticulation | C71: 13142962 | D71: 0 | E71: =295456+295456 -> 590912 | F71: 27000000 | G71: 27558000 | H71: 27558000 | I71: 27558000 | J71: 24111456 | K71: 9136000 | L71: 25000000 | N71: 0 | O71: 0 | P71: 0 | Q71: 0 | R71: 0 | S71: 0 | T71: 0 | U71: 0 | V71: 24111456 | W71: 9136000 | X71: 25000000
A72: ='Org structure'!E68 -> 07.10 - Water Administration | C72: 43815986 | D72: 1810000 | E72: =40648569+85368847 -> 126017416 | F72: 107690000 | G72: 119271000 | H72: 119271000 | I72: 119271000 | J72: 64815000 | K72: 108857000 | L72: 101216000 | N72: 0 | O72: 0 | P72: 0 | Q72: 0 | R72: 0 | S72: 0 | T72: 0 | U72: 0 | V72: 64815000 | W72: 108857000 | X72: 101216000
A73: ='Org structure'!E69 -> 07.11 - Water Madikwe: Water Treatment Work | C73: 0 | D73: 0 | E73: 0 | F73: 0 | G73: 0 | H73: 0 | I73: 0 | J73: 0 | K73: 0 | L73: 0 | N73: 0 | O73: 0 | P73: 0 | Q73: 0 | R73: 0 | S73: 0 | T73: 0 | U73: 0 | V73: 0 | W73: 0 | X73: 0
A74: ='Org structure'!E70 -> 07.12 - Water: Pella Water Treatment Works | C74: 0 | D74: 0 | E74: 0 | F74: 0 | G74: 0 | H74: 0 | I74: 0 | J74: 0 | K74: 0 | L74: 0 | N74: 0 | O74: 0 | P74: 0 | Q74: 0 | R74: 0 | S74: 0 | T74: 0 | U74: 0 | V74: 0 | W74: 0 | X74: 0
A75: ='Org structure'!E71 -> 07.13 - Water: Madikwe Retail & Bulk Lines | C75: 0 | D75: 0 | E75: 0 | F75: 0 | G75: 0 | H75: 0 | I75: 0 | J75: 0 | K75: 0 | L75: 0 | N75: 0 | O75: 0 | P75: 0 | Q75: 0 | R75: 0 | S75: 0 | T75: 0 | U75: 0 | V75: 0 | W75: 0 | X75: 0
A76: ='Org structure'!E72 -> 07.14 - Water: Madikwe Rural | C76: 0 | D76: 0 | E76: 0 | F76: 0 | G76: 0 | H76: 0 | I76: 0 | J76: 0 | K76: 0 | L76: 0 | N76: 0 | O76: 0 | P76: 0 | Q76: 0 | R76: 0 | S76: 0 | T76: 0 | U76: 0 | V76: 0 | W76: 0 | X76: 0
A77: ='Org structure'!E73 -> 07.15 - Water: Molatedi | C77: 0 | D77: 0 | E77: 0 | F77: 0 | G77: 0 | H77: 0 | I77: 0 | J77: 0 | K77: 0 | L77: 0 | N77: 0 | O77: 0 | P77: 0 | Q77: 0 | R77: 0 | S77: 0 | T77: 0 | U77: 0 | V77: 0 | W77: 0 | X77: 0
A78: ='Org structure'!E74 -> 07.16 - Water Eastern: Retail Mankwe | C78: 0 | D78: 0 | E78: 0 | F78: 0 | G78: 0 | H78: 0 | I78: 0 | J78: 0 | K78: 0 | L78: 0 | N78: 0 | O78: 0 | P78: 0 | Q78: 0 | R78: 0 | S78: 0 | T78: 0 | U78: 0 | V78: 0 | W78: 0 | X78: 0
A79: ='Org structure'!E75 -> 07.17 - Water Vaalkopdam: Mankwe | C79: 0 | D79: 0 | E79: 0 | F79: 0 | G79: 0 | H79: 0 | I79: 0 | J79: 0 | K79: 0 | L79: 0 | N79: 0 | O79: 0 | P79: 0 | Q79: 0 | R79: 0 | S79: 0 | T79: 0 | U79: 0 | V79: 0 | W79: 0 | X79: 0
A80: ='Org structure'!E76 -> 07.18 - Water Eastern: Retail Mankwe | C80: 0 | D80: 0 | E80: 0 | F80: 0 | G80: 0 | H80: 0 | I80: 0 | J80: 0 | K80: 0 | L80: 0 | N80: 0 | O80: 0 | P80: 0 | Q80: 0 | R80: 0 | S80: 0 | T80: 0 | U80: 0 | V80: 0 | W80: 0 | X80: 0
A81: ='Org structure'!E77 -> 07.19 - Reporting Function Electricity | C81: 0 | D81: 0 | E81: 0 | F81: 0 | G81: 0 | H81: 0 | I81: 0 | J81: 0 | K81: 0 | L81: 0 | N81: 0 | O81: 0 | P81: 0 | Q81: 0 | R81: 0 | S81: 0 | T81: 0 | U81: 0 | V81: 0 | W81: 0 | X81: 0
A82: ='Org structure'!A9 -> Vote 08 - | C82: 0 | D82: 0 | E82: 0 | F82: 0 | G82: 0 | H82: 0 | I82: 0 | J82: 0 | K82: 0 | L82: 0 | N82: 0 | O82: 0 | P82: 0 | Q82: 0 | R82: 0 | S82: 0 | T82: 0 | U82: 0 | V82: 0 | W82: 0
A83: ='Org structure'!A10 -> Vote 09 - | C83: 0 | D83: 0 | E83: 0 | F83: 0 | G83: 0 | H83: 0 | I83: 0 | J83: 0 | K83: 0 | L83: 0 | N83: 0 | O83: 0 | P83: 0 | Q83: 0 | R83: 0 | S83: 0 | T83: 0 | U83: 0 | V83: 0 | W83: 0
A84: ='Org structure'!A11 -> Vote 10 - | C84: 0 | D84: 0 | E84: 0 | F84: 0 | G84: 0 | H84: 0 | I84: 0 | J84: 0 | K84: 0 | L84: 0 | N84: 0 | O84: 0 | P84: 0 | Q84: 0 | R84: 0 | S84: 0 | T84: 0 | U84: 0 | V84: 0 | W84: 0
A85: ='Org structure'!A12 -> Vote 11 - | C85: 0 | D85: 0 | E85: 0 | F85: 0 | G85: 0 | H85: 0 | I85: 0 | J85: 0 | K85: 0 | L85: 0 | N85: 0 | O85: 0 | P85: 0 | Q85: 0 | R85: 0 | S85: 0 | T85: 0 | U85: 0 | V85: 0 | W85: 0
A86: ='Org structure'!A13 -> Vote 12 - | C86: 0 | D86: 0 | E86: 0 | F86: 0 | G86: 0 | H86: 0 | I86: 0 | J86: 0 | K86: 0 | L86: 0 | N86: 0 | O86: 0 | P86: 0 | Q86: 0 | R86: 0 | S86: 0 | T86: 0 | U86: 0 | V86: 0 | W86: 0
A87: ='Org structure'!A14 -> Vote 13 - | C87: 0 | D87: 0 | E87: 0 | F87: 0 | G87: 0 | H87: 0 | I87: 0 | J87: 0 | K87: 0 | L87: 0 | N87: 0 | O87: 0 | P87: 0 | Q87: 0 | R87: 0 | S87: 0 | T87: 0 | U87: 0 | V87: 0 | W87: 0
A88: ='Org structure'!A15 -> Vote 14 - | C88: 0 | D88: 0 | E88: 0 | F88: 0 | G88: 0 | H88: 0 | I88: 0 | J88: 0 | K88: 0 | L88: 0 | N88: 0 | O88: 0 | P88: 0 | Q88: 0 | R88: 0 | S88: 0 | T88: 0 | U88: 0 | V88: 0 | W88: 0
A89: ='Org structure'!A16 -> Vote 15 - Other | C89: 0 | D89: 0 | E89: 0 | F89: 0 | G89: 0 | H89: 0 | I89: 0 | J89: 0 | K89: 0 | L89: 0 | N89: 0 | O89: 0 | P89: 0 | Q89: 0 | R89: 0 | S89: 0 | T89: 0 | U89: 0 | V89: 0 | W89: 0
A90: Capital multi-year expenditure sub-total | C90: =C6+C12+C19+C27+C36+C51+C62+C82+C83+C84+C85+C86+C87+C88+C89 -> 287011137 | D90: 55090000 | E90: 330358488.4 | F90: 241733571 | G90: 252083776 | H90: 252083876 | I90: 252083876 | J90: 200374360 | K90: 211771000 | L90: 227138000 | N90: =N6+N12+N19+N27+N36+N51+N62+N82+N83+N84+N85+N86+N87+N88+N89 -> 0 | O90: 0 | P90: 0 | Q90: 0 | R90: 0 | S90: 0 | T90: 0 | U90: 0 | V90: 200374360 | W90: 211771000 | X90: 227138000
A92: Capital expenditure - Municipal Vote
A93: Single-year expenditure appropriation | B93: 2
A94: ='Org structure'!A2 -> Vote 01 - Municipal Council | C94: =SUM(C95:C99) -> 0 | D94: 0 | E94: 0 | F94: 0 | G94: 0 | H94: 0 | I94: 0 | J94: 0 | K94: 0 | L94: 0
A95: ='Org structure'!E3 -> 01.1 - Office Of The Mayor | C95: 0 | D95: 0 | E95: 0 | F95: 0 | G95: 0 | H95: 0 | I95: 0 | J95: 0 | K95: 0 | L95: 0
A96: ='Org structure'!E4 -> 01.2 - Office Of The Speaker | C96: 0 | D96: 0 | E96: 0 | F96: 0 | G96: 0 | H96: 0 | I96: 0 | J96: 0 | K96: 0 | L96: 0
A97: ='Org structure'!E5 -> 01.3 - Office Of The Chief Whip | C97: 0 | D97: 0 | E97: 0 | F97: 0 | G97: 0 | H97: 0 | I97: 0 | J97: 0 | K97: 0 | L97: 0
A98: ='Org structure'!E6 -> 01.4 - Mpac | C98: 0 | D98: 0 | E98: 0 | F98: 0 | G98: 0 | H98: 0 | I98: 0 | J98: 0 | K98: 0 | L98: 0
A99: ='Org structure'!E7 -> 01.5 - Council General Administration | C99: 0 | D99: 0 | E99: 0 | F99: 0 | G99: 0 | H99: 0 | I99: 0 | J99: 0 | K99: 0 | L99: 0
A100: ='Org structure'!A3 -> Vote 02 - Office Of The Accounting Officer | C100: =SUM(C101:C106) -> 0 | D100: 0 | E100: 0 | F100: 0 | G100: 0 | H100: 0 | I100: 0 | J100: 0 | K100: 0 | L100: 0
A101: ='Org structure'!E9 -> 02.1 - Office Of The Ao Admin | C101: 0 | D101: 0 | E101: 0 | F101: 0 | G101: 0 | H101: 0 | I101: 0 | J101: 0 | K101: 0 | L101: 0
A102: ='Org structure'!E10 -> 02.2 - Strategic Planning Monitoring & Evaluat | C102: 0 | D102: 0 | E102: 0 | F102: 0 | G102: 0 | H102: 0 | I102: 0 | J102: 0 | K102: 0 | L102: 0
A103: ='Org structure'!E11 -> 02.3 - Perfomance Management System | C103: 0 | D103: 0 | E103: 0 | F103: 0 | G103: 0 | H103: 0 | I103: 0 | J103: 0 | K103: 0 | L103: 0
A104: ='Org structure'!E12 -> 02.4 - Internal Audit | C104: 0 | D104: 0 | E104: 0 | F104: 0 | G104: 0 | H104: 0 | I104: 0 | J104: 0 | K104: 0 | L104: 0
A105: ='Org structure'!E13 -> 02.5 - Municipal Planning Idp | C105: 0 | D105: 0 | E105: 0 | F105: 0 | G105: 0 | H105: 0 | I105: 0 | J105: 0 | K105: 0 | L105: 0
A106: ='Org structure'!E14 -> 02.6 - Risk | C106: 0 | D106: 0 | E106: 0 | F106: 0 | G106: 0 | H106: 0 | I106: 0 | J106: 0 | K106: 0 | L106: 0
A107: ='Org structure'!A4 -> Vote 03 - Budget And Treasury Office | C107: =SUM(C108:C114) -> 0 | D107: 0 | E107: 0 | F107: 0 | G107: 0 | H107: 0 | I107: 0 | J107: 0 | K107: 0 | L107: 0
A108: ='Org structure'!E16 -> 03.1 - Chief Financial Officer Admin | C108: 0 | D108: 0 | E108: 0 | F108: 0 | G108: 0 | H108: 0 | I108: 0 | J108: 0 | K108: 0 | L108: 0
A109: ='Org structure'!E17 -> 03.2 - Budget Expenditure & Reporting | C109: 0 | D109: 0 | E109: 0 | F109: 0 | G109: 0 | H109: 0 | I109: 0 | J109: 0 | K109: 0 | L109: 0
A110: ='Org structure'!E18 -> 03.3 - Budget Expenditure & Reporting | C110: 0 | D110: 0 | E110: 0 | F110: 0 | G110: 0 | H110: 0 | I110: 0 | J110: 0 | K110: 0 | L110: 0
A111: ='Org structure'!E19 -> 03.4 - Revenue Management | C111: 0 | D111: 0 | I111: 0 | J111: 0 | K111: 0 | L111: 0
A112: ='Org structure'!E20 -> 03.5 - Supply Chain Management | C112: 0 | D112: 0 | E112: 0 | F112: 0 | G112: 0 | H112: 0 | I112: 0 | J112: 0 | K112: 0 | L112: 0
A113: ='Org structure'!E21 -> 03.6 - Assets Management | C113: 0 | D113: 0 | E113: 0 | F113: 0 | G113: 0 | H113: 0 | I113: 0 | J113: 0 | K113: 0 | L113: 0
A114: ='Org structure'!E22 -> 03.7 - Expenditure | C114: 0 | D114: 0 | E114: 0 | F114: 0 | G114: 0 | H114: 0 | I114: 0 | J114: 0 | K114: 0 | L114: 0
A115: ='Org structure'!A5 -> Vote 04 - Corporate Services | C115: =SUM(C116:C123) -> 0 | D115: 0 | E115: 0 | F115: 0 | G115: 0 | H115: 0 | I115: 0 | J115: 0 | K115: 0 | L115: 0
A116: ='Org structure'!E24 -> 04.1 - Legal Services | C116: 0 | D116: 0 | E116: 0 | F116: 0 | G116: 0 | H116: 0 | I116: 0 | J116: 0 | K116: 0 | L116: 0
A117: ='Org structure'!E25 -> 04.2 - Corporate Service Administration | C117: 0 | D117: 0 | E117: 0 | F117: 0 | G117: 0 | H117: 0 | I117: 0 | J117: 0 | K117: 0 | L117: 0
A118: ='Org structure'!E26 -> 04.3 - Human Resources | C118: 0 | D118: 0 | E118: 0 | F118: 0 | G118: 0 | H118: 0 | I118: 0 | J118: 0 | K118: 0 | L118: 0
A119: ='Org structure'!E27 -> 04.4 - Media & Communication | C119: 0 | D119: 0 | E119: 0 | F119: 0 | G119: 0 | H119: 0 | I119: 0 | J119: 0 | K119: 0 | L119: 0
A120: ='Org structure'!E28 -> 04.5 - Organisational Development | C120: 0 | D120: 0 | E120: 0 | F120: 0 | G120: 0 | H120: 0 | I120: 0 | J120: 0 | K120: 0 | L120: 0
A121: ='Org structure'!E29 -> 04.6 - Labour Relations | C121: 0 | D121: 0 | E121: 0 | F121: 0 | G121: 0 | H121: 0 | I121: 0 | J121: 0 | K121: 0 | L121: 0
A122: ='Org structure'!E30 -> 04.7 - Legal Services | C122: 0 | D122: 0 | E122: 0 | F122: 0 | G122: 0 | H122: 0 | I122: 0 | J122: 0 | K122: 0 | L122: 0
A123: ='Org structure'!E31 -> 04.8 - Information Technology Services | C123: 0 | D123: 0 | E123: 0 | F123: 0 | G123: 0 | H123: 0 | I123: 0 | J123: 0 | K123: 0 | L123: 0
A124: ='Org structure'!A6 -> Vote 05 - Community Services | C124: =SUM(C125:C138) -> 0 | D124: 0 | E124: 0 | F124: 0 | G124: 0 | H124: 0 | I124: 0 | J124: 0 | K124: 0 | L124: 0
A125: ='Org structure'!E33 -> 05.1 - Municipal Buildings | C125: 0 | D125: 0 | E125: 0 | J125: 0 | K125: 0 | L125: 0
A126: ='Org structure'!E34 -> 05.2 - Fleet Management | C126: 0 | D126: 0 | E126: 0 | I126: 0 | J126: 0 | K126: 0 | L126: 0
A127: ='Org structure'!E35 -> 05.3 - Community Services Administration | C127: 0 | D127: 0 | E127: 0 | F127: 0 | G127: 0 | H127: 0 | I127: 0 | J127: 0 | K127: 0 | L127: 0
A128: ='Org structure'!E36 -> 05.4 - Cemeteries | C128: 0 | D128: 0 | E128: 0 | F128: 0 | G128: 0 | H128: 0 | I128: 0 | J128: 0 | K128: 0 | L128: 0
A129: ='Org structure'!E37 -> 05.5 - Disaster Management | C129: 0 | D129: 0 | E129: 0 | F129: 0 | G129: 0 | H129: 0 | I129: 0 | J129: 0 | K129: 0 | L129: 0
A130: ='Org structure'!E38 -> 05.6 - Fires Service | C130: 0 | D130: 0 | E130: 0 | F130: 0 | G130: 0 | H130: 0 | I130: 0 | J130: 0 | K130: 0 | L130: 0
A131: ='Org structure'!E39 -> 05.7 - Libraries | C131: 0 | D131: 0 | E131: 0 | F131: 0 | G131: 0 | H131: 0 | I131: 0 | J131: 0 | K131: 0 | L131: 0
A132: ='Org structure'!E40 -> 05.8 - Municipal Buildings | C132: 0 | D132: 0 | E132: 0 | F132: 0 | G132: 0 | H132: 0 | I132: 0 | J132: 0 | K132: 0 | L132: 0
A133: ='Org structure'!E41 -> 05.9 - Sports Recreation & Social Amenitie | C133: 0 | D133: 0 | E133: 0 | F133: 0 | G133: 0 | H133: 0 | I133: 0 | J133: 0 | K133: 0 | L133: 0
A134: ='Org structure'!E42 -> 05.10 - Waste Management Solid Waste | C134: 0 | D134: 0 | F134: 0 | G134: 0 | H134: 0 | I134: 0 | J134: 0 | K134: 0 | L134: 0
A135: ='Org structure'!E43 -> 05.11 - Safety And Security | C135: 0 | D135: 0 | E135: 0 | F135: 0 | G135: 0 | H135: 0 | I135: 0 | J135: 0 | K135: 0 | L135: 0
A136: ='Org structure'!E44 -> 05.12 - Traffic Service | C136: 0 | D136: 0 | E136: 0 | F136: 0 | G136: 0 | H136: 0 | I136: 0 | J136: 0 | K136: 0 | L136: 0
A137: ='Org structure'!E45 -> 05.13 - Traffic Service | C137: 0 | D137: 0 | E137: 0 | F137: 0 | G137: 0 | H137: 0 | I137: 0 | J137: 0 | K137: 0 | L137: 0
A138: ='Org structure'!E46 -> 05.14 - Fleet Management | C138: 0 | D138: 0 | E138: 0 | F138: 0 | G138: 0 | H138: 0 | I138: 0 | J138: 0 | K138: 0 | L138: 0
A139: ='Org structure'!A7 -> Vote 06 - Planning & Development | C139: =SUM(C140:C149) -> 0 | D139: 0 | E139: 0 | F139: 0 | G139: 0 | H139: 0 | I139: 0 | J139: 0 | K139: 0 | L139: 0
A140: ='Org structure'!E48 -> 06.1 - Planning And Development Admin | C140: 0 | D140: 0 | E140: 0 | F140: 0 | G140: 0 | H140: 0 | I140: 0 | J140: 0 | K140: 0 | L140: 0
A141: ='Org structure'!E49 -> 06.2 - Municipal Planning Idp | C141: 0 | D141: 0 | E141: 0 | F141: 0 | G141: 0 | H141: 0 | I141: 0 | J141: 0 | K141: 0 | L141: 0
A142: ='Org structure'!E50 -> 06.3 - Pms | C142: 0 | D142: 0 | E142: 0 | F142: 0 | G142: 0 | H142: 0 | I142: 0 | J142: 0 | K142: 0 | L142: 0
A143: ='Org structure'!E51 -> 06.4 - Town Planning | C143: 0 | D143: 0 | E143: 0 | F143: 0 | G143: 0 | H143: 0 | I143: 0 | J143: 0 | K143: 0 | L143: 0
A144: ='Org structure'!E52 -> 06.5 - Land Use And Housing Admin | C144: 0 | D144: 0 | E144: 0 | F144: 0 | G144: 0 | H144: 0 | I144: 0 | J144: 0 | K144: 0 | L144: 0
A145: ='Org structure'!E53 -> 06.6 - Local Economic Development | C145: 0 | D145: 0 | E145: 0 | F145: 0 | G145: 0 | H145: 0 | I145: 0 | J145: 0 | K145: 0 | L145: 0
A146: ='Org structure'!E54 -> 06.7 - Led | C146: 0 | D146: 0 | E146: 0 | F146: 0 | G146: 0 | H146: 0 | I146: 0 | J146: 0 | K146: 0 | L146: 0
A147: ='Org structure'!E55 -> 06.8 - Agriculture & Rural Development | C147: 0 | D147: 0 | E147: 0 | F147: 0 | G147: 0 | H147: 0 | I147: 0 | J147: 0 | K147: 0 | L147: 0
A148: ='Org structure'!E56 -> 06.9 - Tourism & Business Development | C148: 0 | D148: 0 | E148: 0 | F148: 0 | G148: 0 | H148: 0 | I148: 0 | J148: 0 | K148: 0 | L148: 0
A149: ='Org structure'!E57 -> 06.10 - Arts & Culture | C149: 0 | D149: 0 | E149: 0 | F149: 0 | G149: 0 | H149: 0 | I149: 0 | J149: 0 | K149: 0 | L149: 0
A150: ='Org structure'!A8 -> Vote 07 - Infrastructure & Technical Services | C150: =SUM(C151:C169) -> 0 | D150: 0 | E150: 0 | F150: 0 | G150: 0 | H150: 0 | I150: 0 | J150: 0 | K150: 0 | L150: 0
A151: ='Org structure'!E59 -> 07.1 - Infrastructure Admin & Tech Admin | C151: 0 | D151: 0 | E151: 0 | F151: 0 | G151: 0 | H151: 0 | I151: 0 | J151: 0 | K151: 0 | L151: 0
A152: ='Org structure'!E60 -> 07.2 - Fleet Management | C152: 0 | D152: 0 | E152: 0 | F152: 0 | G152: 0 | H152: 0 | I152: 0 | J152: 0 | K152: 0 | L152: 0
A153: ='Org structure'!E61 -> 07.3 - Roads | C153: 0 | D153: 0 | J153: 0 | K153: 0 | L153: 0
A154: ='Org structure'!E62 -> 07.4 - Storm Water | C154: 0 | D154: 0 | E154: 0 | J154: 0 | K154: 0 | L154: 0
A155: ='Org structure'!E63 -> 07.5 - Street Lighting | C155: 0 | D155: 0 | E155: 0 | J155: 0 | K155: 0 | L155: 0
A156: ='Org structure'!E64 -> 07.6 - Project Management Unit | C156: 0 | D156: 0 | E156: 0 | J156: 0 | K156: 0 | L156: 0
A157: ='Org structure'!E65 -> 07.7 - Sanitation Treatment Plant: Mogwase | C157: 0 | D157: 0 | E157: 0 | J157: 0 | K157: 0 | L157: 0
A158: ='Org structure'!E66 -> 07.8 - Sanitation Treatment Plant: Madikwe | C158: 0 | D158: 0 | E158: 0 | J158: 0 | K158: 0 | L158: 0
A159: ='Org structure'!E67 -> 07.9 - Sanitation Reticulation | C159: 0 | D159: 0 | E159: 0 | J159: 0 | K159: 0 | L159: 0
A160: ='Org structure'!E68 -> 07.10 - Water Administration | C160: 0 | D160: 0 | E160: 0 | J160: 0 | K160: 0 | L160: 0
A161: ='Org structure'!E69 -> 07.11 - Water Madikwe: Water Treatment Work | C161: 0 | D161: 0 | E161: 0 | F161: 0 | G161: 0 | H161: 0 | I161: 0 | J161: 0 | K161: 0 | L161: 0
A162: ='Org structure'!E70 -> 07.12 - Water: Pella Water Treatment Works | C162: 0 | D162: 0 | E162: 0 | F162: 0 | G162: 0 | H162: 0 | I162: 0 | J162: 0 | K162: 0 | L162: 0
A163: ='Org structure'!E71 -> 07.13 - Water: Madikwe Retail & Bulk Lines | C163: 0 | D163: 0 | E163: 0 | F163: 0 | G163: 0 | H163: 0 | I163: 0 | J163: 0 | K163: 0 | L163: 0
A164: ='Org structure'!E72 -> 07.14 - Water: Madikwe Rural | C164: 0 | D164: 0 | E164: 0 | F164: 0 | G164: 0 | H164: 0 | I164: 0 | J164: 0 | K164: 0 | L164: 0
A165: ='Org structure'!E73 -> 07.15 - Water: Molatedi | C165: 0 | D165: 0 | E165: 0 | F165: 0 | G165: 0 | H165: 0 | I165: 0 | J165: 0 | K165: 0 | L165: 0
A166: ='Org structure'!E74 -> 07.16 - Water Eastern: Retail Mankwe | C166: 0 | D166: 0 | E166: 0 | F166: 0 | G166: 0 | H166: 0 | I166: 0 | J166: 0 | K166: 0 | L166: 0
A167: ='Org structure'!E75 -> 07.17 - Water Vaalkopdam: Mankwe | C167: 0 | D167: 0 | E167: 0 | F167: 0 | G167: 0 | H167: 0 | I167: 0 | J167: 0 | K167: 0 | L167: 0
A168: ='Org structure'!E76 -> 07.18 - Water Eastern: Retail Mankwe | C168: 0 | D168: 0 | E168: 0 | F168: 0 | G168: 0 | H168: 0 | I168: 0 | J168: 0 | K168: 0 | L168: 0
A169: ='Org structure'!E77 -> 07.19 - Reporting Function Electricity | C169: 0 | D169: 0 | E169: 0 | F169: 0 | G169: 0 | H169: 0 | I169: 0 | J169: 0 | K169: 0 | L169: 0
A170: ='Org structure'!A9 -> Vote 08 - | C170: 0 | D170: 0 | E170: 0 | F170: 0 | G170: 0 | H170: 0 | I170: 0 | J170: 0 | K170: 0 | L170: 0
A171: ='Org structure'!A10 -> Vote 09 - | C171: 0 | D171: 0 | E171: 0 | F171: 0 | G171: 0 | H171: 0 | I171: 0 | J171: 0 | K171: 0 | L171: 0
A172: ='Org structure'!A11 -> Vote 10 - | C172: 0 | D172: 0 | E172: 0 | F172: 0 | G172: 0 | H172: 0 | I172: 0 | J172: 0 | K172: 0 | L172: 0
A173: ='Org structure'!A12 -> Vote 11 - | C173: 0 | D173: 0 | E173: 0 | F173: 0 | G173: 0 | H173: 0 | I173: 0 | J173: 0 | K173: 0 | L173: 0
A174: ='Org structure'!A13 -> Vote 12 - | C174: 0 | D174: 0 | E174: 0 | F174: 0 | G174: 0 | H174: 0 | I174: 0 | J174: 0 | K174: 0 | L174: 0
A175: ='Org structure'!A14 -> Vote 13 - | C175: 0 | D175: 0 | E175: 0 | F175: 0 | G175: 0 | H175: 0 | I175: 0 | J175: 0 | K175: 0 | L175: 0
A176: ='Org structure'!A15 -> Vote 14 - | C176: 0 | D176: 0 | E176: 0 | F176: 0 | G176: 0 | H176: 0 | I176: 0 | J176: 0 | K176: 0 | L176: 0
A177: ='Org structure'!A16 -> Vote 15 - Other | C177: 0 | D177: 0 | E177: 0 | F177: 0 | G177: 0 | H177: 0 | I177: 0 | J177: 0 | K177: 0 | L177: 0
A178: Capital single-year expenditure sub-total | C178: =C94+C100+C107+C115+C124+C139+C150+C170+C171+C172+C173+C174+C175+C176+C177 -> 0 | D178: 0 | E178: 0 | F178: 0 | G178: 0 | H178: 0 | I178: 0 | J178: 0 | K178: 0 | L178: 0
A179: Total Capital Expenditure | C179: =C90+C178 -> 287011137 | D179: 55090000 | E179: 330358488.4 | F179: 241733571 | G179: 252083776 | H179: 252083876 | I179: 252083876 | J179: 200374360 | K179: 211771000 | L179: 227138000

Sheet A6-FinPos
A1: =muni&" - "&Approve6 -> NW375 Moses Kotane - Table A6 Budgeted Financial Position
A2: =desc -> Description | B2: =head27 -> Ref | C2: =head1b -> 2015/16 | D2: =head1A -> 2016/17 | E2: =Head1 -> 2017/18 | F2: =Head2 -> Current Year 2018/19 | J2: =Head3 -> 2019/20 Medium Term Revenue & Expenditure Framework
A3: R thousand | C3: =Head5 -> Audited Outcome | D3: =Head5 -> Audited Outcome | E3: =Head5 -> Audited Outcome | F3: =Head6 -> Original Budget | G3: =Head7 -> Adjusted Budget | H3: =Head8 -> Full Year Forecast | I3: =Head5b -> Pre-audit outcome | J3: =Head9 -> Budget Year 2019/20 | K3: =Head10 -> Budget Year +1 2020/21 | L3: =Head11 -> Budget Year +2 2021/22
A4: ASSETS
A5: Current assets
A6: Cash | C6: 20708000 | D6: 20000 | E6: 20000 | F6: 10000000 | G6: 10000000 | H6: 10000000 | I6: 10000000 | J6: 10000000 | K6: 20000000 | L6: 30000000
A7: Call investment deposits | B7: 1 | C7: ='SA3'!C9 -> 114568303 | D7: ='SA3'!D9 -> 30962000 | E7: ='SA3'!E9 -> 1338000 | F7: ='SA3'!F9 -> 30000000 | G7: ='SA3'!G9 -> 14107000 | H7: ='SA3'!H9 -> 14107000 | I7: ='SA3'!I9 -> 14107000 | J7: ='SA3'!J9 -> 14377000 | K7: ='SA3'!K9 -> 30000000 | L7: ='SA3'!L9 -> 35000000
A8: Consumer debtors | B8: 1 | C8: ='SA3'!C14 -> 194707925 | D8: ='SA3'!D14 -> 228606000 | E8: ='SA3'!E14 -> 282678000 | F8: ='SA3'!F14 -> 251173000 | G8: ='SA3'!G14 -> 211966000 | H8: ='SA3'!H14 -> 211966000 | I8: ='SA3'!I14 -> 211966000 | J8: ='SA3'!J14 -> 475621000 | K8: ='SA3'!K14 -> 754706000 | L8: ='SA3'!L14 -> 1053648000
A9: Other debtors | C9: 29759000 | D9: 75660000 | E9: 50654000 | F9: 10000000 | G9: 10000000 | H9: 10000000 | I9: 10000000 | J9: 15000000 | K9: 15000000 | L9: 15000000
A10: Current portion of long-term receivables | C10: 0
A11: Inventory | B11: 2 | C11: 8371000 | D11: 18345823 | E11: 19314397 | F11: 3000000 | G11: 3000000 | H11: 3000000 | I11: 3000000 | J11: 4000000 | K11: 4000000 | L11: 4000000
A12: Total current assets | C12: =SUM(C6:C11) -> 368114228 | D12: 353593823 | E12: 354004397 | F12: 304173000 | G12: 249073000 | H12: 249073000 | I12: 249073000 | J12: 518998000 | K12: 823706000 | L12: 1137648000
A14: Non current assets
A15: Long-term receivables | C15: 0 | D15: 0 | E15: 0 | F15: 0 | G15: 0 | H15: 0 | I15: 0 | J15: 0 | K15: 0 | L15: 0
A16: Investments | C16: 0 | D16: 0 | E16: 0 | F16: 0 | G16: 0 | H16: 0 | I16: 0 | J16: 0 | K16: 0 | L16: 0
A17: Investment property | D17: 165290000 | E17: 165290000
A18: Investment in Associate
A19: Property, plant and equipment | B19: 3 | C19: ='SA3'!C26 -> 1218665470 | D19: ='SA3'!D26 -> 3158504786 | E19: ='SA3'!E26 -> 3176494885 | F19: ='SA3'!F26 -> 1524137000 | G19: ='SA3'!G26 -> 1513788000 | H19: ='SA3'!H26 -> 1513788000 | I19: ='SA3'!I26 -> 1513788000 | J19: ='SA3'!J26 -> 1580625000 | K19: ='SA3'!K26 -> 1611495000 | L19: ='SA3'!L26 -> 1628807000
A21: Biological
A22: Intangible | C22: 0 | D22: 58641851 | E22: 57596228 | J22: 0 | K22: 0 | L22: 0
A23: Other non-current assets | C23: 14000 | D23: 14000 | E23: 14000
A24: Total non current assets | C24: =SUM(C15:C19)+SUM(C21:C23) -> 1218679470 | D24: =SUM(D15:D19)+SUM(D21:D23) -> 3382450637 | E24: 3399395113 | F24: 1524137000 | G24: 1513788000 | H24: 1513788000 | I24: 1513788000 | J24: 1580625000 | K24: 1611495000 | L24: 1628807000
A25: TOTAL ASSETS | C25: =C12+C24 -> 1586793698 | D25: =D12+D24 -> 3736044460 | E25: =E12+E24 -> 3753399510 | F25: =F12+F24 -> 1828310000 | G25: 1762861000 | H25: 1762861000 | I25: 1762861000 | J25: 2099623000 | K25: 2435201000 | L25: 2766455000
A27: LIABILITIES
A28: Current liabilities
A29: Bank overdraft | B29: 1
A30: Borrowing | B30: 4 | C30: ='SA3'!C32 -> 12632368 | D30: ='SA3'!D32 -> 8814647 | E30: ='SA3'!E32 -> 7315012 | F30: ='SA3'!F32 -> 8815000 | G30: ='SA3'!G32 -> 8815000 | H30: ='SA3'!H32 -> 8815000 | I30: ='SA3'!I32 -> 8815000 | J30: ='SA3'!J32 -> 8425000 | K30: ='SA3'!K32 -> 8722000 | L30: ='SA3'!L32 -> 8022000
A31: Consumer deposits | C31: 0 | D31: 0 | J31: 0 | K31: 0 | L31: 0
A32: Trade and other payables | B32: 4 | C32: ='SA3'!C39 -> 94903592 | D32: ='SA3'!D39 -> 126383216 | E32: ='SA3'!E39 -> 174572291 | F32: ='SA3'!F39 -> 40000000 | G32: ='SA3'!G39 -> 40000000 | H32: ='SA3'!H39 -> 40000000 | I32: ='SA3'!I39 -> 40000000 | J32: ='SA3'!J39 -> 40000000 | K32: ='SA3'!K39 -> 40000000 | L32: ='SA3'!L39 -> 40000000
A33: Provisions | C33: 2311205 | D33: 12855299 | E33: 13856701 | F33: 0 | G33: 0 | H33: 0 | J33: 0 | K33: 0 | L33: 0
A34: Total current liabilities | C34: =SUM(C29:C33) -> 109847165 | D34: 148053162 | E34: 195744004 | F34: 48815000 | G34: 48815000 | H34: 48815000 | I34: 48815000 | J34: 48425000 | K34: 48722000 | L34: 48022000
A36: Non current liabilities
A37: Borrowing | C37: ='SA3'!C44 -> 55352039 | D37: ='SA3'!D44 -> 47835078 | E37: ='SA3'!E44 -> 40165434 | F37: ='SA3'!F44 -> 43053000 | G37: ='SA3'!G44 -> 29053000 | H37: ='SA3'!H44 -> 29053000 | I37: ='SA3'!I44 -> 29053000 | J37: ='SA3'!J44 -> 24078000 | K37: ='SA3'!K44 -> 15356000 | L37: ='SA3'!L44 -> 7334000
A38: Provisions | C38: ='SA3'!C52 -> 37746345 | D38: ='SA3'!D52 -> 32112144 | E38: ='SA3'!E52 -> 29297876 | F38: ='SA3'!F52 -> 36000000 | G38: ='SA3'!G52 -> 36000000 | H38: ='SA3'!H52 -> 36000000 | I38: ='SA3'!I52 -> 36000000 | J38: ='SA3'!J52 -> 24600000 | K38: ='SA3'!K52 -> 25242000 | L38: ='SA3'!L52 -> 25929000
A39: Total non current liabilities | C39: =SUM(C37:C38) -> 93098384 | D39: =SUM(D37:D38) -> 79947222 | E39: =SUM(E37:E38) -> 69463310 | F39: =SUM(F37:F38) -> 79053000 | G39: 65053000 | H39: 65053000 | I39: 65053000 | J39: 48678000 | K39: =SUM(K37:K38) -> 40598000 | L39: 33263000
A40: TOTAL LIABILITIES | C40: =C34+C39 -> 202945549 | D40: =D34+D39 -> 228000384 | E40: =E34+E39 -> 265207314 | F40: =F34+F39 -> 127868000 | G40: 113868000 | H40: 113868000 | I40: 113868000 | J40: 97103000 | K40: =K34+K39 -> 89320000 | L40: 81285000
A42: NET ASSETS | B42: 5 | C42: =C25-C40 -> 1383848149 | D42: 3508044076 | E42: 3488192196 | F42: 1700442000 | G42: 1648993000 | H42: 1648993000 | I42: 1648993000 | J42: 2002520000 | K42: 2345881000 | L42: 2685170000
A44: COMMUNITY WEALTH/EQUITY
A45: Accumulated Surplus/(Deficit) | C45: 1383848149 | D45: 3508044076 | E45: 3488192196 | F45: 1700442000 | G45: 1648993000 | H45: 1648993000 | I45: 1648993000 | J45: 2002520000 | K45: 2345881000 | L45: 2685170000
A46: Reserves | B46: 4 | C46: ='SA3'!C71 -> 0 | D46: ='SA3'!D71 -> 0 | E46: ='SA3'!E71 -> 0 | F46: ='SA3'!F71 -> 0 | G46: ='SA3'!G71 -> 0 | H46: ='SA3'!H71 -> 0 | I46: ='SA3'!I71 -> 0 | J46: ='SA3'!J71 -> 0 | K46: ='SA3'!K71 -> 0 | L46: ='SA3'!L71 -> 0
A48: TOTAL COMMUNITY WEALTH/EQUITY | B48: 5 | C48: =SUM(C45:C46) -> 1383848149 | D48: =SUM(D45:D46) -> 3508044076 | E48: 3488192196 | F48: 1700442000 | G48: 1648993000 | H48: 1648993000 | I48: 1648993000 | J48: 2002520000 | K48: 2345881000 | L48: 2685170000
A49: =head27a -> References
A50: 1. Detail to be provided in Table SA3
A51: 2. Include completed low cost housing to be transferred to beneficiaries within 12 months
A52: 3. Include 'Construction-work-in-progress' (disclosed separately in annual financial statements)
A53: 4. Detail to be provided in Table SA3. Includes reserves to be funded by statute.
A54: 5. Net assets must balance with Total Community Wealth/Equity
A55: check balance | C55: =IF((C42-C48)=0,0,"Unbalanced") -> 0 | D55: =IF((D42-D48)=0,0,"Unbalanced") -> 0 | E55: 0 | F55: 0 | G55: 0 | H55: 0 | I55: 0 | J55: 0 | K55: 0 | L55: 0
A71: Test | C71: =IF(C25<>C40,"Unbalanced",0) -> Unbalanced | D71: =IF(D25<>D40,"Unbalanced",0) -> Unbalanced | E71: Unbalanced | F71: Unbalanced | G71: Unbalanced | H71: Unbalanced | I71: Unbalanced | J71: Unbalanced | K71: Unbalanced | L71: Unbalanced

Sheet A7-CFlow
A1: =muni&" - "&Approve7 -> NW375 Moses Kotane - Table A7 Budgeted Cash Flows
A2: =desc -> Description | B2: =head27 -> Ref | C2: =head1b -> 2015/16 | D2: =head1A -> 2016/17 | E2: =Head1 -> 2017/18 | F2: =Head2 -> Current Year 2018/19 | J2: =Head3 -> 2019/20 Medium Term Revenue & Expenditure Framework
A3: R thousand | C3: =Head5 -> Audited Outcome | D3: =Head5 -> Audited Outcome | E3: =Head5 -> Audited Outcome | F3: =Head6 -> Original Budget | G3: =Head7 -> Adjusted Budget | H3: =Head8 -> Full Year Forecast | I3: =Head5b -> Pre-audit outcome | J3: =Head9 -> Budget Year 2019/20 | K3: =Head10 -> Budget Year +1 2020/21 | L3: =Head11 -> Budget Year +2 2021/22
A4: CASH FLOW FROM OPERATING ACTIVITIES
A5: Receipts
A6: Property rates | C6: 97112317 | D6: 114002000 | E6: 135955479 | F6: 115653000 | G6: 120428000 | H6: 120428000 | I6: 120428000 | J6: ='SA30'!N5 -> 130327000 | K6: ='SA30'!O5 -> 137244000 | L6: ='SA30'!P5 -> 142180000
A7: Service charges | C7: 133401924 | D7: 119620000 | E7: 136647335 | F7: 91240000 | G7: 85769000 | H7: 85769000 | I7: 85769000 | J7: ='SA30'!N6+'SA30'!N7+'SA30'!N8+'SA30'!N9 -> 113966000 | K7: ='SA30'!O6+'SA30'!O7+'SA30'!O8+'SA30'!O9 -> 106093000 | L7: ='SA30'!P6+'SA30'!P7+'SA30'!P8+'SA30'!P9 -> 116020000
A8: Other revenue | C8: 0 | F8: 3350000 | G8: 2548000 | H8: 2548000 | I8: 2548000 | J8: ='SA30'!N11+'SA30'!N15+'SA30'!N16+'SA30'!N17+'SA30'!N19 -> 2841000 | K8: ='SA30'!O11+'SA30'!O15+'SA30'!O16+'SA30'!O17+'SA30'!O19 -> 2811000 | L8: ='SA30'!P11+'SA30'!P15+'SA30'!P16+'SA30'!P17+'SA30'!P19 -> 3092000
A9: Government - operating | B9: 1 | C9: 339939915 | D9: 340165000 | E9: 414974000 | F9: 393082000 | G9: 383912000 | H9: 383912000 | I9: 383912000 | J9: ='SA30'!N18 -> 437830000 | K9: ='SA30'!O18 -> 467331000 | L9: ='SA30'!P18 -> 502264000
A10: Government - capital | B10: 1 | C10: 123293118 | D10: 150880000 | E10: 138576000 | F10: 204883000 | G10: 229633000 | H10: 229633000 | I10: 229633000 | J10: ='SA30'!N23 -> 199524000 | K10: ='SA30'!O23 -> 210921000 | L10: ='SA30'!P23 -> 226289000
A11: Interest | C11: 52207237 | D11: 59950252 | E11: 66038000 | F11: 31939000 | G11: 31939000 | H11: 31939000 | I11: 31939000 | J11: ='SA30'!N12+'SA30'!N13 -> 17390000 | K11: ='SA30'!O12+'SA30'!O13 -> 18240000 | L11: ='SA30'!P12+'SA30'!P13 -> 18430000
A12: Dividends | J12: ='SA30'!N14 -> 0 | K12: ='SA30'!O14 -> 0 | L12: ='SA30'!P14 -> 0
A13: Payments
A14: Suppliers and employees | C14: -425061000 | D14: -588051000 | E14: -579029000 | F14: -615191000 | G14: -627036000 | H14: -627036000 | I14: -627036000 | J14: =-('SA30'!N35+'SA30'!N36+'SA30'!N38+'SA30'!N39+'SA30'!N40+'SA30'!N41+'SA30'!N44+'SA30'!N50) -> -686837000 | K14: =-('SA30'!O35+'SA30'!O36+'SA30'!O38+'SA30'!O39+'SA30'!O40+'SA30'!O41+'SA30'!O44+'SA30'!O50) -> -674394500 | L14: =-('SA30'!P35+'SA30'!P36+'SA30'!P38+'SA30'!P39+'SA30'!P40+'SA30'!P41+'SA30'!P44+'SA30'!P50) -> -721748135
A15: Finance charges | C15: -8590181 | D15: -9763783 | E15: -7323040 | F15: -7000000 | G15: -7300000 | H15: -7300000 | I15: -7300000 | J15: =-('SA30'!N37) -> -3689000 | K15: =-('SA30'!O37) -> -3044000 | L15: =-('SA30'!P37) -> -2729000
A16: Transfers and Grants | B16: 1 | J16: =-('SA30'!N42+'SA30'!N43) -> 0 | K16: =-('SA30'!O42+'SA30'!O43) -> 0 | L16: =-('SA30'!P42+'SA30'!P43) -> 0
A17: NET CASH FROM/(USED) OPERATING ACTIVITIES | C17: =SUM(C6:C12)+SUM(C14:C16) -> 312303330 | D17: 186802469 | E17: 305838774 | F17: 217956000 | G17: 219893000 | H17: 219893000 | I17: 219893000 | J17: 211352000 | K17: 265201500 | L17: 283797865
A19: CASH FLOWS FROM INVESTING ACTIVITIES
A20: Receipts
A21: Proceeds on disposal of PPE | C21: 10266000 | J21: ='SA30'!N24+'SA30'!N25 -> 0 | K21: ='SA30'!O24+'SA30'!O25 -> 0 | L21: ='SA30'!P24+'SA30'!P25 -> 0
A22: Decrease (Increase) in non-current debtors | J22: ='SA30'!N29 -> 0 | K22: ='SA30'!O29 -> 0 | L22: ='SA30'!P29 -> 0
A23: Decrease (increase) other non-current receivables | J23: ='SA30'!N30 -> 0 | K23: ='SA30'!O30 -> 0 | L23: ='SA30'!P30 -> 0
A24: Decrease (increase) in non-current investments | C24: 26445000 | J24: ='SA30'!N31 -> 0 | K24: ='SA30'!O31 -> 0 | L24: ='SA30'!P31 -> 0
A25: Payments
A26: Capital assets | C26: -287011000 | D26: -199642000 | E26: -330357578 | F26: -241733000 | G26: -252083000 | H26: -252083000 | I26: -252083000 | J26: =-('SA30'!N48) -> -200374363 | K26: =-('SA30'!O48) -> -211771000 | L26: =-('SA30'!P48) -> -227138000
A27: NET CASH FROM/(USED) INVESTING ACTIVITIES | C27: =SUM(C21:C24)+C26 -> -250300000 | D27: =SUM(D21:D24)+D26 -> -199642000 | E27: -330357578 | F27: -241733000 | G27: -252083000 | H27: -252083000 | I27: -252083000 | J27: -200374363 | K27: -211771000 | L27: -227138000
A29: CASH FLOWS FROM FINANCING ACTIVITIES
A30: Receipts
A31: Short term loans | J31: ='SA30'!N26 -> 0 | K31: ='SA30'!O26 -> 0 | L31: ='SA30'!P26 -> 0
A32: Borrowing long term/refinancing | F32: 14000000 | H32: 0 | I32: 0 | J32: ='SA30'!N27 -> 0 | K32: ='SA30'!O27 -> 0 | L32: ='SA30'!P27 -> 0
A33: Increase (decrease) in consumer deposits | J33: ='SA30'!N28 -> 0 | K33: ='SA30'!O28 -> 0 | L33: ='SA30'!P28 -> 0
A34: Payments
A35: Repayment of borrowing | C35: -12209634 | D35: -91456000 | E35: -239781000 | F35: -9500000 | G35: -9500000 | H35: -9500000 | I35: -9500000 | J35: =-('SA30'!N49) -> -7960000 | K35: =-('SA30'!O49) -> -8425000 | L35: =-('SA30'!P49) -> -8722000
A36: NET CASH FROM/(USED) FINANCING ACTIVITIES | C36: =SUM(C31:C33)+C35 -> -12209634 | D36: =SUM(D31:D33)+D35 -> -91456000 | E36: -239781000 | F36: 4500000 | G36: -9500000 | H36: -9500000 | I36: -9500000 | J36: -7960000 | K36: -8425000 | L36: -8722000
A38: NET INCREASE/ (DECREASE) IN CASH HELD | C38: =C17+C27+C36 -> 49793696 | D38: =D17+D27+D36 -> -104295531 | E38: -264299804 | F38: -19277000 | G38: -41690000 | H38: -41690000 | I38: -41690000 | J38: 3017637 | K38: 45005500 | L38: 47937865
A39: Cash/cash equivalents at the year begin: | B39: 2 | C39: 85733265 | D39: 135276643 | E39: 30982007 | F39: 30982000 | G39: 55006000 | H39: 55006000 | I39: 55006000 | J39: ='SA30'!N54 -> 47399000 | K39: =J40 -> 50416637 | L39: =K40 -> 95422137
A40: Cash/cash equivalents at the year end: | B40: 2 | C40: =C38+C39 -> 135526961 | D40: =D38+D39 -> 30981112 | E40: =E38+E39 -> -233317797 | F40: =F38+F39 -> 11705000 | G40: 13316000 | H40: 13316000 | I40: 13316000 | J40: 50416637 | K40: 95422137 | L40: 143360002
A41: =head27a -> References
A42: 1. Local/District municipalities to include transfers from/to District/Local Municipalities
A43: 2. Cash equivalents includes investments with maturities of 3 months or less
A44: 3. The MTREF is populated directly from SA30.
A45: Total receipts | C45: =SUM(C6:C12)+SUM(C21:C23) -> 756220511 | D45: 784617252 | E45: 892190814 | F45: 840147000 | G45: 854229000 | H45: 854229000 | I45: 854229000 | J45: 901878000 | K45: 942640000 | L45: 1008275000
A46: Total payments | C46: =SUM(C14:C16)+C26 -> -720662181 | D46: =SUM(D14:D16)+D26 -> -797456783 | E46: -916709618 | F46: -863924000 | G46: -886419000 | H46: -886419000 | I46: -886419000 | J46: -890900363 | K46: -889209500 | L46: -951615135
C47: =C45+C46 -> 35558330 | D47: =D45+D46 -> -12839531 | E47: -24518804 | F47: -23777000 | G47: -32190000 | H47: -32190000 | I47: -32190000 | J47: 10977637 | K47: 53430500 | L47: 56659865
A48: Borrowings & investments & c.deposits | C48: =C24+C32+C33 -> 26445000 | D48: =D24+D32+D33 -> 0 | E48: 0 | F48: 14000000 | G48: 0 | H48: 0 | I48: 0 | J48: 0 | K48: 0 | L48: 0
A49: =A35 -> Repayment of borrowing | C49: =C35 -> -12209634 | D49: =D35 -> -91456000 | E49: -239781000 | F49: -9500000 | G49: -9500000 | H49: -9500000 | I49: =I35 -> -9500000 | J49: -7960000 | K49: -8425000 | L49: -8722000
C50: =C47+C48+C49 -> 49793696 | D50: =D47+D48+D49 -> -104295531 | E50: -264299804 | F50: -19277000 | G50: -41690000 | H50: -41690000 | I50: -41690000 | J50: 3017637 | K50: 45005500 | L50: 47937865
C51: =C38-C50 -> 0 | D51: 0 | E51: 0 | F51: 0 | G51: 0 | H51: 0 | I51: 0 | J51: 0 | K51: 0 | L51: 0

Sheet A8-ResRecon
A1: =muni&" - "&Approve8 -> NW375 Moses Kotane - Table A8 Cash backed reserves/accumulated surplus reconciliation
A2: =desc -> Description | B2: =head27 -> Ref | C2: =head1b -> 2015/16 | D2: =head1A -> 2016/17 | E2: =Head1 -> 2017/18 | F2: =Head2 -> Current Year 2018/19 | J2: =Head3 -> 2019/20 Medium Term Revenue & Expenditure Framework
A3: R thousand | C3: =Head5 -> Audited Outcome | D3: =Head5 -> Audited Outcome | E3: =Head5 -> Audited Outcome | F3: =Head6 -> Original Budget | G3: =Head7 -> Adjusted Budget | H3: =Head8 -> Full Year Forecast | I3: =Head5b -> Pre-audit outcome | J3: =Head9 -> Budget Year 2019/20 | K3: =Head10 -> Budget Year +1 2020/21 | L3: =Head11 -> Budget Year +2 2021/22
A4: Cash and investments available
A5: =LEFT('A7-CFlow'!A40,37) -> Cash/cash equivalents at the year end | B5: 1 | C5: ='A7-CFlow'!C40 -> 135526961 | D5: ='A7-CFlow'!D40 -> 30981112 | E5: ='A7-CFlow'!E40 -> -233317797 | F5: ='A7-CFlow'!F40 -> 11705000 | G5: ='A7-CFlow'!G40 -> 13316000 | H5: ='A7-CFlow'!H40 -> 13316000 | I5: ='A7-CFlow'!I40 -> 13316000 | J5: ='A7-CFlow'!J40 -> 50416637 | K5: ='A7-CFlow'!K40 -> 95422137 | L5: ='A7-CFlow'!L40 -> 143360002
A6: Other current investments > 90 days | C6: ='A6-FinPos'!C6+'A6-FinPos'!C7-'A6-FinPos'!C29-'A8-ResRecon'!C5 -> -250658 | D6: ='A6-FinPos'!D6+'A6-FinPos'!D7-'A6-FinPos'!D29-'A8-ResRecon'!D5 -> 888 | E6: ='A6-FinPos'!E6+'A6-FinPos'!E7-'A6-FinPos'!E29-'A8-ResRecon'!E5 -> 234675797 | F6: ='A6-FinPos'!F6+'A6-FinPos'!F7-'A6-FinPos'!F29-'A8-ResRecon'!F5 -> 28295000 | G6: ='A6-FinPos'!G6+'A6-FinPos'!G7-'A6-FinPos'!G29-'A8-ResRecon'!G5 -> 10791000 | H6: ='A6-FinPos'!H6+'A6-FinPos'!H7-'A6-FinPos'!H29-'A8-ResRecon'!H5 -> 10791000 | I6: ='A6-FinPos'!I6+'A6-FinPos'!I7-'A6-FinPos'!I29-'A8-ResRecon'!I5 -> 10791000 | J6: ='A6-FinPos'!J6+'A6-FinPos'!J7-'A6-FinPos'!J29-'A8-ResRecon'!J5 -> -26039637 | K6: ='A6-FinPos'!K6+'A6-FinPos'!K7-'A6-FinPos'!K29-'A8-ResRecon'!K5 -> -45422137 | L6: ='A6-FinPos'!L6+'A6-FinPos'!L7-'A6-FinPos'!L29-'A8-ResRecon'!L5 -> -78360002
A7: ='A6-FinPos'!A14&" - "&'A6-FinPos'!A16 -> Non current assets - Investments | B7: 1 | C7: ='A6-FinPos'!C16 -> 0 | D7: ='A6-FinPos'!D16 -> 0 | E7: ='A6-FinPos'!E16 -> 0 | F7: ='A6-FinPos'!F16 -> 0 | G7: ='A6-FinPos'!G16 -> 0 | H7: ='A6-FinPos'!H16 -> 0 | I7: ='A6-FinPos'!I16 -> 0 | J7: ='A6-FinPos'!J16 -> 0 | K7: ='A6-FinPos'!K16 -> 0 | L7: ='A6-FinPos'!L16 -> 0
A8: Cash and investments available: | C8: =SUM(C5:C7) -> 135276303 | D8: =SUM(D5:D7) -> 30982000 | E8: 1358000 | F8: 40000000 | G8: 24107000 | H8: 24107000 | I8: 24107000 | J8: 24377000 | K8: 50000000 | L8: 65000000
A10: Application of cash and investments
A11: ='SA3'!A37 -> Unspent conditional transfers | C11: ='SA3'!C37 -> 14675000 | D11: ='SA3'!D37 -> 13004969 | E11: ='SA3'!E37 -> 11471943 | F11: ='SA3'!F37 -> 0 | G11: ='SA3'!G37 -> 0 | H11: ='SA3'!H37 -> 0 | I11: ='SA3'!I37 -> 0 | J11: ='SA3'!J37 -> 0 | K11: ='SA3'!K37 -> 0 | L11: ='SA3'!L37 -> 0
A12: Unspent borrowing | C12: ='SA17'!C67 -> 0 | D12: ='SA17'!D67 -> 0 | E12: ='SA17'!E67 -> 0 | F12: ='SA17'!F67 -> 0 | G12: ='SA17'!G67 -> 0 | H12: ='SA17'!H67 -> 0 | J12: ='SA17'!I67 -> 0 | K12: ='SA17'!J67 -> 0 | L12: ='SA17'!K67 -> 0
A13: Statutory requirements | B13: 2
A14: Other working capital requirements | B14: 3 | C14: =-C32 -> -111855408 | D14: =-D32 -> -133134753 | E14: -113941652 | F14: =-F32 -> -120547000 | G14: -81929000 | H14: -81929000 | I14: -81929000 | J14: -268258000 | K14: -407951000 | L14: -574838000
A15: Other provisions | J15: 24600000 | K15: 25242000 | L15: 25929000
A16: Long term investments committed | B16: 4 | C16: =C42 -> 0 | D16: =D42 -> 0 | E16: 0 | F16: 0 | G16: 0 | H16: 0 | I16: 0 | J16: 0 | K16: 0 | L16: 0
A17: Reserves to be backed by cash/investments | B17: 5 | C17: 0 | D17: 0 | E17: 0 | F17: 0 | G17: 0 | H17: 0 | I17: 0 | J17: 0 | K17: 0 | L17: 0
A18: ="Total "&A10&":" -> Total Application of cash and investments: | C18: =SUM(C11:C17) -> -97180408 | D18: =SUM(D11:D17) -> -120129784 | E18: -102469709 | F18: -120547000 | G18: -81929000 | H18: -81929000 | I18: -81929000 | J18: -243658000 | K18: -382709000 | L18: -548909000
A19: Surplus(shortfall) | C19: =C8-C18 -> 232456711 | D19: =D8-D18 -> 151111784 | E19: 103827709 | F19: 160547000 | G19: 106036000 | H19: 106036000 | I19: 106036000 | J19: 268035000 | K19: 432709000 | L19: 613909000
A20: =head27a -> References
A21: 1. Must reconcile with Budgeted Cash Flows
A22: 2. For example: VAT, taxation
A23: 3. Council approval for policy required - include sufficient working capital (e.g. allowing for a % of current debtors > 90 days as uncollectable)
A24: 4. For example: sinking fund requirements for borrowing
A25: 5. Council approval required for each reserve created and basis of cash backing of reserves
A28: Other working capital requirements
A29: Debtors | C29: 190074000 | D29: =IF(ISERROR(ROUND(D35*D36,-3)),0,(ROUND(D35*D36,-3))) -> 246513000 | E29: 277042000 | F29: 160547000 | G29: 121929000 | H29: 121929000 | I29: 121929000 | J29: 308258000 | K29: 447951000 | L29: 614838000
A31: Creditors due | C31: 78218592 | D31: ='SA3'!D35+'SA3'!D36 -> 113378247 | E31: ='SA3'!E35+'SA3'!E36 -> 163100348 | F31: ='SA3'!F35+'SA3'!F36 -> 40000000 | G31: ='SA3'!G35+'SA3'!G36 -> 40000000 | H31: ='SA3'!H35+'SA3'!H36 -> 40000000 | I31: ='SA3'!I35+'SA3'!I36 -> 40000000 | J31: ='SA3'!J35+'SA3'!J36 -> 40000000 | K31: ='SA3'!K35+'SA3'!K36 -> 40000000 | L31: ='SA3'!L35+'SA3'!L36 -> 40000000
A32: Total | C32: =C29-C31 -> 111855408 | D32: =D29-D31 -> 133134753 | E32: 113941652 | F32: 120547000 | G32: 81929000 | H32: 81929000 | I32: 81929000 | J32: 268258000 | K32: 407951000 | L32: 574838000
A34: Debtors collection assumptions
A35: Balance outstanding - debtors | C35: ='A6-FinPos'!C8+'A6-FinPos'!C9+'A6-FinPos'!C15 -> 224466925 | D35: ='A6-FinPos'!D8+'A6-FinPos'!D9+'A6-FinPos'!D15 -> 304266000 | E35: ='A6-FinPos'!E8+'A6-FinPos'!E9+'A6-FinPos'!E15 -> 333332000 | F35: ='A6-FinPos'!F8+'A6-FinPos'!F9+'A6-FinPos'!F15 -> 261173000 | G35: ='A6-FinPos'!G8+'A6-FinPos'!G9+'A6-FinPos'!G15 -> 221966000 | H35: ='A6-FinPos'!H8+'A6-FinPos'!H9+'A6-FinPos'!H15 -> 221966000 | I35: ='A6-FinPos'!I8+'A6-FinPos'!I9+'A6-FinPos'!I15 -> 221966000 | J35: ='A6-FinPos'!J8+'A6-FinPos'!J9+'A6-FinPos'!J15 -> 490621000 | K35: ='A6-FinPos'!K8+'A6-FinPos'!K9+'A6-FinPos'!K15 -> 769706000 | L35: ='A6-FinPos'!L8+'A6-FinPos'!L9+'A6-FinPos'!L15 -> 1068648000
A36: Estimate of debtors collection rate | C36: =IF(ISERROR('SA10'!D10),0,('SA10'!D10)) -> 0.8467804058 | D36: =IF(ISERROR('SA10'!E10),0,('SA10'!E10)) -> 0.8101897991 | E36: =IF(ISERROR('SA10'!F10),0,('SA10'!F10)) -> 0.8311284229 | F36: =IF(ISERROR('SA10'!G10),0,('SA10'!G10)) -> 0.6147143067 | G36: =IF(ISERROR('SA10'!H10),0,('SA10'!H10)) -> 0.5493123336 | H36: =IF(ISERROR('SA10'!I10),0,('SA10'!I10)) -> 0.5493123336 | I36: =IF(ISERROR('SA10'!J10),0,('SA10'!J10)) -> 0.5493123336 | J36: =IF(ISERROR('SA10'!K10),0,('SA10'!K10)) -> 0.6283016782 | K36: =IF(ISERROR('SA10'!L10),0,('SA10'!L10)) -> 0.5819768589 | L36: =IF(ISERROR('SA10'!M10),0,('SA10'!M10)) -> 0.5753414687
K39: `
A40: =A16 -> Long term investments committed
A41: Balance (Insert description; eg sinking fund)
C42: =SUM(C41:C41) -> 0 | D42: 0 | E42: 0 | F42: 0 | G42: 0 | H42: 0 | I42: 0 | J42: 0 | K42: 0 | L42: 0
A43: =A17 -> Reserves to be backed by cash/investments
A44: ='SA3'!A66 -> Housing Development Fund | C44: ='SA3'!C66 -> 0 | D44: ='SA3'!D66 -> 0 | E44: ='SA3'!E66 -> 0 | F44: ='SA3'!F66 -> 0 | G44: ='SA3'!G66 -> 0 | H44: ='SA3'!H66 -> 0 | I44: ='SA3'!I66 -> 0 | J44: ='SA3'!J66 -> 0 | K44: ='SA3'!K66 -> 0 | L44: ='SA3'!L66 -> 0
A45: ='SA3'!A67 -> Capital replacement
A46: ='SA3'!A68 -> 0
A47: Other (list)
C57: =SUM(C44:C55) -> 0 | D57: 0 | E57: 0 | F57: 0 | G57: 0 | H57: 0 | I57: 0 | J57: 0 | K57: 0 | L57: 0

Sheet A9-Asset
A1: =muni&" - "&Approve9 -> NW375 Moses Kotane - Table A9 Asset Management
A2: =desc -> Description | B2: =head27 -> Ref | C2: =head1b -> 2015/16 | D2: =head1A -> 2016/17 | E2: =Head1 -> 2017/18 | F2: =Head2 -> Current Year 2018/19 | I2: =Head3 -> 2019/20 Medium Term Revenue & Expenditure Framework
A3: R thousand | C3: =Head5 -> Audited Outcome | D3: =Head5 -> Audited Outcome | E3: =Head5 -> Audited Outcome | F3: =Head6 -> Original Budget | G3: =Head7 -> Adjusted Budget | H3: =Head8 -> Full Year Forecast | I3: =Head9 -> Budget Year 2019/20 | J3: =Head10 -> Budget Year +1 2020/21 | K3: =Head11 -> Budget Year +2 2021/22
A4: CAPITAL EXPENDITURE
A5: Total New Assets | B5: 1 | C5: =C15+C18+C19+C22+C25+C26+SUM(C29:C35) -> 287010501 | D5: =D15+D18+D19+D22+D25+D26+SUM(D29:D35) -> 55090000 | E5: 330359000 | F5: 219310000 | G5: 232633406 | H5: 232633406 | I5: 180262851 | J5: 181906153 | K5: 207623370
A6: Roads Infrastructure | C6: =SA34a!C7 -> 65901000 | D6: =SA34a!D7 -> 0 | E6: =SA34a!E7 -> 91682000 | F6: =SA34a!F7 -> 45098000 | G6: =SA34a!G7 -> 51529000 | H6: =SA34a!H7 -> 51529000 | I6: =SA34a!I7 -> 62193238 | J6: =SA34a!J7 -> 54425000 | K6: =SA34a!K7 -> 60000000
A7: Storm water Infrastructure | C7: =SA34a!C12 -> 0 | D7: =SA34a!D12 -> 0 | E7: =SA34a!E12 -> 0 | F7: =SA34a!F12 -> 0 | G7: =SA34a!G12 -> 0 | H7: =SA34a!H12 -> 0 | I7: =SA34a!I12 -> 0 | J7: =SA34a!J12 -> 0 | K7: =SA34a!K12 -> 0
A8: Electrical Infrastructure | C8: =SA34a!C16 -> 10706000 | D8: =SA34a!D16 -> 0 | E8: =SA34a!E16 -> 13666000 | F8: =SA34a!F16 -> 9800000 | G8: =SA34a!G16 -> 11350000 | H8: =SA34a!H16 -> 11350000 | I8: =SA34a!I16 -> 18017904 | J8: =SA34a!J16 -> 8638980 | K8: =SA34a!K16 -> 12557370
A9: Water Supply Infrastructure | C9: =SA34a!C26 -> 43815786 | D9: =SA34a!D26 -> 0 | E9: =SA34a!E26 -> 126017000 | F9: =SA34a!F26 -> 104689000 | G9: =SA34a!G26 -> 116270000 | H9: =SA34a!H26 -> 116270000 | I9: =SA34a!I26 -> 60500000 | J9: =SA34a!J26 -> 108856648 | K9: =SA34a!K26 -> 101216000
A10: Sanitation Infrastructure | C10: =SA34a!C37 -> 13143000 | D10: =SA34a!D37 -> 0 | E10: =SA34a!E37 -> 591000 | F10: =SA34a!F37 -> 27000000 | G10: =SA34a!G37 -> 27558406 | H10: =SA34a!H37 -> 27558406 | I10: =SA34a!I37 -> 24111456 | J10: =SA34a!J37 -> 9135525 | K10: =SA34a!K37 -> 25000000
A11: Solid Waste Infrastructure | C11: =SA34a!C44 -> 4632000 | D11: =SA34a!D44 -> 0 | E11: =SA34a!E44 -> 45673000 | F11: =SA34a!F44 -> 0 | G11: =SA34a!G44 -> 0 | H11: =SA34a!H44 -> 0 | I11: =SA34a!I44 -> 0 | J11: =SA34a!J44 -> 0 | K11: =SA34a!K44 -> 0
A12: Rail Infrastructure | C12: =SA34a!C52 -> 0 | D12: =SA34a!D52 -> 0 | E12: =SA34a!E52 -> 0 | F12: =SA34a!F52 -> 0 | G12: =SA34a!G52 -> 0 | H12: =SA34a!H52 -> 0 | I12: =SA34a!I52 -> 0 | J12: =SA34a!J52 -> 0 | K12: =SA34a!K52 -> 0
A13: Coastal Infrastructure | C13: =SA34a!C62 -> 0 | D13: =SA34a!D62 -> 0 | E13: =SA34a!E62 -> 0 | F13: =SA34a!F62 -> 0 | G13: =SA34a!G62 -> 0 | H13: =SA34a!H62 -> 0 | I13: =SA34a!I62 -> 0 | J13: =SA34a!J62 -> 0 | K13: =SA34a!K62 -> 0
A14: Information and Communication Infrastructure | C14: =SA34a!C68 -> 0 | D14: =SA34a!D68 -> 0 | E14: =SA34a!E68 -> 0 | F14: =SA34a!F68 -> 0 | G14: =SA34a!G68 -> 0 | H14: =SA34a!H68 -> 0 | I14: =SA34a!I68 -> 0 | J14: =SA34a!J68 -> 0 | K14: =SA34a!K68 -> 0
A15: Infrastructure | C15: =SUM(C6:C14) -> 138197786 | D15: =SUM(D6:D14) -> 0 | E15: 277629000 | F15: 186587000 | G15: 206707406 | H15: 206707406 | I15: 164822598 | J15: 181056153 | K15: 198773370
A16: Community Facilities | C16: =SA34a!C75 -> 29303715 | D16: =SA34a!D75 -> 0 | E16: =SA34a!E75 -> 34854000 | F16: =SA34a!F75 -> 20723000 | G16: =SA34a!G75 -> 22326000 | H16: =SA34a!H75 -> 22326000 | I16: =SA34a!I75 -> 14590253 | J16: =SA34a!J75 -> 0 | K16: =SA34a!K75 -> 8000000
A17: Sport and Recreation Facilities | C17: =SA34a!C98 -> 0 | D17: =SA34a!D98 -> 0 | E17: =SA34a!E98 -> 0 | F17: =SA34a!F98 -> 0 | G17: =SA34a!G98 -> 0 | H17: =SA34a!H98 -> 0 | I17: =SA34a!I98 -> 0 | J17: =SA34a!J98 -> 0 | K17: =SA34a!K98 -> 0
A18: Community Assets | C18: =SUM(C16:C17) -> 29303715 | D18: =SUM(D16:D17) -> 0 | E18: 34854000 | F18: 20723000 | G18: 22326000 | H18: 22326000 | I18: 14590253 | J18: 0 | K18: 8000000
A19: Heritage Assets | C19: =SA34a!C103 -> 0 | D19: =SA34a!D103 -> 0 | E19: =SA34a!E103 -> 0 | F19: =SA34a!F103 -> 0 | G19: =SA34a!G103 -> 0 | H19: =SA34a!H103 -> 0 | I19: =SA34a!I103 -> 0 | J19: =SA34a!J103 -> 0 | K19: =SA34a!K103 -> 0
A20: Revenue Generating | C20: =SA34a!C111 -> 0 | D20: =SA34a!D111 -> 0 | E20: =SA34a!E111 -> 0 | F20: =SA34a!F111 -> 0 | G20: =SA34a!G111 -> 0 | H20: =SA34a!H111 -> 0 | I20: =SA34a!I111 -> 0 | J20: =SA34a!J111 -> 0 | K20: =SA34a!K111 -> 0
A21: Non-revenue Generating | C21: =SA34a!C114 -> 0 | D21: =SA34a!D114 -> 0 | E21: =SA34a!E114 -> 0 | F21: =SA34a!F114 -> 0 | G21: =SA34a!G114 -> 0 | H21: =SA34a!H114 -> 0 | I21: =SA34a!I114 -> 0 | J21: =SA34a!J114 -> 0 | K21: =SA34a!K114 -> 0
A22: Investment properties | C22: =SUM(C20:C21) -> 0 | D22: =SUM(D20:D21) -> 0 | E22: 0 | F22: 0 | G22: 0 | H22: 0 | I22: 0 | J22: 0 | K22: 0
A23: Operational Buildings | C23: =SA34a!C119 -> 0 | D23: =SA34a!D119 -> 0 | E23: =SA34a!E119 -> 0 | F23: =SA34a!F119 -> 500000 | G23: =SA34a!G119 -> 1100000 | H23: =SA34a!H119 -> 1100000 | I23: =SA34a!I119 -> 0 | J23: =SA34a!J119 -> 0 | K23: =SA34a!K119 -> 0
A24: Housing | C24: =SA34a!C131 -> 0 | D24: =SA34a!D131 -> 0 | E24: =SA34a!E131 -> 0 | F24: =SA34a!F131 -> 0 | G24: =SA34a!G131 -> 0 | H24: =SA34a!H131 -> 0 | I24: =SA34a!I131 -> 0 | J24: =SA34a!J131 -> 0 | K24: =SA34a!K131 -> 0
A25: Other Assets | C25: =SUM(C23:C24) -> 0 | D25: =SUM(D23:D24) -> 0 | E25: 0 | F25: 500000 | G25: 1100000 | H25: 1100000 | I25: 0 | J25: 0 | K25: 0
A26: Biological or Cultivated Assets | C26: =SA34a!C136 -> 0 | D26: =SA34a!D136 -> 0 | E26: =SA34a!E136 -> 0 | F26: =SA34a!F136 -> 0 | G26: =SA34a!G136 -> 0 | H26: =SA34a!H136 -> 0 | I26: =SA34a!I136 -> 0 | J26: =SA34a!J136 -> 0 | K26: =SA34a!K136 -> 0
A27: Servitudes | C27: =SA34a!C140 -> 0 | D27: =SA34a!D140 -> 0 | E27: =SA34a!E140 -> 0 | F27: =SA34a!F140 -> 0 | G27: =SA34a!G140 -> 0 | H27: =SA34a!H140 -> 0 | I27: =SA34a!I140 -> 0 | J27: =SA34a!J140 -> 0 | K27: =SA34a!K140 -> 0
A28: Licences and Rights | C28: =SA34a!C141 -> 0 | D28: =SA34a!D141 -> 40247000 | E28: =SA34a!E141 -> 14105000 | F28: =SA34a!F141 -> 0 | G28: =SA34a!G141 -> 0 | H28: =SA34a!H141 -> 0 | I28: =SA34a!I141 -> 0 | J28: =SA34a!J141 -> 0 | K28: =SA34a!K141 -> 0
A29: Intangible Assets | C29: =SUM(C27:C28) -> 0 | D29: =SUM(D27:D28) -> 40247000 | E29: 14105000 | F29: 0 | G29: 0 | H29: 0 | I29: 0 | J29: 0 | K29: 0
A30: Computer Equipment | C30: =SA34a!C149 -> 0 | D30: =SA34a!D149 -> 0 | E30: =SA34a!E149 -> 0 | F30: =SA34a!F149 -> 1000000 | G30: =SA34a!G149 -> 500000 | H30: =SA34a!H149 -> 500000 | I30: =SA34a!I149 -> 250000 | J30: =SA34a!J149 -> 250000 | K30: =SA34a!K149 -> 250000
A31: Furniture and Office Equipment | C31: =SA34a!C152 -> 68088000 | D31: =SA34a!D152 -> 3308000 | E31: =SA34a!E152 -> 1961000 | F31: =SA34a!F152 -> 2050000 | G31: =SA34a!G152 -> 1550000 | H31: =SA34a!H152 -> 1550000 | I31: =SA34a!I152 -> 300000 | J31: =SA34a!J152 -> 300000 | K31: =SA34a!K152 -> 300000
A32: Machinery and Equipment | C32: =SA34a!C155 -> 0 | D32: =SA34a!D155 -> 1810000 | E32: =SA34a!E155 -> 263000 | F32: =SA34a!F155 -> 450000 | G32: =SA34a!G155 -> 450000 | H32: =SA34a!H155 -> 450000 | I32: =SA34a!I155 -> 300000 | J32: =SA34a!J155 -> 300000 | K32: =SA34a!K155 -> 300000
A33: Transport Assets | C33: =SA34a!C158 -> 0 | D33: =SA34a!D158 -> 9725000 | E33: =SA34a!E158 -> 794000 | F33: =SA34a!F158 -> 8000000 | G33: =SA34a!G158 -> 0 | H33: =SA34a!H158 -> 0 | I33: =SA34a!I158 -> 0 | J33: =SA34a!J158 -> 0 | K33: =SA34a!K158 -> 0
A34: Land | C34: =SA34a!C161 -> 51421000 | D34: =SA34a!D161 -> 0 | E34: =SA34a!E161 -> 753000 | F34: =SA34a!F161 -> 0 | G34: =SA34a!G161 -> 0 | H34: =SA34a!H161 -> 0 | I34: =SA34a!I161 -> 0 | J34: =SA34a!J161 -> 0 | K34: =SA34a!K161 -> 0
A35: Zoo's, Marine and Non-biological Animals | C35: =SA34a!C164 -> 0 | D35: =SA34a!D164 -> 0 | E35: =SA34a!E164 -> 0 | F35: =SA34a!F164 -> 0 | G35: =SA34a!G164 -> 0 | H35: =SA34a!H164 -> 0 | I35: =SA34a!I164 -> 0 | J35: =SA34a!J164 -> 0 | K35: =SA34a!K164 -> 0
A37: Total Renewal of Existing Assets | B37: 2 | C37: =C47+C50+C51+C54+C57+C58+SUM(C61:C67) -> 0 | D37: =D47+D50+D51+D54+D57+D58+SUM(D61:D67) -> 0 | E37: 0 | F37: 22423000 | G37: 19449000 | H37: 19449000 | I37: 0 | J37: 0 | K37: 0
A38: Roads Infrastructure | C38: =SA34b!C7 -> 0 | D38: =SA34b!D7 -> 0 | E38: =SA34b!E7 -> 0 | F38: =SA34b!F7 -> 3500000 | G38: =SA34b!G7 -> 3500000 | H38: =SA34b!H7 -> 3500000 | I38: =SA34b!I7 -> 0 | J38: =SA34b!J7 -> 0 | K38: =SA34b!K7 -> 0
A39: Storm water Infrastructure | C39: =SA34b!C12 -> 0 | D39: =SA34b!D12 -> 0 | E39: =SA34b!E12 -> 0 | F39: =SA34b!F12 -> 0 | G39: =SA34b!G12 -> 0 | H39: =SA34b!H12 -> 0 | I39: =SA34b!I12 -> 0 | J39: =SA34b!J12 -> 0 | K39: =SA34b!K12 -> 0
A40: Electrical Infrastructure | C40: =SA34b!C16 -> 0 | D40: =SA34b!D16 -> 0 | E40: =SA34b!E16 -> 0 | F40: =SA34b!F16 -> 0 | G40: =SA34b!G16 -> 0 | H40: =SA34b!H16 -> 0 | I40: =SA34b!I16 -> 0 | J40: =SA34b!J16 -> 0 | K40: =SA34b!K16 -> 0
A41: Water Supply Infrastructure | C41: =SA34b!C26 -> 0 | D41: =SA34b!D26 -> 0 | E41: =SA34b!E26 -> 0 | F41: =SA34b!F26 -> 3000000 | G41: =SA34b!G26 -> 3000000 | H41: =SA34b!H26 -> 3000000 | I41: =SA34b!I26 -> 0 | J41: =SA34b!J26 -> 0 | K41: =SA34b!K26 -> 0
A42: Sanitation Infrastructure | C42: =SA34b!C37 -> 0 | D42: =SA34b!D37 -> 0 | E42: =SA34b!E37 -> 0 | F42: =SA34b!F37 -> 0 | G42: =SA34b!G37 -> 0 | H42: =SA34b!H37 -> 0 | I42: =SA34b!I37 -> 0 | J42: =SA34b!J37 -> 0 | K42: =SA34b!K37 -> 0
A43: Solid Waste Infrastructure | C43: =SA34b!C44 -> 0 | D43: =SA34b!D44 -> 0 | E43: =SA34b!E44 -> 0 | F43: =SA34b!F44 -> 11423000 | G43: =SA34b!G44 -> 12449000 | H43: =SA34b!H44 -> 12449000 | I43: =SA34b!I44 -> 0 | J43: =SA34b!J44 -> 0 | K43: =SA34b!K44 -> 0
A44: Rail Infrastructure | C44: =SA34b!C52 -> 0 | D44: =SA34b!D52 -> 0 | E44: =SA34b!E52 -> 0 | F44: =SA34b!F52 -> 0 | G44: =SA34b!G52 -> 0 | H44: =SA34b!H52 -> 0 | I44: =SA34b!I52 -> 0 | J44: =SA34b!J52 -> 0 | K44: =SA34b!K52 -> 0
A45: Coastal Infrastructure | C45: =SA34b!C62 -> 0 | D45: =SA34b!D62 -> 0 | E45: =SA34b!E62 -> 0 | F45: =SA34b!F62 -> 0 | G45: =SA34b!G62 -> 0 | H45: =SA34b!H62 -> 0 | I45: =SA34b!I62 -> 0 | J45: =SA34b!J62 -> 0 | K45: =SA34b!K62 -> 0
A46: Information and Communication Infrastructure | C46: =SA34b!C68 -> 0 | D46: =SA34b!D68 -> 0 | E46: =SA34b!E68 -> 0 | F46: =SA34b!F68 -> 0 | G46: =SA34b!G68 -> 0 | H46: =SA34b!H68 -> 0 | I46: =SA34b!I68 -> 0 | J46: =SA34b!J68 -> 0 | K46: =SA34b!K68 -> 0
A47: Infrastructure | C47: =SUM(C38:C46) -> 0 | D47: =SUM(D38:D46) -> 0 | E47: 0 | F47: 17923000 | G47: 18949000 | H47: 18949000 | I47: 0 | J47: 0 | K47: 0
A48: Community Facilities | C48: =SA34b!C75 -> 0 | D48: =SA34b!D75 -> 0 | E48: =SA34b!E75 -> 0 | F48: =SA34b!F75 -> 4500000 | G48: =SA34b!G75 -> 500000 | H48: =SA34b!H75 -> 500000 | I48: =SA34b!I75 -> 0 | J48: =SA34b!J75 -> 0 | K48: =SA34b!K75 -> 0
A49: Sport and Recreation Facilities | C49: =SA34b!C98 -> 0 | D49: =SA34b!D98 -> 0 | E49: =SA34b!E98 -> 0 | F49: =SA34b!F98 -> 0 | G49: =SA34b!G98 -> 0 | H49: =SA34b!H98 -> 0 | I49: =SA34b!I98 -> 0 | J49: =SA34b!J98 -> 0 | K49: =SA34b!K98 -> 0
A50: Community Assets | C50: =SUM(C48:C49) -> 0 | D50: =SUM(D48:D49) -> 0 | E50: 0 | F50: 4500000 | G50: 500000 | H50: 500000 | I50: 0 | J50: 0 | K50: 0
A51: Heritage Assets | C51: =SA34b!C103 -> 0 | D51: =SA34b!D103 -> 0 | E51: =SA34b!E103 -> 0 | F51: =SA34b!F103 -> 0 | G51: =SA34b!G103 -> 0 | H51: =SA34b!H103 -> 0 | I51: =SA34b!I103 -> 0 | J51: =SA34b!J103 -> 0 | K51: =SA34b!K103 -> 0
A52: Revenue Generating | C52: =SA34b!C111 -> 0 | D52: =SA34b!D111 -> 0 | E52: =SA34b!E111 -> 0 | F52: =SA34b!F111 -> 0 | G52: =SA34b!G111 -> 0 | H52: =SA34b!H111 -> 0 | I52: =SA34b!I111 -> 0 | J52: =SA34b!J111 -> 0 | K52: =SA34b!K111 -> 0
A53: Non-revenue Generating | C53: =SA34b!C114 -> 0 | D53: =SA34b!D114 -> 0 | E53: =SA34b!E114 -> 0 | F53: =SA34b!F114 -> 0 | G53: =SA34b!G114 -> 0 | H53: =SA34b!H114 -> 0 | I53: =SA34b!I114 -> 0 | J53: =SA34b!J114 -> 0 | K53: =SA34b!K114 -> 0
A54: Investment properties | C54: =SUM(C52:C53) -> 0 | D54: =SUM(D52:D53) -> 0 | E54: 0 | F54: 0 | G54: 0 | H54: 0 | I54: 0 | J54: 0 | K54: 0
A55: Operational Buildings | C55: =SA34b!C119 -> 0 | D55: =SA34b!D119 -> 0 | E55: =SA34b!E119 -> 0 | F55: =SA34b!F119 -> 0 | G55: =SA34b!G119 -> 0 | H55: =SA34b!H119 -> 0 | I55: =SA34b!I119 -> 0 | J55: =SA34b!J119 -> 0 | K55: =SA34b!K119 -> 0
A56: Housing | C56: =SA34b!C131 -> 0 | D56: =SA34b!D131 -> 0 | E56: =SA34b!E131 -> 0 | F56: =SA34b!F131 -> 0 | G56: =SA34b!G131 -> 0 | H56: =SA34b!H131 -> 0 | I56: =SA34b!I131 -> 0 | J56: =SA34b!J131 -> 0 | K56: =SA34b!K131 -> 0
A57: Other Assets | C57: =SUM(C55:C56) -> 0 | D57: =SUM(D55:D56) -> 0 | E57: 0 | F57: 0 | G57: 0 | H57: 0 | I57: 0 | J57: 0 | K57: 0
A58: Biological or Cultivated Assets | C58: =SA34b!C136 -> 0 | D58: =SA34b!D136 -> 0 | E58: =SA34b!E136 -> 0 | F58: =SA34b!F136 -> 0 | G58: =SA34b!G136 -> 0 | H58: =SA34b!H136 -> 0 | I58: =SA34b!I136 -> 0 | J58: =SA34b!J136 -> 0 | K58: =SA34b!K136 -> 0
A59: Servitudes | C59: =SA34b!C140 -> 0 | D59: =SA34b!D140 -> 0 | E59: =SA34b!E140 -> 0 | F59: =SA34b!F140 -> 0 | G59: =SA34b!G140 -> 0 | H59: =SA34b!H140 -> 0 | I59: =SA34b!I140 -> 0 | J59: =SA34b!J140 -> 0 | K59: =SA34b!K140 -> 0
A60: Licences and Rights | C60: =SA34b!C141 -> 0 | D60: =SA34b!D141 -> 0 | E60: =SA34b!E141 -> 0 | F60: =SA34b!F141 -> 0 | G60: =SA34b!G141 -> 0 | H60: =SA34b!H141 -> 0 | I60: =SA34b!I141 -> 0 | J60: =SA34b!J141 -> 0 | K60: =SA34b!K141 -> 0
A61: Intangible Assets | C61: =SUM(C59:C60) -> 0 | D61: =SUM(D59:D60) -> 0 | E61: 0 | F61: 0 | G61: 0 | H61: 0 | I61: 0 | J61: 0 | K61: 0
A62: Computer Equipment | C62: =SA34b!C149 -> 0 | D62: =SA34b!D149 -> 0 | E62: =SA34b!E149 -> 0 | F62: =SA34b!F149 -> 0 | G62: =SA34b!G149 -> 0 | H62: =SA34b!H149 -> 0 | I62: =SA34b!I149 -> 0 | J62: =SA34b!J149 -> 0 | K62: =SA34b!K149 -> 0
A63: Furniture and Office Equipment | C63: =SA34b!C152 -> 0 | D63: =SA34b!D152 -> 0 | E63: =SA34b!E152 -> 0 | F63: =SA34b!F152 -> 0 | G63: =SA34b!G152 -> 0 | H63: =SA34b!H152 -> 0 | I63: =SA34b!I152 -> 0 | J63: =SA34b!J152 -> 0 | K63: =SA34b!K152 -> 0
A64: Machinery and Equipment | C64: =SA34b!C155 -> 0 | D64: =SA34b!D155 -> 0 | E64: =SA34b!E155 -> 0 | F64: =SA34b!F155 -> 0 | G64: =SA34b!G155 -> 0 | H64: =SA34b!H155 -> 0 | I64: =SA34b!I155 -> 0 | J64: =SA34b!J155 -> 0 | K64: =SA34b!K155 -> 0
A65: Transport Assets | C65: =SA34b!C158 -> 0 | D65: =SA34b!D158 -> 0 | E65: =SA34b!E158 -> 0 | F65: =SA34b!F158 -> 0 | G65: =SA34b!G158 -> 0 | H65: =SA34b!H158 -> 0 | I65: =SA34b!I158 -> 0 | J65: =SA34b!J158 -> 0 | K65: =SA34b!K158 -> 0
A66: Land | C66: =SA34b!C161 -> 0 | D66: =SA34b!D161 -> 0 | E66: =SA34b!E161 -> 0 | F66: =SA34b!F161 -> 0 | G66: =SA34b!G161 -> 0 | H66: =SA34b!H161 -> 0 | I66: =SA34b!I161 -> 0 | J66: =SA34b!J161 -> 0 | K66: =SA34b!K161 -> 0
A67: Zoo's, Marine and Non-biological Animals | C67: =SA34b!C164 -> 0 | D67: =SA34b!D164 -> 0 | E67: =SA34b!E164 -> 0 | F67: =SA34b!F164 -> 0 | G67: =SA34b!G164 -> 0 | H67: =SA34b!H164 -> 0 | I67: =SA34b!I164 -> 0 | J67: =SA34b!J164 -> 0 | K67: =SA34b!K164 -> 0
A69: Total Upgrading of Existing Assets | B69: 6 | C69: =C79+C82+C83+C86+C89+C90+SUM(C93:C99) -> 0 | D69: =D79+D82+D83+D86+D89+D90+SUM(D93:D99) -> 0 | E69: 0 | F69: 0 | G69: 0 | H69: 0 | I69: 20111512 | J69: 29864475 | K69: 19515202
A70: Roads Infrastructure | C70: =SA34e!C7 -> 0 | D70: =SA34e!D7 -> 0 | E70: =SA34e!E7 -> 0 | F70: =SA34e!F7 -> 0 | G70: =SA34e!G7 -> 0 | H70: =SA34e!H7 -> 0 | I70: =SA34e!I7 -> 0 | J70: =SA34e!J7 -> 0 | K70: =SA34e!K7 -> 0
A71: Storm water Infrastructure | C71: =SA34e!C12 -> 0 | D71: =SA34e!D12 -> 0 | E71: =SA34e!E12 -> 0 | F71: =SA34e!F12 -> 0 | G71: =SA34e!G12 -> 0 | H71: =SA34e!H12 -> 0 | I71: =SA34e!I12 -> 0 | J71: =SA34e!J12 -> 0 | K71: =SA34e!K12 -> 0
A72: Electrical Infrastructure | C72: =SA34e!C16 -> 0 | D72: =SA34e!D16 -> 0 | E72: =SA34e!E16 -> 0 | F72: =SA34e!F16 -> 0 | G72: =SA34e!G16 -> 0 | H72: =SA34e!H16 -> 0 | I72: =SA34e!I16 -> 0 | J72: =SA34e!J16 -> 0 | K72: =SA34e!K16 -> 0
A73: Water Supply Infrastructure | C73: =SA34e!C26 -> 0 | D73: =SA34e!D26 -> 0 | E73: =SA34e!E26 -> 0 | F73: =SA34e!F26 -> 0 | G73: =SA34e!G26 -> 0 | H73: =SA34e!H26 -> 0 | I73: =SA34e!I26 -> 4314603 | J73: =SA34e!J26 -> 0 | K73: =SA34e!K26 -> 0
A74: Sanitation Infrastructure | C74: =SA34e!C37 -> 0 | D74: =SA34e!D37 -> 0 | E74: =SA34e!E37 -> 0 | F74: =SA34e!F37 -> 0 | G74: =SA34e!G37 -> 0 | H74: =SA34e!H37 -> 0 | I74: =SA34e!I37 -> 0 | J74: =SA34e!J37 -> 0 | K74: =SA34e!K37 -> 0
A75: Solid Waste Infrastructure | C75: =SA34e!C44 -> 0 | D75: =SA34e!D44 -> 0 | E75: =SA34e!E44 -> 0 | F75: =SA34e!F44 -> 0 | G75: =SA34e!G44 -> 0 | H75: =SA34e!H44 -> 0 | I75: =SA34e!I44 -> 15796909 | J75: =SA34e!J44 -> 20000000 | K75: =SA34e!K44 -> 19515202
A76: Rail Infrastructure | C76: =SA34e!C52 -> 0 | D76: =SA34e!D52 -> 0 | E76: =SA34e!E52 -> 0 | F76: =SA34e!F52 -> 0 | G76: =SA34e!G52 -> 0 | H76: =SA34e!H52 -> 0 | I76: =SA34e!I52 -> 0 | J76: =SA34e!J52 -> 0 | K76: =SA34e!K52 -> 0
A77: Coastal Infrastructure | C77: =SA34e!C62 -> 0 | D77: =SA34e!D62 -> 0 | E77: =SA34e!E62 -> 0 | F77: =SA34e!F62 -> 0 | G77: =SA34e!G62 -> 0 | H77: =SA34e!H62 -> 0 | I77: =SA34e!I62 -> 0 | J77: =SA34e!J62 -> 0 | K77: =SA34e!K62 -> 0
A78: Information and Communication Infrastructure | C78: =SA34e!C68 -> 0 | D78: =SA34e!D68 -> 0 | E78: =SA34e!E68 -> 0 | F78: =SA34e!F68 -> 0 | G78: =SA34e!G68 -> 0 | H78: =SA34e!H68 -> 0 | I78: =SA34e!I68 -> 0 | J78: =SA34e!J68 -> 0 | K78: =SA34e!K68 -> 0
A79: Infrastructure | C79: =SUM(C70:C78) -> 0 | D79: 0 | E79: 0 | F79: 0 | G79: 0 | H79: 0 | I79: 20111512 | J79: 20000000 | K79: 19515202
A80: Community Facilities | C80: =SA34e!C75 -> 0 | D80: =SA34e!D75 -> 0 | E80: =SA34e!E75 -> 0 | F80: =SA34e!F75 -> 0 | G80: =SA34e!G75 -> 0 | H80: =SA34e!H75 -> 0 | I80: =SA34e!I75 -> 0 | J80: =SA34e!J75 -> 0 | K80: =SA34e!K75 -> 0
A81: Sport and Recreation Facilities | C81: =SA34e!C98 -> 0 | D81: =SA34e!D98 -> 0 | E81: =SA34e!E98 -> 0 | F81: =SA34e!F98 -> 0 | G81: =SA34e!G98 -> 0 | H81: =SA34e!H98 -> 0 | I81: =SA34e!I98 -> 0 | J81: =SA34e!J98 -> 9864475 | K81: =SA34e!K98 -> 0
A82: Community Assets | C82: =SUM(C80:C81) -> 0 | D82: 0 | E82: 0 | F82: 0 | G82: 0 | H82: 0 | I82: 0 | J82: 9864475 | K82: 0
A83: Heritage Assets | C83: =SA34e!C103 -> 0 | D83: =SA34e!D103 -> 0 | E83: =SA34e!E103 -> 0 | F83: =SA34e!F103 -> 0 | G83: =SA34e!G103 -> 0 | H83: =SA34e!H103 -> 0 | I83: =SA34e!I103 -> 0 | J83: =SA34e!J103 -> 0 | K83: =SA34e!K103 -> 0
A84: Revenue Generating | C84: =SA34e!C111 -> 0 | D84: =SA34e!D111 -> 0 | E84: =SA34e!E111 -> 0 | F84: =SA34e!F111 -> 0 | G84: =SA34e!G111 -> 0 | H84: =SA34e!H111 -> 0 | I84: =SA34e!I111 -> 0 | J84: =SA34e!J111 -> 0 | K84: =SA34e!K111 -> 0
A85: Non-revenue Generating | C85: =SA34e!C114 -> 0 | D85: =SA34e!D114 -> 0 | E85: =SA34e!E114 -> 0 | F85: =SA34e!F114 -> 0 | G85: =SA34e!G114 -> 0 | H85: =SA34e!H114 -> 0 | I85: =SA34e!I114 -> 0 | J85: =SA34e!J114 -> 0 | K85: =SA34e!K114 -> 0
A86: Investment properties | C86: =SUM(C84:C85) -> 0 | D86: 0 | E86: 0 | F86: 0 | G86: 0 | H86: 0 | I86: 0 | J86: 0 | K86: 0
A87: Operational Buildings | C87: =SA34e!C119 -> 0 | D87: =SA34e!D119 -> 0 | E87: =SA34e!E119 -> 0 | F87: =SA34e!F119 -> 0 | G87: =SA34e!G119 -> 0 | H87: =SA34e!H119 -> 0 | I87: =SA34e!I119 -> 0 | J87: =SA34e!J119 -> 0 | K87: =SA34e!K119 -> 0
A88: Housing | C88: =SA34e!C131 -> 0 | D88: =SA34e!D131 -> 0 | E88: =SA34e!E131 -> 0 | F88: =SA34e!F131 -> 0 | G88: =SA34e!G131 -> 0 | H88: =SA34e!H131 -> 0 | I88: =SA34e!I131 -> 0 | J88: =SA34e!J131 -> 0 | K88: =SA34e!K131 -> 0
A89: Other Assets | C89: =SUM(C87:C88) -> 0 | D89: 0 | E89: 0 | F89: 0 | G89: 0 | H89: 0 | I89: 0 | J89: 0 | K89: 0
A90: Biological or Cultivated Assets | C90: =SA34e!C136 -> 0 | D90: =SA34e!D136 -> 0 | E90: =SA34e!E136 -> 0 | F90: =SA34e!F136 -> 0 | G90: =SA34e!G136 -> 0 | H90: =SA34e!H136 -> 0 | I90: =SA34e!I136 -> 0 | J90: =SA34e!J136 -> 0 | K90: =SA34e!K136 -> 0
A91: Servitudes | C91: =SA34e!C140 -> 0 | D91: =SA34e!D140 -> 0 | E91: =SA34e!E140 -> 0 | F91: =SA34e!F140 -> 0 | G91: =SA34e!G140 -> 0 | H91: =SA34e!H140 -> 0 | I91: =SA34e!I140 -> 0 | J91: =SA34e!J140 -> 0 | K91: =SA34e!K140 -> 0
A92: Licences and Rights | C92: =SA34e!C141 -> 0 | D92: =SA34e!D141 -> 0 | E92: =SA34e!E141 -> 0 | F92: =SA34e!F141 -> 0 | G92: =SA34e!G141 -> 0 | H92: =SA34e!H141 -> 0 | I92: =SA34e!I141 -> 0 | J92: =SA34e!J141 -> 0 | K92: =SA34e!K141 -> 0
A93: Intangible Assets | C93: =SUM(C91:C92) -> 0 | D93: 0 | E93: 0 | F93: 0 | G93: 0 | H93: 0 | I93: 0 | J93: 0 | K93: 0
A94: Computer Equipment | C94: =SA34e!C149 -> 0 | D94: =SA34e!D149 -> 0 | E94: =SA34e!E149 -> 0 | F94: =SA34e!F149 -> 0 | G94: =SA34e!G149 -> 0 | H94: =SA34e!H149 -> 0 | I94: =SA34e!I149 -> 0 | J94: =SA34e!J149 -> 0 | K94: =SA34e!K149 -> 0
A95: Furniture and Office Equipment | C95: =SA34e!C152 -> 0 | D95: =SA34e!D152 -> 0 | E95: =SA34e!E152 -> 0 | F95: =SA34e!F152 -> 0 | G95: =SA34e!G152 -> 0 | H95: =SA34e!H152 -> 0 | I95: =SA34e!I152 -> 0 | J95: =SA34e!J152 -> 0 | K95: =SA34e!K152 -> 0
A96: Machinery and Equipment | C96: =SA34e!C155 -> 0 | D96: =SA34e!D155 -> 0 | E96: =SA34e!E155 -> 0 | F96: =SA34e!F155 -> 0 | G96: =SA34e!G155 -> 0 | H96: =SA34e!H155 -> 0 | I96: =SA34e!I155 -> 0 | J96: =SA34e!J155 -> 0 | K96: =SA34e!K155 -> 0
A97: Transport Assets | C97: =SA34e!C158 -> 0 | D97: =SA34e!D158 -> 0 | E97: =SA34e!E158 -> 0 | F97: =SA34e!F158 -> 0 | G97: =SA34e!G158 -> 0 | H97: =SA34e!H158 -> 0 | I97: =SA34e!I158 -> 0 | J97: =SA34e!J158 -> 0 | K97: =SA34e!K158 -> 0
A98: Land | C98: =SA34e!C161 -> 0 | D98: =SA34e!D161 -> 0 | E98: =SA34e!E161 -> 0 | F98: =SA34e!F161 -> 0 | G98: =SA34e!G161 -> 0 | H98: =SA34e!H161 -> 0 | I98: =SA34e!I161 -> 0 | J98: =SA34e!J161 -> 0 | K98: =SA34e!K161 -> 0
A99: Zoo's, Marine and Non-biological Animals | C99: =SA34e!C164 -> 0 | D99: =SA34e!D164 -> 0 | E99: =SA34e!E164 -> 0 | F99: =SA34e!F164 -> 0 | G99: =SA34e!G164 -> 0 | H99: =SA34e!H164 -> 0 | I99: =SA34e!I164 -> 0 | J99: =SA34e!J164 -> 0 | K99: =SA34e!K164 -> 0
A101: Total Capital Expenditure | B101: 4 | C101: =+C5+C37+C69 -> 287010501 | D101: =+D5+D37+D69 -> 55090000 | E101: 330359000 | F101: 241733000 | G101: 252082406 | H101: 252082406 | I101: 200374363 | J101: 211770628 | K101: 227138572
A102: Roads Infrastructure | C102: =+C6+C38+C70 -> 65901000 | D102: =+D6+D38+D70 -> 0 | E102: 91682000 | F102: 48598000 | G102: 55029000 | H102: 55029000 | I102: 62193238 | J102: 54425000 | K102: 60000000
A103: Storm water Infrastructure | C103: =+C7+C39+C71 -> 0 | D103: 0 | E103: 0 | F103: 0 | G103: 0 | H103: 0 | I103: 0 | J103: 0 | K103: 0
A104: Electrical Infrastructure | C104: 10706000 | D104: 0 | E104: 13666000 | F104: 9800000 | G104: 11350000 | H104: 11350000 | I104: 18017904 | J104: 8638980 | K104: 12557370
A105: Water Supply Infrastructure | C105: 43815786 | D105: 0 | E105: 126017000 | F105: 107689000 | G105: 119270000 | H105: 119270000 | I105: 64814603 | J105: 108856648 | K105: 101216000
A106: Sanitation Infrastructure | C106: 13143000 | D106: 0 | E106: 591000 | F106: 27000000 | G106: 27558406 | H106: 27558406 | I106: 24111456 | J106: 9135525 | K106: 25000000
A107: Solid Waste Infrastructure | C107: 4632000 | D107: 0 | E107: 45673000 | F107: 11423000 | G107: 12449000 | H107: 12449000 | I107: 15796909 | J107: 20000000 | K107: 19515202
A108: Rail Infrastructure | C108: 0 | D108: 0 | E108: 0 | F108: 0 | G108: 0 | H108: 0 | I108: 0 | J108: 0 | K108: 0
A109: Coastal Infrastructure | C109: 0 | D109: 0 | E109: 0 | F109: 0 | G109: 0 | H109: 0 | I109: 0 | J109: 0 | K109: 0
A110: Information and Communication Infrastructure | C110: 0 | D110: 0 | E110: 0 | F110: 0 | G110: 0 | H110: 0 | I110: 0 | J110: 0 | K110: 0
A111: Infrastructure | C111: =SUM(C102:C110) -> 138197786 | D111: =SUM(D102:D110) -> 0 | E111: 277629000 | F111: 204510000 | G111: 225656406 | H111: 225656406 | I111: 184934110 | J111: 201056153 | K111: 218288572
A112: Community Facilities | C112: =+C16+C48+C80 -> 29303715 | D112: =+D16+D48+D80 -> 0 | E112: 34854000 | F112: 25223000 | G112: 22826000 | H112: 22826000 | I112: 14590253 | J112: 0 | K112: 8000000
A113: Sport and Recreation Facilities | C113: =+C17+C49+C81 -> 0 | D113: =+D17+D49+D81 -> 0 | E113: 0 | F113: 0 | G113: 0 | H113: 0 | I113: 0 | J113: 9864475 | K113: 0
A114: Community Assets | C114: =SUM(C112:C113) -> 29303715 | D114: =SUM(D112:D113) -> 0 | E114: 34854000 | F114: 25223000 | G114: 22826000 | H114: 22826000 | I114: 14590253 | J114: 9864475 | K114: 8000000
A115: Heritage Assets | C115: =+C19+C51+C83 -> 0 | D115: =+D19+D51+D83 -> 0 | E115: 0 | F115: 0 | G115: 0 | H115: 0 | I115: 0 | J115: 0 | K115: 0
A116: Revenue Generating | C116: =+C20+C52+C84 -> 0 | D116: =+D20+D52+D84 -> 0 | E116: 0 | F116: 0 | G116: 0 | H116: 0 | I116: 0 | J116: 0 | K116: 0
A117: Non-revenue Generating | C117: =+C21+C53+C85 -> 0 | D117: =+D21+D53+D85 -> 0 | E117: 0 | F117: 0 | G117: 0 | H117: 0 | I117: 0 | J117: 0 | K117: 0
A118: Investment properties | C118: =SUM(C116:C117) -> 0 | D118: =SUM(D116:D117) -> 0 | E118: 0 | F118: 0 | G118: 0 | H118: 0 | I118: 0 | J118: 0 | K118: 0
A119: Operational Buildings | C119: =+C23+C55+C87 -> 0 | D119: =+D23+D55+D87 -> 0 | E119: 0 | F119: 500000 | G119: 1100000 | H119: 1100000 | I119: 0 | J119: 0 | K119: 0
A120: Housing | C120: =+C24+C56+C88 -> 0 | D120: =+D24+D56+D88 -> 0 | E120: 0 | F120: 0 | G120: 0 | H120: 0 | I120: 0 | J120: 0 | K120: 0
A121: Other Assets | C121: =SUM(C119:C120) -> 0 | D121: 0 | E121: 0 | F121: 500000 | G121: 1100000 | H121: 1100000 | I121: 0 | J121: 0 | K121: 0
A122: Biological or Cultivated Assets | C122: =+C26+C58+C90 -> 0 | D122: =+D26+D58+D90 -> 0 | E122: 0 | F122: 0 | G122: 0 | H122: 0 | I122: 0 | J122: 0 | K122: 0
A123: Servitudes | C123: =+C27+C59+C91 -> 0 | D123: =+D27+D59+D91 -> 0 | E123: 0 | F123: 0 | G123: 0 | H123: 0 | I123: 0 | J123: 0 | K123: 0
A124: Licences and Rights | C124: =+C28+C60+C92 -> 0 | D124: =+D28+D60+D92 -> 40247000 | E124: 14105000 | F124: 0 | G124: 0 | H124: 0 | I124: 0 | J124: 0 | K124: 0
A125: Intangible Assets | C125: =SUM(C123:C124) -> 0 | D125: =SUM(D123:D124) -> 40247000 | E125: 14105000 | F125: 0 | G125: 0 | H125: 0 | I125: 0 | J125: 0 | K125: 0
A126: Computer Equipment | C126: =+C30+C62+C94 -> 0 | D126: =+D30+D62+D94 -> 0 | E126: 0 | F126: 1000000 | G126: 500000 | H126: 500000 | I126: 250000 | J126: 250000 | K126: 250000
A127: Furniture and Office Equipment | C127: =+C31+C63+C95 -> 68088000 | D127: 3308000 | E127: 1961000 | F127: 2050000 | G127: 1550000 | H127: 1550000 | I127: 300000 | J127: 300000 | K127: 300000
A128: Machinery and Equipment | C128: 0 | D128: 1810000 | E128: 263000 | F128: 450000 | G128: 450000 | H128: 450000 | I128: 300000 | J128: 300000 | K128: 300000
A129: Transport Assets | C129: 0 | D129: 9725000 | E129: 794000 | F129: 8000000 | G129: 0 | H129: 0 | I129: 0 | J129: 0 | K129: 0
A130: Land | C130: 51421000 | D130: 0 | E130: 753000 | F130: 0 | G130: 0 | H130: 0 | I130: 0 | J130: 0 | K130: 0
A131: Zoo's, Marine and Non-biological Animals | C131: 0 | D131: 0 | E131: 0 | F131: 0 | G131: 0 | H131: 0 | I131: 0 | J131: 0 | K131: 0
A132: TOTAL CAPITAL EXPENDITURE - Asset class | C132: =+C5+C37+C69 -> 287010501 | D132: =+D5+D37+D69 -> 55090000 | E132: 330359000 | F132: 241733000 | G132: 252082406 | H132: 252082406 | I132: 200374363 | J132: 211770628 | K132: 227138572
A134: ASSET REGISTER SUMMARY - PPE (WDV) | B134: 5 | C134: =C144+C147+C148+C151+C154+C155+C158+C159+C160+C161+C162+C163+C164 -> 1218675000 | D134: =D144+D147+D148+D151+D154+D155+D158+D159+D160+D161+D162+D163+D164 -> 3382450000 | E134: 3399394000 | F134: 2678900000 | G134: 2689249000 | H134: 2689249000 | I134: 2889623000 | J134: 3122395000 | K134: 3349533000
A135: Roads Infrastructure | C135: 232263000 | D135: 798577000 | E135: 808848000 | F135: 699003000 | G135: 705434000 | H135: 705434000 | I135: 767627000 | J135: 822052000 | K135: 882052000
A136: Storm water Infrastructure | I136: 0 | J136: 0 | K136: 0
A137: Electrical Infrastructure | C137: 10706000 | D137: 271210000 | E137: 106679000 | F137: 86666000 | G137: 88216000 | H137: 88216000 | I137: 106234000 | J137: 114873000 | K137: 127430000
A138: Water Supply Infrastructure | C138: 623600000 | D138: 903959000 | E138: 1411448000 | F138: 1047288000 | G138: 1058869000 | H138: 1058869000 | I138: 1123684000 | J138: 1253541000 | K138: 1354757000
A139: Sanitation Infrastructure | C139: 26262000 | D139: 259978000 | E139: 90777000 | F139: 184539000 | G139: 185097000 | H139: 185097000 | I139: 209208000 | J139: 218344000 | K139: 243344000
A140: Solid Waste Infrastructure | C140: 16114000 | D140: 210982000 | E140: 48998000 | F140: 147749000 | G140: 148775000 | H140: 148775000 | I140: 164572000 | J140: 184572000 | K140: 204087000
A141: Rail Infrastructure
A142: Coastal Infrastructure
A143: Information and Communication Infrastructure
A144: Infrastructure | C144: =SUM(C135:C143) -> 908945000 | D144: =SUM(D135:D143) -> 2444706000 | E144: 2466750000 | F144: 2165245000 | G144: 2186391000 | H144: 2186391000 | I144: 2371325000 | J144: 2593382000 | K144: 2811670000
A147: Community Assets | C147: 73689000 | D147: 50557000 | E147: 66332000 | F147: 190534000 | G147: 190534000 | H147: 190534000 | I147: 260402000 | J147: 270267000 | K147: 278267000
A148: Heritage Assets | C148: 14000 | D148: 14000 | E148: 14000
A151: Investment properties | D151: 165290000 | E151: 165290000
A154: Other Assets | C154: 236027000 | D154: 681636000 | E154: 643412000 | F154: 115612000 | G154: 113815000 | H154: 113815000 | I154: 58537000 | J154: 58537000 | K154: 58537000
A155: Biological or Cultivated Assets
A158: Intangible Assets | C158: 0 | D158: 40247000 | E158: 57596000 | I158: 91004000 | J158: 91254000 | K158: 91504000
A159: Computer Equipment | C159: 0 | D159: 0 | E159: 0 | F159: 91254000 | G159: 90754000 | H159: 90754000 | I159: 20591000 | J159: 20891000 | K159: 21191000
A160: Furniture and Office Equipment | F160: 20791000 | G160: 20291000 | H160: 20291000 | I160: 8484000 | J160: 8784000 | K160: 9084000
A161: Machinery and Equipment | F161: 8184000 | G161: 8184000 | H161: 8184000 | I161: 75156000 | J161: 75156000 | K161: 75156000
A162: Transport Assets | F162: 83156000 | G162: 75156000 | H162: 75156000 | I162: 4124000 | J162: 4124000 | K162: 4124000
A163: Land | F163: 4124000 | G163: 4124000 | H163: 4124000
A164: Zoo's, Marine and Non-biological Animals
A165: TOTAL ASSET REGISTER SUMMARY - PPE (WDV) | B165: 5 | C165: =C144+C147+C148+C151+C154+C155+C158+C159+C160+C161+C162+C163+C164 -> 1218675000 | D165: =D144+D147+D148+D151+D154+D155+D158+D159+D160+D161+D162+D163+D164 -> 3382450000 | E165: 3399394000 | F165: 2678900000 | G165: 2689249000 | H165: 2689249000 | I165: 2889623000 | J165: 3122395000 | K165: 3349533000
A167: EXPENDITURE OTHER ITEMS | C167: =SUM(C168:C169) -> 91727504 | D167: =SUM(D168:D169) -> 163087810 | E167: 169327953.6 | F167: 252988300 | G167: 282492213 | H167: 282492213 | I167: 298016733 | J167: 334424911 | K167: 374096734
A168: Depreciation | B168: 7 | C168: =SA34d!C167 -> 46184156 | D168: =SA34d!D167 -> 108713732 | E168: =SA34d!E167 -> 169327953.6 | F168: =SA34d!F167 -> 130138300 | G168: =SA34d!G167 -> 140091413 | H168: =SA34d!H167 -> 140091413 | I168: =SA34d!I167 -> 154536733 | J168: =SA34d!J167 -> 180901311 | K168: =SA34d!K167 -> 209826482
A169: Repairs and Maintenance by Asset Class | B169: 3 | C169: =C179+C182+C183+C186+C189+C190+SUM(C193:C199) -> 45543348 | D169: =D179+D182+D183+D186+D189+D190+SUM(D193:D199) -> 54374078 | E169: 0 | F169: 122850000 | G169: 142400800 | H169: 142400800 | I169: 143480000 | J169: 153523600 | K169: 164270252
A170: Roads Infrastructure | C170: =SA34c!C7 -> 2633000 | D170: =SA34c!D7 -> 15969000 | E170: =SA34c!E7 -> 0 | F170: =SA34c!F7 -> 23400000 | G170: =SA34c!G7 -> 16000000 | H170: =SA34c!H7 -> 16000000 | I170: =SA34c!I7 -> 18800000 | J170: =SA34c!J7 -> 20116000 | K170: =SA34c!K7 -> 21524120
A171: Storm water Infrastructure | C171: =SA34c!C12 -> 0 | D171: =SA34c!D12 -> 0 | E171: =SA34c!E12 -> 0 | F171: =SA34c!F12 -> 4400000 | G171: =SA34c!G12 -> 4200000 | H171: =SA34c!H12 -> 4200000 | I171: =SA34c!I12 -> 13000000 | J171: =SA34c!J12 -> 13910000 | K171: =SA34c!K12 -> 14883700
A172: Electrical Infrastructure | C172: =SA34c!C16 -> 1973000 | D172: =SA34c!D16 -> 1344000 | E172: =SA34c!E16 -> 0 | F172: =SA34c!F16 -> 13000000 | G172: =SA34c!G16 -> 13000000 | H172: =SA34c!H16 -> 13000000 | I172: =SA34c!I16 -> 12000000 | J172: =SA34c!J16 -> 12840000 | K172: =SA34c!K16 -> 13738800
A173: Water Supply Infrastructure | C173: =SA34c!C26 -> 27319000 | D173: =SA34c!D26 -> 13345000 | E173: =SA34c!E26 -> 0 | F173: =SA34c!F26 -> 500000 | G173: =SA34c!G26 -> 1140000 | H173: =SA34c!H26 -> 1140000 | I173: =SA34c!I26 -> 600000 | J173: =SA34c!J26 -> 642000 | K173: =SA34c!K26 -> 686940
A174: Sanitation Infrastructure | C174: =SA34c!C37 -> 1414000 | D174: =SA34c!D37 -> 1440000 | E174: =SA34c!E37 -> 0 | F174: =SA34c!F37 -> 0 | G174: =SA34c!G37 -> 0 | H174: =SA34c!H37 -> 0 | I174: =SA34c!I37 -> 0 | J174: =SA34c!J37 -> 0 | K174: =SA34c!K37 -> 0
A175: Solid Waste Infrastructure | C175: =SA34c!C44 -> 5569397 | D175: =SA34c!D44 -> 13575896 | E175: =SA34c!E44 -> 0 | F175: =SA34c!F44 -> 48680000 | G175: =SA34c!G44 -> 69660800 | H175: =SA34c!H44 -> 69660800 | I175: =SA34c!I44 -> 60420000 | J175: =SA34c!J44 -> 64649400 | K175: =SA34c!K44 -> 69174858
A176: Rail Infrastructure | C176: =SA34c!C52 -> 0 | D176: =SA34c!D52 -> 0 | E176: =SA34c!E52 -> 0 | F176: =SA34c!F52 -> 0 | G176: =SA34c!G52 -> 0 | H176: =SA34c!H52 -> 0 | I176: =SA34c!I52 -> 0 | J176: =SA34c!J52 -> 0 | K176: =SA34c!K52 -> 0
A177: Coastal Infrastructure | C177: =SA34c!C62 -> 0 | D177: =SA34c!D62 -> 0 | E177: =SA34c!E62 -> 0 | F177: =SA34c!F62 -> 0 | G177: =SA34c!G62 -> 0 | H177: =SA34c!H62 -> 0 | I177: =SA34c!I62 -> 0 | J177: =SA34c!J62 -> 0 | K177: =SA34c!K62 -> 0
A178: Information and Communication Infrastructure | C178: =SA34c!C68 -> 0 | D178: =SA34c!D68 -> 0 | E178: =SA34c!E68 -> 0 | F178: =SA34c!F68 -> 0 | G178: =SA34c!G68 -> 0 | H178: =SA34c!H68 -> 0 | I178: =SA34c!I68 -> 0 | J178: =SA34c!J68 -> 0 | K178: =SA34c!K68 -> 0
A179: Infrastructure | C179: =SUM(C170:C178) -> 38908397 | D179: =SUM(D170:D178) -> 45673896 | E179: 0 | F179: 89980000 | G179: 104000800 | H179: 104000800 | I179: 104820000 | J179: 112157400 | K179: 120008418
A180: Community Facilities | C180: =SA34c!C75 -> 415627 | D180: =SA34c!D75 -> 26582 | E180: =SA34c!E75 -> 0 | F180: =SA34c!F75 -> 30000 | G180: =SA34c!G75 -> 20000 | H180: =SA34c!H75 -> 20000 | I180: =SA34c!I75 -> 0 | J180: =SA34c!J75 -> 0 | K180: =SA34c!K75 -> 0
A181: Sport and Recreation Facilities | C181: =SA34c!C98 -> 177604 | D181: =SA34c!D98 -> 1919397 | E181: =SA34c!E98 -> 0 | F181: =SA34c!F98 -> 1200000 | G181: =SA34c!G98 -> 1200000 | H181: =SA34c!H98 -> 1200000 | I181: =SA34c!I98 -> 1200000 | J181: =SA34c!J98 -> 1284000 | K181: =SA34c!K98 -> 1373880
A182: Community Assets | C182: =SUM(C180:C181) -> 593231 | D182: 1945979 | E182: 0 | F182: 1230000 | G182: 1220000 | H182: 1220000 | I182: 1200000 | J182: 1284000 | K182: 1373880
A183: Heritage Assets | C183: =SA34c!C103 -> 0 | D183: =SA34c!D103 -> 0 | E183: =SA34c!E103 -> 0 | F183: =SA34c!F103 -> 0 | G183: =SA34c!G103 -> 0 | H183: =SA34c!H103 -> 0 | I183: =SA34c!I103 -> 0 | J183: =SA34c!J103 -> 0 | K183: =SA34c!K103 -> 0
A184: Revenue Generating | C184: =SA34c!C111 -> 0 | D184: =SA34c!D111 -> 0 | E184: =SA34c!E111 -> 0 | F184: =SA34c!F111 -> 0 | G184: =SA34c!G111 -> 0 | H184: =SA34c!H111 -> 0 | I184: =SA34c!I111 -> 0 | J184: =SA34c!J111 -> 0 | K184: =SA34c!K111 -> 0
A185: Non-revenue Generating | C185: =SA34c!C114 -> 0 | D185: =SA34c!D114 -> 0 | E185: =SA34c!E114 -> 0 | F185: =SA34c!F114 -> 0 | G185: =SA34c!G114 -> 0 | H185: =SA34c!H114 -> 0 | I185: =SA34c!I114 -> 0 | J185: =SA34c!J114 -> 0 | K185: =SA34c!K114 -> 0
A186: Investment properties | C186: =SUM(C184:C185) -> 0 | D186: 0 | E186: 0 | F186: 0 | G186: 0 | H186: 0 | I186: 0 | J186: 0 | K186: 0
A187: Operational Buildings | C187: =SA34c!C119 -> 3494720 | D187: =SA34c!D119 -> 1979829 | E187: =SA34c!E119 -> 0 | F187: =SA34c!F119 -> 15800000 | G187: =SA34c!G119 -> 18000000 | H187: =SA34c!H119 -> 18000000 | I187: =SA34c!I119 -> 19600000 | J187: =SA34c!J119 -> 20972000 | K187: =SA34c!K119 -> 22440040
A188: Housing | C188: =SA34c!C131 -> 0 | D188: =SA34c!D131 -> 0 | E188: =SA34c!E131 -> 0 | F188: =SA34c!F131 -> 0 | G188: =SA34c!G131 -> 0 | H188: =SA34c!H131 -> 0 | I188: =SA34c!I131 -> 0 | J188: =SA34c!J131 -> 0 | K188: =SA34c!K131 -> 0
A189: Other Assets | C189: =SUM(C187:C188) -> 3494720 | D189: 1979829 | E189: 0 | F189: 15800000 | G189: 18000000 | H189: 18000000 | I189: 19600000 | J189: 20972000 | K189: 22440040
A190: Biological or Cultivated Assets | C190: =SA34c!C136 -> 0 | D190: =SA34c!D136 -> 0 | E190: =SA34c!E136 -> 0 | F190: =SA34c!F136 -> 0 | G190: =SA34c!G136 -> 0 | H190: =SA34c!H136 -> 0 | I190: =SA34c!I136 -> 0 | J190: =SA34c!J136 -> 0 | K190: =SA34c!K136 -> 0
A191: Servitudes | C191: =SA34c!C140 -> 0 | D191: =SA34c!D140 -> 0 | E191: =SA34c!E140 -> 0 | F191: =SA34c!F140 -> 0 | G191: =SA34c!G140 -> 0 | H191: =SA34c!H140 -> 0 | I191: =SA34c!I140 -> 0 | J191: =SA34c!J140 -> 0 | K191: =SA34c!K140 -> 0
A192: Licences and Rights | C192: =SA34c!C141 -> 0 | D192: =SA34c!D141 -> 0 | E192: =SA34c!E141 -> 0 | F192: =SA34c!F141 -> 6000000 | G192: =SA34c!G141 -> 6000000 | H192: =SA34c!H141 -> 6000000 | I192: =SA34c!I141 -> 6000000 | J192: =SA34c!J141 -> 6420000 | K192: =SA34c!K141 -> 6869400
A193: Intangible Assets | C193: =SUM(C191:C192) -> 0 | D193: 0 | E193: 0 | F193: 6000000 | G193: 6000000 | H193: 6000000 | I193: 6000000 | J193: 6420000 | K193: 6869400
A194: Computer Equipment | C194: =SA34c!C149 -> 0 | D194: =SA34c!D149 -> 0 | E194: =SA34c!E149 -> 0 | F194: =SA34c!F149 -> 160000 | G194: =SA34c!G149 -> 80000 | H194: =SA34c!H149 -> 80000 | I194: =SA34c!I149 -> 160000 | J194: =SA34c!J149 -> 171200 | K194: =SA34c!K149 -> 183184
A195: Furniture and Office Equipment | C195: =SA34c!C152 -> 0 | D195: =SA34c!D152 -> 0 | E195: =SA34c!E152 -> 0 | F195: =SA34c!F152 -> 0 | G195: =SA34c!G152 -> 0 | H195: =SA34c!H152 -> 0 | I195: =SA34c!I152 -> 0 | J195: =SA34c!J152 -> 0 | K195: =SA34c!K152 -> 0
A196: Machinery and Equipment | C196: =SA34c!C155 -> 117000 | D196: =SA34c!D155 -> 0 | E196: =SA34c!E155 -> 0 | F196: =SA34c!F155 -> 0 | G196: =SA34c!G155 -> 0 | H196: =SA34c!H155 -> 0 | I196: =SA34c!I155 -> 0 | J196: =SA34c!J155 -> 0 | K196: =SA34c!K155 -> 0
A197: Transport Assets | C197: =SA34c!C158 -> 2430000 | D197: =SA34c!D158 -> 4774374 | E197: =SA34c!E158 -> 0 | F197: =SA34c!F158 -> 9680000 | G197: =SA34c!G158 -> 13100000 | H197: =SA34c!H158 -> 13100000 | I197: =SA34c!I158 -> 11700000 | J197: =SA34c!J158 -> 12519000 | K197: =SA34c!K158 -> 13395330
A198: Land | C198: =SA34c!C161 -> 0 | D198: =SA34c!D161 -> 0 | E198: =SA34c!E161 -> 0 | F198: =SA34c!F161 -> 0 | G198: =SA34c!G161 -> 0 | H198: =SA34c!H161 -> 0 | I198: =SA34c!I161 -> 0 | J198: =SA34c!J161 -> 0 | K198: =SA34c!K161 -> 0
A199: Zoo's, Marine and Non-biological Animals | C199: =SA34c!C164 -> 0 | D199: =SA34c!D164 -> 0 | E199: =SA34c!E164 -> 0 | F199: =SA34c!F164 -> 0 | G199: =SA34c!G164 -> 0 | H199: =SA34c!H164 -> 0 | I199: =SA34c!I164 -> 0 | J199: =SA34c!J164 -> 0 | K199: =SA34c!K164 -> 0
A201: TOTAL EXPENDITURE OTHER ITEMS | C201: =SUM(C168:C169) -> 91727504 | D201: 163087810 | E201: 169327953.6 | F201: 252988300 | G201: 282492213 | H201: 282492213 | I201: 298016733 | J201: 334424911 | K201: 374096734
A203: Renewal and upgrading of Existing Assets as % of total capex | C203: =IF(ISERROR((C37+C69)/C132),0,((C37+C69)/C132)) -> 0 | D203: =IF(ISERROR((D37+D69)/D132),0,((D37+D69)/D132)) -> 0 | E203: 0 | F203: 0.09275936674 | G203: 0.07715334167 | H203: 0.07715334167 | I203: 0.1003696865 | J203: 0.1410227437 | K203: 0.08591760452
A204: Renewal and upgrading of Existing Assets as % of deprecn | C204: =IF(ISERROR((C37+C69)/C168),0,((C37+C69)/C168)) -> 0 | D204: =IF(ISERROR((D37+D69)/D168),0,((D37+D69)/D168)) -> 0 | E204: 0 | F204: 0.1723013133 | G204: 0.138830779 | H204: 0.138830779 | I204: 0.1301406572 | J204: 0.1650871121 | K204: 0.09300638229
A205: R&M as a % of PPE | C205: =IF(ISERROR(ROUND(C169/'A6-FinPos'!C19,3)),0,(ROUND(C169/'A6-FinPos'!C19,3))) -> 0.037 | D205: =IF(ISERROR(ROUND(D169/'A6-FinPos'!D19,3)),0,(ROUND(D169/'A6-FinPos'!D19,3))) -> 0.017 | E205: =IF(ISERROR(ROUND(E169/'A6-FinPos'!E19,3)),0,(ROUND(E169/'A6-FinPos'!E19,3))) -> 0 | F205: =IF(ISERROR(ROUND(F169/'A6-FinPos'!F19,3)),0,(ROUND(F169/'A6-FinPos'!F19,3))) -> 0.081 | G205: =IF(ISERROR(ROUND(G169/'A6-FinPos'!G19,3)),0,(ROUND(G169/'A6-FinPos'!G19,3))) -> 0.094 | H205: =IF(ISERROR(ROUND(H169/'A6-FinPos'!H19,3)),0,(ROUND(H169/'A6-FinPos'!H19,3))) -> 0.094 | I205: =IF(ISERROR(ROUND(I169/'A6-FinPos'!J19,3)),0,(ROUND(I169/'A6-FinPos'!J19,3))) -> 0.091 | J205: =IF(ISERROR(ROUND(J169/'A6-FinPos'!K19,3)),0,(ROUND(J169/'A6-FinPos'!K19,3))) -> 0.095 | K205: =IF(ISERROR(ROUND(K169/'A6-FinPos'!L19,3)),0,(ROUND(K169/'A6-FinPos'!L19,3))) -> 0.101
A206: Renewal and upgrading and R&M as a % of PPE | C206: =IF(ISERROR(ROUND((C37+C69+C169)/C165,2)),0,(ROUND((C37+C69+C169)/C165,2))) -> 0.04 | D206: =IF(ISERROR(ROUND((D37+D69+D169)/D165,2)),0,(ROUND((D37+D69+D169)/D165,2))) -> 0.02 | E206: 0 | F206: 0.05 | G206: 0.06 | H206: 0.06 | I206: 0.06 | J206: 0.06 | K206: 0.05
A208: =head27a -> References
A209: 1. Detail of new assets provided in Table SA34a
A210: 2. Detail of renewal of existing assets provided in Table SA34b
A211: 3. Detail of Repairs and Maintenance by Asset Class provided in Table SA34c
A212: 4. Must reconcile to total capital expenditure on Budgeted Capital Expenditure
A213: 5. Must reconcile to 'Budgeted Financial Position' (written down value)
A214: 6. Detail of upgrading of existing assets provided in Table SA34e
A215: 7. Detail of depreciation provided in Table SA34d
A217: Check balance to A6 | C217: =C165-'A6-FinPos'!D17-'A6-FinPos'!D19-'A6-FinPos'!D20-'A6-FinPos'!D21-'A6-FinPos'!D22-C148 -> -2163775637 | D217: =D165-'A6-FinPos'!E17-'A6-FinPos'!E19-'A6-FinPos'!E20-'A6-FinPos'!E21-'A6-FinPos'!E22-D148 -> -16945113 | E217: =E165-'A6-FinPos'!F17-'A6-FinPos'!F19-'A6-FinPos'!F20-'A6-FinPos'!F21-'A6-FinPos'!F22-E148 -> 1875243000 | F217: =F165-'A6-FinPos'!G17-'A6-FinPos'!G19-'A6-FinPos'!G20-'A6-FinPos'!G21-'A6-FinPos'!G22-F148 -> 1165112000 | G217: =G165-'A6-FinPos'!H17-'A6-FinPos'!H19-'A6-FinPos'!H20-'A6-FinPos'!H21-'A6-FinPos'!H22-G148 -> 1175461000 | H217: =H165-'A6-FinPos'!I17-'A6-FinPos'!I19-'A6-FinPos'!I20-'A6-FinPos'!I21-'A6-FinPos'!I22-H148 -> 1175461000 | I217: =I165-'A6-FinPos'!J17-'A6-FinPos'!J19-'A6-FinPos'!J20-'A6-FinPos'!J21-'A6-FinPos'!J22-I148 -> 1308998000 | J217: =J165-'A6-FinPos'!K17-'A6-FinPos'!K19-'A6-FinPos'!K20-'A6-FinPos'!K21-'A6-FinPos'!K22-J148 -> 1510900000 | K217: =K165-'A6-FinPos'!L17-'A6-FinPos'!L19-'A6-FinPos'!L20-'A6-FinPos'!L21-'A6-FinPos'!L22-K148 -> 1720726000

Sheet A10-SerDel
A1: =muni&" - "&Approve10 -> NW375 Moses Kotane - Table A10 Basic service delivery measurement
A2: =desc -> Description | B2: =head27 -> Ref | C2: =head1b -> 2015/16 | D2: =head1A -> 2016/17 | E2: =Head1 -> 2017/18 | F2: =Head2 -> Current Year 2018/19 | I2: =Head3 -> 2019/20 Medium Term Revenue & Expenditure Framework
C3: =Head5A -> Outcome | D3: =Head5A -> Outcome | E3: =Head5A -> Outcome | F3: =Head6 -> Original Budget | G3: =Head7 -> Adjusted Budget | H3: =Head8 -> Full Year Forecast | I3: =Head9 -> Budget Year 2019/20 | J3: =Head10 -> Budget Year +1 2020/21 | K3: =Head11 -> Budget Year +2 2021/22
A4: Household service targets | B4: 1
A5: Water:
A6: Piped water inside dwelling | C6: ='SA9'!E67 -> 5700 | D6: ='SA9'!F67 -> 5700 | E6: ='SA9'!G67 -> 5700 | F6: ='SA9'!H67 -> 5700 | G6: ='SA9'!I67 -> 5700 | H6: ='SA9'!J67 -> 5700 | I6: ='SA9'!K67 -> 5700 | J6: ='SA9'!L67 -> 5700 | K6: ='SA9'!M67 -> 5700
A7: Piped water inside yard (but not in dwelling) | C7: ='SA9'!E68 -> 10000 | D7: ='SA9'!F68 -> 10000 | E7: ='SA9'!G68 -> 10000 | F7: ='SA9'!H68 -> 10000 | G7: ='SA9'!I68 -> 10000 | H7: ='SA9'!J68 -> 10000 | I7: ='SA9'!K68 -> 10000 | J7: ='SA9'!L68 -> 10000 | K7: ='SA9'!M68 -> 10000
A8: Using public tap (at least min.service level) | B8: 2 | C8: ='SA9'!E69 -> 52000 | D8: ='SA9'!F69 -> 52000 | E8: ='SA9'!G69 -> 52000 | F8: ='SA9'!H69 -> 52000 | G8: ='SA9'!I69 -> 52000 | H8: ='SA9'!J69 -> 52000 | I8: ='SA9'!K69 -> 52000 | J8: ='SA9'!L69 -> 52000 | K8: ='SA9'!M69 -> 52000
A9: Other water supply (at least min.service level) | B9: 4 | C9: ='SA9'!E70 -> 0 | D9: ='SA9'!F70 -> 0 | E9: ='SA9'!G70 -> 0 | F9: ='SA9'!H70 -> 0 | G9: ='SA9'!I70 -> 0 | H9: ='SA9'!J70 -> 0 | I9: ='SA9'!K70 -> 0 | J9: ='SA9'!L70 -> 0 | K9: ='SA9'!M70 -> 0
A10: Minimum Service Level and Above sub-total | C10: =SUM(C6:C9) -> 67700 | D10: =SUM(D6:D9) -> 67700 | E10: 67700 | F10: 67700 | G10: 67700 | H10: 67700 | I10: 67700 | J10: 67700 | K10: 67700
A11: Using public tap (< min.service level) | B11: 3 | C11: ='SA9'!E72 -> 12000000 | D11: ='SA9'!F72 -> 12000000 | E11: ='SA9'!G72 -> 12000000 | F11: ='SA9'!H72 -> 12000 | G11: ='SA9'!I72 -> 12000 | H11: ='SA9'!J72 -> 12000 | I11: ='SA9'!K72 -> 12000 | J11: ='SA9'!L72 -> 12000 | K11: ='SA9'!M72 -> 12000
A12: Other water supply (< min.service level) | B12: =B9 -> 4 | C12: ='SA9'!E73 -> 0 | D12: ='SA9'!F73 -> 0 | E12: ='SA9'!G73 -> 0 | F12: ='SA9'!H73 -> 0 | G12: ='SA9'!I73 -> 0 | H12: ='SA9'!J73 -> 0 | I12: ='SA9'!K73 -> 0 | J12: ='SA9'!L73 -> 0 | K12: ='SA9'!M73 -> 0
A13: No water supply | C13: ='SA9'!E74 -> 0 | D13: ='SA9'!F74 -> 0 | E13: ='SA9'!G74 -> 0 | F13: ='SA9'!H74 -> 0 | G13: ='SA9'!I74 -> 0 | H13: ='SA9'!J74 -> 0 | I13: ='SA9'!K74 -> 0 | J13: ='SA9'!L74 -> 0 | K13: ='SA9'!M74 -> 0
A14: Below Minimum Service Level sub-total | C14: =SUM(C11:C13) -> 12000000 | D14: =SUM(D11:D13) -> 12000000 | E14: 12000000 | F14: 12000 | G14: 12000 | H14: 12000 | I14: 12000 | J14: 12000 | K14: 12000
A15: Total number of households | B15: 5 | C15: =C10+C14 -> 12067700 | D15: =D10+D14 -> 12067700 | E15: 12067700 | F15: 79700 | G15: 79700 | H15: 79700 | I15: 79700 | J15: 79700 | K15: 79700
A16: Sanitation/sewerage:
A17: Flush toilet (connected to sewerage) | C17: ='SA9'!E78 -> 7000 | D17: ='SA9'!F78 -> 7000 | E17: ='SA9'!G78 -> 7000 | F17: ='SA9'!H78 -> 7000 | G17: ='SA9'!I78 -> 7000 | H17: ='SA9'!J78 -> 7000 | I17: ='SA9'!K78 -> 7000 | J17: ='SA9'!L78 -> 7000 | K17: ='SA9'!M78 -> 7000
A18: Flush toilet (with septic tank) | C18: ='SA9'!E79 -> 5000 | D18: ='SA9'!F79 -> 5000 | E18: ='SA9'!G79 -> 5000 | F18: ='SA9'!H79 -> 5000 | G18: ='SA9'!I79 -> 5000 | H18: ='SA9'!J79 -> 5000 | I18: ='SA9'!K79 -> 5000 | J18: ='SA9'!L79 -> 5000 | K18: ='SA9'!M79 -> 5000
A19: Chemical toilet | C19: ='SA9'!E80 -> 0 | D19: ='SA9'!F80 -> 0 | E19: ='SA9'!G80 -> 0 | F19: ='SA9'!H80 -> 0 | G19: ='SA9'!I80 -> 0 | H19: ='SA9'!J80 -> 0 | I19: ='SA9'!K80 -> 0 | J19: ='SA9'!L80 -> 0 | K19: ='SA9'!M80 -> 0
A20: Pit toilet (ventilated) | C20: ='SA9'!E81 -> 13000 | D20: ='SA9'!F81 -> 13000 | E20: ='SA9'!G81 -> 13000 | F20: ='SA9'!H81 -> 13000 | G20: ='SA9'!I81 -> 13000 | H20: ='SA9'!J81 -> 13000 | I20: ='SA9'!K81 -> 13000 | J20: ='SA9'!L81 -> 13000 | K20: ='SA9'!M81 -> 13000
A21: Other toilet provisions (> min.service level) | C21: ='SA9'!E82 -> 0 | D21: ='SA9'!F82 -> 0 | E21: ='SA9'!G82 -> 0 | F21: ='SA9'!H82 -> 0 | G21: ='SA9'!I82 -> 0 | H21: ='SA9'!J82 -> 0 | I21: ='SA9'!K82 -> 0 | J21: ='SA9'!L82 -> 0 | K21: ='SA9'!M82 -> 0
A22: =$A$10 -> Minimum Service Level and Above sub-total | C22: =SUM(C17:C21) -> 25000 | D22: =SUM(D17:D21) -> 25000 | E22: 25000 | F22: 25000 | G22: 25000 | H22: 25000 | I22: 25000 | J22: 25000 | K22: 25000
A23: Bucket toilet | C23: ='SA9'!E84 -> 0 | D23: ='SA9'!F84 -> 0 | E23: ='SA9'!G84 -> 0 | F23: ='SA9'!H84 -> 0 | G23: ='SA9'!I84 -> 0 | H23: ='SA9'!J84 -> 0 | I23: ='SA9'!K84 -> 0 | J23: ='SA9'!L84 -> 0 | K23: ='SA9'!M84 -> 0
A24: Other toilet provisions (< min.service level) | C24: ='SA9'!E85 -> 0 | D24: ='SA9'!F85 -> 0 | E24: ='SA9'!G85 -> 0 | F24: ='SA9'!H85 -> 0 | G24: ='SA9'!I85 -> 0 | H24: ='SA9'!J85 -> 0 | I24: ='SA9'!K85 -> 0 | J24: ='SA9'!L85 -> 0 | K24: ='SA9'!M85 -> 0
